Workbook

Sheet Sumário
A1: ARSAE-MG
A2: Cálculo do Índice de Reposicionamento Tarifário (IRT) e Efeito Tarifário Médio (ETM) - 2ª Revisão Tarifária Periódica da Copasa - 2021
A3: Data: 17/06/2021
C5: Versão final após Consulta Pública nº 23/2021 e Audiência Pública nº 37/2021.
B7: Esta planilha contém os cálculos referentes à 2ª Revisão Tarifária Periódica da Copasa - 2021 Ciclo tarifário: ago/2021 a jul/2025 | R7: PR0: | S7: =EDATE(S8,-12) -> 2019-08-01 | T7: =EDATE(S7,11) -> 2020-07-01
R8: PR1: | S8: 2020-08-01 | T8: =EDATE(S8,11) -> 2021-07-01
B10: Conteúdo das abas:
C12: 1.Dados_cont_historicos | H12: Dados contábeis históricos extraídos da contabilidade da Copasa e agregados conforme classificação regulatória definida para a RTP 2021
C13: 2.Dados_cont_atualizados | H13: Dados da aba anterior atualizados pela inflação acumulada de cada mês até julho/2021. A inflação acumulada está calculada na aba 3.Índices_inflação
C14: 3.Índices_inflação | H14: Histórico dos índices de inflação utilizados nos cálculos, e também da taxa Selic, com cálculo dos percentuais acumulados nos períodos de interesse.
C15: 3.1.Variação_mensal_IEE | H15: Cálculo do índice de reajuste de energia elétrica (IEE) mensal. O resultado alimenta a plan. 3.Índices_inflação. Nesta aba também está calculada a compensação pela mudança do Pasep/Cofins/ICMS da Cemig a partir de jul/19.
C16: 4.IRT_e_ETM_2021 | H16: Planilha principal, onde é feito o cálculo do IRT e do ETM
C17: 5.Tributos_lucro | H17: Cálculo do valor de tributos sobre o lucro (IRPJ e CSLL) inserido na tarifa dentro do grupo Custos de Capital
C18: 6.NCG | H18: Resumo do cálculo da necessidade de capital de giro e da remuneração desse montante
C19: 7.Outras_receitas | H19: Apuração dos valores de reversão das outras receitas
C20: 8.Componentes_financeiros | H20: Apresenta os componentes financeiros referentes ao período anterior
C21: 8.1.Itens_não_adm | H21: Resumo do cálculo da compensação dos itens não administráveis
C22: 8.2.Comp_JCP | H22: Cálculo da compensação do JCP, referente ao período anterior (ago/20-jul/21). Auxiliar à plan. 6.Componentes_financeiros.
C23: 8.3.Subsídio_Copanor | H23: Cálculo do valor alocado nos componentes financeiros para o Subsídio Copanor (valor dos aportes + adicional para IRPJ e CSLL)

Sheet 1.Dados_cont_historicos
A1: ARSAE-MG
A2: Dados contábeis históricos agregados conforme classificação regulatória definida para a RTP 2021 | ET2: Em roxo: | EU2: valor do mesmo mês do ano anterior atualizado pela inflação acumulada
A3: Versão final | ET3: Em vermelho: | EU3: média últimos 3 meses | EZ3: Totais nominais | FI3: Índices inflação
C4: Classificação Regulatória | D4: 2010-01-01 | E4: 2010-02-01 | F4: 2010-03-01 | G4: 2010-04-01 | H4: 2010-05-01 | I4: 2010-06-01 | J4: 2010-07-01 | K4: 2010-08-01 | L4: 2010-09-01 | M4: 2010-10-01 | N4: 2010-11-01 | O4: 2010-12-01 | CQ4: 2017-01-01 | CR4: 2017-02-01 | CS4: 2017-03-01 | CT4: 2017-04-01 | CU4: 2017-05-01 | CV4: 2017-06-01 | CW4: 2017-07-01 | CX4: 2017-08-01 | CY4: 2017-09-01 | CZ4: 2017-10-01 | DA4: 2017-11-01 | DB4: 2017-12-01 | DC4: 2017 | DD4: 2018-01-01 | DE4: 2018-02-01 | DF4: 2018-03-01 | DG4: 2018-04-01 | DH4: 2018-05-01 | DI4: 2018-06-01 | DJ4: 2018-07-01 | DK4: 2018-08-01 | DL4: 2018-09-01 | DM4: 2018-10-01 | DN4: 2018-11-01 | DO4: 2018-12-01 | DP4: 2018 | DQ4: 2019-01-01 | DR4: 2019-02-01 | DS4: 2019-03-01 | DT4: 2019-04-01 | DU4: 2019-05-01 | DV4: 2019-06-01 | DW4: 2019-07-01 | DX4: 2019-08-01 | DY4: 2019-09-01 | DZ4: 2019-10-01 | EA4: 2019-11-01 | EB4: 2019-12-01 | EC4: 2019 | ED4: 2020-01-01 | EE4: 2020-02-01 | EF4: 2020-03-01 | EG4: 2020-04-01 | EH4: 2020-05-01 | EI4: 2020-06-01 | EJ4: 2020-07-01 | EK4: 2020-08-01 | EL4: 2020-09-01 | EM4: 2020-10-01 | EN4: 2020-11-01 | EO4: 2020-12-01 | EP4: 2020 | EQ4: 2021-01-01 | ER4: 2021-02-01 | ES4: 2021-03-01 | ET4: 2021-04-01 | EU4: 2021-05-01 | EV4: 2021-06-01 | EW4: 2021-07-01 | EZ4: 2017 | FA4: 2018 | FB4: 2019 | FC4: 2020 | FD4: PR2017/18 | FE4: PR2018/19 | FF4: PR2019/20 | FG4: PR2020/21
C6: Receita Direta de Água | D6: -147881224.3 | E6: -146678971.7 | F6: -158960407.6 | G6: -150448207.4 | H6: -157722237.5 | I6: -144211367.7 | J6: -154853190.8 | K6: -159219868.4 | L6: -166847228.3 | M6: -162742039.8 | N6: -147755093 | O6: -157894922.2 | CQ6: -244353398.1 | CR6: -207014847 | CS6: -238252533.2 | CT6: -223321125.8 | CU6: -223333046.6 | CV6: -203221412.7 | CW6: -222193137.9 | CX6: -233740931.6 | CY6: -266567824.9 | CZ6: -263060731.8 | DA6: -244649113.7 | DB6: -232015839.2 | DC6: -2801723943 | DD6: -249363838.8 | DE6: -224202669 | DF6: -242540075.9 | DG6: -241271516.9 | DH6: -244587382.4 | DI6: -226127361.2 | DJ6: -238941238.2 | DK6: -245705956 | DL6: -236496937.8 | DM6: -267488170.9 | DN6: -242621277.7 | DO6: -252614359.3 | DP6: -2911960784 | DQ6: -270448464.9 | DR6: -248942513.4 | DS6: -252829204 | DT6: -247035790.1 | DU6: -256290405.7 | DV6: -247266897.4 | DW6: -257970235.6 | DX6: -267580732.2 | DY6: -312425436.4 | DZ6: -321217542.1 | EA6: -293049507.5 | EB6: -284726945.4 | EC6: -3259783675 | ED6: -292156729.2 | EE6: -262104233.4 | EF6: -286301364.3 | EG6: -275090368.1 | EH6: -285391400.1 | EI6: -266555796.2 | EJ6: -289345762.2 | EK6: -302105926.9 | EL6: -299225260.8 | EM6: -339834358.4 | EN6: -291340658.8 | EO6: -301996010.4 | EP6: -3491447869 | EQ6: -311378828.9 | ER6: -284328558.1 | ES6: -294898235.5 | ET6: -299701839.7 | EU6: =AVERAGE(ER6,ES6,ET6) -> -292976211.1 | EV6: -295858762.1 | EW6: =AVERAGE(ET6,EU6,EV6) -> -296178937.6 | EZ6: =DC6 -> -2801723943 | FA6: =DP6 -> -2911960784 | FB6: =EC6 -> -3259783675 | FC6: =EP6 -> -3491447869 | FD6: =SUM(CX6:DB6,DD6:DJ6) -> -2907068524 | FE6: =SUM(DK6:DO6,DQ6:DW6) -> -3025710213 | FF6: =SUM(DX6:EB6,ED6:EJ6) -> -3435945817 | FG6: =SUM(EK6:EO6,EQ6:EW6) -> -3609823588 | FI6: ETM
C7: Receita Direta de Esgoto | D7: -50930666.78 | E7: -51078145.51 | F7: -58021291.81 | G7: -56281625.69 | H7: -57901190.29 | I7: -53581371.87 | J7: -56603895.05 | K7: -56554011.96 | L7: -60575088.18 | M7: -59027088.76 | N7: -54695487.74 | O7: -57700993.17 | CQ7: -132747549.4 | CR7: -115882716.1 | CS7: -130985555.9 | CT7: -127503434.3 | CU7: -124438236.3 | CV7: -117137308.6 | CW7: -123587632.8 | CX7: -130726330.7 | CY7: -148500670.6 | CZ7: -145651506.8 | DA7: -138284471.8 | DB7: -132128487.4 | DC7: -1567573900 | DD7: -138131092.4 | DE7: -125253928.8 | DF7: -137101889.9 | DG7: -135538265.8 | DH7: -139289974.7 | DI7: -129173552.8 | DJ7: -135647913.8 | DK7: -138497654.8 | DL7: -132275569.2 | DM7: -150995330.6 | DN7: -139287991.9 | DO7: -148326939.1 | DP7: -1649520104 | DQ7: -151990561.9 | DR7: -140118819.2 | DS7: -146435000.3 | DT7: -144339655.8 | DU7: -147501304.7 | DV7: -144814139 | DW7: -149261461.7 | DX7: -153530387.2 | DY7: -178166037.3 | DZ7: -183329672.3 | EA7: -173724743.4 | EB7: -164817268.1 | EC7: -1878029051 | ED7: -166222992 | EE7: -153099982.2 | EF7: -169202560.3 | EG7: -161949361.7 | EH7: -164989015.8 | EI7: -154447775.3 | EJ7: -167224621.6 | EK7: -172602175.1 | EL7: -170391729.9 | EM7: -192660342.7 | EN7: -171668015.2 | EO7: -179512490.4 | EP7: -2023971062 | EQ7: -182348103.5 | ER7: -169965371 | ES7: -180321385.6 | ET7: -179567909.7 | EU7: -176618222.1 | EV7: -178835839.2 | EW7: -178340657 | EZ7: =DC7 -> -1567573900 | FA7: =DP7 -> -1649520104 | FB7: =EC7 -> -1878029051 | FC7: =EP7 -> -2023971062 | FD7: =SUM(CX7:DB7,DD7:DJ7) -> -1635428085 | FE7: =SUM(DK7:DO7,DQ7:DW7) -> -1733844428 | FF7: =SUM(DX7:EB7,ED7:EJ7) -> -1990704417 | FG7: =SUM(EK7:EO7,EQ7:EW7) -> -2132832241 | FI7: ETM
C8: Receita Direta de Água - Devoluções | D8: 86444.64 | E8: 64972.75 | F8: 127494.24 | G8: 100697.56 | H8: 109777.53 | I8: 78107.84 | J8: 92140.24 | K8: 90077.06 | L8: 104059.74 | M8: 123326.78 | N8: 102929.93 | O8: 55225.24 | CQ8: 244628.75 | CR8: 312028.91 | CS8: 512195.37 | CT8: 347466.93 | CU8: 803978.57 | CV8: 286012.94 | CW8: 129628.5 | CX8: 181273.8 | CY8: 182395.83 | CZ8: 135516.31 | DA8: 1802235.36 | DB8: 2214188.26 | DC8: 7151549.53 | DD8: 1808697.54 | DE8: 768323.48 | DF8: 897777.49 | DG8: 535859.43 | DH8: 502117.26 | DI8: 524001.29 | DJ8: 469337.83 | DK8: 466292.82 | DL8: 702339.74 | DM8: 733559.33 | DN8: 126442.61 | DO8: 495320.05 | DP8: 8030068.87 | DQ8: 384440.88 | DR8: 374908.63 | DS8: 485322.16 | DT8: 331045.6 | DU8: 362116.43 | DV8: 308052.75 | DW8: 305768.83 | DX8: 598314.15 | DY8: 353210.44 | DZ8: 218235.68 | EA8: 97089.25 | EB8: 110442.64 | EC8: 3928947.44 | ED8: -208759.48 | EE8: 31882.61 | EF8: -32155.26 | EG8: 53324.35 | EH8: -81949.19 | EI8: -13768.34 | EJ8: -26323.48 | EK8: 103459.77 | EL8: 104781.89 | EM8: 60090.33 | EN8: 261460.79 | EO8: 943398.64 | EP8: 1195442.63 | EQ8: 140626.64 | ER8: 69473.16 | ES8: 129390.89 | ET8: 101327.59 | EU8: 100063.88 | EV8: 110260.7867 | EW8: 103884.0856 | EZ8: 7151549.53 | FA8: 8030068.87 | FB8: 3928947.44 | FC8: 1195442.63 | FD8: 10021723.88 | FE8: 5075609.83 | FF8: 1099543.37 | FG8: 2228218.452 | FI8: ETM
C9: Receita Direta de Esgoto - Devoluções | D9: 401111.69 | E9: 518501.02 | F9: 610460.28 | G9: 558702.67 | H9: 600391.13 | I9: 640263.15 | J9: 592724.95 | K9: 433487.75 | L9: 432534.39 | M9: 329710.01 | N9: 443731.56 | O9: 350136.44 | CQ9: 344217.74 | CR9: 533151.54 | CS9: 444623.35 | CT9: 535631.95 | CU9: 563693.26 | CV9: 596241.93 | CW9: 447381.67 | CX9: 481075.37 | CY9: 565976.2 | CZ9: 473155.53 | DA9: 622425.69 | DB9: 659554.32 | DC9: 6267128.55 | DD9: 750395.6 | DE9: 1036119.4 | DF9: 1336328.38 | DG9: 2030906.45 | DH9: 823780.12 | DI9: 1304429.21 | DJ9: 945967.99 | DK9: 872408.51 | DL9: 702239.59 | DM9: 877362.76 | DN9: 723733.88 | DO9: 626770.96 | DP9: 12030442.85 | DQ9: 593186.9 | DR9: 732054.9 | DS9: 607042.25 | DT9: 552162.45 | DU9: 661644.76 | DV9: 469432.56 | DW9: 529164.81 | DX9: 339948.3 | DY9: 2543241.38 | DZ9: 998554.99 | EA9: 1141633.15 | EB9: 1022955.25 | EC9: 10191021.7 | ED9: 510898.53 | EE9: 448503.1 | EF9: 739447.74 | EG9: 246993.75 | EH9: 65365.17 | EI9: 310407.04 | EJ9: 529735.16 | EK9: 1428391.64 | EL9: 975519.82 | EM9: 962664.4 | EN9: 3246557.08 | EO9: 2789316.14 | EP9: 12253799.57 | EQ9: 2502446.61 | ER9: 2114531.49 | ES9: 7015517.39 | ET9: 2145501.86 | EU9: 3758516.913 | EV9: 4306512.054 | EW9: 3403510.276 | EZ9: 6267128.55 | FA9: 12030442.85 | FB9: 10191021.7 | FC9: 12253799.57 | FD9: 11030114.26 | FE9: 7947204.33 | FF9: 8897683.56 | FG9: 34648985.67 | FI9: ETM
C10: Descontos Tarifários Concedidos | D10: 3504816.22 | E10: 3519248.96 | F10: 3787802.95 | G10: 3664945.62 | H10: 3765859.26 | I10: 3787202.97 | J10: 3842374.79 | K10: 3812378.28 | L10: 3785721.03 | M10: 3889542.07 | N10: 3776237.42 | O10: 3694406.69 | CQ10: 4681762.17 | CR10: 3746057.42 | CS10: 4758256.83 | CT10: 4312759.78 | CU10: 4456552.49 | CV10: 4180735.65 | CW10: 4803351.04 | CX10: 4799977.23 | CY10: 5168024.32 | CZ10: 5176360.44 | DA10: 5128237.91 | DB10: 5634771.38 | DC10: 56846846.66 | DD10: 5006803.18 | DE10: 4896530.04 | DF10: 5666647.87 | DG10: 5412113.41 | DH10: 5533680.84 | DI10: 5365478.49 | DJ10: 5616894.43 | DK10: 5576013.71 | DL10: 1607822.66 | DM10: 5760454.71 | DN10: 5543274.71 | DO10: 5946534.53 | DP10: 61932248.58 | DQ10: 5603188.91 | DR10: 5376899.33 | DS10: 6001527.59 | DT10: 5844396.73 | DU10: 5775746.98 | DV10: 5808381.01 | DW10: 6310010.3 | DX10: 5315593.15 | DY10: 5806245.73 | DZ10: 8068188.66 | EA10: 7494628.18 | EB10: 7257790.81 | EC10: 74662597.38 | ED10: 7110005.82 | EE10: 6402152.2 | EF10: 9183235.06 | EG10: 6795873.05 | EH10: 5414311.88 | EI10: 7804749.08 | EJ10: 5645111.29 | EK10: 6508520.5 | EL10: 5709545.78 | EM10: 3260174.79 | EN10: 5623580.09 | EO10: 6014325.53 | EP10: 75471585.07 | EQ10: 6057955.42 | ER10: 7877646.63 | ES10: 8889315.16 | ET10: 8300130.47 | EU10: 8355697.42 | EV10: 8515047.683 | EW10: 8390291.858 | EZ10: 56846846.66 | FA10: 61932248.58 | FB10: 74662597.38 | FC10: 75471585.07 | FD10: 63405519.54 | FE10: 65154251.17 | FF10: 82297884.91 | FG10: 83502231.33 | FI10: ETM
C11: Total - Receitas Operacionais Diretas | D11: -194819518.6 | E11: -193654394.4 | F11: -212455941.9 | G11: -202405487.3 | H11: -211147399.9 | I11: -193287165.6 | J11: -206929845.9 | K11: -211437937.3 | L11: -223100001.3 | M11: -217426549.7 | N11: -198127681.9 | O11: -211496147 | CQ11: -371830338.8 | CR11: -318306325.2 | CS11: -363523013.5 | CT11: -345628701.4 | CU11: -341947058.6 | CV11: -315295730.7 | CW11: -340400409.5 | CX11: -359004935.9 | CY11: -409152099.1 | CZ11: -402927206.4 | DA11: -375380686.5 | DB11: -355635812.6 | DC11: -4299032318 | DD11: -379929034.9 | DE11: -342755624.9 | DF11: -371741212.1 | DG11: -368830903.4 | DH11: -377017778.9 | DI11: -348107005 | DJ11: -367556951.7 | DK11: -377288895.8 | DL11: -365760104.9 | DM11: -411112124.6 | DN11: -375515818.4 | DO11: -393872672.9 | DP11: -4479488127 | DQ11: -415858210.1 | DR11: -382577469.7 | DS11: -392170312.3 | DT11: -384647841.1 | DU11: -396992202.2 | DV11: -385495170.1 | DW11: -400086753.3 | DX11: -414857263.8 | DY11: -481888776.2 | DZ11: -495262235.1 | EA11: -458040900.3 | EB11: -441153024.8 | EC11: -5049030159 | ED11: -450967576.4 | EE11: -408321677.7 | EF11: -445613397.1 | EG11: -429943538.7 | EH11: -444982688.1 | EI11: -412902183.8 | EJ11: -450421860.8 | EK11: -466667730.1 | EL11: -462827143.2 | EM11: -528211771.5 | EN11: -453877076.1 | EO11: -471761460.5 | EP11: -5426498104 | EQ11: -485025903.7 | ER11: -444232277.8 | ES11: =SUM(ES6:ES10) -> -459185397.7 | ET11: =SUM(ET6:ET10) -> -468722789.5 | EU11: -457380155 | EV11: -461762780.7 | EW11: -462621908.4 | EZ11: =SUM(EZ6:EZ10) -> -4299032318 | FA11: -4479488127 | FB11: -5049030159 | FC11: -5426498104 | FD11: -4458039251 | FE11: -4681377575 | FF11: -5334355123 | FG11: -5622276394
C13: Receitas Operacionais Indiretas | D13: -1985382.25 | E13: -1622837.14 | F13: -2137517.38 | G13: -2126337.77 | H13: -2299566.99 | I13: -2063849.24 | J13: -2340550.71 | K13: -2061389.73 | L13: -2210426.44 | M13: -1840589.54 | N13: -1938981.18 | O13: -1657155.56 | CQ13: -2692019.04 | CR13: -1881623.98 | CS13: -2145033.42 | CT13: -2258098.68 | CU13: -2097628.81 | CV13: -2475029.81 | CW13: -2438267.75 | CX13: -2384696.16 | CY13: -2543635.82 | CZ13: -3751414.37 | DA13: -2377593.51 | DB13: -2353841.19 | DC13: -29398882.54 | DD13: -10492087.52 | DE13: -2766245.04 | DF13: -1941599.6 | DG13: -2724940.76 | DH13: -2717655.1 | DI13: -2369077.63 | DJ13: -2391020.35 | DK13: -2824352.35 | DL13: -3349829.01 | DM13: -2046620.8 | DN13: -2568722.11 | DO13: 5096892.64 | DP13: -31095257.63 | DQ13: -2201703.6 | DR13: -2434522.63 | DS13: -2670715.5 | DT13: -2635213.21 | DU13: -2353720.46 | DV13: -2769859.5 | DW13: -2261611.99 | DX13: -2773266.77 | DY13: -2557551.48 | DZ13: -2815372.69 | EA13: -2515140.99 | EB13: -2522889.25 | EC13: -30511568.07 | ED13: -2811269.68 | EE13: -3139691.38 | EF13: -2062222.44 | EG13: -1588388.13 | EH13: -1588105.23 | EI13: -1342032.84 | EJ13: -1646301.69 | EK13: -1357416.53 | EL13: -1463871.08 | EM13: -1629186.95 | EN13: -1159469.11 | EO13: -1336322.47 | EP13: -21124277.53 | EQ13: -899991.16 | ER13: -1770159.03 | ES13: -1514462.21 | ET13: -2196528.77 | EU13: =AVERAGE(ER13,ES13,ET13) -> -1827050.003 | EV13: -1846013.661 | EW13: -1956530.811 | EZ13: -29398882.54 | FA13: =DP13 -> -31095257.63 | FB13: =EC13 -> -30511568.07 | FC13: =EP13 -> -21124277.53 | FD13: -38813807.05 | FE13: -23019978.52 | FF13: -27362232.57 | FG13: =SUM(EK13:EO13,EQ13:EW13) -> -18957001.79 | FI13: INPC
C14: Receita de Resíduos Sólidos | D14: 0 | E14: 0 | F14: 0 | G14: 0 | H14: 0 | I14: 0 | J14: 0 | K14: 0 | L14: 0 | M14: 0 | N14: 0 | O14: 0 | CQ14: 0 | CR14: 0 | CS14: 0 | CT14: 0 | CU14: 0 | CV14: 0 | CW14: 0 | CX14: 0 | CY14: 0 | CZ14: 0 | DA14: 0 | DB14: -398465.87 | DC14: -398465.87 | DD14: -201721.39 | DE14: -242363.55 | DF14: -231515.27 | DG14: -162385.37 | DH14: -240149.49 | DI14: -219474.93 | DJ14: -228405.2 | DK14: -193568.03 | DL14: -181939.73 | DM14: -169390.52 | DN14: -181607.37 | DO14: -170552 | DP14: -2423072.85 | DQ14: -188395.46 | DR14: -182899.09 | DS14: -170189.04 | DT14: -175239.89 | DU14: -171413.86 | DV14: -193617.13 | DW14: -185343.74 | DX14: -165360.47 | DY14: -163235.86 | DZ14: -147219.51 | EA14: -151981.21 | EB14: -167555.91 | EC14: -2062451.17 | ED14: -194825.61 | EE14: -185482.47 | EF14: -138867.85 | EG14: -154628.61 | EH14: -182139.14 | EI14: -173668.98 | EJ14: -166776.88 | EK14: -165347.6 | EL14: -186164.28 | EM14: -184171.01 | EN14: -180875.92 | EO14: -177287.91 | EP14: -2090236.26 | EQ14: -206282.42 | ER14: -221107.71 | ES14: -182730.13 | ET14: -197644.26 | EU14: -200494.0333 | EV14: -193622.8078 | EW14: -197253.7004 | EZ14: -398465.87 | FA14: -2423072.85 | FB14: -2062451.17 | FC14: -2090236.26 | FD14: -1924481.07 | FE14: -2164155.86 | FF14: -1991742.5 | FG14: -2292981.781 | FI14: IPCA
C15: Receitas Financeiras | D15: -8578501.84 | E15: -8487124.29 | F15: -7774272.9 | G15: -9317447.55 | H15: -27327754.57 | I15: -6151987.31 | J15: -13205552.52 | K15: -6790209.93 | L15: -4495494 | M15: -6956623.39 | N15: -5649964.54 | O15: -7274882.79 | CQ15: -11528739.81 | CR15: -9760875.07 | CS15: -10687160.34 | CT15: -9405115.42 | CU15: -9678347.73 | CV15: -12080105.92 | CW15: -9908414.62 | CX15: -9819755.03 | CY15: -8961702.85 | CZ15: -8407791.25 | DA15: -8910900.46 | DB15: -9756310.65 | DC15: -118905219.2 | DD15: -7980123.46 | DE15: -7111783.5 | DF15: -9113588.06 | DG15: -8206258.92 | DH15: -9815446.04 | DI15: -6630115.1 | DJ15: -7184147.06 | DK15: -11850931.86 | DL15: -5883707.59 | DM15: -5860540.6 | DN15: -7993877.89 | DO15: -10758754.63 | DP15: -98389274.71 | DQ15: -7872837.69 | DR15: -6457955.6 | DS15: -6649091.82 | DT15: -6110185.19 | DU15: -5226594.82 | DV15: -15519301.78 | DW15: -8872496.79 | DX15: -9043525.56 | DY15: -8576382.74 | DZ15: -8596971.34 | EA15: -9312403.25 | EB15: -14525277.07 | EC15: -106763023.7 | ED15: -8777866.61 | EE15: -7905873.36 | EF15: -9285738.3 | EG15: -7338209.5 | EH15: -7741972.69 | EI15: -12205299.04 | EJ15: -9039530.65 | EK15: -8165450.94 | EL15: -15167273.03 | EM15: -8120196.4 | EN15: -9805769.36 | EO15: -10304662.99 | EP15: -113857842.9 | EQ15: -8566091.82 | ER15: -8734908.02 | ES15: -9981623.73 | ET15: -15484166.68 | EU15: -11400232.81 | EV15: -12288674.41 | EW15: -13057691.3 | EZ15: -118905219.2 | FA15: -98389274.71 | FB15: -106763023.7 | FC15: -113857842.9 | FD15: -101897922.4 | FE15: -99056276.26 | FF15: -112349050.1 | FG15: -131076741.5 | FI15: IPCA
C16: Descontos e multas por impontualidade | D16: -3136932.54 | E16: -3055905.65 | F16: -3084339.91 | G16: -3049546.35 | H16: -3159432.94 | I16: -3115865.7 | J16: -3009363.02 | K16: -2993515.08 | L16: -3039744.81 | M16: -3051679.61 | N16: -2906104.81 | O16: -2945459.92 | CQ16: -3399560.83 | CR16: -3287155.57 | CS16: -3300741.44 | CT16: -3317493.31 | CU16: -3618790.3 | CV16: -3498130.86 | CW16: -3415678.46 | CX16: -3292488.1 | CY16: -3411685.36 | CZ16: -3046271.27 | DA16: -3952518.26 | DB16: -4262284.88 | DC16: -41802798.64 | DD16: -3882429.11 | DE16: -3512543.04 | DF16: -4335969.58 | DG16: -3861384.72 | DH16: -4114523.2 | DI16: -3953093.42 | DJ16: -4037078.02 | DK16: -3651300.35 | DL16: -3064628.8 | DM16: -1828661.47 | DN16: -4114998.06 | DO16: -3900788.24 | DP16: -44257398.01 | DQ16: -3900382.28 | DR16: -3464783.48 | DS16: -4640797.62 | DT16: -3584588.32 | DU16: -1265501.27 | DV16: -7131858.85 | DW16: -3556906.81 | DX16: -3541289.62 | DY16: -3756674.95 | DZ16: -3315221.71 | EA16: -4402243.78 | EB16: -4080074.93 | EC16: -46640323.62 | ED16: -3836924.19 | EE16: -3212585.48 | EF16: -4389251.43 | EG16: -3242118.63 | EH16: -3269714.13 | EI16: -2014450.19 | EJ16: -4488451.63 | EK16: -3810368.88 | EL16: -4059678.33 | EM16: -3419693.67 | EN16: -4473811.32 | EO16: -4259178.66 | EP16: -44476226.54 | EQ16: -4043695.77 | ER16: -4033755.67 | ES16: -4689489.43 | ET16: -3866082.83 | EU16: -4196442.643 | EV16: -4250671.634 | EW16: -4104399.036 | EZ16: =DC16 -> -41802798.64 | FA16: -44257398.01 | FB16: -46640323.62 | FC16: -44476226.54 | FD16: =SUM(CX16:DB16,DD16:DJ16) -> -45662268.96 | FE16: =SUM(DK16:DO16,DQ16:DW16) -> -44105195.55 | FF16: =SUM(DX16:EB16,ED16:EJ16) -> -43549000.67 | FG16: -49207267.87 | FI16: IPCA
C17: Royalties | D17: -96.64 | E17: 303.74 | F17: -926.41 | G17: 0 | H17: -334.47 | I17: -624.25 | J17: -150.6 | K17: 0 | L17: -447.46 | M17: 933.14 | N17: 0 | O17: -174.22 | CQ17: 0 | CR17: 0 | CS17: 0 | CT17: 0 | CU17: 0 | CV17: 0 | CW17: 0 | CX17: 0 | CY17: 0 | CZ17: 0 | DA17: 0 | DB17: 0 | DC17: 0 | DD17: 0 | DE17: 0 | DF17: 0 | DG17: 0 | DH17: 0 | DI17: 0 | DJ17: 0 | DK17: 0 | DL17: 0 | DM17: 0 | DN17: 0 | DO17: 0 | DP17: 0 | DQ17: 0 | DR17: 0 | DS17: 0 | DT17: 0 | DU17: 0 | DV17: 0 | DW17: 0 | DX17: 0 | DY17: 0 | DZ17: 0 | EA17: 0 | EB17: 0 | EC17: 0 | ED17: 0 | EE17: 0 | EF17: 0 | EG17: 0 | EH17: 0 | EI17: 0 | EJ17: 0 | EK17: 0 | EL17: 0 | EM17: 0 | EN17: 0 | EO17: 0 | EP17: 0 | EQ17: 0 | ER17: 0 | ES17: 0 | ET17: 0 | EU17: 0 | EV17: 0 | EW17: 0 | EZ17: =DC17 -> 0 | FA17: 0 | FB17: 0 | FC17: 0 | FD17: =SUM(CX17:DB17,DD17:DJ17) -> 0 | FE17: =SUM(DK17:DO17,DQ17:DW17) -> 0 | FF17: =SUM(DX17:EB17,ED17:EJ17) -> 0 | FG17: 0 | FI17: IPCA
C18: Juros por impontualidade, rendimentos de aplicações e outras | D18: -5441472.66 | E18: -5431522.38 | F18: -4689006.58 | G18: -6267901.2 | H18: -24167987.16 | I18: -3035497.36 | J18: -10196038.9 | K18: -3796694.85 | L18: -1455301.73 | M18: -3905876.92 | N18: -2743859.73 | O18: -4329248.65 | CQ18: -8129178.98 | CR18: -6473719.5 | CS18: -7386418.9 | CT18: -6087622.11 | CU18: -6059557.43 | CV18: -8581975.06 | CW18: -6492736.16 | CX18: -6527266.93 | CY18: -5550017.49 | CZ18: -5361519.98 | DA18: -4958382.2 | DB18: -5494025.77 | DC18: -77102420.51 | DD18: -4097694.35 | DE18: -3599240.46 | DF18: -4777618.48 | DG18: -4344874.2 | DH18: -5700922.84 | DI18: -2677021.68 | DJ18: -3147069.04 | DK18: -8199631.51 | DL18: -2819078.79 | DM18: -4031879.13 | DN18: -3878879.83 | DO18: -6857966.39 | DP18: -54131876.7 | DQ18: -3972455.41 | DR18: -2993172.12 | DS18: -2008294.2 | DT18: -2525596.87 | DU18: -3961093.55 | DV18: -8387442.93 | DW18: -5315589.98 | DX18: -5502235.94 | DY18: -4819707.79 | DZ18: -5281749.63 | EA18: -4910159.47 | EB18: -10445202.14 | EC18: -60122700.03 | ED18: -4940942.42 | EE18: -4693287.88 | EF18: -4896486.87 | EG18: -4096090.87 | EH18: -4472258.56 | EI18: -10190848.85 | EJ18: -4551079.02 | EK18: -4355082.06 | EL18: -11107594.7 | EM18: -4700502.73 | EN18: -5331958.04 | EO18: -6045484.33 | EP18: -69381616.33 | EQ18: -4522396.05 | ER18: -4701152.35 | ES18: -5292134.3 | ET18: -11618083.85 | EU18: -7203790.167 | EV18: -8038002.772 | EW18: -8953292.263 | EZ18: -77102420.51 | FA18: -54131876.7 | FB18: -60122700.03 | FC18: -69381616.33 | FD18: =SUM(CX18:DB18,DD18:DJ18) -> -56235653.42 | FE18: =SUM(DK18:DO18,DQ18:DW18) -> -54951080.71 | FF18: =SUM(DX18:EB18,ED18:EJ18) -> -68800049.44 | FG18: -81869473.61 | FI18: IPCA
C19: Outras Receitas Diversas | D19: -992382.72 | E19: -1191764.53 | F19: -2255416.97 | G19: -750287.34 | H19: -1315267.14 | I19: -1410362.95 | J19: -2103778.8 | K19: -1603922.41 | L19: -646442.71 | M19: -1425035.31 | N19: -1643889.6 | O19: -1929093.86 | CQ19: -2103167.3 | CR19: -1950255.59 | CS19: -7454366.75 | CT19: -2672716.26 | CU19: -3895826.43 | CV19: -2596346.87 | CW19: -4910847.15 | CX19: -2645844.94 | CY19: -4260456.03 | CZ19: -3173278.87 | DA19: -3621014.1 | DB19: -4641863.55 | DC19: -43925983.84 | DD19: -3696996.98 | DE19: -3896107.2 | DF19: -3936099.46 | DG19: -4224190.45 | DH19: -2807088.8 | DI19: -2710048.81 | DJ19: -4310773.4 | DK19: -4158232.1 | DL19: -3168395.55 | DM19: -4623073.25 | DN19: -3094760.78 | DO19: -3651950.37 | DP19: -44277717.15 | DQ19: -4274748.41 | DR19: -3974320.6 | DS19: -6161468.37 | DT19: -3121555.51 | DU19: -3757039.63 | DV19: -7809464.56 | DW19: -2927099.92 | DX19: -2799371.76 | DY19: -11828156.11 | DZ19: -3516199.85 | EA19: -2952083.8 | EB19: -13399562.7 | EC19: -66521071.22 | ED19: -3178374.77 | EE19: -3116424.19 | EF19: -14516706.62 | EG19: -1728159.44 | EH19: -2326219.13 | EI19: -13373350.91 | EJ19: -3340043.15 | EK19: -2384160.42 | EL19: -13172857 | EM19: -2469852.07 | EN19: -2037014.33 | EO19: -17342244.97 | EP19: -78985407 | EQ19: -1742725.22 | ER19: -2196899.07 | ES19: -12340536.48 | ET19: -8641508.61 | EU19: -7726314.72 | EV19: -9569453.27 | EW19: -8645758.867 | EZ19: -43925983.84 | FA19: -44277717.15 | FB19: -66521071.22 | FC19: -78985407 | FD19: -43923762.59 | FE19: -50722109.05 | FF19: -76074652.43 | FG19: -88269325.03 | FI19: IPCA
C20: Indenizações e Ressarcimentos | D20: -14356.14 | E20: -17528.97 | F20: -1370765.28 | G20: -97845.51 | H20: -599786.13 | I20: -35434.44 | J20: 27863.27 | K20: -152526.64 | L20: 63825.07 | M20: -27633.06 | N20: -18638.6 | O20: -148042.67 | CQ20: -6359.81 | CR20: -14220.2 | CS20: -14460.41 | CT20: -4274.67 | CU20: -3629.77 | CV20: -134527.1 | CW20: -96156.36 | CX20: -12784.61 | CY20: -45789.33 | CZ20: -386856.66 | DA20: -572850.97 | DB20: -39277.44 | DC20: -1331187.33 | DD20: -27508.78 | DE20: -26783.28 | DF20: -13130.33 | DG20: 2688.86 | DH20: 6451.71 | DI20: -34741.71 | DJ20: -56777.55 | DK20: -10888.99 | DL20: -2603.74 | DM20: -5726.67 | DN20: -56422.11 | DO20: -22179.93 | DP20: -247622.52 | DQ20: -7637.69 | DR20: -90925.29 | DS20: -48993.73 | DT20: -93211.82 | DU20: -148698.35 | DV20: -139357.77 | DW20: -104225.78 | DX20: -186286.82 | DY20: -62594.17 | DZ20: -180972.62 | EA20: 37733.24 | EB20: -60887.13 | EC20: -1086057.93 | ED20: -145051.46 | EE20: -13932.83 | EF20: -125482.75 | EG20: -172099.54 | EH20: -1239593.18 | EI20: -525587.66 | EJ20: -1079575.74 | EK20: -75433.39 | EL20: -371782.21 | EM20: -254812.07 | EN20: -104115.9 | EO20: -25142.67 | EP20: -4132609.4 | EQ20: -48885.78 | ER20: -22619.04 | ES20: -344965.36 | ET20: -1523365.1 | EU20: -630316.5 | EV20: -832882.32 | EW20: -995521.3067 | EZ20: -1331187.33 | FA20: -247622.52 | FB20: -1086057.93 | FC20: -4132609.4 | FD20: -1207360.09 | FE20: -730871.87 | FF20: -3754330.66 | FG20: -5229841.647 | FI20: IPCA
C21: Prodes | D21: -49440.41 | E21: 0 | F21: -90194.52 | G21: 0 | H21: -41414.38 | I21: -106566.51 | J21: -59347.27 | K21: 0 | L21: 0 | M21: -722106.56 | N21: -789744.5 | O21: -801620.83 | CQ21: 0 | CR21: 0 | CS21: -5217051.91 | CT21: -303685.95 | CU21: -307930.17 | CV21: -305077.2 | CW21: -304800.49 | CX21: -304645.88 | CY21: -299486 | CZ21: -299551.55 | DA21: -296907.56 | DB21: -316768.21 | DC21: -7955904.92 | DD21: 0 | DE21: 0 | DF21: 0 | DG21: 0 | DH21: 0 | DI21: 0 | DJ21: 0 | DK21: 0 | DL21: 0 | DM21: 0 | DN21: 0 | DO21: 0 | DP21: 0 | DQ21: 0 | DR21: 0 | DS21: 0 | DT21: 0 | DU21: -307288.43 | DV21: 0 | DW21: 0 | DX21: 0 | DY21: -309357.65 | DZ21: 0 | EA21: 0 | EB21: -0.03 | EC21: -616646.11 | ED21: 0 | EE21: 0 | EF21: 0 | EG21: 0 | EH21: 0 | EI21: 0 | EJ21: 0 | EK21: -317064.18 | EL21: 0 | EM21: 0 | EN21: 0 | EO21: 0 | EP21: -317064.18 | EQ21: 0 | ER21: 0 | ES21: 0 | ET21: 0 | EU21: 0 | EV21: 0 | EW21: 0 | EZ21: -7955904.92 | FA21: 0 | FB21: -616646.11 | FC21: -317064.18 | FD21: -1517359.2 | FE21: -307288.43 | FF21: -309357.68 | FG21: -317064.18 | FI21: IPCA
C22: Outras | D22: -928586.17 | E22: -1174235.56 | F22: -794457.17 | G22: -652441.83 | H22: -674066.63 | I22: -1268362 | J22: -2072294.8 | K22: -1451395.77 | L22: -710267.78 | M22: -675295.69 | N22: -835506.5 | O22: -979430.36 | CQ22: -2096807.49 | CR22: -1936035.39 | CS22: -2222854.43 | CT22: -2364755.64 | CU22: -3584266.49 | CV22: -2156742.57 | CW22: -4509890.3 | CX22: -2328414.45 | CY22: -3915180.7 | CZ22: -2486870.66 | DA22: -2751255.57 | DB22: -4285817.9 | DC22: -34638891.59 | DD22: -3669488.2 | DE22: -3869323.92 | DF22: -3922969.13 | DG22: -4226879.31 | DH22: -2813540.51 | DI22: -2675307.1 | DJ22: -4253995.85 | DK22: -4147343.11 | DL22: -3165791.81 | DM22: -4617346.58 | DN22: -3038338.67 | DO22: -3629770.44 | DP22: -44030094.63 | DQ22: -4267110.72 | DR22: -3883395.31 | DS22: -6112474.64 | DT22: -3028343.69 | DU22: -3301052.85 | DV22: -7670106.79 | DW22: -2822874.14 | DX22: -2613084.94 | DY22: -11456204.29 | DZ22: -3335227.23 | EA22: -2989817.04 | EB22: -13338675.54 | EC22: -64818367.18 | ED22: -3033323.31 | EE22: -3102491.36 | EF22: -14391223.87 | EG22: -1556059.9 | EH22: -1086625.95 | EI22: -12847763.25 | EJ22: -2260467.41 | EK22: -1991662.85 | EL22: -12801074.79 | EM22: -2215040 | EN22: -1932898.43 | EO22: -17317102.3 | EP22: -74535733.42 | EQ22: -1693839.44 | ER22: -2174280.03 | ES22: -11995571.12 | ET22: -7118143.51 | EU22: -7095998.22 | EV22: -8736570.95 | EW22: -7650237.56 | EZ22: -34638891.59 | FA22: -44030094.63 | FB22: -64818367.18 | FC22: -74535733.42 | FD22: =SUM(CX22:DB22,DD22:DJ22) -> -41199043.3 | FE22: =SUM(DK22:DO22,DQ22:DW22) -> -49683948.75 | FF22: =SUM(DX22:EB22,ED22:EJ22) -> -72010964.09 | FG22: -82722419.2 | FI22: IPCA
C23: Total - Outras Receitas | D23: -11556266.81 | E23: -11301725.96 | F23: -12167207.25 | G23: -12194072.66 | H23: -30942588.7 | I23: -9626199.5 | J23: -17649882.03 | K23: -10455522.07 | L23: -7352363.15 | M23: -10222248.24 | N23: -9232835.32 | O23: -10861132.21 | CQ23: -16323926.15 | CR23: -13592754.64 | CS23: -20286560.51 | CT23: -14335930.36 | CU23: -15671802.97 | CV23: -17151482.6 | CW23: -17257529.52 | CX23: -14850296.13 | CY23: -15765794.7 | CZ23: -15332484.49 | DA23: -14909508.07 | DB23: -17150481.26 | DC23: -192628551.4 | DD23: -22370929.35 | DE23: -14016499.29 | DF23: -15222802.39 | DG23: -15317775.5 | DH23: -15580339.43 | DI23: -11928716.47 | DJ23: -14114346.01 | DK23: -19027084.34 | DL23: -12583871.88 | DM23: -12699625.17 | DN23: -13838968.15 | DO23: -9484364.36 | DP23: -176185322.3 | DQ23: -14537685.16 | DR23: -13049697.92 | DS23: -15651464.73 | DT23: -12042193.8 | DU23: -11508768.77 | DV23: -26292242.97 | DW23: -14246552.44 | DX23: -14781524.56 | DY23: -23125326.19 | DZ23: -15075763.39 | EA23: -14931609.25 | EB23: -30615284.93 | EC23: -205858114.1 | ED23: -14962336.67 | EE23: -14347471.4 | EF23: -26003535.21 | EG23: -10809385.68 | EH23: -11838436.19 | EI23: -27094351.77 | EJ23: -14192652.37 | EK23: -12072375.49 | EL23: -29990165.39 | EM23: -12403406.43 | EN23: -13183128.72 | EO23: -29160518.34 | EP23: -216057763.7 | EQ23: -11415090.62 | ER23: =SUM(ER13:ER15)+ER19 -> -12923073.83 | ES23: =SUM(ES13:ES15)+ES19 -> -24019352.55 | ET23: =SUM(ET13:ET15)+ET19 -> -26519848.32 | EU23: -21154091.57 | EV23: -23897764.15 | EW23: -23857234.68 | EZ23: =EZ13+EZ14+EZ15+EZ19 -> -192628551.4 | FA23: =FA13+FA14+FA15+FA19 -> -176185322.3 | FB23: =FB13+FB14+FB15+FB19 -> -205858114.1 | FC23: =FC13+FC14+FC15+FC19 -> -216057763.7 | FD23: =FD13+FD14+FD15+FD19 -> -186559973.1 | FE23: -174962519.7 | FF23: -217777677.6 | FG23: -240596050.1
C25: Aluguel | D25: 1048867.56 | E25: 1030710.98 | F25: 315306.71 | G25: 326281.6 | H25: 199909.18 | I25: 277614.01 | J25: 358226.07 | K25: 286757.09 | L25: 348864.9 | M25: 245333.2 | N25: 286294.85 | O25: 392040.03 | CQ25: 2189474.29 | CR25: 3937563 | CS25: 2269341.54 | CT25: 2297852.79 | CU25: 2301918.95 | CV25: 2638313.21 | CW25: 2823792.94 | CX25: 3104651.44 | CY25: 3094626.46 | CZ25: 3164391.64 | DA25: 3285257.33 | DB25: 3594989.55 | DC25: 34702173.14 | DD25: 3672015.49 | DE25: 3913203.24 | DF25: 4321767.26 | DG25: 4194031.75 | DH25: 4464532.02 | DI25: 4359512.55 | DJ25: 3280928.44 | DK25: 4982508.83 | DL25: 4454556.11 | DM25: 4221712.83 | DN25: 4256962.08 | DO25: 4277880.91 | DP25: 50399611.51 | DQ25: 3328918.75 | DR25: 5106931.81 | DS25: 2575582.93 | DT25: 6136138.03 | DU25: 4240118.3 | DV25: 4199266.07 | DW25: 4408828.24 | DX25: 4294369.41 | DY25: 4303263.15 | DZ25: 4402427.38 | EA25: 4489712.17 | EB25: 4834711.26 | EC25: 52320267.5 | ED25: 4273775.83 | EE25: 4328968.28 | EF25: 4492554.41 | EG25: 4490957.82 | EH25: 4380487.67 | EI25: 4458933.06 | EJ25: 4155213.14 | EK25: 4122547.73 | EL25: 3367883.15 | EM25: 5131375.6 | EN25: 4177947.8 | EO25: 4700580.73 | EP25: 52081225.22 | EQ25: 4135479.73 | ER25: 2040648.85 | ES25: 6725244.27 | ET25: 4288404.53 | EU25: =EH25*(1+HLOOKUP($FI25,'3.Índices_inflação'!$B$147:$AZ$152,4,FALSE)) -> 6004028.994 | EV25: =EI25*(1+HLOOKUP($FI25,'3.Índices_inflação'!$B$147:$AZ$152,5,FALSE)) -> 6093495.601 | EW25: =EJ25*(1+HLOOKUP($FI25,'3.Índices_inflação'!$B$147:$AZ$152,6,FALSE)) -> 5589008.978 | EZ25: 34702173.14 | FA25: 50399611.51 | FB25: 52320267.5 | FC25: 52081225.22 | FD25: 44449907.17 | FE25: 52189404.89 | FF25: 52905373.58 | FG25: =SUM(EK25:EO25,EQ25:EW25) -> 56376645.96 | FI25: IGP-M
C26: Atendimento Telefônico | D26: 0 | E26: 0 | F26: 0 | G26: 0 | H26: 0 | I26: 0 | J26: 0 | K26: 0 | L26: 0 | M26: 0 | N26: 0 | O26: 0 | CQ26: 899597.75 | CR26: 743747.03 | CS26: 1181777.66 | CT26: 907335 | CU26: 1394402.38 | CV26: 460989.57 | CW26: 951919.05 | CX26: 949404.28 | CY26: 935982.79 | CZ26: 949063.95 | DA26: 903838.1 | DB26: 890971.68 | DC26: 11169029.24 | DD26: 840546.57 | DE26: 624440.26 | DF26: 1059235.19 | DG26: 619511.43 | DH26: 1103879.06 | DI26: 816442.44 | DJ26: 826174.74 | DK26: 814977.45 | DL26: 883019.32 | DM26: 727042.33 | DN26: 646583.25 | DO26: 709543.34 | DP26: 9671395.38 | DQ26: 643535.39 | DR26: 843193.29 | DS26: 731998.39 | DT26: 733213.69 | DU26: 744112.64 | DV26: 732289.54 | DW26: 710004.49 | DX26: 703238.91 | DY26: 656781.68 | DZ26: 649118.38 | EA26: 815385.78 | EB26: 699657.7 | EC26: 8662529.88 | ED26: 719735.12 | EE26: 724026.62 | EF26: 717101.42 | EG26: 54117.68 | EH26: 43036.88 | EI26: 1839027.62 | EJ26: 697752.35 | EK26: 793117.1 | EL26: 790410.51 | EM26: 814018.17 | EN26: 908967.05 | EO26: 915188.11 | EP26: 9016498.63 | EQ26: 806404.91 | ER26: 816022.88 | ES26: 812700.02 | ET26: 1335489.34 | EU26: =EH26*(1+HLOOKUP($FI26,'3.Índices_inflação'!$B$147:$AZ$152,4,FALSE)) -> 46503.88897 | EV26: =EI26*(1+HLOOKUP($FI26,'3.Índices_inflação'!$B$147:$AZ$152,5,FALSE)) -> 1991340.139 | EW26: =EJ26*(1+HLOOKUP($FI26,'3.Índices_inflação'!$B$147:$AZ$152,6,FALSE)) -> 755391.2462 | EZ26: 11169029.24 | FA26: 9671395.38 | FB26: 8662529.88 | FC26: 9016498.63 | FD26: 10519490.49 | FE26: 8919513.12 | FF26: 8318980.14 | FG26: 10785553.36 | FI26: IPCA
C27: Autosserviços de Água e Esgoto | D27: 345246.37 | E27: 362390.94 | F27: 345481.63 | G27: 357368.28 | H27: 437400.78 | I27: 300187.36 | J27: 401489.19 | K27: 442181.79 | L27: 448576.75 | M27: 397509.62 | N27: 340188.85 | O27: 358167.82 | CQ27: 606755.2 | CR27: 531019.73 | CS27: 529747.45 | CT27: 501258.87 | CU27: 554280.86 | CV27: 532496 | CW27: 588474.81 | CX27: 655151.67 | CY27: 686165 | CZ27: 711211.2 | DA27: 711540.57 | DB27: 716206.63 | DC27: 7324307.99 | DD27: 786867.42 | DE27: 740395.97 | DF27: 738273.02 | DG27: 684493.77 | DH27: 693474.99 | DI27: 768815.77 | DJ27: 616091.09 | DK27: 748254.81 | DL27: 715890.96 | DM27: 874085.43 | DN27: 810881.37 | DO27: 725515.66 | DP27: 8903040.26 | DQ27: 747052.96 | DR27: 743306.72 | DS27: 673537.71 | DT27: 714776.03 | DU27: 697700.68 | DV27: 665618.7 | DW27: 724173.59 | DX27: 771349.77 | DY27: 898574.35 | DZ27: 895502.27 | EA27: 810213.43 | EB27: 827810.12 | EC27: 9169616.33 | ED27: 823549.2 | EE27: 852506.22 | EF27: 822601.96 | EG27: 799258.04 | EH27: 800623 | EI27: 811948.66 | EJ27: 821453.23 | EK27: 884219.71 | EL27: 829985.73 | EM27: 898375.73 | EN27: 750100.64 | EO27: 807990.82 | EP27: 9902612.94 | EQ27: 747155.86 | ER27: 861974.66 | ES27: 883745.22 | ET27: 843281.15 | EU27: =EH27*(1+HLOOKUP($FI27,'3.Índices_inflação'!$B$147:$AZ$152,4,FALSE)) -> 824961.9392 | EV27: =EI27*(1+HLOOKUP($FI27,'3.Índices_inflação'!$B$147:$AZ$152,5,FALSE)) -> 836631.8993 | EW27: =EJ27*(1+HLOOKUP($FI27,'3.Índices_inflação'!$B$147:$AZ$152,6,FALSE)) -> 846425.4082 | EZ27: 7324307.99 | FA27: 8903040.26 | FB27: 9169616.33 | FC27: 9902612.94 | FD27: 8508687.1 | FE27: 8840794.62 | FF27: 9935390.25 | FG27: 10014848.77 | FI27: ETM
C28: Combustíveis e Lubrificantes | D28: 978110.14 | E28: 1028432.64 | F28: 1235653.23 | G28: 1054602.07 | H28: 1113638.96 | I28: 1139963.25 | J28: 1204942.8 | K28: 1118267.68 | L28: 1295398.94 | M28: 1155898.1 | N28: 1073098.13 | O28: 1312441.6 | CQ28: 1579271.91 | CR28: 1554059.07 | CS28: 2117741.17 | CT28: 1295514.06 | CU28: 1781987.52 | CV28: 1830381.67 | CW28: 1668634.84 | CX28: 2063848.13 | CY28: 2142090.79 | CZ28: 1991641.28 | DA28: 2268104.27 | DB28: 2008309.08 | DC28: 22301583.79 | DD28: 2075958.38 | DE28: 1930023.99 | DF28: 2196032.23 | DG28: 2352183.27 | DH28: 2256128.14 | DI28: 2119401.29 | DJ28: 1851651.87 | DK28: 2593088.9 | DL28: 2086631.24 | DM28: 2444514.74 | DN28: 2073270.08 | DO28: 1843627.7 | DP28: 25822511.83 | DQ28: 2015056.55 | DR28: 1948203.72 | DS28: 2209234.92 | DT28: 2244242.3 | DU28: 2297047.42 | DV28: 1745992.91 | DW28: 2396698.15 | DX28: 2210264.75 | DY28: 2056888.23 | DZ28: 2504872.15 | EA28: 2269544.13 | EB28: 2444779.31 | EC28: 26342824.54 | ED28: 1990976.24 | EE28: 1936573.71 | EF28: 2369130.16 | EG28: 2172578.05 | EH28: 1980455.28 | EI28: 1922074.94 | EJ28: 1857712.61 | EK28: 1939511.34 | EL28: 2028167.81 | EM28: 1965007.07 | EN28: 2367424.09 | EO28: 2559815.04 | EP28: 25089426.34 | EQ28: 1355326.83 | ER28: 1581637.21 | ES28: 2298272.8 | ET28: 2087612.25 | EU28: =EH28*(1+HLOOKUP($FI28,'3.Índices_inflação'!$B$147:$AZ$152,4,FALSE)) -> 2810564.502 | EV28: =EI28*(1+HLOOKUP($FI28,'3.Índices_inflação'!$B$147:$AZ$152,5,FALSE)) -> 2798389.509 | EW28: =EJ28*(1+HLOOKUP($FI28,'3.Índices_inflação'!$B$147:$AZ$152,6,FALSE)) -> 2679374.099 | EZ28: 22301583.79 | FA28: 25822511.83 | FB28: 26342824.54 | FC28: 25089426.34 | FD28: 25255372.72 | FE28: 25897608.63 | FF28: 25715849.56 | FG28: 26471102.55 | FI28: IPCA BH Comb
C29: Comercialização | D29: 2022188.25 | E29: 2015396.92 | F29: 2425348.31 | G29: 2038638.12 | H29: 2159990.5 | I29: 2021375.13 | J29: 2032758.5 | K29: 2143233.89 | L29: 2058958.89 | M29: 1981434.09 | N29: 2042192.75 | O29: 2186142.24 | CQ29: 4393518.56 | CR29: 4009913.95 | CS29: 4202802.13 | CT29: 4006153.12 | CU29: 4159242.68 | CV29: 4051104.81 | CW29: 3212721.18 | CX29: 4639113.58 | CY29: 3814486.89 | CZ29: 4023991.57 | DA29: 3790671.76 | DB29: 3734869.53 | DC29: 48038589.76 | DD29: 3938777.57 | DE29: 3713945.81 | DF29: 3832761.22 | DG29: 4066827.84 | DH29: 4287776.52 | DI29: 3777059.75 | DJ29: 4094768.03 | DK29: 4650781.95 | DL29: 5127538.99 | DM29: 4455720.8 | DN29: 5655048.38 | DO29: 5307080.06 | DP29: 52908086.92 | DQ29: 9062593.09 | DR29: 5300353.27 | DS29: 4879379.29 | DT29: 5290667.07 | DU29: 5116402.31 | DV29: 4651983.22 | DW29: 5050048.93 | DX29: 4771991.16 | DY29: 4828531.54 | DZ29: 5017174.54 | EA29: 4817988.78 | EB29: 4874624.28 | EC29: 63661737.48 | ED29: 4939134.93 | EE29: 5298975.88 | EF29: 4778715.38 | EG29: 4669289.48 | EH29: 4547800.26 | EI29: 4566852.68 | EJ29: 4778091.88 | EK29: 4528894.66 | EL29: 4608790.44 | EM29: 4624626.98 | EN29: 4636247.31 | EO29: 4986064.48 | EP29: 56963484.36 | EQ29: 4855646.53 | ER29: 4340284.68 | ES29: 5241276.19 | ET29: 4731860.4 | EU29: =EH29*(1+HLOOKUP($FI29,'3.Índices_inflação'!$B$147:$AZ$152,4,FALSE)) -> 4914166.602 | EV29: =EI29*(1+HLOOKUP($FI29,'3.Índices_inflação'!$B$147:$AZ$152,5,FALSE)) -> 4945089.976 | EW29: =EJ29*(1+HLOOKUP($FI29,'3.Índices_inflação'!$B$147:$AZ$152,6,FALSE)) -> 5172793.441 | EZ29: 48038589.76 | FA29: 52908086.92 | FB29: 63661737.48 | FC29: 56963484.36 | FD29: 47715050.07 | FE29: 64547597.36 | FF29: 57889170.79 | FG29: 57585741.69 | FI29: IPCA
C30: Comunicação, Publicidade e Propaganda Legal | D30: 50059.26 | E30: 65879.54 | F30: 90369.11 | G30: 1641524.53 | H30: 120939.22 | I30: 52100.4 | J30: 236470.21 | K30: 126629.33 | L30: 55431.79 | M30: 92075.41 | N30: 101732.6 | O30: 49480.03 | CQ30: 192067.07 | CR30: 125233.14 | CS30: 114653.26 | CT30: 472415.82 | CU30: 475821.32 | CV30: 473918.89 | CW30: 213076.79 | CX30: 911175.59 | CY30: 1039709.45 | CZ30: 473575.9 | DA30: 338089.16 | DB30: 764164.04 | DC30: 5593900.43 | DD30: 159653.21 | DE30: 153754.05 | DF30: 556100.63 | DG30: 377994.74 | DH30: 319760.89 | DI30: 528111.21 | DJ30: 396202.71 | DK30: 441943.35 | DL30: 355455.19 | DM30: 115341.58 | DN30: 110990.55 | DO30: 184993.61 | DP30: 3700301.72 | DQ30: 126132.53 | DR30: 90575.86 | DS30: 209991.02 | DT30: 220925.47 | DU30: 161936.42 | DV30: 266470.47 | DW30: 156264.49 | DX30: 205402.65 | DY30: 129795.47 | DZ30: 132778.37 | EA30: 128059.98 | EB30: 213667.36 | EC30: 2042000.09 | ED30: 127300.3 | EE30: 182020.7 | EF30: 403499.6 | EG30: 269799.99 | EH30: 121839.66 | EI30: 98881.01 | EJ30: 186218.4 | EK30: 216522.22 | EL30: 161014.53 | EM30: 227152.88 | EN30: 547208.85 | EO30: 500281.59 | EP30: 3041739.73 | EQ30: 183617.33 | ER30: 606560.22 | ES30: 632267.89 | ET30: 536897.95 | EU30: =EH30*(1+HLOOKUP($FI30,'3.Índices_inflação'!$B$147:$AZ$152,4,FALSE)) -> 131654.9439 | EV30: =EI30*(1+HLOOKUP($FI30,'3.Índices_inflação'!$B$147:$AZ$152,5,FALSE)) -> 107070.5638 | EW30: =EJ30*(1+HLOOKUP($FI30,'3.Índices_inflação'!$B$147:$AZ$152,6,FALSE)) -> 201601.2547 | EZ30: 5593900.43 | FA30: 3700301.72 | FB30: 2042000.09 | FC30: 3041739.73 | FD30: 6018291.58 | FE30: 2441020.54 | FF30: 2199263.49 | FG30: 4051850.222 | FI30: IPCA
C31: Convênios | D31: 21866.13 | E31: 21866.13 | F31: 21866.13 | G31: 21866.13 | H31: 21866.13 | I31: 50464.58 | J31: 22749.03 | K31: 22076.96 | L31: 22348.73 | M31: 29084156.17 | N31: 21906.74 | O31: -24219099.45 | CQ31: 0 | CR31: 0 | CS31: 99955.6 | CT31: 0 | CU31: 0 | CV31: 95073.87 | CW31: 0 | CX31: 0 | CY31: 105753.82 | CZ31: 0 | DA31: 0 | DB31: 99907.37 | DC31: 400690.66 | DD31: 0 | DE31: 0 | DF31: 107842.88 | DG31: 0 | DH31: 68708.66 | DI31: 34354.33 | DJ31: 34235.05 | DK31: -245140.92 | DL31: 0 | DM31: 0 | DN31: 30000 | DO31: 0 | DP31: 30000 | DQ31: 0 | DR31: 0 | DS31: 0 | DT31: 0 | DU31: 0 | DV31: 0 | DW31: 0 | DX31: 0 | DY31: 0 | DZ31: 0 | EA31: 0 | EB31: 6236481.16 | EC31: 6236481.16 | ED31: 0 | EE31: 0 | EF31: 0 | EG31: 0 | EH31: 0 | EI31: 197740.43 | EJ31: 0 | EK31: 0 | EL31: 0 | EM31: 0 | EN31: 0 | EO31: 0.43 | EP31: 197740.86 | EQ31: 0 | ER31: 0 | ES31: 0 | ET31: 0 | EU31: =EH31*(1+HLOOKUP($FI31,'3.Índices_inflação'!$B$147:$AZ$152,4,FALSE)) -> 0 | EV31: =EI31*(1+HLOOKUP($FI31,'3.Índices_inflação'!$B$147:$AZ$152,5,FALSE)) -> 214117.7495 | EW31: =EJ31*(1+HLOOKUP($FI31,'3.Índices_inflação'!$B$147:$AZ$152,6,FALSE)) -> 0 | EZ31: 400690.66 | FA31: 30000 | FB31: 6236481.16 | FC31: 197740.86 | FD31: 450802.11 | FE31: -215140.92 | FF31: 6434221.59 | FG31: 214118.1795 | FI31: IPCA
C32: Energia Elétrica | D32: 17722055.53 | E32: 16486060.86 | F32: 18507022.4 | G32: 17551214.96 | H32: 18360092.73 | I32: 17615179.44 | J32: 18082310.99 | K32: 18173186.37 | L32: 19150151.58 | M32: 19916671.38 | N32: 16977877.15 | O32: 15892882.29 | CQ32: 28194976.16 | CR32: 34845736.96 | CS32: 29289507.59 | CT32: 31833691.85 | CU32: 35844961.44 | CV32: 27756151.8 | CW32: 32904859.5 | CX32: 29024081.6 | CY32: 34694936.49 | CZ32: 34725033.42 | DA32: 33440825.48 | DB32: 43262410.75 | DC32: 395817173 | DD32: 27767127.63 | DE32: 26129563.62 | DF32: 26960211.6 | DG32: 29513163.89 | DH32: 35870036.23 | DI32: 28339097.87 | DJ32: 42606917.55 | DK32: 43602570.76 | DL32: 42435180.89 | DM32: 40890242.24 | DN32: 40626034.68 | DO32: 38703288.08 | DP32: 423443435 | DQ32: 37153535.67 | DR32: 38500697.74 | DS32: 38760429.04 | DT32: 34860343.21 | DU32: 35761925.97 | DV32: 35718560.31 | DW32: 38166309.3 | DX32: 44629422.13 | DY32: 48704536.04 | DZ32: 43854149.13 | EA32: 37346780.17 | EB32: 42741590.85 | EC32: 476198279.6 | ED32: 34070749.29 | EE32: 40851451.57 | EF32: 34100713.48 | EG32: 34893824.48 | EH32: 35507278.65 | EI32: 34825507.72 | EJ32: 35872728.21 | EK32: 37955755.08 | EL32: 40895259.53 | EM32: 36902176.44 | EN32: 48823911.97 | EO32: 37587647.41 | EP32: 452287003.8 | EQ32: 47923002.57 | ER32: 36780536.46 | ES32: 39158525.81 | ET32: 39902455.02 | EU32: =EH32*(1+HLOOKUP($FI32,'3.Índices_inflação'!$B$147:$AZ$152,4,FALSE)) -> 39102960.54 | EV32: =EI32*(1+HLOOKUP($FI32,'3.Índices_inflação'!$B$147:$AZ$152,5,FALSE)) -> 41256511.81 | EW32: =EJ32*(1+HLOOKUP($FI32,'3.Índices_inflação'!$B$147:$AZ$152,6,FALSE)) -> 38350139.37 | EZ32: 395817173 | FA32: 423443435 | FB32: 476198279.6 | FC32: 452287003.8 | FD32: 392333406.1 | FE32: 465179117.9 | FF32: 467398731.7 | FG32: 484638882 | FI32: IEE
C33: Indenizações | D33: 19796.61 | E33: 17856.07 | F33: 11970.91 | G33: 52598.52 | H33: 20653.84 | I33: 19572.95 | J33: 23611.86 | K33: 24496.08 | L33: 27354.49 | M33: 26791.08 | N33: 24408.25 | O33: 28997.21 | CQ33: 46295.76 | CR33: 42976.37 | CS33: 50892.21 | CT33: 48451.82 | CU33: 66096.56 | CV33: 54904.85 | CW33: 0 | CX33: 105569.75 | CY33: 48690.9 | CZ33: 56837.13 | DA33: 53898.23 | DB33: 56994.01 | DC33: 631607.59 | DD33: 48608.43 | DE33: 45748.27 | DF33: 60965.62 | DG33: 57902.56 | DH33: 64030.5 | DI33: 112282.15 | DJ33: 131868.43 | DK33: 45265.87 | DL33: 76925.43 | DM33: 78920.62 | DN33: 63444.81 | DO33: 62794.03 | DP33: 848756.72 | DQ33: 43883.2 | DR33: 48396.83 | DS33: 51859.47 | DT33: 96656.15 | DU33: 52030.87 | DV33: 47739.48 | DW33: 45738.45 | DX33: 38478.81 | DY33: 49103.59 | DZ33: 64674.23 | EA33: 44488.79 | EB33: 40271.2 | EC33: 623321.07 | ED33: 26886.17 | EE33: 25115.06 | EF33: 19883.72 | EG33: 21133.5 | EH33: 35630.19 | EI33: 48191.56 | EJ33: 51566.05 | EK33: 56856.21 | EL33: 44061.02 | EM33: 50020.98 | EN33: 49924.11 | EO33: 50757.58 | EP33: 480026.15 | EQ33: 39694.18 | ER33: 32167.32 | ES33: 42647.57 | ET33: 45723.1 | EU33: =EH33*(1+HLOOKUP($FI33,'3.Índices_inflação'!$B$147:$AZ$152,4,FALSE)) -> 48835.81691 | EV33: =EI33*(1+HLOOKUP($FI33,'3.Índices_inflação'!$B$147:$AZ$152,5,FALSE)) -> 65857.69621 | EW33: =EJ33*(1+HLOOKUP($FI33,'3.Índices_inflação'!$B$147:$AZ$152,6,FALSE)) -> 69359.4063 | EZ33: 631607.59 | FA33: 848756.72 | FB33: 623321.07 | FC33: 480026.15 | FD33: 843395.98 | FE33: 713655.21 | FF33: 465422.87 | FG33: 595904.9894 | FI33: IGP-M
C34: Manutenção | D34: 8941130.34 | E34: 10624384.39 | F34: 12864073.28 | G34: 9573333.3 | H34: 11570401.52 | I34: 10453645.27 | J34: 10107486.82 | K34: 10478776.64 | L34: 10480235.61 | M34: 10934128.39 | N34: 10911684.33 | O34: 14483744.31 | CQ34: 15739301.52 | CR34: 20456585.77 | CS34: 26809430.53 | CT34: 20695483.29 | CU34: 22814035.18 | CV34: 20501520.32 | CW34: 20953860.13 | CX34: 31163995.93 | CY34: 24785028.22 | CZ34: 25447288.28 | DA34: 27082059.53 | DB34: 26186292.37 | DC34: 282634881.1 | DD34: 23554621.39 | DE34: 22801422.93 | DF34: 27379491.94 | DG34: 26375186.8 | DH34: 28869460.5 | DI34: 25360486.11 | DJ34: 28320248.96 | DK34: 29787437.83 | DL34: 29120596.04 | DM34: 27997232.22 | DN34: 26542365.23 | DO34: 26644616.34 | DP34: 322753166.3 | DQ34: 25313279.45 | DR34: 29524855.88 | DS34: 27389981.22 | DT34: 28207649.3 | DU34: 29429145.22 | DV34: 25617963.44 | DW34: 27640138.35 | DX34: 24995759.64 | DY34: 24724240.33 | DZ34: 26522967.18 | EA34: 25355825.38 | EB34: 32343515.15 | EC34: 327065320.5 | ED34: 21496006.14 | EE34: 23068348.22 | EF34: 26418281.43 | EG34: 26039453.43 | EH34: 32714556.43 | EI34: 26382677.59 | EJ34: 32258223.57 | EK34: 28686386.77 | EL34: 25375725.81 | EM34: 26936409.98 | EN34: 27021600.82 | EO34: 31286411.32 | EP34: 327684081.5 | EQ34: 22080569.97 | ER34: 27045546.51 | ES34: 27988395.37 | ET34: 28917871.17 | EU34: =EH34*(1+HLOOKUP($FI34,'3.Índices_inflação'!$B$147:$AZ$152,4,FALSE)) -> 41690248.87 | EV34: =EI34*(1+HLOOKUP($FI34,'3.Índices_inflação'!$B$147:$AZ$152,5,FALSE)) -> 34056664.04 | EW34: =EJ34*(1+HLOOKUP($FI34,'3.Índices_inflação'!$B$147:$AZ$152,6,FALSE)) -> 42141956.65 | EZ34: 282634881.1 | FA34: 322753166.3 | FB34: 327065320.5 | FC34: 327684081.5 | FD34: 317325583 | FE34: 333215260.5 | FF34: 322319854.5 | FG34: 363227787.3 | FI34: INCC-DI MS
C35: Material de Tratamento | D35: 3335493.47 | E35: 2853565.51 | F35: 3485350.92 | G35: 2806626.58 | H35: 2577187.23 | I35: 2667578.31 | J35: 2948350.29 | K35: 2418709.69 | L35: 2609514.82 | M35: 2736003.52 | N35: 3339048.93 | O35: 3506002.87 | CQ35: 5860356.97 | CR35: 4843225.55 | CS35: 7624561.88 | CT35: 5914982.92 | CU35: 5366025.28 | CV35: 5629784.34 | CW35: 4347163.3 | CX35: 5030370.52 | CY35: 4757574.95 | CZ35: 4763393.66 | DA35: 5530193.42 | DB35: 5751667.36 | DC35: 65419300.15 | DD35: 8088938.64 | DE35: 6442724.03 | DF35: 7397291.89 | DG35: 6056380.51 | DH35: 5847083.19 | DI35: 4445883.39 | DJ35: 4699510.26 | DK35: 5085605.71 | DL35: 4692467.92 | DM35: 4274696.42 | DN35: 6380299.63 | DO35: 5648268.93 | DP35: 69059150.52 | DQ35: 7433573.54 | DR35: 6156630.15 | DS35: 6254901 | DT35: 7294109.09 | DU35: 6299188.86 | DV35: 5964809.61 | DW35: 6294286.11 | DX35: 5769989.94 | DY35: 6273165.56 | DZ35: 6117268.94 | EA35: 6565848.62 | EB35: 7155295.05 | EC35: 77579066.47 | ED35: 11502537.1 | EE35: 7256279.96 | EF35: 9914398.62 | EG35: 7941506.49 | EH35: 10131205.06 | EI35: 6619795.98 | EJ35: 6303549.98 | EK35: 5631849.27 | EL35: 6379596.63 | EM35: 6940939.16 | EN35: 7417509.73 | EO35: 8448069.93 | EP35: 94487237.91 | EQ35: 7417251.39 | ER35: 7238788.82 | ES35: 8040805.62 | ET35: 6975192.34 | EU35: =EH35*(1+HLOOKUP($FI35,'3.Índices_inflação'!$B$147:$AZ$152,4,FALSE)) -> 13886136.32 | EV35: =EI35*(1+HLOOKUP($FI35,'3.Índices_inflação'!$B$147:$AZ$152,5,FALSE)) -> 9046490.975 | EW35: =EJ35*(1+HLOOKUP($FI35,'3.Índices_inflação'!$B$147:$AZ$152,6,FALSE)) -> 8478649.89 | EZ35: 65419300.15 | FA35: 69059150.52 | FB35: 77579066.47 | FC35: 94487237.91 | FD35: 68811011.82 | FE35: 71778836.97 | FF35: 91550841.3 | FG35: 95901280.07 | FI35: IGP-M
C36: Outros Materiais | D36: 791935.46 | E36: 651452.54 | F36: 856935.71 | G36: 651371.88 | H36: 751957.11 | I36: 787894.33 | J36: 754142.09 | K36: 784629.98 | L36: 783117.2 | M36: 672663.49 | N36: 746542.76 | O36: 753762.61 | CQ36: 841277.57 | CR36: 911658.07 | CS36: 1090003.01 | CT36: 807425.51 | CU36: 946213.96 | CV36: 1259043.83 | CW36: 872303.49 | CX36: 1078630.14 | CY36: 1143507.73 | CZ36: 949927.16 | DA36: 920844.21 | DB36: 1008710.04 | DC36: 11829544.72 | DD36: 813425.12 | DE36: 882274.62 | DF36: 1032294.65 | DG36: 868782.98 | DH36: 856792.04 | DI36: 841803.47 | DJ36: 702595.37 | DK36: 887285.53 | DL36: 808108.65 | DM36: 718066.06 | DN36: 798638.5 | DO36: 634935.76 | DP36: 9845002.75 | DQ36: 688605.29 | DR36: 845881.2 | DS36: 1037350.27 | DT36: 1156065.2 | DU36: 1228755.12 | DV36: 999053.99 | DW36: 1034648.9 | DX36: 991410.95 | DY36: 950627.18 | DZ36: 1301650.92 | EA36: 901559.4 | EB36: 962154.3 | EC36: 12097762.72 | ED36: 885253.66 | EE36: 869803.67 | EF36: 1143388.5 | EG36: 1052398.06 | EH36: 1012324.33 | EI36: 1054883.39 | EJ36: 1075974.05 | EK36: 953304.08 | EL36: 971054.11 | EM36: 981330.88 | EN36: 982304.62 | EO36: 1120967.88 | EP36: 12102987.23 | EQ36: 906670.42 | ER36: 1219592.25 | ES36: 1492829.44 | ET36: 1273485.06 | EU36: =EH36*(1+HLOOKUP($FI36,'3.Índices_inflação'!$B$147:$AZ$152,4,FALSE)) -> 1387522.369 | EV36: =EI36*(1+HLOOKUP($FI36,'3.Índices_inflação'!$B$147:$AZ$152,5,FALSE)) -> 1441584.166 | EW36: =EJ36*(1+HLOOKUP($FI36,'3.Índices_inflação'!$B$147:$AZ$152,6,FALSE)) -> 1447249.136 | EZ36: 11829544.72 | FA36: 9845002.75 | FB36: 12097762.72 | FC36: 12102987.23 | FD36: 11099587.53 | FE36: 10837394.47 | FF36: 12201428.41 | FG36: 14177894.41 | FI36: IGP-M
C37: Pessoal | D37: 57169046.3 | E37: 56809068.24 | F37: 57934744.56 | G37: 56943278.33 | H37: 61034108.99 | I37: 73019465.05 | J37: 63932829.89 | K37: 63103590.53 | L37: 58711033.69 | M37: 63529656.72 | N37: 63881309.37 | O37: 65749126.26 | CQ37: 93239332.96 | CR37: 96495828.15 | CS37: 97241900.56 | CT37: 97882314.56 | CU37: 107474699.7 | CV37: 105939630.2 | CW37: 95948560.03 | CX37: 107924387.6 | CY37: 102736951.9 | CZ37: 103671755.4 | DA37: 103889268 | DB37: 114933400.7 | DC37: 1227378030 | DD37: 102356350.2 | DE37: 104521840.2 | DF37: 105933960.3 | DG37: 106358077 | DH37: 109438245.4 | DI37: 108046553.1 | DJ37: 106266398.5 | DK37: 124763596.5 | DL37: 104948158.9 | DM37: 108527993.6 | DN37: 107051557.1 | DO37: 113439336.8 | DP37: 1301652068 | DQ37: 103921875.2 | DR37: 105741297.1 | DS37: 104948297.2 | DT37: 106240955.1 | DU37: 118630219.2 | DV37: 110984179.4 | DW37: 112475978.6 | DX37: 113215021.9 | DY37: 111407016.5 | DZ37: 113364551.9 | EA37: 112539122.8 | EB37: 118324343.1 | EC37: 1331792858 | ED37: 111381552.6 | EE37: 111645333 | EF37: 114128719.6 | EG37: 111567658.1 | EH37: 116213662.8 | EI37: 113886613.2 | EJ37: 110772847.5 | EK37: 112024835.2 | EL37: 112815485.5 | EM37: 113817822.4 | EN37: 117064230.9 | EO37: 115242442.1 | EP37: 1360561203 | EQ37: 112036149 | ER37: 114556371.6 | ES37: 117003194.7 | ET37: 116257985.2 | EU37: =EH37*(1+HLOOKUP($FI37,'3.Índices_inflação'!$B$147:$AZ$152,4,FALSE)) -> 126552290.1 | EV37: =EI37*(1+HLOOKUP($FI37,'3.Índices_inflação'!$B$147:$AZ$152,5,FALSE)) -> 124529296.3 | EW37: =EJ37*(1+HLOOKUP($FI37,'3.Índices_inflação'!$B$147:$AZ$152,6,FALSE)) -> 121495711.2 | EZ37: 1227378030 | FA37: 1301652068 | FB37: 1331792858 | FC37: 1360561203 | FD37: 1276077188 | FE37: 1321673445 | FF37: 1358446443 | FG37: 1403395814 | FI37: INPC
C38: Serviços de Terceiros | D38: 4127020.94 | E38: 2443257.23 | F38: 5295479.07 | G38: 3919449.36 | H38: 6228250.38 | I38: 5163235.31 | J38: 5690163.21 | K38: 4736457.8 | L38: 4438524.04 | M38: 4429650.99 | N38: 6154994.16 | O38: 7569168.69 | CQ38: 6029070.1 | CR38: 8304328.78 | CS38: 9904632.37 | CT38: 7285235.62 | CU38: 9242244.46 | CV38: 7555159.47 | CW38: 8665673.41 | CX38: 9014591.23 | CY38: 8969480.59 | CZ38: 10990019.15 | DA38: 10855242.64 | DB38: 13913372.32 | DC38: 110729050.1 | DD38: 9973239.54 | DE38: 13831294.03 | DF38: 3838710.89 | DG38: 9364709.9 | DH38: 12403222.41 | DI38: 9093653.94 | DJ38: 8132717.26 | DK38: 9619157.4 | DL38: 9749753.51 | DM38: 8518421.05 | DN38: 9427308.61 | DO38: 10903587.64 | DP38: 114855776.2 | DQ38: 8134073.94 | DR38: 9575747.42 | DS38: 10542039.95 | DT38: 9520542.94 | DU38: 11648743.68 | DV38: 9841368.49 | DW38: 13328336.44 | DX38: 11361492.25 | DY38: 12627158.46 | DZ38: 13132670.6 | EA38: 11795490.72 | EB38: 15110764.02 | EC38: 136618428.9 | ED38: 9799117.45 | EE38: 10838846.07 | EF38: 12182584.1 | EG38: 11429883.51 | EH38: 10103931.91 | EI38: 9060411.09 | EJ38: 9747444.48 | EK38: 11920290.02 | EL38: 10426804.44 | EM38: 10859647.89 | EN38: 12533562.57 | EO38: 12321073.52 | EP38: 131223597.1 | EQ38: 13224735.86 | ER38: 10885616.53 | ES38: 13659207.31 | ET38: 12605445.29 | EU38: =EH38*(1+HLOOKUP($FI38,'3.Índices_inflação'!$B$147:$AZ$152,4,FALSE)) -> 10917894.79 | EV38: =EI38*(1+HLOOKUP($FI38,'3.Índices_inflação'!$B$147:$AZ$152,5,FALSE)) -> 9810815.28 | EW38: =EJ38*(1+HLOOKUP($FI38,'3.Índices_inflação'!$B$147:$AZ$152,6,FALSE)) -> 10552646.99 | EZ38: 110729050.1 | FA38: 114855776.2 | FB38: 136618428.9 | FC38: 131223597.1 | FD38: 120380253.9 | FE38: 120809081.1 | FF38: 137189794.7 | FG38: 139717740.5 | FI38: IPCA
C39: Telecomunicação | D39: 382159.63 | E39: 758968.3 | F39: 1880269.67 | G39: 12134.15 | H39: 2821398.04 | I39: 1544826.73 | J39: 1665582.07 | K39: 1385116.75 | L39: 1642483.81 | M39: 1996283.12 | N39: 1638748.66 | O39: 1958731.52 | CQ39: 1418319.85 | CR39: 1425477.59 | CS39: 1411884.38 | CT39: 1408577.48 | CU39: 1378578.21 | CV39: 1384149.29 | CW39: 1374432.62 | CX39: 1381722.57 | CY39: 1285013.3 | CZ39: 1374843.91 | DA39: 1351600.32 | DB39: 1537068.76 | DC39: 16731668.28 | DD39: 161264.17 | DE39: 2002032.42 | DF39: 907745.78 | DG39: 976385.19 | DH39: 944438 | DI39: 1002497.88 | DJ39: 976852.49 | DK39: 884269.87 | DL39: 1050064.25 | DM39: 837211.05 | DN39: 1073294.94 | DO39: 204876.66 | DP39: 11020932.7 | DQ39: 1097562.34 | DR39: 861280.39 | DS39: 947775.45 | DT39: 1065716.93 | DU39: 1217336.49 | DV39: 1220923.84 | DW39: 779399.52 | DX39: 1007394.29 | DY39: 1491881.45 | DZ39: 648273.97 | EA39: 952551.37 | EB39: 2058389.47 | EC39: 13348485.51 | ED39: 1095200.3 | EE39: 1081199.61 | EF39: 973444.92 | EG39: 808874.72 | EH39: 808599.01 | EI39: 1300191.11 | EJ39: 993872.42 | EK39: 974264.66 | EL39: 1020673.88 | EM39: 995956.77 | EN39: 1006307.75 | EO39: 978646.04 | EP39: 12037231.19 | EQ39: 931066.21 | ER39: 1091751.62 | ES39: 1009825.11 | ET39: 985657.96 | EU39: =EH39*(1+HLOOKUP($FI39,'3.Índices_inflação'!$B$147:$AZ$152,4,FALSE)) -> 849611.1318 | EV39: =EI39*(1+HLOOKUP($FI39,'3.Índices_inflação'!$B$147:$AZ$152,5,FALSE)) -> 1372196.33 | EW39: =EJ39*(1+HLOOKUP($FI39,'3.Índices_inflação'!$B$147:$AZ$152,6,FALSE)) -> 1053776.406 | EZ39: 16731668.28 | FA39: 11020932.7 | FB39: 13348485.51 | FC39: 12037231.19 | FD39: 13901464.79 | FE39: 11239711.73 | FF39: 13219872.64 | FG39: 12269733.87 | FI39: IPCA BH tel
C40: Treinamento | D40: 27504.59 | E40: 71393.58 | F40: 127973.43 | G40: 123175.59 | H40: 396745.4 | I40: 227135.96 | J40: 187077.93 | K40: 104555.45 | L40: 52873.38 | M40: 18489.43 | N40: 24065.95 | O40: 78881.42 | CQ40: 40620.71 | CR40: 26462.51 | CS40: 92111.41 | CT40: 65272.13 | CU40: 65527.78 | CV40: 60401.1 | CW40: 106892.07 | CX40: 76340.32 | CY40: 136011.02 | CZ40: 209605.32 | DA40: 151049.68 | DB40: 196619.39 | DC40: 1226913.44 | DD40: 68331.18 | DE40: 78720.36 | DF40: 152858.14 | DG40: 250540.19 | DH40: 265789.84 | DI40: 183087.24 | DJ40: 275551.26 | DK40: 222787.89 | DL40: 283495.71 | DM40: 392147.8 | DN40: 212057.71 | DO40: 223405.94 | DP40: 2608773.26 | DQ40: 55214.87 | DR40: 53320.23 | DS40: 133152.87 | DT40: 220042.03 | DU40: 280964.23 | DV40: 248038.01 | DW40: 264452.86 | DX40: 158469.04 | DY40: 212106.22 | DZ40: 328448.47 | EA40: 324625.24 | EB40: 273612.59 | EC40: 2552446.66 | ED40: 89647.58 | EE40: 121686.52 | EF40: 244569.21 | EG40: 81699.67 | EH40: 10052.1 | EI40: 113627.55 | EJ40: 60721.83 | EK40: 42012.58 | EL40: 175018.91 | EM40: 82878.13 | EN40: 106341.76 | EO40: 133236.96 | EP40: 1261492.8 | EQ40: 138316.05 | ER40: 166127.26 | ES40: 117478.15 | ET40: 41758.02 | EU40: =EH40*(1+HLOOKUP($FI40,'3.Índices_inflação'!$B$147:$AZ$152,4,FALSE)) -> 10861.88735 | EV40: =EI40*(1+HLOOKUP($FI40,'3.Índices_inflação'!$B$147:$AZ$152,5,FALSE)) -> 123038.4464 | EW40: =EJ40*(1+HLOOKUP($FI40,'3.Índices_inflação'!$B$147:$AZ$152,6,FALSE)) -> 65737.84931 | EZ40: 1226913.44 | FA40: 2608773.26 | FB40: 2552446.66 | FC40: 1261492.8 | FD40: 2044503.94 | FE40: 2589080.15 | FF40: 2019266.02 | FG40: 1202806.003 | FI40: IPCA
C41: Outros Custos Operacionais | D41: 1129778.17 | E41: 773275.06 | F41: 973668.91 | G41: 770146.65 | H41: 720261.6 | I41: 1035363.36 | J41: 953362.24 | K41: 977889.98 | L41: 1025829.26 | M41: 940766.13 | N41: 864054.31 | O41: 1152199.33 | CQ41: 828135.19 | CR41: 632470.25 | CS41: 949556.37 | CT41: 628439.56 | CU41: 833249.24 | CV41: 991752.53 | CW41: 809458.14 | CX41: 1020589.09 | CY41: 1029314.02 | CZ41: 997338.91 | DA41: 944466.81 | DB41: 2018827.68 | DC41: 11683597.79 | DD41: 942357.92 | DE41: 778489.21 | DF41: 909432.06 | DG41: 1144242.84 | DH41: 941554.15 | DI41: 931309.35 | DJ41: 947655.28 | DK41: 1412150.28 | DL41: 1051165.7 | DM41: 1116832.71 | DN41: 740648.7 | DO41: 832683.81 | DP41: 11748522.01 | DQ41: 774579.5 | DR41: 683803.1 | DS41: 745770.71 | DT41: 775262.53 | DU41: 898442.53 | DV41: 712364.99 | DW41: 1072072.9 | DX41: 875030.92 | DY41: 989955.62 | DZ41: 881240.37 | EA41: 1004569.82 | EB41: 989249.96 | EC41: 10402342.95 | ED41: 560557.19 | EE41: 641695.33 | EF41: 1304921.52 | EG41: 575099.65 | EH41: 407020.86 | EI41: 647607.21 | EJ41: 467068.52 | EK41: 596476.51 | EL41: 557117.9 | EM41: 578179.22 | EN41: 845935.48 | EO41: 1044550.55 | EP41: 8226229.94 | EQ41: 431207.63 | ER41: 531213.98 | ES41: 1422209.52 | ET41: 594770.2 | EU41: =EH41*(1+HLOOKUP($FI41,'3.Índices_inflação'!$B$147:$AZ$152,4,FALSE)) -> 439810.0625 | EV41: =EI41*(1+HLOOKUP($FI41,'3.Índices_inflação'!$B$147:$AZ$152,5,FALSE)) -> 701243.5361 | EW41: =EJ41*(1+HLOOKUP($FI41,'3.Índices_inflação'!$B$147:$AZ$152,6,FALSE)) -> 505651.4269 | EZ41: 11683597.79 | FA41: 11748522.01 | FB41: 10402342.95 | FC41: 8226229.94 | FD41: 12605577.32 | FE41: 10815777.46 | FF41: 9344016.97 | FG41: 8248366.016 | FI41: IPCA
C42: Total - Custos Operacionais | D42: 98112258.75 | E42: 96013958.93 | F42: 106371514 | G42: 97843610.05 | H42: 108534801.6 | I42: 116375601.4 | J42: 108601553.2 | K42: 106326556 | L42: 103150697.9 | M42: 138157510.8 | N42: 108428147.8 | O42: 91252668.78 | CQ42: 162098371.6 | CR42: 178886285.9 | CS42: 184980499.1 | CT42: 176050404.4 | CU42: 194699285.5 | CV42: 181214775.7 | CW42: 175441822.3 | CX42: 198143623.4 | CY42: 191405324.3 | CZ42: 194499917.9 | DA42: 195516949.5 | DB42: 220674781.2 | DC42: 2253612041 | DD42: 185248082.8 | DE42: 188589873 | DF42: 187384975.3 | DG42: 193260414.6 | DH42: 208694912.5 | DI42: 190760351.9 | DJ42: 204160367.3 | DK42: 230296542 | DL42: 207839008.8 | DM42: 206190181.5 | DN42: 206499385.6 | DO42: 210346435.3 | DP42: 2419270531 | DQ42: 200539472.2 | DR42: 206024474.7 | DS42: 202091281.4 | DT42: 204777305.1 | DU42: 218704070 | DV42: 203616622.5 | DW42: 214547379.3 | DX42: 215999086.5 | DY42: 220303625.3 | DZ42: 219817768.8 | EA42: 210161766.6 | EB42: 240130916.9 | EC42: 2556713769 | ED42: 203781979.1 | EE42: 209722830.4 | EF42: 214014508 | EG42: 206867532.6 | EH42: 218818504.1 | EI42: 207834964.8 | EJ42: 210100438.3 | EK42: 211326843.1 | EL42: 210447049.9 | EM42: 211805918.2 | EN42: 229239525.4 | EO42: 222683724.5 | EP42: 2556643818 | EQ42: 217212294.5 | ER42: 209794840.9 | ES42: =SUM(ES25:ES41) -> 226528625 | ET42: =SUM(ET25:ET41) -> 221423889 | EU42: 249618052.7 | EV42: 239389834 | EW42: 239405472.7 | EZ42: =SUM(EZ25:EZ41) -> 2253612041 | FA42: =SUM(FA25:FA41) -> 2419270531 | FB42: 2556713769 | FC42: 2556643818 | FD42: =SUM(FD25:FD41) -> 2358339574 | FE42: 2511472158 | FF42: 2577553921 | FG42: 2688876070
D43: =D44/-D11 -> 0.07497695614 | E43: =E44/-E11 -> 0.07483378568 | F43: 0.07459281489 | G43: 0.07600489921 | H43: 0.07542274426 | I43: 0.07443124101 | J43: 0.07527592507 | K43: 0.07577991748 | L43: 0.07635206157 | M43: 0.07531423122 | N43: =N44/-N11 -> 0.07774033075 | O43: =O44/-O11 -> 0.06705404349 | CQ43: =CQ44/-CQ11 -> 0.06856359802 | CR43: =CR44/-CR11 -> 0.06361276722 | CS43: =CS44/-CS11 -> 0.06638886071 | CT43: =CT44/-CT11 -> 0.06654726163 | CU43: =CU44/-CU11 -> 0.06319268524 | CV43: =CV44/-CV11 -> 0.06435146582 | CW43: =CW44/-CW11 -> 0.06470124076 | CX43: =CX44/-CX11 -> 0.06730887571 | CY43: =CY44/-CY11 -> 0.06968787781 | CZ43: =CZ44/-CZ11 -> 0.06959923546 | DA43: =DA44/-DA11 -> 0.06753085788 | DB43: =DB44/-DB11 -> 0.0682802569 | DC43: =DC44/-DC11 -> 0.06679474991 | DD43: =DD44/-DD11 -> 0.07354907737 | DE43: =DE44/-DE11 -> 0.07071982935 | DF43: =DF44/-DF11 -> 0.07116277117 | DG43: =DG44/-DG11 -> 0.0721817015 | DH43: =DH44/-DH11 -> 0.07132358226 | DI43: =DI44/-DI11 -> 0.0698091575 | DJ43: =DJ44/-DJ11 -> 0.07083067778 | DK43: =DK44/-DK11 -> 0.06870419228 | DL43: =DL44/-DL11 -> 0.06799396824 | DM43: =DM44/-DM11 -> 0.07102252634 | DN43: =DN44/-DN11 -> 0.06880027813 | DO43: =DO44/-DO11 -> 0.0629681264 | DP43: =DP44/-DP11 -> 0.0698989905 | DQ43: =DQ44/-DQ11 -> 0.07192209367 | DR43: =DR44/-DR11 -> 0.07197539691 | DS43: =DS44/-DS11 -> 0.06917020147 | DT43: =DT44/-DT11 -> 0.07021505342 | DU43: =DU44/-DU11 -> 0.06847303877 | DV43: =DV44/-DV11 -> 0.07165686992 | DW43: =DW44/-DW11 -> 0.07490807382 | DX43: =DX44/-DX11 -> 0.07607549395 | DY43: =DY44/-DY11 -> 0.07803304847 | DZ43: =DZ44/-DZ11 -> 0.08616800765 | EA43: =EA44/-EA11 -> 0.08548175994 | EB43: =EB44/-EB11 -> 0.08458403708 | EC43: =EC44/-EC11 -> 0.07618584359 | ED43: =ED44/-ED11 -> 0.08513929476 | EE43: =EE44/-EE11 -> 0.08384296669 | EF43: =EF44/-EF11 -> 0.08539108281 | EG43: =EG44/-EG11 -> 0.08339626675 | EH43: =EH44/-EH11 -> 0.08337984547 | EI43: =EI44/-EI11 -> 0.0828632119 | EJ43: =EJ44/-EJ11 -> 0.08488738255 | EK43: =EK44/-EK11 -> 0.0849694884 | EL43: =EL44/-EL11 -> 0.08468412289 | EM43: =EM44/-EM11 -> 0.08533947886 | EN43: =EN44/-EN11 -> 0.0836081313 | EO43: =EO44/-EO11 -> 0.08472590484 | EP43: =EP44/-EP11 -> 0.08438800655 | EQ43: =EQ44/-EQ11 -> 0.0845068204 | ER43: =ER44/-ER11 -> 0.08312865158 | ES43: 0.08348989735 | ET43: 0.08408504456 | EU43: =AVERAGE(ER43,ES43,ET43) -> 0.0835678645 | EV43: =AVERAGE(ES43,ET43,EU43) -> 0.0837142688 | EW43: =AVERAGE(ET43,EU43,EV43) -> 0.08378905929 | EZ43: =EZ44/-EZ11 -> 0.06679474991 | FA43: =FA44/-FA11 -> 0.0698989905 | FB43: 0.07618584359 | FC43: 0.08438800655 | FD43: 0.07017410615 | FE43: 0.06984750484 | FF43: 0.08330853457 | FG43: 0.08415792361
C44: PIS/Pasep e Cofins | D44: 14606974.5 | E44: 14491891.45 | F44: 15847686.75 | G44: 15383808.66 | H44: 15925316.34 | I44: 14386603.61 | J44: 15576835.57 | K44: 16022749.44 | L44: 17034145.04 | M44: 16375313.44 | N44: 15402511.52 | O44: 14181671.84 | CQ44: 25494025.88 | CR44: 20248346.17 | CS44: 24133878.71 | CT44: 23000643.62 | CU44: 21608552.84 | CV44: 20289742.44 | CW44: 22024328.85 | CX44: 24164218.61 | CY44: 28512941.49 | CZ44: 28043425.51 | DA44: 25349779.79 | DB44: 24282904.65 | DC44: 287152788.6 | DD44: 27943429.98 | DE44: 24239619.3 | DF44: 26454134.81 | DG44: 26622842.17 | DH44: 26890258.57 | DI44: 24301056.74 | DJ44: 26034308.01 | DK44: 25921328.84 | DL44: 24869480.96 | DM44: 29198221.7 | DN44: 25835592.75 | DO44: 24801424.25 | DP44: 313111698.1 | DQ44: 29909393.14 | DR44: 27536165.23 | DS44: 27126499.51 | DT44: 27008068.71 | DU44: 27183262.45 | DV44: 27623377.26 | DW44: 29969728.05 | DX44: 31560471.26 | DY44: 37603250.23 | DZ44: 42675760.06 | EA44: 39154142.28 | EB44: 37314503.81 | EC44: 384664622 | ED44: 38395061.41 | EE44: 34234900.82 | EF44: 38051410.49 | EG44: 35855686.04 | EH44: 37102587.77 | EI44: 34214401.15 | EJ44: 38235132.81 | EK44: 39652518.28 | EL44: 39194110.67 | EM44: 45077317.31 | EN44: 37947814.17 | EO44: 39970416.61 | EP44: 457931357.5 | EQ44: 40987996.93 | ER44: 36928430.24 | ES44: 38337341.72 | ET44: 39412576.64 | EU44: =AVERAGE(ER44,ES44,ET44) -> 38226116.2 | EV44: =AVERAGE(ES44,ET44,EU44) -> 38658678.19 | EW44: =AVERAGE(ET44,EU44,EV44) -> 38765790.34 | EZ44: 287152788.6 | FA44: 313111698.1 | FB44: 384664622 | FC44: 457931357.5 | FD44: 312838919.6 | FE44: 326982542.9 | FF44: 444397308.1 | FG44: 473159107.3 | FI44: Variação da receita
C45: TFAS | D45: 0 | E45: 397323.52 | F45: 198661.76 | G45: 198661.76 | H45: 198661.78 | I45: 198661.78 | J45: 198661.78 | K45: 198661.78 | L45: 198661.78 | M45: 198823.71 | N45: 397323.56 | O45: 0 | CQ45: 2710818.74 | CR45: 2710818.74 | CS45: 2710818.74 | CT45: 2710818.74 | CU45: 2710818.74 | CV45: 2710818.74 | CW45: 2710818.74 | CX45: 2710818.74 | CY45: 2710818.74 | CZ45: 2710818.74 | DA45: 2710818.74 | DB45: 2710818.74 | DC45: 32529824.88 | DD45: 2767812.13 | DE45: 2767812.13 | DF45: 2767812.13 | DG45: 2767812.13 | DH45: 2767812.13 | DI45: 2767812.13 | DJ45: 2767812.13 | DK45: 2767812.13 | DL45: 2767812.13 | DM45: 2767812.13 | DN45: 2767812.13 | DO45: 2767812.13 | DP45: 33213745.56 | DQ45: 3129018.48 | DR45: 3129018.48 | DS45: 3129018.48 | DT45: 3129018.48 | DU45: 3129018.48 | DV45: 3129018.48 | DW45: 3129018.48 | DX45: 3129018.48 | DY45: 3129018.48 | DZ45: 3129018.48 | EA45: 3129018.48 | EB45: 3129018.48 | EC45: 37548221.76 | ED45: 3283981.55 | EE45: 3283981.53 | EF45: 3283981.53 | EG45: 3283981.53 | EH45: 3283981.53 | EI45: 3283981.53 | EJ45: 3283981.53 | EK45: 3283981.53 | EL45: 3283981.53 | EM45: 3283981.53 | EN45: 3283981.53 | EO45: 3283981.53 | EP45: 39407778.38 | EQ45: 3579065.05 | ER45: 3579065.04 | ES45: 3579065.04 | ET45: 3579065.04 | EU45: =ET45 -> 3579065.04 | EV45: 3579065.04 | EW45: 3579065.04 | EZ45: 32529824.88 | FA45: 33213745.56 | FB45: 37548221.76 | FC45: 39407778.38 | FD45: 32928778.61 | FE45: 35742190.01 | FF45: 38632963.13 | FG45: 41473362.94 | FI45: Variação da TFAS
C46: Outros Tributos e Taxas | D46: 1872708.48 | E46: 142227.48 | F46: 116242 | G46: 727289.23 | H46: 335258.11 | I46: 114495.66 | J46: 4064504.64 | K46: -3977736.67 | L46: 22678.67 | M46: 4935.63 | N46: 22949.53 | O46: 100445.68 | CQ46: 2402669.49 | CR46: 232974.89 | CS46: 530887.79 | CT46: 1377703.08 | CU46: 495647 | CV46: 253926.37 | CW46: 306735.43 | CX46: 411840.05 | CY46: 746908.42 | CZ46: 773665.5 | DA46: 489175.72 | DB46: 325421.26 | DC46: 8347555 | DD46: 2676279.41 | DE46: 309230.53 | DF46: 293752.82 | DG46: 1460422.58 | DH46: 579393.39 | DI46: 436508.34 | DJ46: 353929.92 | DK46: 326091.91 | DL46: 335142.58 | DM46: 505465.3 | DN46: 182420.79 | DO46: 158447.55 | DP46: 7617085.12 | DQ46: 1515839.66 | DR46: 375581.62 | DS46: 429776.49 | DT46: 1706511.96 | DU46: 707766.41 | DV46: 545122.81 | DW46: 372473.98 | DX46: 464802.49 | DY46: 469825.91 | DZ46: 428040.03 | EA46: 328509.84 | EB46: 348737.21 | EC46: 7692988.41 | ED46: 1768160.23 | EE46: 158485.89 | EF46: 736973 | EG46: 1480134.64 | EH46: 168811.72 | EI46: 276644.84 | EJ46: 338759.47 | EK46: 250265.08 | EL46: 569228.43 | EM46: 259474.5 | EN46: 279671.11 | EO46: 540106.83 | EP46: 6826715.74 | EQ46: 1814105.41 | ER46: 233377.99 | ES46: 892738.48 | ET46: 1489923.27 | EU46: =EH46*(1+HLOOKUP($FI46,'3.Índices_inflação'!$B$147:$AZ$152,4,FALSE)) -> 182411.0271 | EV46: =EI46*(1+HLOOKUP($FI46,'3.Índices_inflação'!$B$147:$AZ$152,5,FALSE)) -> 299557.2051 | EW46: =EJ46*(1+HLOOKUP($FI46,'3.Índices_inflação'!$B$147:$AZ$152,6,FALSE)) -> 366743.2123 | EZ46: 8347555 | FA46: 7617085.12 | FB46: 7692988.41 | FC46: 6826715.74 | FD46: 8856527.94 | FE46: 7160641.06 | FF46: 6967885.27 | FG46: 7177602.545 | FI46: IPCA
C47: Total - Tributos e Outras Obrigações | D47: 16479682.98 | E47: 15031442.45 | F47: 16162590.51 | G47: 16309759.65 | H47: 16459236.23 | I47: 14699761.05 | J47: 19840001.99 | K47: 12243674.55 | L47: 17255485.49 | M47: 16579072.78 | N47: 15822784.61 | O47: 14282117.52 | CQ47: 30607514.11 | CR47: 23192139.8 | CS47: 27375585.24 | CT47: 27089165.44 | CU47: 24815018.58 | CV47: 23254487.55 | CW47: 25041883.02 | CX47: 27286877.4 | CY47: 31970668.65 | CZ47: 31527909.75 | DA47: 28549774.25 | DB47: 27319144.65 | DC47: 328030168.4 | DD47: 33387521.52 | DE47: 27316661.96 | DF47: 29515699.76 | DG47: 30851076.88 | DH47: 30237464.09 | DI47: 27505377.21 | DJ47: 29156050.06 | DK47: 29015232.88 | DL47: 27972435.67 | DM47: 32471499.13 | DN47: 28785825.67 | DO47: 27727683.93 | DP47: 353942528.8 | DQ47: 34554251.28 | DR47: 31040765.33 | DS47: 30685294.48 | DT47: 31843599.15 | DU47: 31020047.34 | DV47: 31297518.55 | DW47: 33471220.51 | DX47: 35154292.23 | DY47: 41202094.62 | DZ47: 46232818.57 | EA47: 42611670.6 | EB47: 40792259.5 | EC47: 429905832.2 | ED47: 43447203.19 | EE47: 37677368.24 | EF47: 42072365.02 | EG47: 40619802.21 | EH47: 40555381.02 | EI47: 37775027.52 | EJ47: 41857873.81 | EK47: 43186764.89 | EL47: 43047320.63 | EM47: 48620773.34 | EN47: 41511466.81 | EO47: 43794504.97 | EP47: 504165851.6 | EQ47: 46381167.39 | ER47: 40740873.27 | ES47: =SUM(ES44:ES46) -> 42809145.24 | ET47: =SUM(ET44:ET46) -> 44481564.95 | EU47: 41987592.27 | EV47: 42537300.43 | EW47: 42711598.59 | EZ47: =SUM(EZ44:EZ46) -> 328030168.4 | FA47: =SUM(FA44:FA46) -> 353942528.8 | FB47: 429905832.2 | FC47: 504165851.6 | FD47: 354624226.2 | FE47: 369885373.9 | FF47: 489998156.5 | FG47: 521810072.8
C49: Proteção de Mananciais | D49: 0 | E49: 0 | F49: 0 | G49: 0 | H49: 0 | I49: 0 | J49: 0 | K49: 0 | L49: 0 | M49: 0 | N49: 0 | O49: 0 | CQ49: 0 | CR49: 0 | CS49: 134903.3 | CT49: -144538.96 | CU49: 306272.44 | CV49: 1001627.74 | CW49: 258072.37 | CX49: 421829.05 | CY49: 108335.3 | CZ49: 323955.05 | DA49: 188137.44 | DB49: 242635.04 | DC49: 2841228.77 | DD49: 243819.86 | DE49: 362833.67 | DF49: 84434.58 | DG49: 735967.09 | DH49: 299742.32 | DI49: 510677.94 | DJ49: 264524.04 | DK49: 1878915.72 | DL49: 1725068.82 | DM49: 1573853.31 | DN49: 2450238.32 | DO49: 2914946.25 | DP49: 13045021.92 | DQ49: 1860346.4 | DR49: 1616320.99 | DS49: 1167174.11 | DT49: 626185.57 | DU49: 839942.29 | DV49: 558057.04 | DW49: 311721.89 | DX49: 1141051.96 | DY49: 430457.2 | DZ49: 112475.15 | EA49: 1156450.77 | EB49: 2359298.63 | EC49: 12179482 | ED49: 514276.5 | EE49: 577194.3 | EF49: 629931.93 | EG49: 543743.17 | EH49: 1146810.14 | EI49: 1610538.98 | EJ49: 1899672.79 | EK49: 1194905.12 | EL49: 1314208.72 | EM49: 908476.37 | EN49: 1118463.78 | EO49: 1032655.62 | EP49: 12490877.42 | EQ49: 370360.04 | ER49: 482951.21 | ES49: 552211.99 | ET49: 647659.72 | EU49: =EH49*(1+HLOOKUP($FI49,'3.Índices_inflação'!$B$147:$AZ$152,4,FALSE)) -> 1239196.044 | EV49: =EI49*(1+HLOOKUP($FI49,'3.Índices_inflação'!$B$147:$AZ$152,5,FALSE)) -> 1743927.541 | EW49: =EJ49*(1+HLOOKUP($FI49,'3.Índices_inflação'!$B$147:$AZ$152,6,FALSE)) -> 2056598.156 | EZ49: 2841228.77 | FA49: 13045021.92 | FB49: 12179482 | FC49: 12490877.42 | FD49: 3786891.38 | FE49: 17522770.71 | FF49: 12121901.52 | FG49: 12661614.31 | FI49: IPCA
C50: Programa de Pesquisa, Desenvolvimento e Inovação | D50: 0 | E50: 0 | F50: 0 | G50: 0 | H50: 0 | I50: 0 | J50: 0 | K50: 0 | L50: 0 | M50: 0 | N50: 0 | O50: 0 | CQ50: 0 | CR50: 0 | CS50: 0 | CT50: 0 | CU50: 0 | CV50: 0 | CW50: 0 | CX50: 0 | CY50: 0 | CZ50: 0 | DA50: 0 | DB50: 0 | DC50: 0 | DD50: 0 | DE50: 0 | DF50: 0 | DG50: 0 | DH50: 0 | DI50: 0 | DJ50: 0 | DK50: 0 | DL50: 0 | DM50: 0 | DN50: 0 | DO50: 0 | DP50: 0 | DQ50: 0 | DR50: 0 | DS50: 0 | DT50: 0 | DU50: 0 | DV50: 0 | DW50: 0 | DX50: 0 | DY50: 0 | DZ50: 0 | EA50: 0 | EB50: 0 | EC50: 0 | ED50: 0 | EE50: 0 | EF50: 0 | EG50: 0 | EH50: 0 | EI50: 0 | EJ50: 0 | EK50: 0 | EL50: 0 | EM50: 0 | EN50: 0 | EO50: 0 | EP50: 0 | EQ50: 0 | ER50: 0 | ES50: =AVERAGE(EO50,EQ50,ER50) -> 0 | ET50: 0 | EU50: =AVERAGE(ER50,ES50,ET50) -> 0 | EV50: =AVERAGE(ES50,ET50,EU50) -> 0 | EW50: =AVERAGE(ET50,EU50,EV50) -> 0 | EZ50: 0 | FA50: 0 | FB50: 0 | FC50: 0 | FD50: 0 | FE50: 0 | FF50: 0 | FG50: 0 | FI50: Variação da receita
C51: Repasse Tarifário a Fundos Municipais de Saneamento | D51: 0 | E51: 0 | F51: 0 | G51: 0 | H51: 0 | I51: 0 | J51: 0 | K51: 0 | L51: 0 | M51: 0 | N51: 0 | O51: 0 | CQ51: 0 | CR51: 0 | CS51: 0 | CT51: 0 | CU51: 0 | CV51: 0 | CW51: 0 | CX51: 0 | CY51: 0 | CZ51: 0 | DA51: 0 | DB51: 0 | DC51: 0 | DD51: 0 | DE51: 0 | DF51: 0 | DG51: 0 | DH51: 0 | DI51: 0 | DJ51: 0 | DK51: 0 | DL51: 0 | DM51: 0 | DN51: 0 | DO51: 0 | DP51: 0 | DQ51: 0 | DR51: 0 | DS51: 0 | DT51: 0 | DU51: 0 | DV51: 0 | DW51: 0 | DX51: 0 | DY51: 0 | DZ51: 0 | EA51: 0 | EB51: 0 | EC51: 0 | ED51: 0 | EE51: 0 | EF51: 0 | EG51: 0 | EH51: 0 | EI51: 0 | EJ51: 0 | EK51: 0 | EL51: 0 | EM51: 0 | EN51: 0 | EO51: 0 | EP51: 0 | EQ51: 0 | ER51: 0 | ES51: 0 | ET51: 0 | EU51: 0 | EV51: 0 | EW51: 0 | EZ51: 0 | FA51: 0 | FB51: 0 | FC51: 0 | FD51: 0 | FE51: 0 | FF51: 0 | FG51: 0 | FI51: Variação da receita
C52: Total - Programas Especiais | D52: 0 | E52: 0 | F52: 0 | G52: 0 | H52: 0 | I52: 0 | J52: 0 | K52: 0 | L52: 0 | M52: 0 | N52: 0 | O52: 0 | CQ52: 0 | CR52: 0 | CS52: 134903.3 | CT52: -144538.96 | CU52: 306272.44 | CV52: 1001627.74 | CW52: 258072.37 | CX52: 421829.05 | CY52: 108335.3 | CZ52: 323955.05 | DA52: 188137.44 | DB52: 242635.04 | DC52: 2841228.77 | DD52: 243819.86 | DE52: 362833.67 | DF52: 84434.58 | DG52: 735967.09 | DH52: 299742.32 | DI52: 510677.94 | DJ52: 264524.04 | DK52: 1878915.72 | DL52: 1725068.82 | DM52: 1573853.31 | DN52: 2450238.32 | DO52: 2914946.25 | DP52: 13045021.92 | DQ52: 1860346.4 | DR52: 1616320.99 | DS52: 1167174.11 | DT52: 626185.57 | DU52: 839942.29 | DV52: 558057.04 | DW52: 311721.89 | DX52: 1141051.96 | DY52: 430457.2 | DZ52: 112475.15 | EA52: 1156450.77 | EB52: 2359298.63 | EC52: 12179482 | ED52: 514276.5 | EE52: 577194.3 | EF52: 629931.93 | EG52: 543743.17 | EH52: 1146810.14 | EI52: 1610538.98 | EJ52: 1899672.79 | EK52: 1194905.12 | EL52: 1314208.72 | EM52: 908476.37 | EN52: 1118463.78 | EO52: 1032655.62 | EP52: 12490877.42 | EQ52: 370360.04 | ER52: 482951.21 | ES52: =SUM(ES49:ES51) -> 552211.99 | ET52: =SUM(ET49:ET51) -> 647659.72 | EU52: 1239196.044 | EV52: 1743927.541 | EW52: 2056598.156 | EZ52: =SUM(EZ49:EZ51) -> 2841228.77 | FA52: =SUM(FA49:FA51) -> 13045021.92 | FB52: 12179482 | FC52: 12490877.42 | FD52: 3786891.38 | FE52: 17522770.71 | FF52: 12121901.52 | FG52: 12661614.31
C54: Juros sobre o Capital Próprio | D54: 0 | E54: 0 | F54: 43673144.64 | G54: 0 | H54: 0 | I54: 56740609.24 | J54: 0 | K54: 0 | L54: 56935989.09 | M54: 0 | N54: 0 | O54: 66863015.17 | CQ54: 0 | CR54: 0 | CS54: 31962594.32 | CT54: 0 | CU54: 0 | CV54: 37262569.75 | CW54: 0 | CX54: 0 | CY54: 38929118.2 | CZ54: 0 | DA54: 0 | DB54: 46069178.67 | DC54: 154223460.9 | DD54: 0 | DE54: 0 | DF54: 76726828.96 | DG54: 0 | DH54: 0 | DI54: 51382618.48 | DJ54: 0 | DK54: 0 | DL54: 54541843.94 | DM54: 0 | DN54: 0 | DO54: 92231328.84 | DP54: 274882620.2 | DQ54: 0 | DR54: 0 | DS54: 52988119.4 | DT54: 0 | DU54: 0 | DV54: 20963137.08 | DW54: 0 | DX54: 0 | DY54: 52129564.03 | DZ54: 0 | EA54: -4377.49 | EB54: 84506107.01 | EC54: 210582550 | ED54: 0 | EE54: 0 | EF54: 45465821.25 | EG54: 0 | EH54: 0 | EI54: 43896091.97 | EJ54: 0 | EK54: 0 | EL54: 63124052.77 | EM54: 0 | EN54: 0 | EO54: 75540425.84 | EP54: 228026391.8 | EQ54: 0 | ER54: 0 | ES54: 64843860.93 | ET54: 0 | EU54: =EH54*(1+HLOOKUP($FI54,'3.Índices_inflação'!$B$147:$AZ$152,4,FALSE)) -> 0 | EV54: =EI54*(1+HLOOKUP($FI54,'3.Índices_inflação'!$B$147:$AZ$152,5,FALSE)) -> 47531667.78 | EW54: =EJ54*(1+HLOOKUP($FI54,'3.Índices_inflação'!$B$147:$AZ$152,6,FALSE)) -> 0 | EZ54: 154223460.9 | FA54: 274882620.2 | FB54: 210582550 | FC54: 228026391.8 | FD54: 213107744.3 | FE54: 220724429.3 | FF54: 225993206.8 | FG54: 251040007.3 | FI54: IPCA
C55: Participação nos Lucros e Resultados | D55: 0 | E55: 0 | F55: 7563800 | G55: 0 | H55: 0 | I55: 5997108.78 | J55: 0 | K55: 0 | L55: 10248091.22 | M55: 0 | N55: 0 | O55: 3323132.93 | CQ55: 4334431.6 | CR55: 1994317.21 | CS55: 2760937.5 | CT55: 2092633.2 | CU55: 2171183.22 | CV55: 2697915.58 | CW55: 2791213.98 | CX55: 2027683.17 | CY55: 4604519.81 | CZ55: 4307537.01 | DA55: 2837207.69 | DB55: 2616169.4 | DC55: 35235749.37 | DD55: 3854413.89 | DE55: 2222537.98 | DF55: 4324467.84 | DG55: 2438167.2 | DH55: 2072608.41 | DI55: 2465522.27 | DJ55: 2238851.79 | DK55: 582656.59 | DL55: 5178260.08 | DM55: 5072199.65 | DN55: 2219759.17 | DO55: 4243649.44 | DP55: 36913094.31 | DQ55: 4862328.3 | DR55: 2771182.6 | DS55: 4193018.85 | DT55: 2765540.06 | DU55: 2257523.88 | DV55: 2496890.96 | DW55: 3497984.74 | DX55: 2484554.46 | DY55: 6238710.43 | DZ55: 6292280.58 | EA55: 4654511.64 | EB55: 5384751.63 | EC55: 47899278.13 | ED55: 3995727.98 | EE55: 3013888.57 | EF55: 3176628.41 | EG55: 3604082.52 | EH55: 4497627.33 | EI55: 1166800.8 | EJ55: 4484734.12 | EK55: 4408156.83 | EL55: 6320359.25 | EM55: 6904260.19 | EN55: 3948767.49 | EO55: 6503716.23 | EP55: 52024749.72 | EQ55: 5047417.39 | ER55: 4373286.2 | ES55: 4499148.34 | ET55: 5367136.88 | EU55: =EH55*(1+HLOOKUP($FI55,'3.Índices_inflação'!$B$147:$AZ$152,4,FALSE)) -> 4859951.79 | EV55: =EI55*(1+HLOOKUP($FI55,'3.Índices_inflação'!$B$147:$AZ$152,5,FALSE)) -> 1263437.939 | EW55: =EJ55*(1+HLOOKUP($FI55,'3.Índices_inflação'!$B$147:$AZ$152,6,FALSE)) -> 4855202.417 | EZ55: 35235749.37 | FA55: 36913094.31 | FB55: 47899278.13 | FC55: 52024749.72 | FD55: 36009686.46 | FE55: 40140994.32 | FF55: 48994298.47 | FG55: 58350840.95 | FI55: IPCA
C56: Tributos sobre o Lucro | D56: 18298341.78 | E56: 21103117.75 | F56: 4584263.32 | G56: 15802171.03 | H56: 22766186.1 | I56: -5336294.61 | J56: 13604944 | K56: 22220161.19 | L56: 21311582.11 | M56: -15883684.54 | N56: 24741901.97 | O56: 101375012.9 | CQ56: 32594980.91 | CR56: 18015545.96 | CS56: 5821486.39 | CT56: 16241139.51 | CU56: 17522974.39 | CV56: 1123864.31 | CW56: 22646798.24 | CX56: 16308351.97 | CY56: 16765866.65 | CZ56: 34160283.76 | DA56: 22662019.48 | DB56: -5601554.94 | DC56: 198261756.6 | DD56: 30781599.13 | DE56: 17788212.19 | DF56: -4742265.95 | DG56: 19429800.87 | DH56: 15290388.7 | DI56: -6009104.99 | DJ56: 18507034.09 | DK56: 4705696.87 | DL56: 14554275.06 | DM56: 40940729.69 | DN56: 18541293.55 | DO56: -16616387.41 | DP56: 153171271.8 | DQ56: 39299357.63 | DR56: 22257782.33 | DS56: 7424092.78 | DT56: 22204268.82 | DU56: 18426116.46 | DV56: 6784154.1 | DW56: 28621104.69 | DX56: 20049659.98 | DY56: 23493748.1 | DZ56: 49942417.44 | EA56: 36989921.58 | EB56: -7562801.35 | EC56: 267929822.6 | ED56: 31969331.07 | EE56: 24266098.65 | EF56: 5704419.66 | EG56: 28741279.58 | EH56: 36992826.81 | EI56: -13684333.22 | EJ56: 35820216.08 | EK56: 35141333.85 | EL56: 16221790.88 | EM56: 54441594.56 | EN56: 31867040.49 | EO56: 1316441.66 | EP56: 288798040.1 | EQ56: 39576493.22 | ER56: 34670649.65 | ES56: 10491153.43 | ET56: 39682388.06 | EU56: =EH56*(1+HLOOKUP($FI56,'3.Índices_inflação'!$B$147:$AZ$152,4,FALSE)) -> 39972932.77 | EV56: =EI56*(1+HLOOKUP($FI56,'3.Índices_inflação'!$B$147:$AZ$152,5,FALSE)) -> -14817701.33 | EW56: =EJ56*(1+HLOOKUP($FI56,'3.Índices_inflação'!$B$147:$AZ$152,6,FALSE)) -> 38779199.62 | EZ56: 198261756.6 | FA56: 153171271.8 | FB56: 267929822.6 | FC56: 288798040.1 | FD56: 175340631 | FE56: 207142484.6 | FF56: 272722784.4 | FG56: 327343316.9 | FI56: IPCA
C57: Encargos sobre Empréstimos | D57: 9408246.6 | E57: 2811816.58 | F57: 17681320.45 | G57: 9081170.51 | H57: 18011648.39 | I57: 7711574.51 | J57: 10406342.11 | K57: 8241746.64 | L57: 7594319.42 | M57: 12898285.68 | N57: 8780583.22 | O57: 12476768.74 | CQ57: 23094211.33 | CR57: 17959425.66 | CS57: 37321287.65 | CT57: 30483278.07 | CU57: 36121740.97 | CV57: 34817574.81 | CW57: 14596040.96 | CX57: 26085814.6 | CY57: 19917560.99 | CZ57: 23490988.02 | DA57: 26494853.79 | DB57: 27360993.88 | DC57: 317743770.7 | DD57: 19915202.72 | DE57: 20339881.06 | DF57: 29107485.59 | DG57: 24200202.33 | DH57: 32651727.65 | DI57: 27037674.39 | DJ57: 19538525.52 | DK57: 50829252.8 | DL57: 7000719.13 | DM57: -8257825.7 | DN57: 31471668 | DO57: 20259425.66 | DP57: 274093939.1 | DQ57: 5041737.84 | DR57: 22696738.98 | DS57: 30106516.1 | DT57: 24624970.03 | DU57: 18742081.23 | DV57: 10788107.49 | DW57: 9570364.01 | DX57: 37540052.75 | DY57: 16452786.29 | DZ57: 12710688.13 | EA57: 27353061.73 | EB57: 12331153.02 | EC57: 227958257.6 | ED57: 38228384.89 | EE57: 22710736.84 | EF57: 56000589.71 | EG57: 22480610.39 | EH57: 14586148.29 | EI57: 11233604.49 | EJ57: 16209039.59 | EK57: 32326178.81 | EL57: 19221444.64 | EM57: 23778515.24 | EN57: 5699112.68 | EO57: 21914366.07 | EP57: 284388731.6 | EQ57: 35196333.41 | ER57: 17253044.02 | ES57: 24465682.23 | ET57: 17079748.76 | EU57: =EH57*(1+HLOOKUP($FI57,'3.Índices_inflação'!$B$147:$AZ$152,4,FALSE)) -> 15761194.13 | EV57: =EI57*(1+HLOOKUP($FI57,'3.Índices_inflação'!$B$147:$AZ$152,5,FALSE)) -> 12163997.58 | EW57: =EJ57*(1+HLOOKUP($FI57,'3.Índices_inflação'!$B$147:$AZ$152,6,FALSE)) -> 17548012.01 | EZ57: 317743770.7 | FA57: 274093939.1 | FB57: 227958257.6 | FC57: 284388731.6 | FD57: 296140910.5 | FE57: 222873755.6 | FF57: 287836856.1 | FG57: 242407629.6 | FI57: IPCA
C58: Proteção de Mananciais - obrigação contratual | D58: 0 | E58: 0 | F58: 0 | G58: 0 | H58: 0 | I58: 0 | J58: 0 | K58: 0 | L58: 0 | M58: 0 | N58: 0 | O58: 0 | CQ58: 0 | CR58: 0 | CS58: 0 | CT58: 0 | CU58: 0 | CV58: 0 | CW58: 0 | CX58: 0 | CY58: 0 | CZ58: 0 | DA58: 0 | DB58: 0 | DC58: 0 | DD58: 0 | DE58: 0 | DF58: 0 | DG58: 0 | DH58: 0 | DI58: 0 | DJ58: 0 | DK58: 0 | DL58: 0 | DM58: 0 | DN58: 0 | DO58: 0 | DP58: 0 | DQ58: 0 | DR58: 0 | DS58: 0 | DT58: 0 | DU58: 1022388.07 | DV58: 62979.3 | DW58: 370878.64 | DX58: 0 | DY58: 1935792.35 | DZ58: 445689.47 | EA58: 50087.39 | EB58: 0 | EC58: 3887815.22 | ED58: 0 | EE58: 1905882.55 | EF58: 166982.03 | EG58: 530242.7 | EH58: 0 | EI58: 1099238.21 | EJ58: 0 | EK58: 0 | EL58: 883881.7 | EM58: 0 | EN58: 0 | EO58: -14492.5 | EP58: 4571734.69 | EQ58: 0 | ER58: 0 | ES58: 0 | ET58: 0 | EU58: =EH58*(1+HLOOKUP($FI58,'3.Índices_inflação'!$B$147:$AZ$152,4,FALSE)) -> 0 | EV58: =EI58*(1+HLOOKUP($FI58,'3.Índices_inflação'!$B$147:$AZ$152,5,FALSE)) -> 1190279.66 | EW58: =EJ58*(1+HLOOKUP($FI58,'3.Índices_inflação'!$B$147:$AZ$152,6,FALSE)) -> 0 | EZ58: 0 | FA58: 0 | FB58: 3887815.22 | FC58: 4571734.69 | FD58: 0 | FE58: 1456246.01 | FF58: 6133914.7 | FG58: 2059668.86 | FI58: IPCA
C59: Depreciação e Amortização | D59: 20612899.38 | E59: 20575188.18 | F59: 25479544.38 | G59: 20676910.45 | H59: 20685125.71 | I59: 24360048.96 | J59: 20533346.23 | K59: 20607654.62 | L59: 24217112.08 | M59: 20922321.96 | N59: 20999837.62 | O59: 29257694.67 | CQ59: 49140911.45 | CR59: 44849057.55 | CS59: 46382858.53 | CT59: 46245586.59 | CU59: 46089092.75 | CV59: 45711157.59 | CW59: 46547971.72 | CX59: 46203272.76 | CY59: 47251897.35 | CZ59: 46694879.33 | DA59: 46747694.4 | DB59: 46772824.82 | DC59: 558637204.8 | DD59: 46701157.8 | DE59: 46701117.22 | DF59: 47077126.33 | DG59: 46864235.44 | DH59: 46473430.37 | DI59: 46704381.51 | DJ59: 46756902.51 | DK59: 47062338.5 | DL59: 46175809.21 | DM59: 46409594.5 | DN59: 47027614.29 | DO59: 48895761.37 | DP59: 562849469.1 | DQ59: 46852158.47 | DR59: 47262166.71 | DS59: 49675578.37 | DT59: 46871573.61 | DU59: 48148140.04 | DV59: 52078495.15 | DW59: 47758465.34 | DX59: 47545871.65 | DY59: 56559130.49 | DZ59: 47137915.55 | EA59: 47557021 | EB59: 57913726.07 | EC59: 595360242.5 | ED59: 48974864.9 | EE59: 48289432.75 | EF59: 60397674.01 | EG59: 48854520.93 | EH59: 48892166.94 | EI59: 60412463.11 | EJ59: 48699471.27 | EK59: 48308575.3 | EL59: 60686382.27 | EM59: 49868890.06 | EN59: 50237823.29 | EO59: 62942428.93 | EP59: 636564693.8 | EQ59: 51921985.91 | ER59: 52451308.77 | ES59: 60885508.84 | ET59: 52678153.21 | EU59: =AVERAGE(ER59,ES59,ET59) -> 55338323.61 | EV59: =AVERAGE(ES59,ET59,EU59) -> 56300661.89 | EW59: =AVERAGE(ET59,EU59,EV59) -> 54772379.57 | EZ59: 558637204.8 | FA59: 562849469.1 | FB59: 595360242.5 | FC59: 636564693.8 | FD59: 560948919.8 | FE59: 574217695.6 | FF59: 621234258.7 | FG59: 656392421.6 | FI59: IPCA
C60: Total - Custos de Capital | D60: 48319487.76 | E60: 44490122.51 | F60: 98982072.79 | G60: 45560251.99 | H60: 61462960.2 | I60: 89473046.88 | J60: 44544632.34 | K60: 51069562.45 | L60: 120307093.9 | M60: 17936923.1 | N60: 54522322.81 | O60: 213295624.4 | CQ60: 109164535.3 | CR60: 82818346.38 | CS60: 124249164.4 | CT60: 95062637.37 | CU60: 101904991.3 | CV60: 121613082 | CW60: 86582024.9 | CX60: 90625122.5 | CY60: 127468963 | CZ60: 108653688.1 | DA60: 98741775.36 | DB60: 117217611.8 | DC60: 1264101943 | DD60: 101252373.5 | DE60: 87051748.45 | DF60: 152493642.8 | DG60: 92932405.84 | DH60: 96488155.13 | DI60: 121581091.7 | DJ60: 87041313.91 | DK60: 103179944.8 | DL60: 127450907.4 | DM60: 84164698.14 | DN60: 99260335.01 | DO60: 149013777.9 | DP60: 1301910395 | DQ60: 96055582.24 | DR60: 94987870.62 | DS60: 144387325.5 | DT60: 96466352.52 | DU60: 88596249.68 | DV60: 93173764.08 | DW60: 89818797.42 | DX60: 107620138.8 | DY60: 156809731.7 | DZ60: 116528991.2 | EA60: 116600225.8 | EB60: 152572936.4 | EC60: 1353617966 | ED60: 123168308.8 | EE60: 100186039.4 | EF60: 170912115.1 | EG60: 104210736.1 | EH60: 104968769.4 | EI60: 104123865.4 | EJ60: 105213461.1 | EK60: 120184244.8 | EL60: 166457911.5 | EM60: 134993260 | EN60: 91752743.95 | EO60: 168202886.2 | EP60: 1494374342 | EQ60: 131742229.9 | ER60: 108748288.6 | ES60: =SUM(ES54:ES59) -> 165185353.8 | ET60: =SUM(ET54:ET59) -> 114807426.9 | EU60: 115932402.3 | EV60: 103632343.5 | EW60: 115954793.6 | EZ60: =SUM(EZ54:EZ59) -> 1264101943 | FA60: =SUM(FA54:FA59) -> 1301910395 | FB60: 1353617966 | FC60: 1494374342 | FD60: 1281547892 | FE60: 1266555605 | FF60: 1462915319 | FG60: 1537593885
C62: Doações | D62: 0 | E62: 0 | F62: 170000 | G62: 0 | H62: 0 | I62: 0 | J62: 80000 | K62: 0 | L62: 0 | M62: 180000 | N62: 620105.9 | O62: 2482000 | CQ62: 0 | CR62: 29769.64 | CS62: 500000 | CT62: 630000 | CU62: 100000 | CV62: 750000 | CW62: 662940.72 | CX62: 0 | CY62: 500000 | CZ62: 0 | DA62: 260000 | DB62: 2823131 | DC62: 6255841.36 | DD62: 0 | DE62: 0 | DF62: 500000 | DG62: 150000 | DH62: 160000 | DI62: 118000 | DJ62: 0 | DK62: 0 | DL62: 0 | DM62: 200000 | DN62: 0 | DO62: 1305000 | DP62: 2433000 | DQ62: 0 | DR62: 150000 | DS62: 0 | DT62: 0 | DU62: 0 | DV62: 0 | DW62: 0 | DX62: 200000 | DY62: 150000 | DZ62: 300000 | EA62: 10389.98 | EB62: 5215000 | EC62: 6025389.98 | ED62: 0 | EE62: 0 | EF62: 0 | EG62: 0 | EH62: 0 | EI62: 5051697.17 | EJ62: 23235.21 | EK62: 4755.86 | EL62: 3693.69 | EM62: -340.43 | EN62: 288112.5 | EO62: 7964432.58 | EP62: 13335586.58 | EQ62: 0 | ER62: 0 | ES62: 0 | ET62: 0 | EU62: =AVERAGE(ER62,ES62,ET62) -> 0 | EV62: =AVERAGE(ES62,ET62,EU62) -> 0 | EW62: =AVERAGE(ET62,EU62,EV62) -> 0 | EZ62: 6255841.36 | FA62: 2433000 | FB62: 6025389.98 | FC62: 13335586.58 | FD62: 4511131 | FE62: 1655000 | FF62: 10950322.36 | FG62: 8260654.2 | FI62: IPCA
C63: Descontos Concedidos | D63: 0 | E63: 0 | F63: 0 | G63: 0 | H63: 0 | I63: 0 | J63: 0 | K63: 0 | L63: 0 | M63: 0 | N63: 0 | O63: 0 | CQ63: 0 | CR63: 0 | CS63: 0 | CT63: 0 | CU63: 0 | CV63: 0 | CW63: 0 | CX63: 0 | CY63: 0 | CZ63: 0 | DA63: 0 | DB63: 0 | DC63: 0 | DD63: 0 | DE63: 0 | DF63: 0 | DG63: 0 | DH63: 0 | DI63: 0 | DJ63: 0 | DK63: 0 | DL63: 0 | DM63: 0 | DN63: 0 | DO63: 14354687.35 | DP63: 14354687.35 | DQ63: 0 | DR63: 0 | DS63: 0 | DT63: 0 | DU63: 0 | DV63: 0 | DW63: 0 | DX63: 0 | DY63: 0 | DZ63: 0 | EA63: 0 | EB63: 0 | EC63: 0 | ED63: 0 | EE63: 0 | EF63: 0 | EG63: 0 | EH63: 0 | EI63: 0 | EJ63: 0 | EK63: 0 | EL63: 0 | EM63: 0 | EN63: 0 | EO63: 0 | EP63: 0 | EQ63: 0 | ER63: 0 | ES63: 0 | ET63: 0 | EU63: =AVERAGE(ER63,ES63,ET63) -> 0 | EV63: =AVERAGE(ES63,ET63,EU63) -> 0 | EW63: =AVERAGE(ET63,EU63,EV63) -> 0 | EZ63: 0 | FA63: 14354687.35 | FB63: 0 | FC63: 0 | FD63: 0 | FE63: 14354687.35 | FF63: 0 | FG63: 0 | FI63: IPCA
C64: Repasse Tarifário a Municípios | D64: 4398568.64 | E64: 4020481.94 | F64: 4617163.87 | G64: 4588611.46 | H64: 4832062.31 | I64: 4735291.1 | J64: 4894418.68 | K64: 5028451.37 | L64: 5137268.19 | M64: 4931750.69 | N64: 4700660.67 | O64: 4799068.02 | CQ64: 6234789.1 | CR64: 2428510.57 | CS64: 9918710.55 | CT64: 6649831.5 | CU64: 6618371.73 | CV64: 6885238.02 | CW64: 6721541.68 | CX64: 7122437.15 | CY64: 7691707.31 | CZ64: 7788254.9 | DA64: 7732336.23 | DB64: 7276208.74 | DC64: 83067937.48 | DD64: 7290740.93 | DE64: 6816781.36 | DF64: 7028808.18 | DG64: 7846743.53 | DH64: 7701485.29 | DI64: 7272071.85 | DJ64: 7403053.98 | DK64: 7549868.5 | DL64: 8052565.96 | DM64: 7636018.54 | DN64: 8703684.34 | DO64: 8186480.96 | DP64: 91488303.42 | DQ64: 7646533.86 | DR64: 7142778.34 | DS64: 7690536.09 | DT64: 7944430.07 | DU64: 8003648.6 | DV64: 8347129.26 | DW64: 8043528.89 | DX64: 8235058.29 | DY64: 10588437.79 | DZ64: 7258931.61 | EA64: 12031064.2 | EB64: 12871421.84 | EC64: 105803498.8 | ED64: 11059224.22 | EE64: 10649667.04 | EF64: 11793775.43 | EG64: 10436053.07 | EH64: 9738057.09 | EI64: 10443008.1 | EJ64: 10273660.33 | EK64: 10149974.15 | EL64: 14366595.47 | EM64: 10075054.33 | EN64: 10924600.82 | EO64: 13521847.48 | EP64: 133431517.5 | EQ64: 13572775.95 | ER64: 13511822.66 | ES64: 13906953.69 | ET64: 12401504.4 | EU64: 13273426.92 | EV64: 13193961.67 | EW64: 12956297.66 | EZ64: 83067937.48 | FA64: 91488303.42 | FB64: 105803498.8 | FC64: 133431517.5 | FD64: 88970629.45 | FE64: 94947203.41 | FF64: 125378359 | FG64: 151854815.2 | FI64: IPCA
C65: Despesas com Prog. de Desligamento Voluntário | D65: 0 | E65: 0 | F65: 0 | G65: 0 | H65: 0 | I65: 0 | J65: 0 | K65: 0 | L65: 0 | M65: 0 | N65: 0 | O65: 0 | CQ65: 0 | CR65: 0 | CS65: 0 | CT65: 0 | CU65: 0 | CV65: 0 | CW65: 0 | CX65: 0 | CY65: 0 | CZ65: 0 | DA65: 0 | DB65: 0 | DC65: 0 | DD65: 0 | DE65: 0 | DF65: 0 | DG65: 0 | DH65: 0 | DI65: 0 | DJ65: 0 | DK65: 0 | DL65: 0 | DM65: 0 | DN65: 0 | DO65: 0 | DP65: 0 | DQ65: 0 | DR65: 0 | DS65: 0 | DT65: 0 | DU65: 0 | DV65: 0 | DW65: 0 | DX65: 0 | DY65: 0 | DZ65: 0 | EA65: 0 | EB65: 0 | EC65: 0 | ED65: 0 | EE65: 0 | EF65: 0 | EG65: 0 | EH65: 0 | EI65: 0 | EJ65: 0 | EK65: 0 | EL65: 0 | EM65: 0 | EN65: 0 | EO65: 0 | EP65: 0 | EQ65: 0 | ER65: 0 | ES65: 0 | ET65: 0 | EU65: 0 | EV65: 0 | EW65: 0 | EZ65: 0 | FA65: 0 | FB65: 0 | FC65: 0 | FD65: 0 | FE65: 0 | FF65: 0 | FG65: 0 | FI65: IPCA
C66: Indenizações e Despesas Judiciais | D66: 894481.48 | E66: 430229.07 | F66: 638488.97 | G66: 1103684.06 | H66: 126431.01 | I66: 301929.56 | J66: 675952.26 | K66: 544665.14 | L66: 748008.58 | M66: 446902.53 | N66: 419096.08 | O66: 556037.3 | CQ66: 1642915.03 | CR66: 1275532.57 | CS66: 14996580.46 | CT66: 2605606.74 | CU66: 1639507.29 | CV66: 3520775.82 | CW66: 26041514.78 | CX66: 5377422.28 | CY66: 3088688.66 | CZ66: 2331184.44 | DA66: 19523112.87 | DB66: -6988912.44 | DC66: 75053928.5 | DD66: 1768404.82 | DE66: 1343875.1 | DF66: 8508614.98 | DG66: 2326957.21 | DH66: 2922628.86 | DI66: 2732933.03 | DJ66: 3241308.78 | DK66: 3545629.09 | DL66: 1843927.43 | DM66: 3747584.77 | DN66: 3029769.9 | DO66: 38857.19 | DP66: 35050491.16 | DQ66: 1804744.83 | DR66: 3041953.14 | DS66: 2475390.13 | DT66: 2083038.44 | DU66: 11994641.42 | DV66: 3121283.12 | DW66: 2878503.34 | DX66: 5036911.31 | DY66: 2512695.84 | DZ66: 5203101.22 | EA66: 3521589.71 | EB66: 17802836.26 | EC66: 61476688.76 | ED66: 7025025.56 | EE66: 3593087.53 | EF66: 9779278.19 | EG66: 1584040.85 | EH66: 2812304.06 | EI66: 4803512.16 | EJ66: 8912830.8 | EK66: 3595057.93 | EL66: 6912202.92 | EM66: 11838628.08 | EN66: 2080301.51 | EO66: 2154613.9 | EP66: 65090883.49 | EQ66: 1434589.26 | ER66: 1661062.56 | ES66: 5518005.62 | ET66: 4151869.49 | EU66: 3776979.223 | EV66: 4482284.778 | EW66: 4137044.497 | EZ66: 75053928.5 | FA66: 35050491.16 | FB66: 61476688.76 | FC66: 65090883.49 | FD66: 46176218.59 | FE66: 39605322.8 | FF66: 72587213.49 | FG66: 51742639.77 | FI66: IPCA
C67: Multas e Juros | D67: 22392.73 | E67: 514278.65 | F67: 30725.34 | G67: 1355968.84 | H67: 50120.29 | I67: 388306.49 | J67: 335946.76 | K67: 36612.21 | L67: 32863.54 | M67: 361869.91 | N67: 2576757.81 | O67: 88172.77 | CQ67: 40296.96 | CR67: 19227.09 | CS67: 136963.13 | CT67: 18620.06 | CU67: 23480.5 | CV67: 66371.65 | CW67: 2444.66 | CX67: 108040.75 | CY67: 135201.39 | CZ67: 78205.23 | DA67: 30923.6 | DB67: 1125375.37 | DC67: 1785150.39 | DD67: 281633.4 | DE67: 24051.25 | DF67: 29932.13 | DG67: 13851.11 | DH67: 61781.75 | DI67: 310149.49 | DJ67: 31504.91 | DK67: 46911.83 | DL67: 59246.16 | DM67: 64282.81 | DN67: 150143.16 | DO67: 113281.58 | DP67: 1186769.58 | DQ67: 84896.43 | DR67: 182033.94 | DS67: 84509.17 | DT67: 355742.13 | DU67: 41808.07 | DV67: 68874.67 | DW67: 124825.97 | DX67: 175034.85 | DY67: 149567.91 | DZ67: 97634.46 | EA67: 44056.03 | EB67: 482733.33 | EC67: 1891716.96 | ED67: 75459.81 | EE67: 33827.17 | EF67: 290146.24 | EG67: 90936.13 | EH67: 10620.43 | EI67: 30970.2 | EJ67: 8074.4 | EK67: -25499.54 | EL67: 124824.66 | EM67: 99948.47 | EN67: 74220.68 | EO67: 11378.55 | EP67: 824907.2 | EQ67: 9693.47 | ER67: 5852.15 | ES67: 176559.36 | ET67: 20393.51 | EU67: 67601.67333 | EV67: 88184.84778 | EW67: 58726.67704 | EZ67: 1785150.39 | FA67: 1186769.58 | FB67: 1891716.96 | FC67: 824907.2 | FD67: 2230650.38 | FE67: 1376555.92 | FF67: 1489060.96 | FG67: 711884.5081 | FI67: IPCA
C68: Operações com Subsidiárias | D68: 2154706.25 | E68: 1891789.27 | F68: 731382.61 | G68: 657304.12 | H68: 835502.37 | I68: 1629902.52 | J68: 453743.59 | K68: 929447.85 | L68: 1108647.66 | M68: 1381076.73 | N68: 1124948.67 | O68: 2652576.73 | CQ68: 32125.02 | CR68: 378562.86 | CS68: 881789.4 | CT68: 739609.48 | CU68: 629251.16 | CV68: 755362.47 | CW68: 701506.13 | CX68: 811214.05 | CY68: 691254.41 | CZ68: 470979.67 | DA68: 533215.92 | DB68: 781676.85 | DC68: 7406547.42 | DD68: 491057.55 | DE68: 480527.44 | DF68: 234426.61 | DG68: 713593.98 | DH68: 1062409.14 | DI68: 879171.13 | DJ68: 1482287.13 | DK68: 1927708.86 | DL68: 1155711.49 | DM68: 1464841.64 | DN68: 1850699.26 | DO68: 1345321.41 | DP68: 13087755.64 | DQ68: 1178355.81 | DR68: 953746.54 | DS68: 1224736.19 | DT68: 903731.26 | DU68: 1218755.06 | DV68: 1893641.11 | DW68: 1686555.88 | DX68: 1541910.87 | DY68: 1540860.76 | DZ68: 899026.57 | EA68: 571516.33 | EB68: 1903085.4 | EC68: 15515921.78 | ED68: 706300.51 | EE68: 1006156.01 | EF68: 7272153.63 | EG68: 853091.93 | EH68: 878797.42 | EI68: 316334.65 | EJ68: 654032.16 | EK68: 884924.04 | EL68: 2292340.64 | EM68: -187868.9 | EN68: 1196629.22 | EO68: -3249019.78 | EP68: 12623871.53 | EQ68: -88662.85 | ER68: 723801.92 | ES68: 1467302.14 | ET68: 890403.63 | EU68: 1027169.23 | EV68: 1128291.667 | EW68: 1015288.176 | EZ68: 7406547.42 | FA68: 13087755.64 | FB68: 15515921.78 | FC68: 12623871.53 | FD68: 8631813.88 | FE68: 16803804.51 | FF68: 18143266.24 | FG68: 7100599.132 | FI68: IPCA
C69: Prog. educativos e outros não enquadrados no PPM | D69: 0 | E69: 0 | F69: 0 | G69: 0 | H69: 0 | I69: 0 | J69: 0 | K69: 0 | L69: 0 | M69: 0 | N69: 0 | O69: 0 | CQ69: 231138.31 | CR69: 171209.16 | CS69: 132334.94 | CT69: 272893.38 | CU69: 21945.22 | CV69: -728363.03 | CW69: 32450.3 | CX69: 36596.41 | CY69: 29053.34 | CZ69: 31189.29 | DA69: 18137.65 | DB69: 13917.79 | DC69: 262502.76 | DD69: 14044.67 | DE69: 1159.79 | DF69: 16484.21 | DG69: 14965.92 | DH69: 27610.28 | DI69: 18395.66 | DJ69: 15763.33 | DK69: 12001.01 | DL69: 21463.27 | DM69: 20952.74 | DN69: 15262.27 | DO69: 44831.07 | DP69: 222934.22 | DQ69: 17073.98 | DR69: 9326.85 | DS69: 13782.41 | DT69: 21077.51 | DU69: 18461.03 | DV69: 19329.33 | DW69: 35452.15 | DX69: 15842.67 | DY69: 13377 | DZ69: 13534.46 | EA69: 25554.82 | EB69: 12905.14 | EC69: 215717.35 | ED69: 295.83 | EE69: 0 | EF69: 627.59 | EG69: 0 | EH69: 62346.55 | EI69: 3119.75 | EJ69: 24950.98 | EK69: 6409.09 | EL69: 842.56 | EM69: 210 | EN69: 12851.63 | EO69: 46577.28 | EP69: 158231.26 | EQ69: 0 | ER69: 6932.17 | ES69: 9649.96 | ET69: 3712.5 | EU69: 6764.876667 | EV69: 6709.112222 | EW69: 5728.82963 | EZ69: 262502.76 | FA69: 222934.22 | FB69: 215717.35 | FC69: 158231.26 | FD69: 237318.34 | FE69: 249013.62 | FF69: 172554.79 | FG69: 106388.0085 | FI69: IPCA
C70: Outros não associados aos serv. de água e esgoto | D70: 862069.11 | E70: 1400302.15 | F70: 1200436.36 | G70: 1403970.93 | H70: 1851797.55 | I70: 2881130.05 | J70: 5830685.6 | K70: 475110.56 | L70: 360232.43 | M70: 311150.13 | N70: 307203.59 | O70: 474215.97 | CQ70: 530016.38 | CR70: 466914.83 | CS70: 3055862.14 | CT70: 4286225.22 | CU70: 2043338.54 | CV70: 1077136.93 | CW70: 1914143.52 | CX70: 923743.96 | CY70: 1368476.01 | CZ70: 711761.53 | DA70: 3716114.04 | DB70: 1214673.04 | DC70: 21308406.14 | DD70: 830058.39 | DE70: 508322.44 | DF70: 308440.45 | DG70: 1211317.63 | DH70: 727348.94 | DI70: 5317987.22 | DJ70: 1594311.35 | DK70: 241808.86 | DL70: 307424.37 | DM70: 279519.17 | DN70: 183661.37 | DO70: 3039093.22 | DP70: 14549293.41 | DQ70: 790670.79 | DR70: 77604.71 | DS70: 132511.17 | DT70: 111262.82 | DU70: 120221.49 | DV70: 174313.14 | DW70: 390187.42 | DX70: 276424.97 | DY70: 368348.38 | DZ70: 220989.84 | EA70: 808076.2 | EB70: 1627938.65 | EC70: 5098549.58 | ED70: 436946.79 | EE70: 702928.18 | EF70: 2126341.82 | EG70: 570310.24 | EH70: 633215.73 | EI70: 2020804.39 | EJ70: 1199731.61 | EK70: 817746.19 | EL70: 370653.29 | EM70: 440080.32 | EN70: 783879.43 | EO70: 995722.85 | EP70: 11098360.84 | EQ70: 257287.44 | ER70: 170755.37 | ES70: 136450.19 | ET70: 317453.31 | EU70: 208219.6233 | EV70: 220707.7078 | EW70: 248793.547 | EZ70: 21308406.14 | FA70: 14549293.41 | FB70: 5098549.58 | FC70: 11098360.84 | FD70: 18432555 | FE70: 5848278.53 | FF70: 10992056.8 | FG70: 4967749.268 | FI70: IPCA
C71: Total - Glosas | D71: 8332218.21 | E71: 8257081.08 | F71: 7388197.15 | G71: 9109539.41 | H71: 7695913.53 | I71: 9936559.72 | J71: 12270746.89 | K71: 7014287.13 | L71: 7387020.4 | M71: 7612749.99 | N71: 9748772.72 | O71: 11052070.79 | CQ71: 8711280.8 | CR71: 4769726.72 | CS71: 29622240.62 | CT71: 15202786.38 | CU71: 11075894.44 | CV71: 12326521.86 | CW71: 36076541.79 | CX71: 14379454.6 | CY71: 13504381.12 | CZ71: 11411575.06 | DA71: 31813840.31 | DB71: 6246070.35 | DC71: 195140314 | DD71: 10675939.76 | DE71: 9174717.38 | DF71: 16626706.56 | DG71: 12277429.38 | DH71: 12663264.26 | DI71: 16648708.38 | DJ71: 13768229.48 | DK71: 13323928.15 | DL71: 11440338.68 | DM71: 13413199.67 | DN71: 13933220.3 | DO71: 28427552.78 | DP71: 172373234.8 | DQ71: 11522275.7 | DR71: 11557443.52 | DS71: 11621465.16 | DT71: 11419282.23 | DU71: 21397535.67 | DV71: 13624570.63 | DW71: 13159053.65 | DX71: 15481182.96 | DY71: 15323287.68 | DZ71: 13993218.16 | EA71: 17012247.27 | EB71: 39915920.62 | EC71: 196027483.2 | ED71: 19303252.72 | EE71: 15985665.93 | EF71: 31262322.9 | EG71: 13534432.22 | EH71: 14135341.28 | EI71: 22669446.42 | EJ71: 21096515.49 | EK71: 15433367.72 | EL71: 24071153.23 | EM71: 22265711.87 | EN71: 15360595.79 | EO71: 21445552.86 | EP71: 236563358.4 | EQ71: 15185683.27 | ER71: 16080226.83 | ES71: =SUM(ES62:ES70) -> 21214920.96 | ET71: =SUM(ET62:ET70) -> 17785336.84 | EU71: 18360161.54 | EV71: 19120139.78 | EW71: 18421879.39 | EZ71: =SUM(EZ62:EZ70) -> 195140314 | FA71: =SUM(FA62:FA70) -> 172373234.8 | FB71: 196027483.3 | FC71: 236563358.4 | FD71: 169190316.6 | FE71: 174839866.1 | FF71: 239712833.7 | FG71: 224744730.1
EC72: 0 | EP72: 0
C73: Provisões | D73: 4607286.83 | E73: 3777787.56 | F73: 2999458.56 | G73: 4082028.43 | H73: 3812724.2 | I73: 4782538.89 | J73: 5496953.16 | K73: 2224640.77 | L73: 2416711.21 | M73: -756784.25 | N73: 3986403.78 | O73: -298632151.2 | CQ73: 12503243.59 | CR73: 9313715.17 | CS73: 2349127.47 | CT73: 12486688.05 | CU73: 9554087.54 | CV73: -10615387.59 | CW73: -9527541.1 | CX73: 13443226.79 | CY73: 28467912.53 | CZ73: 3976375.51 | DA73: -7229725.13 | DB73: 12305707.49 | DC73: 77027430.32 | DD73: 8435584.43 | DE73: 11698771.2 | DF73: 12124302.75 | DG73: 13434423.78 | DH73: 14281899.07 | DI73: 17327646.47 | DJ73: 13598449.16 | DK73: 12472451.82 | DL73: -11789451.86 | DM73: 8981267.41 | DN73: 6164393.88 | DO73: 14806615.03 | DP73: 121536353.1 | DQ73: 12080965 | DR73: 9424314.68 | DS73: 5310906.97 | DT73: 10956358.4 | DU73: 15718274.42 | DV73: 50781636.8 | DW73: 11343176.72 | DX73: 18052874.22 | DY73: 25265478.83 | DZ73: 17487177.8 | EA73: 15229428.48 | EB73: 1599118.93 | EC73: 193249711.3 | ED73: 13840178.15 | EE73: 14511172.46 | EF73: 8544667.89 | EG73: 21759181.37 | EH73: 7901200.87 | EI73: 95491534.42 | EJ73: 13612043.02 | EK73: 21414898.35 | EL73: 9134232.92 | EM73: 16516883.72 | EN73: 29501957.04 | EO73: 9272055.63 | EP73: 261500005.8 | EQ73: 13663152.88 | ER73: 16414717.63 | ES73: 20903367.12 | ET73: 15608646.72 | EU73: =AVERAGE(ER73,ES73,ET73) -> 17642243.82 | EV73: =AVERAGE(ES73,ET73,EU73) -> 18051419.22 | EW73: =AVERAGE(ET73,EU73,EV73) -> 17100769.92 | EZ73: 77027430.32 | FA73: 121536353.1 | FB73: 193249711.3 | FC73: 261500005.8 | FD73: 141864574.1 | FE73: 146250909.3 | FF73: 253294056.4 | FG73: =SUM(EK73:EO73,EQ73:EW73) -> 205224345 | FI73: IPCA
C74: Cobrança pelo Uso de Recursos Hídricos | D74: 0 | E74: 0 | F74: 0 | G74: 0 | H74: 0 | I74: 0 | J74: 0 | K74: 3512605.92 | L74: -507289.83 | M74: -499564.11 | N74: 1372201.81 | O74: 1375896.73 | CQ74: 2000761.32 | CR74: -910752.47 | CS74: -908605.72 | CT74: 1670343.15 | CU74: -914519.99 | CV74: -984057.98 | CW74: 1522663.09 | CX74: -874099.11 | CY74: -797220.27 | CZ74: 1676039.72 | DA74: -801732.45 | DB74: -804379.52 | DC74: -125560.23 | DD74: 3712135.21 | DE74: -1006035.54 | DF74: -969846.79 | DG74: 3813055.04 | DH74: -942758.99 | DI74: 340606.44 | DJ74: 307399.81 | DK74: -900552.24 | DL74: 1616828.68 | DM74: -913032.72 | DN74: -908668.32 | DO74: 1816240.02 | DP74: 5965370.6 | DQ74: -1068315.35 | DR74: -1071653.71 | DS74: 1477708.19 | DT74: -1062700.93 | DU74: -827340.9 | DV74: 2274192.29 | DW74: -1690666.33 | DX74: -863788.19 | DY74: 2263092.6 | DZ74: -838184.44 | EA74: -863896.6 | EB74: -964373.75 | EC74: -3235927.12 | ED74: 2025617.84 | EE74: -1110124.77 | EF74: 1952440.24 | EG74: -1023106.05 | EH74: -1114054.19 | EI74: -1071699.52 | EJ74: 2801739.07 | EK74: -732120.99 | EL74: 4059283.79 | EM74: -734208.4 | EN74: -730521.38 | EO74: 3883513.63 | EP74: 8206759.27 | EQ74: -1067511.05 | ER74: -1069461.69 | ES74: 2998190.5 | ET74: -1070467.32 | EU74: =EH74*(1+HLOOKUP($FI74,'3.Índices_inflação'!$B$147:$AZ$152,4,FALSE)) -> -1203801.306 | EV74: =EI74*(1+HLOOKUP($FI74,'3.Índices_inflação'!$B$147:$AZ$152,5,FALSE)) -> -1160460.152 | EW74: =EJ74*(1+HLOOKUP($FI74,'3.Índices_inflação'!$B$147:$AZ$152,6,FALSE)) -> 3033180.996 | EZ74: -125560.23 | FA74: 5965370.6 | FB74: -3235927.12 | FC74: 8206759.27 | FD74: 3653163.55 | FE74: -1257961.32 | FF74: 1193662.24 | FG74: 6205616.628 | FI74: IPCA
C75: Baixa de Ativos e Materiais | D75: 98893.55 | E75: -16442.2 | F75: 354903.33 | G75: 33433.93 | H75: 124005.22 | I75: 630344.54 | J75: 228301.92 | K75: 16711.27 | L75: 1900682.59 | M75: 88571.65 | N75: 22310.42 | O75: 1268559.68 | CQ75: 30689.58 | CR75: -57562.51 | CS75: 231097.85 | CT75: 562020.46 | CU75: 634274.92 | CV75: 416795.98 | CW75: 347679.02 | CX75: 101061.69 | CY75: 94481.12 | CZ75: -568871.65 | DA75: 12654.07 | DB75: 43723.18 | DC75: 1848043.71 | DD75: 358019.62 | DE75: 215531.7 | DF75: 200196.8 | DG75: 173016.73 | DH75: 41545.03 | DI75: 17347.99 | DJ75: 114443.79 | DK75: 20636.58 | DL75: 426088.21 | DM75: 37343.22 | DN75: 114129.57 | DO75: 64429.37 | DP75: 1782728.61 | DQ75: 31635.74 | DR75: 514994.06 | DS75: -50520.59 | DT75: 30280.14 | DU75: 21138.12 | DV75: 27437.4 | DW75: 80444.9 | DX75: 42256.09 | DY75: 200006.12 | DZ75: 278991.65 | EA75: 85526.47 | EB75: 225055.02 | EC75: 1487245.12 | ED75: 37815.73 | EE75: 21675.15 | EF75: 124050.04 | EG75: -93093.35 | EH75: 1923398.71 | EI75: 26587.78 | EJ75: -16096.85 | EK75: 11468.29 | EL75: 327721.33 | EM75: 91895.53 | EN75: -37327.79 | EO75: 11711007.08 | EP75: 14129101.65 | EQ75: 12834.58 | ER75: 183018.69 | ES75: 30269.92 | ET75: 7512.8 | EU75: =EH75*(1+HLOOKUP($FI75,'3.Índices_inflação'!$B$147:$AZ$152,4,FALSE)) -> 2078345.829 | EV75: =EI75*(1+HLOOKUP($FI75,'3.Índices_inflação'!$B$147:$AZ$152,5,FALSE)) -> 28789.8414 | EW75: =EJ75*(1+HLOOKUP($FI75,'3.Índices_inflação'!$B$147:$AZ$152,6,FALSE)) -> -17426.55483 | EZ75: =DC75 -> 1848043.71 | FA75: =DP75 -> 1782728.61 | FB75: =EC75 -> 1487245.12 | FC75: =EP75 -> 14129101.65 | FD75: =SUM(CX75:DB75,DD75:DJ75) -> 803150.07 | FE75: =SUM(DK75:DO75,DQ75:DW75) -> 1318036.72 | FF75: =SUM(DX75:EB75,ED75:EJ75) -> 2856172.56 | FG75: 14428109.55 | FI75: IPCA
C76: Ajustes de Inventário e Outros | D76: -51340.38 | E76: -130916.14 | F76: -161871.2 | G76: -47144.96 | H76: -36736.87 | I76: -142862.77 | J76: -48594.52 | K76: -17544.04 | L76: -13445.3 | M76: -10928.34 | N76: -11445.17 | O76: -68066.89 | CQ76: -42236.61 | CR76: -37487.77 | CS76: -73515.02 | CT76: -55308.91 | CU76: -260460.82 | CV76: -87041.53 | CW76: -205458.12 | CX76: -154049.52 | CY76: -162878.81 | CZ76: -88703.35 | DA76: -140831.44 | DB76: -194117.35 | DC76: -1502089.25 | DD76: -121087.37 | DE76: -110568.24 | DF76: -356374.45 | DG76: -76793.54 | DH76: -205441.89 | DI76: -178062.99 | DJ76: -185490.04 | DK76: -248424.4 | DL76: -190613.86 | DM76: -429193.3 | DN76: -125848.22 | DO76: -166744.97 | DP76: -2394643.27 | DQ76: -160394.03 | DR76: -322777.5 | DS76: -195888.41 | DT76: 22449.03 | DU76: -139176.64 | DV76: -65745.24 | DW76: -258207.39 | DX76: -288459.86 | DY76: -175746.64 | DZ76: -64146.58 | EA76: -88943.97 | EB76: -193556.72 | EC76: -1930593.95 | ED76: -173731.18 | EE76: -81355.9 | EF76: -69168.94 | EG76: -48750.68 | EH76: -30418.4 | EI76: -154846.78 | EJ76: -233665.8 | EK76: -93283.87 | EL76: -123312.77 | EM76: -159632.23 | EN76: -232672.79 | EO76: -87820.15 | EP76: -1488659.49 | EQ76: -61147.06 | ER76: -47080.36 | ES76: -108013.5 | ET76: -134561.37 | EU76: =EH76*(1+HLOOKUP($FI76,'3.Índices_inflação'!$B$147:$AZ$152,4,FALSE)) -> -32868.87656 | EV76: =EI76*(1+HLOOKUP($FI76,'3.Índices_inflação'!$B$147:$AZ$152,5,FALSE)) -> -167671.5483 | EW76: =EJ76*(1+HLOOKUP($FI76,'3.Índices_inflação'!$B$147:$AZ$152,6,FALSE)) -> -252968.1195 | EZ76: -1502089.25 | FA76: -2394643.27 | FB76: -1930593.95 | FC76: -1488659.49 | FD76: -1974398.99 | FE76: -2280564.93 | FF76: -1602791.45 | FG76: -1501032.644 | FI76: IPCA
C77: Receita/Custos de Construção | D77: 0 | E77: 0 | F77: -4988674.8 | G77: 0 | H77: 0 | I77: -7585195.62 | J77: 0 | K77: 0 | L77: -6195263.64 | M77: 0 | N77: 0 | O77: -3133142.71 | CQ77: 0 | CR77: 0 | CS77: 0 | CT77: 0 | CU77: 0 | CV77: 0 | CW77: 0 | CX77: 28864.55 | CY77: 28864.6 | CZ77: 28864.58 | DA77: 28864.57 | DB77: 28864.63 | DC77: 144322.93 | DD77: 28864.59 | DE77: 28864.58 | DF77: 28864.58 | DG77: 28864.58 | DH77: 28864.59 | DI77: 28864.58 | DJ77: 28864.59 | DK77: 28969.17 | DL77: 29073.86 | DM77: 28759.95 | DN77: 29073.84 | DO77: 29073.88 | DP77: 347002.79 | DQ77: 28969.22 | DR77: 28969.21 | DS77: 28969.21 | DT77: 28969.21 | DU77: 28969.22 | DV77: 28969.21 | DW77: 28969.22 | DX77: 28969.17 | DY77: 28969.23 | DZ77: 28969.21 | EA77: 28969.21 | EB77: 28969.25 | EC77: 347630.57 | ED77: 28969.22 | EE77: 28969.21 | EF77: 28969.21 | EG77: 28969.21 | EH77: 28969.22 | EI77: 28969.21 | EJ77: 28969.22 | EK77: 28969.17 | EL77: 28969.23 | EM77: 28969.21 | EN77: 28969.21 | EO77: 28969.25 | EP77: 347630.57 | EQ77: 28969.22 | ER77: 28969.21 | ES77: 28969.21 | ET77: 28969.21 | EU77: =AVERAGE(ER77,ES77,ET77) -> 28969.21 | EV77: =AVERAGE(ES77,ET77,EU77) -> 28969.21 | EW77: =AVERAGE(ET77,EU77,EV77) -> 28969.21 | EZ77: 144322.93 | FA77: 347002.79 | FB77: 347630.57 | FC77: 347630.57 | FD77: 346375.02 | FE77: 347735.2 | FF77: 347630.57 | FG77: 347630.55 | FI77: IPCA
C78: Margem de Receita de Construção | D78: 0 | E78: 0 | F78: 0 | G78: 0 | H78: 0 | I78: 0 | J78: 0 | K78: 0 | L78: 0 | M78: 0 | N78: 0 | O78: 0 | CQ78: 389699.24 | CR78: 391139.8 | CS78: 691437.18 | CT78: 555893.16 | CU78: 413366.14 | CV78: 407289.94 | CW78: 414235.82 | CX78: 386476.86 | CY78: 389780.75 | CZ78: 390835.61 | DA78: 391324.46 | DB78: 392760.59 | DC78: 5214239.55 | DD78: 392760.36 | DE78: 392759.84 | DF78: 392760.39 | DG78: 392760.57 | DH78: 392760.56 | DI78: 401577.89 | DJ78: 401722.65 | DK78: 403550.96 | DL78: 404781.76 | DM78: 405095.53 | DN78: 405317.31 | DO78: 406048.85 | DP78: 4791896.67 | DQ78: 406482.69 | DR78: 406483.14 | DS78: 406482.71 | DT78: 406482.89 | DU78: 407138.03 | DV78: 409460.09 | DW78: 409460.24 | DX78: 409470.12 | DY78: 410313.65 | DZ78: 410313.52 | EA78: 410804.48 | EB78: 411736 | EC78: 4904627.56 | ED78: 411735.91 | EE78: 411736.31 | EF78: 411887.36 | EG78: 411903.32 | EH78: 408330.24 | EI78: 408228.08 | EJ78: 405631.06 | EK78: 401896.47 | EL78: 401067.83 | EM78: 401095.48 | EN78: 400802.05 | EO78: 404653.32 | EP78: 4878967.43 | EQ78: 404653.29 | ER78: 404701.06 | ES78: 404898.95 | ET78: 404905.4 | EU78: 404835.1367 | EV78: 404879.8289 | EW78: 404873.4552 | EZ78: 5214239.55 | FA78: 4791896.67 | FB78: 4904627.56 | FC78: 4878967.43 | FD78: 4718280.53 | FE78: 4876784.2 | FF78: 4922090.05 | FG78: 4843262.271 | FI78: IPCA
C79: Reversão de Juros sobre Capital Próprio | D79: 0 | E79: 0 | F79: 0 | G79: 0 | H79: 0 | I79: 0 | J79: 0 | K79: 0 | L79: 0 | M79: 0 | N79: 0 | O79: -224212758.1 | CQ79: 0 | CR79: 0 | CS79: 0 | CT79: 0 | CU79: 0 | CV79: 0 | CW79: 0 | CX79: 0 | CY79: 0 | CZ79: 0 | DA79: 0 | DB79: -154243759 | DC79: -154243759 | DD79: 0 | DE79: 0 | DF79: 0 | DG79: 0 | DH79: 0 | DI79: 0 | DJ79: 0 | DK79: 0 | DL79: 0 | DM79: 0 | DN79: 0 | DO79: -274882620.2 | DP79: -274882620.2 | DQ79: 0 | DR79: 0 | DS79: 0 | DT79: 0 | DU79: 0 | DV79: 0 | DW79: 0 | DX79: 0 | DY79: 0 | DZ79: 0 | EA79: 0 | EB79: -210586927.5 | EC79: -210586927.5 | ED79: 0 | EE79: 0 | EF79: 0 | EG79: 0 | EH79: 0 | EI79: 0 | EJ79: 0 | EK79: 0 | EL79: 0 | EM79: 0 | EN79: 0 | EO79: -228026391.8 | EP79: -228026391.8 | EQ79: 0 | ER79: 0 | ES79: 0 | ET79: 0 | EU79: =EH79*(1+HLOOKUP($FI79,'3.Índices_inflação'!$B$147:$AZ$152,4,FALSE)) -> 0 | EV79: =EI79*(1+HLOOKUP($FI79,'3.Índices_inflação'!$B$147:$AZ$152,5,FALSE)) -> 0 | EW79: =EJ79*(1+HLOOKUP($FI79,'3.Índices_inflação'!$B$147:$AZ$152,6,FALSE)) -> 0 | EZ79: -154243759 | FA79: -274882620.2 | FB79: -210586927.5 | FC79: -228026391.8 | FD79: -154243759 | FE79: -274882620.2 | FF79: -210586927.5 | FG79: -228026391.8 | FI79: IPCA
C80: Capitalização e ganho de ativos financeiros | D80: 0 | E80: 0 | F80: -4284574.49 | G80: 0 | H80: 0 | I80: -3842770.56 | J80: 0 | K80: 0 | L80: -3858779.09 | M80: 0 | N80: 0 | O80: -3337843.72 | CQ80: -1934193.7 | CR80: -1769514.2 | CS80: -1965119.63 | CT80: -1876705 | CU80: -19215326.01 | CV80: -1758111.53 | CW80: -2686626.44 | CX80: -2269886.16 | CY80: -1632818.89 | CZ80: -1900955.03 | DA80: -1891386.88 | DB80: -1964865.58 | DC80: -40865509.05 | DD80: -2173216.75 | DE80: -2035738.85 | DF80: -2115589.97 | DG80: -2171318.95 | DH80: -2107684.26 | DI80: -2455146.48 | DJ80: -2334868.6 | DK80: -2355056.26 | DL80: -15800646.61 | DM80: -2199284.99 | DN80: -2301445.38 | DO80: -2664605.34 | DP80: -40714602.44 | DQ80: -2228980.57 | DR80: -2335552.16 | DS80: -2325863.22 | DT80: -2490950.31 | DU80: -3234451.64 | DV80: -2400527.39 | DW80: -2119382.31 | DX80: -2368092.95 | DY80: -3749237.78 | DZ80: -3002193.02 | EA80: -2864028.74 | EB80: -3046620.25 | EC80: -32165880.34 | ED80: -3546134.82 | EE80: -2849735.78 | EF80: -2958625.97 | EG80: -2964992.02 | EH80: -2936276.48 | EI80: -3273159.12 | EJ80: -2963659.38 | EK80: -3554075.45 | EL80: -3019390.97 | EM80: -3138599.83 | EN80: -3202757.68 | EO80: -3299561.45 | EP80: -37706968.95 | EQ80: -7127756.74 | ER80: -3658581.08 | ES80: -3538512.39 | ET80: -3492511.58 | EU80: =EH80*(1+HLOOKUP($FI80,'3.Índices_inflação'!$B$147:$AZ$152,4,FALSE)) -> -3172820.042 | EV80: =EI80*(1+HLOOKUP($FI80,'3.Índices_inflação'!$B$147:$AZ$152,5,FALSE)) -> -3544249.725 | EW80: =EJ80*(1+HLOOKUP($FI80,'3.Índices_inflação'!$B$147:$AZ$152,6,FALSE)) -> -3208476.98 | EZ80: -40865509.05 | FA80: -40714602.44 | FB80: -32165880.34 | FC80: -37706968.95 | FD80: -25053476.4 | FE80: -42456746.18 | FF80: -36522756.31 | FG80: -43957293.92 | FI80: IPCA
D81: 0 | E81: 0 | F81: 0 | G81: 0 | H81: 0 | I81: 0 | J81: 0 | K81: 0 | L81: 0 | M81: 0 | N81: 0 | O81: 0 | CQ81: 0 | CR81: 0 | CS81: 0 | CT81: 0 | CU81: 0 | CV81: 0 | CW81: 0 | CX81: 0 | CY81: 0 | CZ81: 0 | DA81: 0 | DB81: 0 | DC81: 0 | DD81: 0 | DE81: 0 | DF81: 0 | DG81: 0 | DH81: 0 | DI81: 0 | DJ81: 0 | DK81: 0 | DL81: 0 | DM81: 0 | DN81: 0 | DO81: 0 | DP81: 0 | DQ81: 0 | DR81: 0 | DS81: 0 | DT81: 0 | DU81: 0 | DV81: 0 | DW81: 0 | DX81: 0 | DY81: 0 | DZ81: 0 | EA81: 0 | EB81: 0 | EC81: 0 | ED81: 0 | EE81: 0 | EF81: 0 | EG81: 0 | EH81: 0 | EI81: 0 | EJ81: 0 | EK81: 0 | EL81: 0 | EM81: 0 | EN81: 0 | EO81: 0 | EP81: 0 | EQ81: 0 | ER81: 0 | ES81: 0 | ET81: 0
C82: Total - Contas sem efeito nas análises tarifárias | D82: 4654840 | E82: 3630429.22 | F82: -6080758.6 | G82: 4068317.4 | H82: 3899992.55 | I82: -6157945.52 | J82: 5676660.56 | K82: 5736413.92 | L82: -6257384.06 | M82: -1178705.05 | N82: 5369470.84 | O82: -526739506.3 | CQ82: 12947963.42 | CR82: 6929538.02 | CS82: 324422.13 | CT82: 13342930.91 | CU82: -9788578.22 | CV82: -12620512.71 | CW82: -10135047.73 | CX82: 10661595.1 | CY82: 26388121.03 | CZ82: 3513585.39 | DA82: -9630832.8 | DB82: -144436065.6 | DC82: -112502881.1 | DD82: 10633060.09 | DE82: 9183584.69 | DF82: 9304313.31 | DG82: 15594008.21 | DH82: 11489184.11 | DI82: 15482833.9 | DJ82: 11930521.36 | DK82: 9421575.63 | DL82: -25303939.82 | DM82: 5910955.1 | DN82: 3376952.68 | DO82: -260591563.4 | DP82: -183568514.1 | DQ82: 9090362.7 | DR82: 6644777.72 | DS82: 4651794.86 | DT82: 7890888.43 | DU82: 11974550.61 | DV82: 51055423.16 | DW82: 7793795.05 | DX82: 15013228.6 | DY82: 24242876.01 | DZ82: 14300928.14 | EA82: 11937859.33 | EB82: -212526599 | EC82: -47930114.43 | ED82: 12624450.85 | EE82: 10932336.68 | EF82: 8034219.83 | EG82: 18070111.8 | EH82: 6181149.97 | EI82: 91455614.07 | EJ82: 13634960.34 | EK82: 17477751.97 | EL82: 10808571.36 | EM82: 13006403.48 | EN82: 25728448.66 | EO82: -206113574.5 | EP82: 21840444.49 | EQ82: 5853195.12 | ER82: 12256283.46 | ES82: =SUM(ES73:ES80) -> 20719169.81 | ET82: =SUM(ET73:ET80) -> 11352493.86 | EU82: 15744903.77 | EV82: 13641676.68 | EW82: 17088921.93 | EZ82: =SUM(EZ73:EZ80) -> -112502881.1 | FA82: =SUM(FA73:FA80) -> -183568514.1 | FB82: =SUM(FB73:FB80) -> -47930114.43 | FC82: 21840444.49 | FD82: -29886091.21 | FE82: -168084427.3 | FF82: 13901136.58 | FG82: -42435754.42
EC83: 0
EC84: 0
C85: Resultado do período | D85: =D11+D23+D42+D47+D52+D60+D71+D82 -> -30477297.68 | E85: =E11+E23+E42+E47+E52+E60+E71+E82 -> -37533086.22 | F85: -1799533.36 | G85: -41708081.44 | H85: -44037084.44 | I85: 21413658.44 | J85: -33646132.91 | K85: -39502965.3 | L85: 11390549.13 | M85: -48541246.3 | N85: -13469018.42 | O85: -419214304 | CQ85: =CQ11+CQ23+CQ42+CQ47+CQ52+CQ60+CQ71+CQ82 -> -64624599.76 | CR85: -35303043.02 | CS85: -17122759.25 | CT85: -33361246.24 | CU85: -34605977.47 | CV85: -5657231.14 | CW85: -44392642.36 | CX85: -32336729.94 | CY85: -34072100.44 | CZ85: -68329059.6 | DA85: -45110550.48 | DB85: -145522116.4 | DC85: -560438056.1 | DD85: -60859166.6 | DE85: -35092705 | DF85: 8445757.79 | DG85: -38497376.83 | DH85: -32725395.92 | DI85: 12453319.48 | DJ85: -35350291.5 | DK85: -9199840.95 | DL85: -27220157.24 | DM85: -80087362.93 | DN85: -35048828.93 | DO85: -245518204.5 | DP85: -578700253.1 | DQ85: -76773604.71 | DR85: -43755514.7 | DS85: -13217441.48 | DT85: -43666421.95 | DU85: -35968575.38 | DV85: -18461457.13 | DW85: -55231337.9 | DX85: -39229807.25 | DY85: -46702029.87 | DZ85: -99351798.48 | EA85: -73492289.09 | EB85: -208523576.8 | EC85: =EC11+EC23+EC42+EC47+EC52+EC60+EC71+EC82 -> -754373854.7 | ED85: -63090441.79 | EE85: -47587714.18 | EF85: -4691469.49 | EG85: -56906566.2 | EH85: -71015168.37 | EI85: 25472921.6 | EJ85: -70811591.47 | EK85: -69936228.01 | EL85: -36671093.28 | EM85: -109014634.6 | EN85: -62348960.34 | EO85: -249876229.2 | EP85: -816477175.4 | EQ85: -79696064.02 | ER85: -69051887.33 | ES85: -6195323.53 | ET85: -84744266.52 | EU85: -35651937.93 | EV85: -65595322.9 | EW85: -50839878.7 | EZ85: =EZ11+EZ23+EZ42+EZ47+EZ52+EZ60+EZ71+EZ82 -> -560438056.1 | FA85: -578700253.1 | FB85: -754373854.7 | FC85: -816477175.4 | FD85: -506996415.4 | FE85: -684148747.8 | FF85: -755929531.4 | FG85: -919621826.4
C86: Check | D86: 0 | E86: 0 | F86: 0 | G86: 0 | H86: 0 | I86: 0 | J86: 0 | K86: 0 | L86: 0 | M86: 0 | N86: 0 | O86: 0 | CQ86: 0 | CR86: 0 | CS86: 0 | CT86: 0 | CU86: 0 | CV86: 0 | CW86: 0 | CX86: 0 | CY86: 0 | CZ86: 0 | DA86: 0 | DB86: 0 | DC86: 0 | DD86: 0 | DE86: 0 | DF86: 0 | DG86: 0 | DH86: 0 | DI86: 0 | DJ86: 0 | DK86: 0 | DL86: 0 | DM86: 0 | DN86: 0 | DO86: 0 | DP86: 0 | DQ86: 0 | DR86: 0 | DS86: 0 | DT86: 0 | DU86: 0 | DV86: 0 | DW86: 0 | DX86: 0 | DY86: 0 | DZ86: 0 | EA86: 0 | EB86: 0 | EC86: 0 | ED86: 0 | EE86: 0 | EF86: 0 | EG86: 0 | EH86: 0 | EI86: 0 | EJ86: 0 | EK86: 0 | EL86: 0 | EM86: 0 | EN86: 0 | EO86: 0 | EP86: 0 | EQ86: 0 | ER86: 0
C89: Saldo em estoque de materiais de consumo | D89: 27890247.16 | E89: 28381797.05 | F89: 27045377.7 | G89: 27343031.13 | H89: 27194501.99 | I89: 26678930.85 | J89: 26735516.01 | K89: 26415492.64 | L89: 26315927.27 | M89: 25898020.65 | N89: 25869062.33 | O89: 26410344.96 | CQ89: 42263495.74 | CR89: 41982338.96 | CS89: 41155782.54 | CT89: 40752417.61 | CU89: 42962103.55 | CV89: 42511911.6 | CW89: 43827725.99 | CX89: 43595996.77 | CY89: 44278275.56 | CZ89: 44634378.38 | DA89: 45855885 | DB89: 45168644.23 | DC89: =AVERAGE(CQ89:DB89) -> 43249079.66 | DD89: 45458560.43 | DE89: 44821510.12 | DF89: 44557924.23 | DG89: 43508489.62 | DH89: 41925322.31 | DI89: 43971023.18 | DJ89: 44351185.86 | DK89: 43718827.17 | DL89: 42446189.76 | DM89: 45253142.95 | DN89: 46054804.68 | DO89: 48027581.56 | DP89: =AVERAGE(DD89:DO89) -> 44507880.16 | DQ89: 47546083.08 | DR89: 48606968.12 | DS89: 51739245.9 | DT89: 52652828.74 | DU89: 55011386.82 | DV89: 54657853.62 | DW89: 55913232.37 | DX89: 56492468.88 | DY89: 55613322.99 | DZ89: 55563757.22 | EA89: 56884275.66 | EB89: 58717153.5 | EC89: =AVERAGE(DQ89:EB89) -> 54116548.07 | ED89: 59714858.46 | EE89: 63622801.61 | EF89: 64743781.2 | EG89: 68671231.72 | EH89: 65326916.32 | EI89: 64959763.11 | EJ89: 66176810.08 | EK89: 67097540.78 | EL89: 66755256.14 | EM89: 66325079.52 | EN89: 65791355.19 | EO89: 64975884.88 | EP89: =AVERAGE(ED89:EO89) -> 65346773.25 | EQ89: 66035368.58 | ER89: 66589719.85 | ES89: 67449889.55 | ET89: 68008153.2 | EU89: =AVERAGE(ER89,ES89,ET89) -> 67349254.2 | EV89: =AVERAGE(ES89,ET89,EU89) -> 67602432.32 | EW89: =AVERAGE(ET89,EU89,EV89) -> 67653279.91 | EY89: (média) | EZ89: =DC89 -> 43249079.66 | FA89: =DP89 -> 44507880.16 | FB89: =EC89 -> 54116548.07 | FC89: =EP89 -> 65346773.25 | FD89: =AVERAGE(CX89:DB89,DD89:DJ89) -> 44343932.97 | FE89: =AVERAGE(DK89:DO89,DQ89:DW89) -> 49302345.4 | FF89: =AVERAGE(DX89:EB89,ED89:EJ89) -> 61373928.4 | FG89: =AVERAGE(EK89:EO89,EQ89:EW89) -> 66802767.84 | FI89: IPCA
C90: Saldo em estoque de materiais para obras | D90: 99191270.17 | E90: 102659800.7 | F90: 103942310.8 | G90: 99377998.66 | H90: 96123089.42 | I90: 93343920.21 | J90: 91255687.07 | K90: 87625651.66 | L90: 90994142.82 | M90: 94651762 | N90: 96534040.15 | O90: 96693902.27 | CQ90: 61132444.14 | CR90: 58426048.58 | CS90: 57720181.18 | CT90: 58707476.75 | CU90: 57275762.27 | CV90: 57196169.96 | CW90: 57413271.64 | CX90: 59208592.88 | CY90: 61116807 | CZ90: 63715851.68 | DA90: 62621906.41 | DB90: 67297792.97 | DC90: =AVERAGE(CQ90:DB90) -> 60152692.12 | DD90: 66641017.58 | DE90: 69496823.35 | DF90: 65062443.42 | DG90: 64519074.38 | DH90: 65023300.94 | DI90: 62565052.43 | DJ90: 62817278.64 | DK90: 64649430.5 | DL90: 67932729.13 | DM90: 73441201.62 | DN90: 76494208.83 | DO90: 89017063.51 | DP90: =AVERAGE(DD90:DO90) -> 68971635.36 | DQ90: 91320649.48 | DR90: 92797750.22 | DS90: 96158224.47 | DT90: 102504141.8 | DU90: 101153845.2 | DV90: 99829647.38 | DW90: 98621199.88 | DX90: 90109947.25 | DY90: 88209763.76 | DZ90: 91197095.18 | EA90: 89801510.01 | EB90: 92839370.44 | EC90: =AVERAGE(DQ90:EB90) -> 94545262.09 | ED90: 92885869.81 | EE90: 91030047.25 | EF90: 90723337.97 | EG90: 88469621.82 | EH90: 83942806.44 | EI90: 85357902.88 | EJ90: 84922385.37 | EK90: 86761025.28 | EL90: 85605040.25 | EM90: 86743738.48 | EN90: 85320527.87 | EO90: 90780429.49 | EP90: =AVERAGE(ED90:EO90) -> 87711894.41 | EQ90: 89576165.26 | ER90: 92084875.09 | ES90: 90193685.73 | ET90: 88952837.18 | EU90: 90410466 | EV90: 89852329.64 | EW90: 89738544.27 | EY90: (média) | EZ90: =DC90 -> 60152692.12 | FA90: =DP90 -> 68971635.36 | FB90: =EC90 -> 94545262.09 | FC90: =EP90 -> 87711894.41 | FD90: =AVERAGE(CX90:DB90,DD90:DJ90) -> 64173828.47 | FE90: =AVERAGE(DK90:DO90,DQ90:DW90) -> 87826674.33 | FF90: =AVERAGE(DX90:EB90,ED90:EJ90) -> 89124138.18 | FG90: =AVERAGE(EK90:EO90,EQ90:EW90) -> 88834972.04 | FI90: IPCA
C93: Receita de resíduos sólidos (líquida de tributos) | ED93: 201486.31 | EE93: 191823.75 | EF93: 143615.46 | EG93: 154628.61 | EH93: 188366.11 | EI93: 197913.37 | EJ93: 190059.11 | EK93: 171000.5 | EL93: 212153.02 | EM93: 190467.45 | EN93: 187059.71 | EO93: 183349.03 | EP93: =SUM(ED93:EO93) -> 2211922.43 | EQ93: 206282.42 | ER93: 221107.71 | ES93: 188977.31 | ET93: 204401.32 | EU93: =AVERAGE(ER93:ET93) -> 204828.78 | EV93: =AVERAGE(ES93:EU93) -> 199402.47 | EW93: 202877.5233
C94: Custos operacionais resíduos sólidos | ED94: 93449.27 | EE94: 99163.97 | EF94: 95080.87 | EG94: 101686.81 | EH94: 105644.24 | EI94: 36286.07 | EJ94: 42086.31 | EK94: 222433.32 | EL94: 111113.19 | EM94: 99171.68 | EN94: 106322.45 | EO94: 117622.22 | EP94: =SUM(ED94:EO94) -> 1230060.4 | EQ94: 46338.77 | ER94: 177383.03 | ES94: 100910.34 | ET94: 56338.17 | EU94: =AVERAGE(ER94:ET94) -> 111543.8467 | EV94: 89597.45222 | EW94: 85826.48963
C95: Tributos resíduos sólidos | ED95: 20537.17 | EE95: 19552.28 | EF95: 14638.49 | EG95: 21586.32 | EH95: 19199.82 | EI95: 18306.99 | EJ95: 17580.46 | EK95: 17429.8 | EL95: 19624.15 | EM95: 19414.03 | EN95: 19066.7 | EO95: 18688.47 | EP95: 225624.68 | EQ95: 28797.26 | ER95: 30866.88 | ES95: 19262.15 | ET95: 20834.3 | EU95: =AVERAGE(ER95:ET95) -> 23654.44333 | EV95: =AVERAGE(ES95:EU95) -> 21250.29778 | EW95: 21913.0137
C96: Excedente receita (-) custo | ED96: =ED93-ED94 -> 108037.04 | EE96: =EE93-EE94 -> 92659.78 | EF96: 48534.59 | EG96: 52941.8 | EH96: 82721.87 | EI96: 161627.3 | EJ96: 147972.8 | EK96: -51432.82 | EL96: 101039.83 | EM96: 91295.77 | EN96: 80737.26 | EO96: =EO93-EO94 -> 65726.81 | EP96: =SUM(ED96:EO96) -> 981862.03 | EQ96: =EQ93-EQ94 -> 159943.65 | ER96: =ER93-ER94 -> 43724.68 | ES96: 88066.97 | ET96: 148063.15 | EU96: 93284.93333 | EV96: 109805.0178 | EW96: 117051.0337
EP97: =EP93-EP94 -> 981862.03

Sheet 2.Dados_cont_atualizados
A1: ARSAE-MG
A2: Dados contábeis agregados conforme classificação regulatória RTP 2021, atualizados pela inflação acumulada até julho/2021
A3: Versão final | DY3: Totais atualizados pela inflação até julho/2021 (índices previstos a partir de mai/21 ou jun/21) | EH3: Índices inflação | EI3: Auxiliar Proch
C4: Classificação Regulatória | P4: 2013-01-01 | Q4: 2013-02-01 | R4: 2013-03-01 | S4: 2013-04-01 | T4: 2013-05-01 | U4: 2013-06-01 | V4: 2013-07-01 | W4: 2013-08-01 | X4: 2013-09-01 | Y4: 2013-10-01 | Z4: 2013-11-01 | AA4: 2013-12-01 | BP4: 2017-01-01 | BQ4: 2017-02-01 | BR4: 2017-03-01 | BS4: 2017-04-01 | BT4: 2017-05-01 | BU4: 2017-06-01 | BV4: 2017-07-01 | BW4: 2017-08-01 | BX4: 2017-09-01 | BY4: 2017-10-01 | BZ4: 2017-11-01 | CA4: 2017-12-01 | CB4: 2017 | CC4: 2018-01-01 | CD4: 2018-02-01 | CE4: 2018-03-01 | CF4: 2018-04-01 | CG4: 2018-05-01 | CH4: 2018-06-01 | CI4: 2018-07-01 | CJ4: 2018-08-01 | CK4: 2018-09-01 | CL4: 2018-10-01 | CM4: 2018-11-01 | CN4: 2018-12-01 | CO4: 2018 | CP4: 2019-01-01 | CQ4: 2019-02-01 | CR4: 2019-03-01 | CS4: 2019-04-01 | CT4: 2019-05-01 | CU4: 2019-06-01 | CV4: 2019-07-01 | CW4: 2019-08-01 | CX4: 2019-09-01 | CY4: 2019-10-01 | CZ4: 2019-11-01 | DA4: 2019-12-01 | DB4: 2019 | DC4: 2020-01-01 | DD4: 2020-02-01 | DE4: 2020-03-01 | DF4: 2020-04-01 | DG4: 2020-05-01 | DH4: 2020-06-01 | DI4: 2020-07-01 | DJ4: 2020-08-01 | DK4: 2020-09-01 | DL4: 2020-10-01 | DM4: 2020-11-01 | DN4: 2020-12-01 | DO4: 2020 | DP4: 2021-01-01 | DQ4: 2021-02-01 | DR4: 2021-03-01 | DS4: 2021-04-01 | DT4: 2021-05-01 | DU4: 2021-06-01 | DV4: 2021-07-01 | DY4: 2017 | DZ4: 2018 | EA4: 2019 | EB4: 2020 | EC4: PR2017/18 | ED4: PR2018/19 | EE4: PR2019/20 | EF4: PR2020/21
C6: Receita Direta de Água | P6: ='1.Dados_cont_historicos'!AQ6*(1+VLOOKUP('1.Dados_cont_historicos'!AQ$4,'3.Índices_inflação'!$A$2:$BA$105,$EI6,FALSE)) ->  | Q6: ='1.Dados_cont_historicos'!AR6*(1+VLOOKUP('1.Dados_cont_historicos'!AR$4,'3.Índices_inflação'!$A$2:$BA$105,$EI6,FALSE)) ->  | R6: ='1.Dados_cont_historicos'!AS6*(1+VLOOKUP('1.Dados_cont_historicos'!AS$4,'3.Índices_inflação'!$A$2:$BA$105,$EI6,FALSE)) ->  | S6: ='1.Dados_cont_historicos'!AT6*(1+VLOOKUP('1.Dados_cont_historicos'!AT$4,'3.Índices_inflação'!$A$2:$BA$105,$EI6,FALSE)) ->  | T6: ='1.Dados_cont_historicos'!AU6*(1+VLOOKUP('1.Dados_cont_historicos'!AU$4,'3.Índices_inflação'!$A$2:$BA$105,$EI6,FALSE)) ->  | U6: ='1.Dados_cont_historicos'!AV6*(1+VLOOKUP('1.Dados_cont_historicos'!AV$4,'3.Índices_inflação'!$A$2:$BA$105,$EI6,FALSE)) ->  | V6: ='1.Dados_cont_historicos'!AW6*(1+VLOOKUP('1.Dados_cont_historicos'!AW$4,'3.Índices_inflação'!$A$2:$BA$105,$EI6,FALSE)) ->  | W6: ='1.Dados_cont_historicos'!AX6*(1+VLOOKUP('1.Dados_cont_historicos'!AX$4,'3.Índices_inflação'!$A$2:$BA$105,$EI6,FALSE)) ->  | X6: ='1.Dados_cont_historicos'!AY6*(1+VLOOKUP('1.Dados_cont_historicos'!AY$4,'3.Índices_inflação'!$A$2:$BA$105,$EI6,FALSE)) ->  | Y6: ='1.Dados_cont_historicos'!AZ6*(1+VLOOKUP('1.Dados_cont_historicos'!AZ$4,'3.Índices_inflação'!$A$2:$BA$105,$EI6,FALSE)) ->  | Z6: ='1.Dados_cont_historicos'!BA6*(1+VLOOKUP('1.Dados_cont_historicos'!BA$4,'3.Índices_inflação'!$A$2:$BA$105,$EI6,FALSE)) ->  | AA6: ='1.Dados_cont_historicos'!BB6*(1+VLOOKUP('1.Dados_cont_historicos'!BB$4,'3.Índices_inflação'!$A$2:$BA$105,$EI6,FALSE)) ->  | BP6: ='1.Dados_cont_historicos'!CQ6*(1+VLOOKUP('1.Dados_cont_historicos'!CQ$4,'3.Índices_inflação'!$A$2:$BA$105,$EI6,FALSE)) -> -309377633.9 | BQ6: ='1.Dados_cont_historicos'!CR6*(1+VLOOKUP('1.Dados_cont_historicos'!CR$4,'3.Índices_inflação'!$A$2:$BA$105,$EI6,FALSE)) -> -262103019.9 | BR6: ='1.Dados_cont_historicos'!CS6*(1+VLOOKUP('1.Dados_cont_historicos'!CS$4,'3.Índices_inflação'!$A$2:$BA$105,$EI6,FALSE)) -> -301653284.1 | BS6: ='1.Dados_cont_historicos'!CT6*(1+VLOOKUP('1.Dados_cont_historicos'!CT$4,'3.Índices_inflação'!$A$2:$BA$105,$EI6,FALSE)) -> -282748519.4 | BT6: ='1.Dados_cont_historicos'!CU6*(1+VLOOKUP('1.Dados_cont_historicos'!CU$4,'3.Índices_inflação'!$A$2:$BA$105,$EI6,FALSE)) -> -282763612.4 | BU6: ='1.Dados_cont_historicos'!CV6*(1+VLOOKUP('1.Dados_cont_historicos'!CV$4,'3.Índices_inflação'!$A$2:$BA$105,$EI6,FALSE)) -> -257300124.8 | BV6: ='1.Dados_cont_historicos'!CW6*(1+VLOOKUP('1.Dados_cont_historicos'!CW$4,'3.Índices_inflação'!$A$2:$BA$105,$EI6,FALSE)) -> -281320365.6 | BW6: ='1.Dados_cont_historicos'!CX6*(1+VLOOKUP('1.Dados_cont_historicos'!CX$4,'3.Índices_inflação'!$A$2:$BA$105,$EI6,FALSE)) -> -272279981.7 | BX6: ='1.Dados_cont_historicos'!CY6*(1+VLOOKUP('1.Dados_cont_historicos'!CY$4,'3.Índices_inflação'!$A$2:$BA$105,$EI6,FALSE)) -> -310519351.4 | BY6: ='1.Dados_cont_historicos'!CZ6*(1+VLOOKUP('1.Dados_cont_historicos'!CZ$4,'3.Índices_inflação'!$A$2:$BA$105,$EI6,FALSE)) -> -306434011.2 | BZ6: ='1.Dados_cont_historicos'!DA6*(1+VLOOKUP('1.Dados_cont_historicos'!DA$4,'3.Índices_inflação'!$A$2:$BA$105,$EI6,FALSE)) -> -284986697.6 | CA6: ='1.Dados_cont_historicos'!DB6*(1+VLOOKUP('1.Dados_cont_historicos'!DB$4,'3.Índices_inflação'!$A$2:$BA$105,$EI6,FALSE)) -> -270270457.2 | CB6: =SUM(BP6:CA6) -> -3421757059 | CC6: ='1.Dados_cont_historicos'!DD6*(1+VLOOKUP('1.Dados_cont_historicos'!DD$4,'3.Índices_inflação'!$A$2:$BA$105,$EI6,FALSE)) -> -290478783.5 | CD6: ='1.Dados_cont_historicos'!DE6*(1+VLOOKUP('1.Dados_cont_historicos'!DE$4,'3.Índices_inflação'!$A$2:$BA$105,$EI6,FALSE)) -> -261169056.6 | CE6: ='1.Dados_cont_historicos'!DF6*(1+VLOOKUP('1.Dados_cont_historicos'!DF$4,'3.Índices_inflação'!$A$2:$BA$105,$EI6,FALSE)) -> -282529923.1 | CF6: ='1.Dados_cont_historicos'!DG6*(1+VLOOKUP('1.Dados_cont_historicos'!DG$4,'3.Índices_inflação'!$A$2:$BA$105,$EI6,FALSE)) -> -281052204.9 | CG6: ='1.Dados_cont_historicos'!DH6*(1+VLOOKUP('1.Dados_cont_historicos'!DH$4,'3.Índices_inflação'!$A$2:$BA$105,$EI6,FALSE)) -> -284914788.2 | CH6: ='1.Dados_cont_historicos'!DI6*(1+VLOOKUP('1.Dados_cont_historicos'!DI$4,'3.Índices_inflação'!$A$2:$BA$105,$EI6,FALSE)) -> -263411090.8 | CI6: ='1.Dados_cont_historicos'!DJ6*(1+VLOOKUP('1.Dados_cont_historicos'!DJ$4,'3.Índices_inflação'!$A$2:$BA$105,$EI6,FALSE)) -> -278337711.3 | CJ6: ='1.Dados_cont_historicos'!DK6*(1+VLOOKUP('1.Dados_cont_historicos'!DK$4,'3.Índices_inflação'!$A$2:$BA$105,$EI6,FALSE)) -> -274391517.1 | CK6: ='1.Dados_cont_historicos'!DL6*(1+VLOOKUP('1.Dados_cont_historicos'!DL$4,'3.Índices_inflação'!$A$2:$BA$105,$EI6,FALSE)) -> -264107368.7 | CL6: ='1.Dados_cont_historicos'!DM6*(1+VLOOKUP('1.Dados_cont_historicos'!DM$4,'3.Índices_inflação'!$A$2:$BA$105,$EI6,FALSE)) -> -298716751.4 | CM6: ='1.Dados_cont_historicos'!DN6*(1+VLOOKUP('1.Dados_cont_historicos'!DN$4,'3.Índices_inflação'!$A$2:$BA$105,$EI6,FALSE)) -> -270946710.2 | CN6: ='1.Dados_cont_historicos'!DO6*(1+VLOOKUP('1.Dados_cont_historicos'!DO$4,'3.Índices_inflação'!$A$2:$BA$105,$EI6,FALSE)) -> -282106459.2 | CO6: =SUM(CC6:CN6) -> -3332162365 | CP6: ='1.Dados_cont_historicos'!DQ6*(1+VLOOKUP('1.Dados_cont_historicos'!DQ$4,'3.Índices_inflação'!$A$2:$BA$105,$EI6,FALSE)) -> -302022652.4 | CQ6: ='1.Dados_cont_historicos'!DR6*(1+VLOOKUP('1.Dados_cont_historicos'!DR$4,'3.Índices_inflação'!$A$2:$BA$105,$EI6,FALSE)) -> -278005934.4 | CR6: ='1.Dados_cont_historicos'!DS6*(1+VLOOKUP('1.Dados_cont_historicos'!DS$4,'3.Índices_inflação'!$A$2:$BA$105,$EI6,FALSE)) -> -282346386.6 | CS6: ='1.Dados_cont_historicos'!DT6*(1+VLOOKUP('1.Dados_cont_historicos'!DT$4,'3.Índices_inflação'!$A$2:$BA$105,$EI6,FALSE)) -> -275876605.9 | CT6: ='1.Dados_cont_historicos'!DU6*(1+VLOOKUP('1.Dados_cont_historicos'!DU$4,'3.Índices_inflação'!$A$2:$BA$105,$EI6,FALSE)) -> -286211674.9 | CU6: ='1.Dados_cont_historicos'!DV6*(1+VLOOKUP('1.Dados_cont_historicos'!DV$4,'3.Índices_inflação'!$A$2:$BA$105,$EI6,FALSE)) -> -276134694.5 | CV6: ='1.Dados_cont_historicos'!DW6*(1+VLOOKUP('1.Dados_cont_historicos'!DW$4,'3.Índices_inflação'!$A$2:$BA$105,$EI6,FALSE)) -> -288087620.8 | CW6: ='1.Dados_cont_historicos'!DX6*(1+VLOOKUP('1.Dados_cont_historicos'!DX$4,'3.Índices_inflação'!$A$2:$BA$105,$EI6,FALSE)) -> -275715186.4 | CX6: ='1.Dados_cont_historicos'!DY6*(1+VLOOKUP('1.Dados_cont_historicos'!DY$4,'3.Índices_inflação'!$A$2:$BA$105,$EI6,FALSE)) -> -321923169.7 | CY6: ='1.Dados_cont_historicos'!DZ6*(1+VLOOKUP('1.Dados_cont_historicos'!DZ$4,'3.Índices_inflação'!$A$2:$BA$105,$EI6,FALSE)) -> -330982555.3 | CZ6: ='1.Dados_cont_historicos'!EA6*(1+VLOOKUP('1.Dados_cont_historicos'!EA$4,'3.Índices_inflação'!$A$2:$BA$105,$EI6,FALSE)) -> -301958212.5 | DA6: ='1.Dados_cont_historicos'!EB6*(1+VLOOKUP('1.Dados_cont_historicos'!EB$4,'3.Índices_inflação'!$A$2:$BA$105,$EI6,FALSE)) -> -293382644.6 | DB6: =SUM(CP6:DA6) -> -3512647338 | DC6: ='1.Dados_cont_historicos'!ED6*(1+VLOOKUP('1.Dados_cont_historicos'!ED$4,'3.Índices_inflação'!$A$2:$BA$105,$EI6,FALSE)) -> -301038293.8 | DD6: ='1.Dados_cont_historicos'!EE6*(1+VLOOKUP('1.Dados_cont_historicos'!EE$4,'3.Índices_inflação'!$A$2:$BA$105,$EI6,FALSE)) -> -270072202.1 | DE6: ='1.Dados_cont_historicos'!EF6*(1+VLOOKUP('1.Dados_cont_historicos'!EF$4,'3.Índices_inflação'!$A$2:$BA$105,$EI6,FALSE)) -> -295004925.8 | DF6: ='1.Dados_cont_historicos'!EG6*(1+VLOOKUP('1.Dados_cont_historicos'!EG$4,'3.Índices_inflação'!$A$2:$BA$105,$EI6,FALSE)) -> -283453115.3 | DG6: ='1.Dados_cont_historicos'!EH6*(1+VLOOKUP('1.Dados_cont_historicos'!EH$4,'3.Índices_inflação'!$A$2:$BA$105,$EI6,FALSE)) -> -294067298.7 | DH6: ='1.Dados_cont_historicos'!EI6*(1+VLOOKUP('1.Dados_cont_historicos'!EI$4,'3.Índices_inflação'!$A$2:$BA$105,$EI6,FALSE)) -> -274659092.4 | DI6: ='1.Dados_cont_historicos'!EJ6*(1+VLOOKUP('1.Dados_cont_historicos'!EJ$4,'3.Índices_inflação'!$A$2:$BA$105,$EI6,FALSE)) -> -298141873.4 | DJ6: ='1.Dados_cont_historicos'!EK6*(1+VLOOKUP('1.Dados_cont_historicos'!EK$4,'3.Índices_inflação'!$A$2:$BA$105,$EI6,FALSE)) -> -311289947.1 | DK6: ='1.Dados_cont_historicos'!EL6*(1+VLOOKUP('1.Dados_cont_historicos'!EL$4,'3.Índices_inflação'!$A$2:$BA$105,$EI6,FALSE)) -> -308321708.7 | DL6: ='1.Dados_cont_historicos'!EM6*(1+VLOOKUP('1.Dados_cont_historicos'!EM$4,'3.Índices_inflação'!$A$2:$BA$105,$EI6,FALSE)) -> -350165322.9 | DM6: ='1.Dados_cont_historicos'!EN6*(1+VLOOKUP('1.Dados_cont_historicos'!EN$4,'3.Índices_inflação'!$A$2:$BA$105,$EI6,FALSE)) -> -291340658.8 | DN6: ='1.Dados_cont_historicos'!EO6*(1+VLOOKUP('1.Dados_cont_historicos'!EO$4,'3.Índices_inflação'!$A$2:$BA$105,$EI6,FALSE)) -> -301996010.4 | DO6: =SUM(DC6:DN6) -> -3579550449 | DP6: ='1.Dados_cont_historicos'!EQ6*(1+VLOOKUP('1.Dados_cont_historicos'!EQ$4,'3.Índices_inflação'!$A$2:$BA$105,$EI6,FALSE)) -> -311378828.9 | DQ6: ='1.Dados_cont_historicos'!ER6*(1+VLOOKUP('1.Dados_cont_historicos'!ER$4,'3.Índices_inflação'!$A$2:$BA$105,$EI6,FALSE)) -> -284328558.1 | DR6: ='1.Dados_cont_historicos'!ES6*(1+VLOOKUP('1.Dados_cont_historicos'!ES$4,'3.Índices_inflação'!$A$2:$BA$105,$EI6,FALSE)) -> -294898235.5 | DS6: ='1.Dados_cont_historicos'!ET6*(1+VLOOKUP('1.Dados_cont_historicos'!ET$4,'3.Índices_inflação'!$A$2:$BA$105,$EI6,FALSE)) -> -299701839.7 | DT6: ='1.Dados_cont_historicos'!EU6*(1+VLOOKUP('1.Dados_cont_historicos'!EU$4,'3.Índices_inflação'!$A$2:$BA$105,$EI6,FALSE)) -> -292976211.1 | DU6: ='1.Dados_cont_historicos'!EV6*(1+VLOOKUP('1.Dados_cont_historicos'!EV$4,'3.Índices_inflação'!$A$2:$BA$105,$EI6,FALSE)) -> -295858762.1 | DV6: ='1.Dados_cont_historicos'!EW6*(1+VLOOKUP('1.Dados_cont_historicos'!EW$4,'3.Índices_inflação'!$A$2:$BA$105,$EI6,FALSE)) -> -296178937.6 | DY6: =CB6 -> -3421757059 | DZ6: =CO6 -> -3332162365 | EA6: =DB6 -> -3512647338 | EB6: =DO6 -> -3579550449 | EC6: =SUM(BW6:CA6,CC6:CI6) -> -3386384058 | ED6: =SUM(CJ6:CN6,CP6:CV6) -> -3378954376 | EE6: =SUM(CW6:DA6,DC6:DI6) -> -3540398570 | EF6: =SUM(DJ6:DN6,DP6:DV6) -> -3638435021 | EH6: ETM | EI6: =HLOOKUP(EH6,'3.Índices_inflação'!$B$1:$AZ$144,144,FALSE) -> 50
C7: Receita Direta de Esgoto | P7: ='1.Dados_cont_historicos'!AQ7*(1+VLOOKUP('1.Dados_cont_historicos'!AQ$4,'3.Índices_inflação'!$A$2:$BA$105,$EI7,FALSE)) ->  | Q7: ='1.Dados_cont_historicos'!AR7*(1+VLOOKUP('1.Dados_cont_historicos'!AR$4,'3.Índices_inflação'!$A$2:$BA$105,$EI7,FALSE)) ->  | R7: ='1.Dados_cont_historicos'!AS7*(1+VLOOKUP('1.Dados_cont_historicos'!AS$4,'3.Índices_inflação'!$A$2:$BA$105,$EI7,FALSE)) ->  | S7: ='1.Dados_cont_historicos'!AT7*(1+VLOOKUP('1.Dados_cont_historicos'!AT$4,'3.Índices_inflação'!$A$2:$BA$105,$EI7,FALSE)) ->  | T7: ='1.Dados_cont_historicos'!AU7*(1+VLOOKUP('1.Dados_cont_historicos'!AU$4,'3.Índices_inflação'!$A$2:$BA$105,$EI7,FALSE)) ->  | U7: ='1.Dados_cont_historicos'!AV7*(1+VLOOKUP('1.Dados_cont_historicos'!AV$4,'3.Índices_inflação'!$A$2:$BA$105,$EI7,FALSE)) ->  | V7: ='1.Dados_cont_historicos'!AW7*(1+VLOOKUP('1.Dados_cont_historicos'!AW$4,'3.Índices_inflação'!$A$2:$BA$105,$EI7,FALSE)) ->  | W7: ='1.Dados_cont_historicos'!AX7*(1+VLOOKUP('1.Dados_cont_historicos'!AX$4,'3.Índices_inflação'!$A$2:$BA$105,$EI7,FALSE)) ->  | X7: ='1.Dados_cont_historicos'!AY7*(1+VLOOKUP('1.Dados_cont_historicos'!AY$4,'3.Índices_inflação'!$A$2:$BA$105,$EI7,FALSE)) ->  | Y7: ='1.Dados_cont_historicos'!AZ7*(1+VLOOKUP('1.Dados_cont_historicos'!AZ$4,'3.Índices_inflação'!$A$2:$BA$105,$EI7,FALSE)) ->  | Z7: ='1.Dados_cont_historicos'!BA7*(1+VLOOKUP('1.Dados_cont_historicos'!BA$4,'3.Índices_inflação'!$A$2:$BA$105,$EI7,FALSE)) ->  | AA7: ='1.Dados_cont_historicos'!BB7*(1+VLOOKUP('1.Dados_cont_historicos'!BB$4,'3.Índices_inflação'!$A$2:$BA$105,$EI7,FALSE)) ->  | BP7: ='1.Dados_cont_historicos'!CQ7*(1+VLOOKUP('1.Dados_cont_historicos'!CQ$4,'3.Índices_inflação'!$A$2:$BA$105,$EI7,FALSE)) -> -168072648.3 | BQ7: ='1.Dados_cont_historicos'!CR7*(1+VLOOKUP('1.Dados_cont_historicos'!CR$4,'3.Índices_inflação'!$A$2:$BA$105,$EI7,FALSE)) -> -146719958.8 | BR7: ='1.Dados_cont_historicos'!CS7*(1+VLOOKUP('1.Dados_cont_historicos'!CS$4,'3.Índices_inflação'!$A$2:$BA$105,$EI7,FALSE)) -> -165841775.4 | BS7: ='1.Dados_cont_historicos'!CT7*(1+VLOOKUP('1.Dados_cont_historicos'!CT$4,'3.Índices_inflação'!$A$2:$BA$105,$EI7,FALSE)) -> -161433035.6 | BT7: ='1.Dados_cont_historicos'!CU7*(1+VLOOKUP('1.Dados_cont_historicos'!CU$4,'3.Índices_inflação'!$A$2:$BA$105,$EI7,FALSE)) -> -157552165.9 | BU7: ='1.Dados_cont_historicos'!CV7*(1+VLOOKUP('1.Dados_cont_historicos'!CV$4,'3.Índices_inflação'!$A$2:$BA$105,$EI7,FALSE)) -> -148308407.7 | BV7: ='1.Dados_cont_historicos'!CW7*(1+VLOOKUP('1.Dados_cont_historicos'!CW$4,'3.Índices_inflação'!$A$2:$BA$105,$EI7,FALSE)) -> -156475210.6 | BW7: ='1.Dados_cont_historicos'!CX7*(1+VLOOKUP('1.Dados_cont_historicos'!CX$4,'3.Índices_inflação'!$A$2:$BA$105,$EI7,FALSE)) -> -152280401.5 | BX7: ='1.Dados_cont_historicos'!CY7*(1+VLOOKUP('1.Dados_cont_historicos'!CY$4,'3.Índices_inflação'!$A$2:$BA$105,$EI7,FALSE)) -> -172985362.8 | BY7: ='1.Dados_cont_historicos'!CZ7*(1+VLOOKUP('1.Dados_cont_historicos'!CZ$4,'3.Índices_inflação'!$A$2:$BA$105,$EI7,FALSE)) -> -169666430.9 | BZ7: ='1.Dados_cont_historicos'!DA7*(1+VLOOKUP('1.Dados_cont_historicos'!DA$4,'3.Índices_inflação'!$A$2:$BA$105,$EI7,FALSE)) -> -161084723.9 | CA7: ='1.Dados_cont_historicos'!DB7*(1+VLOOKUP('1.Dados_cont_historicos'!DB$4,'3.Índices_inflação'!$A$2:$BA$105,$EI7,FALSE)) -> -153913745 | CB7: =SUM(BP7:CA7) -> -1914333866 | CC7: ='1.Dados_cont_historicos'!DD7*(1+VLOOKUP('1.Dados_cont_historicos'!DD$4,'3.Índices_inflação'!$A$2:$BA$105,$EI7,FALSE)) -> -160906055.5 | CD7: ='1.Dados_cont_historicos'!DE7*(1+VLOOKUP('1.Dados_cont_historicos'!DE$4,'3.Índices_inflação'!$A$2:$BA$105,$EI7,FALSE)) -> -145905713.7 | CE7: ='1.Dados_cont_historicos'!DF7*(1+VLOOKUP('1.Dados_cont_historicos'!DF$4,'3.Índices_inflação'!$A$2:$BA$105,$EI7,FALSE)) -> -159707158.7 | CF7: ='1.Dados_cont_historicos'!DG7*(1+VLOOKUP('1.Dados_cont_historicos'!DG$4,'3.Índices_inflação'!$A$2:$BA$105,$EI7,FALSE)) -> -157885725.3 | CG7: ='1.Dados_cont_historicos'!DH7*(1+VLOOKUP('1.Dados_cont_historicos'!DH$4,'3.Índices_inflação'!$A$2:$BA$105,$EI7,FALSE)) -> -162256013.6 | CH7: ='1.Dados_cont_historicos'!DI7*(1+VLOOKUP('1.Dados_cont_historicos'!DI$4,'3.Índices_inflação'!$A$2:$BA$105,$EI7,FALSE)) -> -150471602.7 | CI7: ='1.Dados_cont_historicos'!DJ7*(1+VLOOKUP('1.Dados_cont_historicos'!DJ$4,'3.Índices_inflação'!$A$2:$BA$105,$EI7,FALSE)) -> -158013452 | CJ7: ='1.Dados_cont_historicos'!DK7*(1+VLOOKUP('1.Dados_cont_historicos'!DK$4,'3.Índices_inflação'!$A$2:$BA$105,$EI7,FALSE)) -> -154666912.5 | CK7: ='1.Dados_cont_historicos'!DL7*(1+VLOOKUP('1.Dados_cont_historicos'!DL$4,'3.Índices_inflação'!$A$2:$BA$105,$EI7,FALSE)) -> -147718413.8 | CL7: ='1.Dados_cont_historicos'!DM7*(1+VLOOKUP('1.Dados_cont_historicos'!DM$4,'3.Índices_inflação'!$A$2:$BA$105,$EI7,FALSE)) -> -168623661 | CM7: ='1.Dados_cont_historicos'!DN7*(1+VLOOKUP('1.Dados_cont_historicos'!DN$4,'3.Índices_inflação'!$A$2:$BA$105,$EI7,FALSE)) -> -155549519.5 | CN7: ='1.Dados_cont_historicos'!DO7*(1+VLOOKUP('1.Dados_cont_historicos'!DO$4,'3.Índices_inflação'!$A$2:$BA$105,$EI7,FALSE)) -> -165643741.4 | CO7: =SUM(CC7:CN7) -> -1887347970 | CP7: ='1.Dados_cont_historicos'!DQ7*(1+VLOOKUP('1.Dados_cont_historicos'!DQ$4,'3.Índices_inflação'!$A$2:$BA$105,$EI7,FALSE)) -> -169735083.1 | CQ7: ='1.Dados_cont_historicos'!DR7*(1+VLOOKUP('1.Dados_cont_historicos'!DR$4,'3.Índices_inflação'!$A$2:$BA$105,$EI7,FALSE)) -> -156477343.8 | CR7: ='1.Dados_cont_historicos'!DS7*(1+VLOOKUP('1.Dados_cont_historicos'!DS$4,'3.Índices_inflação'!$A$2:$BA$105,$EI7,FALSE)) -> -163530923.4 | CS7: ='1.Dados_cont_historicos'!DT7*(1+VLOOKUP('1.Dados_cont_historicos'!DT$4,'3.Índices_inflação'!$A$2:$BA$105,$EI7,FALSE)) -> -161190952.7 | CT7: ='1.Dados_cont_historicos'!DU7*(1+VLOOKUP('1.Dados_cont_historicos'!DU$4,'3.Índices_inflação'!$A$2:$BA$105,$EI7,FALSE)) -> -164721716.2 | CU7: ='1.Dados_cont_historicos'!DV7*(1+VLOOKUP('1.Dados_cont_historicos'!DV$4,'3.Índices_inflação'!$A$2:$BA$105,$EI7,FALSE)) -> -161720830.6 | CV7: ='1.Dados_cont_historicos'!DW7*(1+VLOOKUP('1.Dados_cont_historicos'!DW$4,'3.Índices_inflação'!$A$2:$BA$105,$EI7,FALSE)) -> -166687367.2 | CW7: ='1.Dados_cont_historicos'!DX7*(1+VLOOKUP('1.Dados_cont_historicos'!DX$4,'3.Índices_inflação'!$A$2:$BA$105,$EI7,FALSE)) -> -158197711 | CX7: ='1.Dados_cont_historicos'!DY7*(1+VLOOKUP('1.Dados_cont_historicos'!DY$4,'3.Índices_inflação'!$A$2:$BA$105,$EI7,FALSE)) -> -183582284.8 | CY7: ='1.Dados_cont_historicos'!DZ7*(1+VLOOKUP('1.Dados_cont_historicos'!DZ$4,'3.Índices_inflação'!$A$2:$BA$105,$EI7,FALSE)) -> -188902894.4 | CZ7: ='1.Dados_cont_historicos'!EA7*(1+VLOOKUP('1.Dados_cont_historicos'!EA$4,'3.Índices_inflação'!$A$2:$BA$105,$EI7,FALSE)) -> -179005975.6 | DA7: ='1.Dados_cont_historicos'!EB7*(1+VLOOKUP('1.Dados_cont_historicos'!EB$4,'3.Índices_inflação'!$A$2:$BA$105,$EI7,FALSE)) -> -169827713 | DB7: =SUM(CP7:DA7) -> -2023580796 | DC7: ='1.Dados_cont_historicos'!ED7*(1+VLOOKUP('1.Dados_cont_historicos'!ED$4,'3.Índices_inflação'!$A$2:$BA$105,$EI7,FALSE)) -> -171276171 | DD7: ='1.Dados_cont_historicos'!EE7*(1+VLOOKUP('1.Dados_cont_historicos'!EE$4,'3.Índices_inflação'!$A$2:$BA$105,$EI7,FALSE)) -> -157754221.7 | DE7: ='1.Dados_cont_historicos'!EF7*(1+VLOOKUP('1.Dados_cont_historicos'!EF$4,'3.Índices_inflação'!$A$2:$BA$105,$EI7,FALSE)) -> -174346318.2 | DF7: ='1.Dados_cont_historicos'!EG7*(1+VLOOKUP('1.Dados_cont_historicos'!EG$4,'3.Índices_inflação'!$A$2:$BA$105,$EI7,FALSE)) -> -166872622.3 | DG7: ='1.Dados_cont_historicos'!EH7*(1+VLOOKUP('1.Dados_cont_historicos'!EH$4,'3.Índices_inflação'!$A$2:$BA$105,$EI7,FALSE)) -> -170004681.9 | DH7: ='1.Dados_cont_historicos'!EI7*(1+VLOOKUP('1.Dados_cont_historicos'!EI$4,'3.Índices_inflação'!$A$2:$BA$105,$EI7,FALSE)) -> -159142987.7 | DI7: ='1.Dados_cont_historicos'!EJ7*(1+VLOOKUP('1.Dados_cont_historicos'!EJ$4,'3.Índices_inflação'!$A$2:$BA$105,$EI7,FALSE)) -> -172308250.1 | DJ7: ='1.Dados_cont_historicos'!EK7*(1+VLOOKUP('1.Dados_cont_historicos'!EK$4,'3.Índices_inflação'!$A$2:$BA$105,$EI7,FALSE)) -> -177849281.2 | DK7: ='1.Dados_cont_historicos'!EL7*(1+VLOOKUP('1.Dados_cont_historicos'!EL$4,'3.Índices_inflação'!$A$2:$BA$105,$EI7,FALSE)) -> -175571638.4 | DL7: ='1.Dados_cont_historicos'!EM7*(1+VLOOKUP('1.Dados_cont_historicos'!EM$4,'3.Índices_inflação'!$A$2:$BA$105,$EI7,FALSE)) -> -198517217.1 | DM7: ='1.Dados_cont_historicos'!EN7*(1+VLOOKUP('1.Dados_cont_historicos'!EN$4,'3.Índices_inflação'!$A$2:$BA$105,$EI7,FALSE)) -> -171668015.2 | DN7: ='1.Dados_cont_historicos'!EO7*(1+VLOOKUP('1.Dados_cont_historicos'!EO$4,'3.Índices_inflação'!$A$2:$BA$105,$EI7,FALSE)) -> -179512490.4 | DO7: =SUM(DC7:DN7) -> -2074823895 | DP7: ='1.Dados_cont_historicos'!EQ7*(1+VLOOKUP('1.Dados_cont_historicos'!EQ$4,'3.Índices_inflação'!$A$2:$BA$105,$EI7,FALSE)) -> -182348103.5 | DQ7: ='1.Dados_cont_historicos'!ER7*(1+VLOOKUP('1.Dados_cont_historicos'!ER$4,'3.Índices_inflação'!$A$2:$BA$105,$EI7,FALSE)) -> -169965371 | DR7: ='1.Dados_cont_historicos'!ES7*(1+VLOOKUP('1.Dados_cont_historicos'!ES$4,'3.Índices_inflação'!$A$2:$BA$105,$EI7,FALSE)) -> -180321385.6 | DS7: ='1.Dados_cont_historicos'!ET7*(1+VLOOKUP('1.Dados_cont_historicos'!ET$4,'3.Índices_inflação'!$A$2:$BA$105,$EI7,FALSE)) -> -179567909.7 | DT7: ='1.Dados_cont_historicos'!EU7*(1+VLOOKUP('1.Dados_cont_historicos'!EU$4,'3.Índices_inflação'!$A$2:$BA$105,$EI7,FALSE)) -> -176618222.1 | DU7: ='1.Dados_cont_historicos'!EV7*(1+VLOOKUP('1.Dados_cont_historicos'!EV$4,'3.Índices_inflação'!$A$2:$BA$105,$EI7,FALSE)) -> -178835839.2 | DV7: ='1.Dados_cont_historicos'!EW7*(1+VLOOKUP('1.Dados_cont_historicos'!EW$4,'3.Índices_inflação'!$A$2:$BA$105,$EI7,FALSE)) -> -178340657 | DY7: =CB7 -> -1914333866 | DZ7: =CO7 -> -1887347970 | EA7: =DB7 -> -2023580796 | EB7: =DO7 -> -2074823895 | EC7: =SUM(BW7:CA7,CC7:CI7) -> -1905076386 | ED7: =SUM(CJ7:CN7,CP7:CV7) -> -1936266465 | EE7: =SUM(CW7:DA7,DC7:DI7) -> -2051221832 | EF7: =SUM(DJ7:DN7,DP7:DV7) -> -2149116130 | EH7: ETM | EI7: =HLOOKUP(EH7,'3.Índices_inflação'!$B$1:$AZ$144,144,FALSE) -> 50
C8: Receita Direta de Água - Devoluções | P8: ='1.Dados_cont_historicos'!AQ8*(1+VLOOKUP('1.Dados_cont_historicos'!AQ$4,'3.Índices_inflação'!$A$2:$BA$105,$EI8,FALSE)) ->  | Q8: ='1.Dados_cont_historicos'!AR8*(1+VLOOKUP('1.Dados_cont_historicos'!AR$4,'3.Índices_inflação'!$A$2:$BA$105,$EI8,FALSE)) ->  | R8: ='1.Dados_cont_historicos'!AS8*(1+VLOOKUP('1.Dados_cont_historicos'!AS$4,'3.Índices_inflação'!$A$2:$BA$105,$EI8,FALSE)) ->  | S8: ='1.Dados_cont_historicos'!AT8*(1+VLOOKUP('1.Dados_cont_historicos'!AT$4,'3.Índices_inflação'!$A$2:$BA$105,$EI8,FALSE)) ->  | T8: ='1.Dados_cont_historicos'!AU8*(1+VLOOKUP('1.Dados_cont_historicos'!AU$4,'3.Índices_inflação'!$A$2:$BA$105,$EI8,FALSE)) ->  | U8: ='1.Dados_cont_historicos'!AV8*(1+VLOOKUP('1.Dados_cont_historicos'!AV$4,'3.Índices_inflação'!$A$2:$BA$105,$EI8,FALSE)) ->  | V8: ='1.Dados_cont_historicos'!AW8*(1+VLOOKUP('1.Dados_cont_historicos'!AW$4,'3.Índices_inflação'!$A$2:$BA$105,$EI8,FALSE)) ->  | W8: ='1.Dados_cont_historicos'!AX8*(1+VLOOKUP('1.Dados_cont_historicos'!AX$4,'3.Índices_inflação'!$A$2:$BA$105,$EI8,FALSE)) ->  | X8: ='1.Dados_cont_historicos'!AY8*(1+VLOOKUP('1.Dados_cont_historicos'!AY$4,'3.Índices_inflação'!$A$2:$BA$105,$EI8,FALSE)) ->  | Y8: ='1.Dados_cont_historicos'!AZ8*(1+VLOOKUP('1.Dados_cont_historicos'!AZ$4,'3.Índices_inflação'!$A$2:$BA$105,$EI8,FALSE)) ->  | Z8: ='1.Dados_cont_historicos'!BA8*(1+VLOOKUP('1.Dados_cont_historicos'!BA$4,'3.Índices_inflação'!$A$2:$BA$105,$EI8,FALSE)) ->  | AA8: ='1.Dados_cont_historicos'!BB8*(1+VLOOKUP('1.Dados_cont_historicos'!BB$4,'3.Índices_inflação'!$A$2:$BA$105,$EI8,FALSE)) ->  | BP8: ='1.Dados_cont_historicos'!CQ8*(1+VLOOKUP('1.Dados_cont_historicos'!CQ$4,'3.Índices_inflação'!$A$2:$BA$105,$EI8,FALSE)) -> 309726.259 | BQ8: ='1.Dados_cont_historicos'!CR8*(1+VLOOKUP('1.Dados_cont_historicos'!CR$4,'3.Índices_inflação'!$A$2:$BA$105,$EI8,FALSE)) -> 395062.0972 | BR8: ='1.Dados_cont_historicos'!CS8*(1+VLOOKUP('1.Dados_cont_historicos'!CS$4,'3.Índices_inflação'!$A$2:$BA$105,$EI8,FALSE)) -> 648494.3239 | BS8: ='1.Dados_cont_historicos'!CT8*(1+VLOOKUP('1.Dados_cont_historicos'!CT$4,'3.Índices_inflação'!$A$2:$BA$105,$EI8,FALSE)) -> 439930.4349 | BT8: ='1.Dados_cont_historicos'!CU8*(1+VLOOKUP('1.Dados_cont_historicos'!CU$4,'3.Índices_inflação'!$A$2:$BA$105,$EI8,FALSE)) -> 1017923.179 | BU8: ='1.Dados_cont_historicos'!CV8*(1+VLOOKUP('1.Dados_cont_historicos'!CV$4,'3.Índices_inflação'!$A$2:$BA$105,$EI8,FALSE)) -> 362123.0863 | BV8: ='1.Dados_cont_historicos'!CW8*(1+VLOOKUP('1.Dados_cont_historicos'!CW$4,'3.Índices_inflação'!$A$2:$BA$105,$EI8,FALSE)) -> 164123.597 | BW8: ='1.Dados_cont_historicos'!CX8*(1+VLOOKUP('1.Dados_cont_historicos'!CX$4,'3.Índices_inflação'!$A$2:$BA$105,$EI8,FALSE)) -> 211162.1042 | BX8: ='1.Dados_cont_historicos'!CY8*(1+VLOOKUP('1.Dados_cont_historicos'!CY$4,'3.Índices_inflação'!$A$2:$BA$105,$EI8,FALSE)) -> 212469.1337 | BY8: ='1.Dados_cont_historicos'!CZ8*(1+VLOOKUP('1.Dados_cont_historicos'!CZ$4,'3.Índices_inflação'!$A$2:$BA$105,$EI8,FALSE)) -> 157860.1495 | BZ8: ='1.Dados_cont_historicos'!DA8*(1+VLOOKUP('1.Dados_cont_historicos'!DA$4,'3.Índices_inflação'!$A$2:$BA$105,$EI8,FALSE)) -> 2099386.733 | CA8: ='1.Dados_cont_historicos'!DB8*(1+VLOOKUP('1.Dados_cont_historicos'!DB$4,'3.Índices_inflação'!$A$2:$BA$105,$EI8,FALSE)) -> 2579262.155 | CB8: 8597523.252 | CC8: ='1.Dados_cont_historicos'!DD8*(1+VLOOKUP('1.Dados_cont_historicos'!DD$4,'3.Índices_inflação'!$A$2:$BA$105,$EI8,FALSE)) -> 2106914.393 | CD8: ='1.Dados_cont_historicos'!DE8*(1+VLOOKUP('1.Dados_cont_historicos'!DE$4,'3.Índices_inflação'!$A$2:$BA$105,$EI8,FALSE)) -> 895004.1468 | CE8: ='1.Dados_cont_historicos'!DF8*(1+VLOOKUP('1.Dados_cont_historicos'!DF$4,'3.Índices_inflação'!$A$2:$BA$105,$EI8,FALSE)) -> 1045802.448 | CF8: ='1.Dados_cont_historicos'!DG8*(1+VLOOKUP('1.Dados_cont_historicos'!DG$4,'3.Índices_inflação'!$A$2:$BA$105,$EI8,FALSE)) -> 624211.5781 | CG8: ='1.Dados_cont_historicos'!DH8*(1+VLOOKUP('1.Dados_cont_historicos'!DH$4,'3.Índices_inflação'!$A$2:$BA$105,$EI8,FALSE)) -> 584906.0215 | CH8: ='1.Dados_cont_historicos'!DI8*(1+VLOOKUP('1.Dados_cont_historicos'!DI$4,'3.Índices_inflação'!$A$2:$BA$105,$EI8,FALSE)) -> 610398.2759 | CI8: ='1.Dados_cont_historicos'!DJ8*(1+VLOOKUP('1.Dados_cont_historicos'!DJ$4,'3.Índices_inflação'!$A$2:$BA$105,$EI8,FALSE)) -> 546721.9408 | CJ8: ='1.Dados_cont_historicos'!DK8*(1+VLOOKUP('1.Dados_cont_historicos'!DK$4,'3.Índices_inflação'!$A$2:$BA$105,$EI8,FALSE)) -> 520731.3503 | CK8: ='1.Dados_cont_historicos'!DL8*(1+VLOOKUP('1.Dados_cont_historicos'!DL$4,'3.Índices_inflação'!$A$2:$BA$105,$EI8,FALSE)) -> 784336.1628 | CL8: ='1.Dados_cont_historicos'!DM8*(1+VLOOKUP('1.Dados_cont_historicos'!DM$4,'3.Índices_inflação'!$A$2:$BA$105,$EI8,FALSE)) -> 819200.5626 | CM8: ='1.Dados_cont_historicos'!DN8*(1+VLOOKUP('1.Dados_cont_historicos'!DN$4,'3.Índices_inflação'!$A$2:$BA$105,$EI8,FALSE)) -> 141204.4711 | CN8: ='1.Dados_cont_historicos'!DO8*(1+VLOOKUP('1.Dados_cont_historicos'!DO$4,'3.Índices_inflação'!$A$2:$BA$105,$EI8,FALSE)) -> 553147.4374 | CO8: 9232578.789 | CP8: ='1.Dados_cont_historicos'!DQ8*(1+VLOOKUP('1.Dados_cont_historicos'!DQ$4,'3.Índices_inflação'!$A$2:$BA$105,$EI8,FALSE)) -> 429323.3993 | CQ8: ='1.Dados_cont_historicos'!DR8*(1+VLOOKUP('1.Dados_cont_historicos'!DR$4,'3.Índices_inflação'!$A$2:$BA$105,$EI8,FALSE)) -> 418678.2828 | CR8: ='1.Dados_cont_historicos'!DS8*(1+VLOOKUP('1.Dados_cont_historicos'!DS$4,'3.Índices_inflação'!$A$2:$BA$105,$EI8,FALSE)) -> 541982.3186 | CS8: ='1.Dados_cont_historicos'!DT8*(1+VLOOKUP('1.Dados_cont_historicos'!DT$4,'3.Índices_inflação'!$A$2:$BA$105,$EI8,FALSE)) -> 369694.3528 | CT8: ='1.Dados_cont_historicos'!DU8*(1+VLOOKUP('1.Dados_cont_historicos'!DU$4,'3.Índices_inflação'!$A$2:$BA$105,$EI8,FALSE)) -> 404392.6252 | CU8: ='1.Dados_cont_historicos'!DV8*(1+VLOOKUP('1.Dados_cont_historicos'!DV$4,'3.Índices_inflação'!$A$2:$BA$105,$EI8,FALSE)) -> 344017.1446 | CV8: ='1.Dados_cont_historicos'!DW8*(1+VLOOKUP('1.Dados_cont_historicos'!DW$4,'3.Índices_inflação'!$A$2:$BA$105,$EI8,FALSE)) -> 341466.5826 | CW8: ='1.Dados_cont_historicos'!DX8*(1+VLOOKUP('1.Dados_cont_historicos'!DX$4,'3.Índices_inflação'!$A$2:$BA$105,$EI8,FALSE)) -> 616502.9002 | CX8: ='1.Dados_cont_historicos'!DY8*(1+VLOOKUP('1.Dados_cont_historicos'!DY$4,'3.Índices_inflação'!$A$2:$BA$105,$EI8,FALSE)) -> 363948.0374 | CY8: ='1.Dados_cont_historicos'!DZ8*(1+VLOOKUP('1.Dados_cont_historicos'!DZ$4,'3.Índices_inflação'!$A$2:$BA$105,$EI8,FALSE)) -> 224870.0447 | CZ8: ='1.Dados_cont_historicos'!EA8*(1+VLOOKUP('1.Dados_cont_historicos'!EA$4,'3.Índices_inflação'!$A$2:$BA$105,$EI8,FALSE)) -> 100040.7632 | DA8: ='1.Dados_cont_historicos'!EB8*(1+VLOOKUP('1.Dados_cont_historicos'!EB$4,'3.Índices_inflação'!$A$2:$BA$105,$EI8,FALSE)) -> 113800.0963 | DB8: 4268716.547 | DC8: ='1.Dados_cont_historicos'!ED8*(1+VLOOKUP('1.Dados_cont_historicos'!ED$4,'3.Índices_inflação'!$A$2:$BA$105,$EI8,FALSE)) -> -215105.7682 | DD8: ='1.Dados_cont_historicos'!EE8*(1+VLOOKUP('1.Dados_cont_historicos'!EE$4,'3.Índices_inflação'!$A$2:$BA$105,$EI8,FALSE)) -> 32851.84134 | DE8: ='1.Dados_cont_historicos'!EF8*(1+VLOOKUP('1.Dados_cont_historicos'!EF$4,'3.Índices_inflação'!$A$2:$BA$105,$EI8,FALSE)) -> -33132.7799 | DF8: ='1.Dados_cont_historicos'!EG8*(1+VLOOKUP('1.Dados_cont_historicos'!EG$4,'3.Índices_inflação'!$A$2:$BA$105,$EI8,FALSE)) -> 54945.41024 | DG8: ='1.Dados_cont_historicos'!EH8*(1+VLOOKUP('1.Dados_cont_historicos'!EH$4,'3.Índices_inflação'!$A$2:$BA$105,$EI8,FALSE)) -> -84440.44538 | DH8: ='1.Dados_cont_historicos'!EI8*(1+VLOOKUP('1.Dados_cont_historicos'!EI$4,'3.Índices_inflação'!$A$2:$BA$105,$EI8,FALSE)) -> -14186.89754 | DI8: ='1.Dados_cont_historicos'!EJ8*(1+VLOOKUP('1.Dados_cont_historicos'!EJ$4,'3.Índices_inflação'!$A$2:$BA$105,$EI8,FALSE)) -> -27123.71379 | DJ8: ='1.Dados_cont_historicos'!EK8*(1+VLOOKUP('1.Dados_cont_historicos'!EK$4,'3.Índices_inflação'!$A$2:$BA$105,$EI8,FALSE)) -> 106604.947 | DK8: ='1.Dados_cont_historicos'!EL8*(1+VLOOKUP('1.Dados_cont_historicos'!EL$4,'3.Índices_inflação'!$A$2:$BA$105,$EI8,FALSE)) -> 107967.2595 | DL8: ='1.Dados_cont_historicos'!EM8*(1+VLOOKUP('1.Dados_cont_historicos'!EM$4,'3.Índices_inflação'!$A$2:$BA$105,$EI8,FALSE)) -> 61917.07603 | DM8: ='1.Dados_cont_historicos'!EN8*(1+VLOOKUP('1.Dados_cont_historicos'!EN$4,'3.Índices_inflação'!$A$2:$BA$105,$EI8,FALSE)) -> 261460.79 | DN8: ='1.Dados_cont_historicos'!EO8*(1+VLOOKUP('1.Dados_cont_historicos'!EO$4,'3.Índices_inflação'!$A$2:$BA$105,$EI8,FALSE)) -> 943398.64 | DO8: 1195156.359 | DP8: ='1.Dados_cont_historicos'!EQ8*(1+VLOOKUP('1.Dados_cont_historicos'!EQ$4,'3.Índices_inflação'!$A$2:$BA$105,$EI8,FALSE)) -> 140626.64 | DQ8: ='1.Dados_cont_historicos'!ER8*(1+VLOOKUP('1.Dados_cont_historicos'!ER$4,'3.Índices_inflação'!$A$2:$BA$105,$EI8,FALSE)) -> 69473.16 | DR8: ='1.Dados_cont_historicos'!ES8*(1+VLOOKUP('1.Dados_cont_historicos'!ES$4,'3.Índices_inflação'!$A$2:$BA$105,$EI8,FALSE)) -> 129390.89 | DS8: ='1.Dados_cont_historicos'!ET8*(1+VLOOKUP('1.Dados_cont_historicos'!ET$4,'3.Índices_inflação'!$A$2:$BA$105,$EI8,FALSE)) -> 101327.59 | DT8: ='1.Dados_cont_historicos'!EU8*(1+VLOOKUP('1.Dados_cont_historicos'!EU$4,'3.Índices_inflação'!$A$2:$BA$105,$EI8,FALSE)) -> 100063.88 | DU8: ='1.Dados_cont_historicos'!EV8*(1+VLOOKUP('1.Dados_cont_historicos'!EV$4,'3.Índices_inflação'!$A$2:$BA$105,$EI8,FALSE)) -> 110260.7867 | DV8: ='1.Dados_cont_historicos'!EW8*(1+VLOOKUP('1.Dados_cont_historicos'!EW$4,'3.Índices_inflação'!$A$2:$BA$105,$EI8,FALSE)) -> 103884.0856 | DY8: 8597523.252 | DZ8: 9232578.789 | EA8: 4268716.547 | EB8: 1195156.359 | EC8: 11674099.08 | ED8: 5668174.69 | EE8: 1132969.488 | EF8: 2236375.745 | EH8: ETM | EI8: =HLOOKUP(EH8,'3.Índices_inflação'!$B$1:$AZ$144,144,FALSE) -> 50
C9: Receita Direta de Esgoto - Devoluções | P9: ='1.Dados_cont_historicos'!AQ9*(1+VLOOKUP('1.Dados_cont_historicos'!AQ$4,'3.Índices_inflação'!$A$2:$BA$105,$EI9,FALSE)) ->  | Q9: ='1.Dados_cont_historicos'!AR9*(1+VLOOKUP('1.Dados_cont_historicos'!AR$4,'3.Índices_inflação'!$A$2:$BA$105,$EI9,FALSE)) ->  | R9: ='1.Dados_cont_historicos'!AS9*(1+VLOOKUP('1.Dados_cont_historicos'!AS$4,'3.Índices_inflação'!$A$2:$BA$105,$EI9,FALSE)) ->  | S9: ='1.Dados_cont_historicos'!AT9*(1+VLOOKUP('1.Dados_cont_historicos'!AT$4,'3.Índices_inflação'!$A$2:$BA$105,$EI9,FALSE)) ->  | T9: ='1.Dados_cont_historicos'!AU9*(1+VLOOKUP('1.Dados_cont_historicos'!AU$4,'3.Índices_inflação'!$A$2:$BA$105,$EI9,FALSE)) ->  | U9: ='1.Dados_cont_historicos'!AV9*(1+VLOOKUP('1.Dados_cont_historicos'!AV$4,'3.Índices_inflação'!$A$2:$BA$105,$EI9,FALSE)) ->  | V9: ='1.Dados_cont_historicos'!AW9*(1+VLOOKUP('1.Dados_cont_historicos'!AW$4,'3.Índices_inflação'!$A$2:$BA$105,$EI9,FALSE)) ->  | W9: ='1.Dados_cont_historicos'!AX9*(1+VLOOKUP('1.Dados_cont_historicos'!AX$4,'3.Índices_inflação'!$A$2:$BA$105,$EI9,FALSE)) ->  | X9: ='1.Dados_cont_historicos'!AY9*(1+VLOOKUP('1.Dados_cont_historicos'!AY$4,'3.Índices_inflação'!$A$2:$BA$105,$EI9,FALSE)) ->  | Y9: ='1.Dados_cont_historicos'!AZ9*(1+VLOOKUP('1.Dados_cont_historicos'!AZ$4,'3.Índices_inflação'!$A$2:$BA$105,$EI9,FALSE)) ->  | Z9: ='1.Dados_cont_historicos'!BA9*(1+VLOOKUP('1.Dados_cont_historicos'!BA$4,'3.Índices_inflação'!$A$2:$BA$105,$EI9,FALSE)) ->  | AA9: ='1.Dados_cont_historicos'!BB9*(1+VLOOKUP('1.Dados_cont_historicos'!BB$4,'3.Índices_inflação'!$A$2:$BA$105,$EI9,FALSE)) ->  | BP9: ='1.Dados_cont_historicos'!CQ9*(1+VLOOKUP('1.Dados_cont_historicos'!CQ$4,'3.Índices_inflação'!$A$2:$BA$105,$EI9,FALSE)) -> 435816.6115 | BQ9: ='1.Dados_cont_historicos'!CR9*(1+VLOOKUP('1.Dados_cont_historicos'!CR$4,'3.Índices_inflação'!$A$2:$BA$105,$EI9,FALSE)) -> 675027.0848 | BR9: ='1.Dados_cont_historicos'!CS9*(1+VLOOKUP('1.Dados_cont_historicos'!CS$4,'3.Índices_inflação'!$A$2:$BA$105,$EI9,FALSE)) -> 562940.8926 | BS9: ='1.Dados_cont_historicos'!CT9*(1+VLOOKUP('1.Dados_cont_historicos'!CT$4,'3.Índices_inflação'!$A$2:$BA$105,$EI9,FALSE)) -> 678167.5502 | BT9: ='1.Dados_cont_historicos'!CU9*(1+VLOOKUP('1.Dados_cont_historicos'!CU$4,'3.Índices_inflação'!$A$2:$BA$105,$EI9,FALSE)) -> 713696.1811 | BU9: ='1.Dados_cont_historicos'!CV9*(1+VLOOKUP('1.Dados_cont_historicos'!CV$4,'3.Índices_inflação'!$A$2:$BA$105,$EI9,FALSE)) -> 754906.2915 | BV9: ='1.Dados_cont_historicos'!CW9*(1+VLOOKUP('1.Dados_cont_historicos'!CW$4,'3.Índices_inflação'!$A$2:$BA$105,$EI9,FALSE)) -> 566433.2218 | BW9: ='1.Dados_cont_historicos'!CX9*(1+VLOOKUP('1.Dados_cont_historicos'!CX$4,'3.Índices_inflação'!$A$2:$BA$105,$EI9,FALSE)) -> 560394.7586 | BX9: ='1.Dados_cont_historicos'!CY9*(1+VLOOKUP('1.Dados_cont_historicos'!CY$4,'3.Índices_inflação'!$A$2:$BA$105,$EI9,FALSE)) -> 659293.9812 | BY9: ='1.Dados_cont_historicos'!CZ9*(1+VLOOKUP('1.Dados_cont_historicos'!CZ$4,'3.Índices_inflação'!$A$2:$BA$105,$EI9,FALSE)) -> 551169.1006 | BZ9: ='1.Dados_cont_historicos'!DA9*(1+VLOOKUP('1.Dados_cont_historicos'!DA$4,'3.Índices_inflação'!$A$2:$BA$105,$EI9,FALSE)) -> 725050.8258 | CA9: ='1.Dados_cont_historicos'!DB9*(1+VLOOKUP('1.Dados_cont_historicos'!DB$4,'3.Índices_inflação'!$A$2:$BA$105,$EI9,FALSE)) -> 768301.1997 | CB9: 7651197.699 | CC9: ='1.Dados_cont_historicos'!DD9*(1+VLOOKUP('1.Dados_cont_historicos'!DD$4,'3.Índices_inflação'!$A$2:$BA$105,$EI9,FALSE)) -> 874120.3299 | CD9: ='1.Dados_cont_historicos'!DE9*(1+VLOOKUP('1.Dados_cont_historicos'!DE$4,'3.Índices_inflação'!$A$2:$BA$105,$EI9,FALSE)) -> 1206954.081 | CE9: ='1.Dados_cont_historicos'!DF9*(1+VLOOKUP('1.Dados_cont_historicos'!DF$4,'3.Índices_inflação'!$A$2:$BA$105,$EI9,FALSE)) -> 1556661.319 | CF9: ='1.Dados_cont_historicos'!DG9*(1+VLOOKUP('1.Dados_cont_historicos'!DG$4,'3.Índices_inflação'!$A$2:$BA$105,$EI9,FALSE)) -> 2365760.961 | CG9: ='1.Dados_cont_historicos'!DH9*(1+VLOOKUP('1.Dados_cont_historicos'!DH$4,'3.Índices_inflação'!$A$2:$BA$105,$EI9,FALSE)) -> 959604.4409 | CH9: ='1.Dados_cont_historicos'!DI9*(1+VLOOKUP('1.Dados_cont_historicos'!DI$4,'3.Índices_inflação'!$A$2:$BA$105,$EI9,FALSE)) -> 1519502.635 | CI9: ='1.Dados_cont_historicos'!DJ9*(1+VLOOKUP('1.Dados_cont_historicos'!DJ$4,'3.Índices_inflação'!$A$2:$BA$105,$EI9,FALSE)) -> 1101938.566 | CJ9: ='1.Dados_cont_historicos'!DK9*(1+VLOOKUP('1.Dados_cont_historicos'!DK$4,'3.Índices_inflação'!$A$2:$BA$105,$EI9,FALSE)) -> 974260.04 | CK9: ='1.Dados_cont_historicos'!DL9*(1+VLOOKUP('1.Dados_cont_historicos'!DL$4,'3.Índices_inflação'!$A$2:$BA$105,$EI9,FALSE)) -> 784224.3206 | CL9: ='1.Dados_cont_historicos'!DM9*(1+VLOOKUP('1.Dados_cont_historicos'!DM$4,'3.Índices_inflação'!$A$2:$BA$105,$EI9,FALSE)) -> 979792.6864 | CM9: ='1.Dados_cont_historicos'!DN9*(1+VLOOKUP('1.Dados_cont_historicos'!DN$4,'3.Índices_inflação'!$A$2:$BA$105,$EI9,FALSE)) -> 808228.0156 | CN9: ='1.Dados_cont_historicos'!DO9*(1+VLOOKUP('1.Dados_cont_historicos'!DO$4,'3.Índices_inflação'!$A$2:$BA$105,$EI9,FALSE)) -> 699944.9152 | CO9: 13830992.31 | CP9: ='1.Dados_cont_historicos'!DQ9*(1+VLOOKUP('1.Dados_cont_historicos'!DQ$4,'3.Índices_inflação'!$A$2:$BA$105,$EI9,FALSE)) -> 662439.9995 | CQ9: ='1.Dados_cont_historicos'!DR9*(1+VLOOKUP('1.Dados_cont_historicos'!DR$4,'3.Índices_inflação'!$A$2:$BA$105,$EI9,FALSE)) -> 817520.4941 | CR9: ='1.Dados_cont_historicos'!DS9*(1+VLOOKUP('1.Dados_cont_historicos'!DS$4,'3.Índices_inflação'!$A$2:$BA$105,$EI9,FALSE)) -> 677912.9272 | CS9: ='1.Dados_cont_historicos'!DT9*(1+VLOOKUP('1.Dados_cont_historicos'!DT$4,'3.Índices_inflação'!$A$2:$BA$105,$EI9,FALSE)) -> 616626.0467 | CT9: ='1.Dados_cont_historicos'!DU9*(1+VLOOKUP('1.Dados_cont_historicos'!DU$4,'3.Índices_inflação'!$A$2:$BA$105,$EI9,FALSE)) -> 738890.1449 | CU9: ='1.Dados_cont_historicos'!DV9*(1+VLOOKUP('1.Dados_cont_historicos'!DV$4,'3.Índices_inflação'!$A$2:$BA$105,$EI9,FALSE)) -> 524237.6472 | CV9: ='1.Dados_cont_historicos'!DW9*(1+VLOOKUP('1.Dados_cont_historicos'!DW$4,'3.Índices_inflação'!$A$2:$BA$105,$EI9,FALSE)) -> 590943.4892 | CW9: ='1.Dados_cont_historicos'!DX9*(1+VLOOKUP('1.Dados_cont_historicos'!DX$4,'3.Índices_inflação'!$A$2:$BA$105,$EI9,FALSE)) -> 350282.7283 | CX9: ='1.Dados_cont_historicos'!DY9*(1+VLOOKUP('1.Dados_cont_historicos'!DY$4,'3.Índices_inflação'!$A$2:$BA$105,$EI9,FALSE)) -> 2620555.918 | CY9: ='1.Dados_cont_historicos'!DZ9*(1+VLOOKUP('1.Dados_cont_historicos'!DZ$4,'3.Índices_inflação'!$A$2:$BA$105,$EI9,FALSE)) -> 1028911.062 | CZ9: ='1.Dados_cont_historicos'!EA9*(1+VLOOKUP('1.Dados_cont_historicos'!EA$4,'3.Índices_inflação'!$A$2:$BA$105,$EI9,FALSE)) -> 1176338.798 | DA9: ='1.Dados_cont_historicos'!EB9*(1+VLOOKUP('1.Dados_cont_historicos'!EB$4,'3.Índices_inflação'!$A$2:$BA$105,$EI9,FALSE)) -> 1054053.09 | DB9: 10858712.34 | DC9: ='1.Dados_cont_historicos'!ED9*(1+VLOOKUP('1.Dados_cont_historicos'!ED$4,'3.Índices_inflação'!$A$2:$BA$105,$EI9,FALSE)) -> 526429.8453 | DD9: ='1.Dados_cont_historicos'!EE9*(1+VLOOKUP('1.Dados_cont_historicos'!EE$4,'3.Índices_inflação'!$A$2:$BA$105,$EI9,FALSE)) -> 462137.5942 | DE9: ='1.Dados_cont_historicos'!EF9*(1+VLOOKUP('1.Dados_cont_historicos'!EF$4,'3.Índices_inflação'!$A$2:$BA$105,$EI9,FALSE)) -> 761926.9513 | DF9: ='1.Dados_cont_historicos'!EG9*(1+VLOOKUP('1.Dados_cont_historicos'!EG$4,'3.Índices_inflação'!$A$2:$BA$105,$EI9,FALSE)) -> 254502.36 | DG9: ='1.Dados_cont_historicos'!EH9*(1+VLOOKUP('1.Dados_cont_historicos'!EH$4,'3.Índices_inflação'!$A$2:$BA$105,$EI9,FALSE)) -> 67352.27117 | DH9: ='1.Dados_cont_historicos'!EI9*(1+VLOOKUP('1.Dados_cont_historicos'!EI$4,'3.Índices_inflação'!$A$2:$BA$105,$EI9,FALSE)) -> 319843.414 | DI9: ='1.Dados_cont_historicos'!EJ9*(1+VLOOKUP('1.Dados_cont_historicos'!EJ$4,'3.Índices_inflação'!$A$2:$BA$105,$EI9,FALSE)) -> 545839.1089 | DJ9: ='1.Dados_cont_historicos'!EK9*(1+VLOOKUP('1.Dados_cont_historicos'!EK$4,'3.Índices_inflação'!$A$2:$BA$105,$EI9,FALSE)) -> 1471814.746 | DK9: ='1.Dados_cont_historicos'!EL9*(1+VLOOKUP('1.Dados_cont_historicos'!EL$4,'3.Índices_inflação'!$A$2:$BA$105,$EI9,FALSE)) -> 1005175.623 | DL9: ='1.Dados_cont_historicos'!EM9*(1+VLOOKUP('1.Dados_cont_historicos'!EM$4,'3.Índices_inflação'!$A$2:$BA$105,$EI9,FALSE)) -> 991929.3978 | DM9: ='1.Dados_cont_historicos'!EN9*(1+VLOOKUP('1.Dados_cont_historicos'!EN$4,'3.Índices_inflação'!$A$2:$BA$105,$EI9,FALSE)) -> 3246557.08 | DN9: ='1.Dados_cont_historicos'!EO9*(1+VLOOKUP('1.Dados_cont_historicos'!EO$4,'3.Índices_inflação'!$A$2:$BA$105,$EI9,FALSE)) -> 2789316.14 | DO9: 12442824.53 | DP9: ='1.Dados_cont_historicos'!EQ9*(1+VLOOKUP('1.Dados_cont_historicos'!EQ$4,'3.Índices_inflação'!$A$2:$BA$105,$EI9,FALSE)) -> 2502446.61 | DQ9: ='1.Dados_cont_historicos'!ER9*(1+VLOOKUP('1.Dados_cont_historicos'!ER$4,'3.Índices_inflação'!$A$2:$BA$105,$EI9,FALSE)) -> 2114531.49 | DR9: ='1.Dados_cont_historicos'!ES9*(1+VLOOKUP('1.Dados_cont_historicos'!ES$4,'3.Índices_inflação'!$A$2:$BA$105,$EI9,FALSE)) -> 7015517.39 | DS9: ='1.Dados_cont_historicos'!ET9*(1+VLOOKUP('1.Dados_cont_historicos'!ET$4,'3.Índices_inflação'!$A$2:$BA$105,$EI9,FALSE)) -> 2145501.86 | DT9: ='1.Dados_cont_historicos'!EU9*(1+VLOOKUP('1.Dados_cont_historicos'!EU$4,'3.Índices_inflação'!$A$2:$BA$105,$EI9,FALSE)) -> 3758516.913 | DU9: ='1.Dados_cont_historicos'!EV9*(1+VLOOKUP('1.Dados_cont_historicos'!EV$4,'3.Índices_inflação'!$A$2:$BA$105,$EI9,FALSE)) -> 4306512.054 | DV9: ='1.Dados_cont_historicos'!EW9*(1+VLOOKUP('1.Dados_cont_historicos'!EW$4,'3.Índices_inflação'!$A$2:$BA$105,$EI9,FALSE)) -> 3403510.276 | DY9: 7651197.699 | DZ9: 13830992.31 | EA9: 10858712.34 | EB9: 12442824.53 | EC9: 12848752.2 | ED9: 8875020.726 | EE9: 9168173.14 | EF9: 34751329.58 | EH9: ETM | EI9: =HLOOKUP(EH9,'3.Índices_inflação'!$B$1:$AZ$144,144,FALSE) -> 50
C10: Descontos Tarifários Concedidos | P10: ='1.Dados_cont_historicos'!AQ10*(1+VLOOKUP('1.Dados_cont_historicos'!AQ$4,'3.Índices_inflação'!$A$2:$BA$105,$EI10,FALSE)) ->  | Q10: ='1.Dados_cont_historicos'!AR10*(1+VLOOKUP('1.Dados_cont_historicos'!AR$4,'3.Índices_inflação'!$A$2:$BA$105,$EI10,FALSE)) ->  | R10: ='1.Dados_cont_historicos'!AS10*(1+VLOOKUP('1.Dados_cont_historicos'!AS$4,'3.Índices_inflação'!$A$2:$BA$105,$EI10,FALSE)) ->  | S10: ='1.Dados_cont_historicos'!AT10*(1+VLOOKUP('1.Dados_cont_historicos'!AT$4,'3.Índices_inflação'!$A$2:$BA$105,$EI10,FALSE)) ->  | T10: ='1.Dados_cont_historicos'!AU10*(1+VLOOKUP('1.Dados_cont_historicos'!AU$4,'3.Índices_inflação'!$A$2:$BA$105,$EI10,FALSE)) ->  | U10: ='1.Dados_cont_historicos'!AV10*(1+VLOOKUP('1.Dados_cont_historicos'!AV$4,'3.Índices_inflação'!$A$2:$BA$105,$EI10,FALSE)) ->  | V10: ='1.Dados_cont_historicos'!AW10*(1+VLOOKUP('1.Dados_cont_historicos'!AW$4,'3.Índices_inflação'!$A$2:$BA$105,$EI10,FALSE)) ->  | W10: ='1.Dados_cont_historicos'!AX10*(1+VLOOKUP('1.Dados_cont_historicos'!AX$4,'3.Índices_inflação'!$A$2:$BA$105,$EI10,FALSE)) ->  | X10: ='1.Dados_cont_historicos'!AY10*(1+VLOOKUP('1.Dados_cont_historicos'!AY$4,'3.Índices_inflação'!$A$2:$BA$105,$EI10,FALSE)) ->  | Y10: ='1.Dados_cont_historicos'!AZ10*(1+VLOOKUP('1.Dados_cont_historicos'!AZ$4,'3.Índices_inflação'!$A$2:$BA$105,$EI10,FALSE)) ->  | Z10: ='1.Dados_cont_historicos'!BA10*(1+VLOOKUP('1.Dados_cont_historicos'!BA$4,'3.Índices_inflação'!$A$2:$BA$105,$EI10,FALSE)) ->  | AA10: ='1.Dados_cont_historicos'!BB10*(1+VLOOKUP('1.Dados_cont_historicos'!BB$4,'3.Índices_inflação'!$A$2:$BA$105,$EI10,FALSE)) ->  | BP10: ='1.Dados_cont_historicos'!CQ10*(1+VLOOKUP('1.Dados_cont_historicos'!CQ$4,'3.Índices_inflação'!$A$2:$BA$105,$EI10,FALSE)) -> 5927613.507 | BQ10: ='1.Dados_cont_historicos'!CR10*(1+VLOOKUP('1.Dados_cont_historicos'!CR$4,'3.Índices_inflação'!$A$2:$BA$105,$EI10,FALSE)) -> 4742910.843 | BR10: ='1.Dados_cont_historicos'!CS10*(1+VLOOKUP('1.Dados_cont_historicos'!CS$4,'3.Índices_inflação'!$A$2:$BA$105,$EI10,FALSE)) -> 6024463.958 | BS10: ='1.Dados_cont_historicos'!CT10*(1+VLOOKUP('1.Dados_cont_historicos'!CT$4,'3.Índices_inflação'!$A$2:$BA$105,$EI10,FALSE)) -> 5460416.867 | BT10: ='1.Dados_cont_historicos'!CU10*(1+VLOOKUP('1.Dados_cont_historicos'!CU$4,'3.Índices_inflação'!$A$2:$BA$105,$EI10,FALSE)) -> 5642473.875 | BU10: ='1.Dados_cont_historicos'!CV10*(1+VLOOKUP('1.Dados_cont_historicos'!CV$4,'3.Índices_inflação'!$A$2:$BA$105,$EI10,FALSE)) -> 5293260.146 | BV10: ='1.Dados_cont_historicos'!CW10*(1+VLOOKUP('1.Dados_cont_historicos'!CW$4,'3.Índices_inflação'!$A$2:$BA$105,$EI10,FALSE)) -> 6081558.069 | BW10: ='1.Dados_cont_historicos'!CX10*(1+VLOOKUP('1.Dados_cont_historicos'!CX$4,'3.Índices_inflação'!$A$2:$BA$105,$EI10,FALSE)) -> 5591394.299 | BX10: ='1.Dados_cont_historicos'!CY10*(1+VLOOKUP('1.Dados_cont_historicos'!CY$4,'3.Índices_inflação'!$A$2:$BA$105,$EI10,FALSE)) -> 6020124.749 | BY10: ='1.Dados_cont_historicos'!CZ10*(1+VLOOKUP('1.Dados_cont_historicos'!CZ$4,'3.Índices_inflação'!$A$2:$BA$105,$EI10,FALSE)) -> 6029835.323 | BZ10: ='1.Dados_cont_historicos'!DA10*(1+VLOOKUP('1.Dados_cont_historicos'!DA$4,'3.Índices_inflação'!$A$2:$BA$105,$EI10,FALSE)) -> 5973778.382 | CA10: ='1.Dados_cont_historicos'!DB10*(1+VLOOKUP('1.Dados_cont_historicos'!DB$4,'3.Índices_inflação'!$A$2:$BA$105,$EI10,FALSE)) -> 6563828.756 | CB10: 69351658.77 | CC10: ='1.Dados_cont_historicos'!DD10*(1+VLOOKUP('1.Dados_cont_historicos'!DD$4,'3.Índices_inflação'!$A$2:$BA$105,$EI10,FALSE)) -> 5832321.574 | CD10: ='1.Dados_cont_historicos'!DE10*(1+VLOOKUP('1.Dados_cont_historicos'!DE$4,'3.Índices_inflação'!$A$2:$BA$105,$EI10,FALSE)) -> 5703866.672 | CE10: ='1.Dados_cont_historicos'!DF10*(1+VLOOKUP('1.Dados_cont_historicos'!DF$4,'3.Índices_inflação'!$A$2:$BA$105,$EI10,FALSE)) -> 6600961.02 | CF10: ='1.Dados_cont_historicos'!DG10*(1+VLOOKUP('1.Dados_cont_historicos'!DG$4,'3.Índices_inflação'!$A$2:$BA$105,$EI10,FALSE)) -> 6304459.087 | CG10: ='1.Dados_cont_historicos'!DH10*(1+VLOOKUP('1.Dados_cont_historicos'!DH$4,'3.Índices_inflação'!$A$2:$BA$105,$EI10,FALSE)) -> 6446070.474 | CH10: ='1.Dados_cont_historicos'!DI10*(1+VLOOKUP('1.Dados_cont_historicos'!DI$4,'3.Índices_inflação'!$A$2:$BA$105,$EI10,FALSE)) -> 6250135.032 | CI10: ='1.Dados_cont_historicos'!DJ10*(1+VLOOKUP('1.Dados_cont_historicos'!DJ$4,'3.Índices_inflação'!$A$2:$BA$105,$EI10,FALSE)) -> 6543004.266 | CJ10: ='1.Dados_cont_historicos'!DK10*(1+VLOOKUP('1.Dados_cont_historicos'!DK$4,'3.Índices_inflação'!$A$2:$BA$105,$EI10,FALSE)) -> 6226999.482 | CK10: ='1.Dados_cont_historicos'!DL10*(1+VLOOKUP('1.Dados_cont_historicos'!DL$4,'3.Índices_inflação'!$A$2:$BA$105,$EI10,FALSE)) -> 1795531.968 | CL10: ='1.Dados_cont_historicos'!DM10*(1+VLOOKUP('1.Dados_cont_historicos'!DM$4,'3.Índices_inflação'!$A$2:$BA$105,$EI10,FALSE)) -> 6432973.511 | CM10: ='1.Dados_cont_historicos'!DN10*(1+VLOOKUP('1.Dados_cont_historicos'!DN$4,'3.Índices_inflação'!$A$2:$BA$105,$EI10,FALSE)) -> 6190438.285 | CN10: ='1.Dados_cont_historicos'!DO10*(1+VLOOKUP('1.Dados_cont_historicos'!DO$4,'3.Índices_inflação'!$A$2:$BA$105,$EI10,FALSE)) -> 6640777.689 | CO10: 70967539.06 | CP10: ='1.Dados_cont_historicos'!DQ10*(1+VLOOKUP('1.Dados_cont_historicos'!DQ$4,'3.Índices_inflação'!$A$2:$BA$105,$EI10,FALSE)) -> 6257347.319 | CQ10: ='1.Dados_cont_historicos'!DR10*(1+VLOOKUP('1.Dados_cont_historicos'!DR$4,'3.Índices_inflação'!$A$2:$BA$105,$EI10,FALSE)) -> 6004638.992 | CR10: ='1.Dados_cont_historicos'!DS10*(1+VLOOKUP('1.Dados_cont_historicos'!DS$4,'3.Índices_inflação'!$A$2:$BA$105,$EI10,FALSE)) -> 6702191.052 | CS10: ='1.Dados_cont_historicos'!DT10*(1+VLOOKUP('1.Dados_cont_historicos'!DT$4,'3.Índices_inflação'!$A$2:$BA$105,$EI10,FALSE)) -> 6526715.554 | CT10: ='1.Dados_cont_historicos'!DU10*(1+VLOOKUP('1.Dados_cont_historicos'!DU$4,'3.Índices_inflação'!$A$2:$BA$105,$EI10,FALSE)) -> 6450051.116 | CU10: ='1.Dados_cont_historicos'!DV10*(1+VLOOKUP('1.Dados_cont_historicos'!DV$4,'3.Índices_inflação'!$A$2:$BA$105,$EI10,FALSE)) -> 6486495.088 | CV10: ='1.Dados_cont_historicos'!DW10*(1+VLOOKUP('1.Dados_cont_historicos'!DW$4,'3.Índices_inflação'!$A$2:$BA$105,$EI10,FALSE)) -> 7046688.354 | CW10: ='1.Dados_cont_historicos'!DX10*(1+VLOOKUP('1.Dados_cont_historicos'!DX$4,'3.Índices_inflação'!$A$2:$BA$105,$EI10,FALSE)) -> 5477187.182 | CX10: ='1.Dados_cont_historicos'!DY10*(1+VLOOKUP('1.Dados_cont_historicos'!DY$4,'3.Índices_inflação'!$A$2:$BA$105,$EI10,FALSE)) -> 5982755.6 | CY10: ='1.Dados_cont_historicos'!DZ10*(1+VLOOKUP('1.Dados_cont_historicos'!DZ$4,'3.Índices_inflação'!$A$2:$BA$105,$EI10,FALSE)) -> 8313461.595 | CZ10: ='1.Dados_cont_historicos'!EA10*(1+VLOOKUP('1.Dados_cont_historicos'!EA$4,'3.Índices_inflação'!$A$2:$BA$105,$EI10,FALSE)) -> 7722464.877 | DA10: ='1.Dados_cont_historicos'!EB10*(1+VLOOKUP('1.Dados_cont_historicos'!EB$4,'3.Índices_inflação'!$A$2:$BA$105,$EI10,FALSE)) -> 7478427.651 | DB10: 80448424.38 | DC10: ='1.Dados_cont_historicos'!ED10*(1+VLOOKUP('1.Dados_cont_historicos'!ED$4,'3.Índices_inflação'!$A$2:$BA$105,$EI10,FALSE)) -> 7326149.997 | DD10: ='1.Dados_cont_historicos'!EE10*(1+VLOOKUP('1.Dados_cont_historicos'!EE$4,'3.Índices_inflação'!$A$2:$BA$105,$EI10,FALSE)) -> 6596777.627 | DE10: ='1.Dados_cont_historicos'!EF10*(1+VLOOKUP('1.Dados_cont_historicos'!EF$4,'3.Índices_inflação'!$A$2:$BA$105,$EI10,FALSE)) -> 9462405.406 | DF10: ='1.Dados_cont_historicos'!EG10*(1+VLOOKUP('1.Dados_cont_historicos'!EG$4,'3.Índices_inflação'!$A$2:$BA$105,$EI10,FALSE)) -> 7002467.591 | DG10: ='1.Dados_cont_historicos'!EH10*(1+VLOOKUP('1.Dados_cont_historicos'!EH$4,'3.Índices_inflação'!$A$2:$BA$105,$EI10,FALSE)) -> 5578906.961 | DH10: ='1.Dados_cont_historicos'!EI10*(1+VLOOKUP('1.Dados_cont_historicos'!EI$4,'3.Índices_inflação'!$A$2:$BA$105,$EI10,FALSE)) -> 8042013.452 | DI10: ='1.Dados_cont_historicos'!EJ10*(1+VLOOKUP('1.Dados_cont_historicos'!EJ$4,'3.Índices_inflação'!$A$2:$BA$105,$EI10,FALSE)) -> 5816722.673 | DJ10: ='1.Dados_cont_historicos'!EK10*(1+VLOOKUP('1.Dados_cont_historicos'!EK$4,'3.Índices_inflação'!$A$2:$BA$105,$EI10,FALSE)) -> 6706379.523 | DK10: ='1.Dados_cont_historicos'!EL10*(1+VLOOKUP('1.Dados_cont_historicos'!EL$4,'3.Índices_inflação'!$A$2:$BA$105,$EI10,FALSE)) -> 5883115.972 | DL10: ='1.Dados_cont_historicos'!EM10*(1+VLOOKUP('1.Dados_cont_historicos'!EM$4,'3.Índices_inflação'!$A$2:$BA$105,$EI10,FALSE)) -> 3359284.104 | DM10: ='1.Dados_cont_historicos'!EN10*(1+VLOOKUP('1.Dados_cont_historicos'!EN$4,'3.Índices_inflação'!$A$2:$BA$105,$EI10,FALSE)) -> 5623580.09 | DN10: ='1.Dados_cont_historicos'!EO10*(1+VLOOKUP('1.Dados_cont_historicos'!EO$4,'3.Índices_inflação'!$A$2:$BA$105,$EI10,FALSE)) -> 6014325.53 | DO10: 77412128.93 | DP10: ='1.Dados_cont_historicos'!EQ10*(1+VLOOKUP('1.Dados_cont_historicos'!EQ$4,'3.Índices_inflação'!$A$2:$BA$105,$EI10,FALSE)) -> 6057955.42 | DQ10: ='1.Dados_cont_historicos'!ER10*(1+VLOOKUP('1.Dados_cont_historicos'!ER$4,'3.Índices_inflação'!$A$2:$BA$105,$EI10,FALSE)) -> 7877646.63 | DR10: ='1.Dados_cont_historicos'!ES10*(1+VLOOKUP('1.Dados_cont_historicos'!ES$4,'3.Índices_inflação'!$A$2:$BA$105,$EI10,FALSE)) -> 8889315.16 | DS10: ='1.Dados_cont_historicos'!ET10*(1+VLOOKUP('1.Dados_cont_historicos'!ET$4,'3.Índices_inflação'!$A$2:$BA$105,$EI10,FALSE)) -> 8300130.47 | DT10: ='1.Dados_cont_historicos'!EU10*(1+VLOOKUP('1.Dados_cont_historicos'!EU$4,'3.Índices_inflação'!$A$2:$BA$105,$EI10,FALSE)) -> 8355697.42 | DU10: ='1.Dados_cont_historicos'!EV10*(1+VLOOKUP('1.Dados_cont_historicos'!EV$4,'3.Índices_inflação'!$A$2:$BA$105,$EI10,FALSE)) -> 8515047.683 | DV10: ='1.Dados_cont_historicos'!EW10*(1+VLOOKUP('1.Dados_cont_historicos'!EW$4,'3.Índices_inflação'!$A$2:$BA$105,$EI10,FALSE)) -> 8390291.858 | DY10: 69351658.77 | DZ10: 70967539.06 | EA10: 80448424.38 | EB10: 77412128.93 | EC10: 73859779.63 | ED10: 72760848.41 | EE10: 84799740.61 | EF10: 83972769.86 | EH10: ETM | EI10: =HLOOKUP(EH10,'3.Índices_inflação'!$B$1:$AZ$144,144,FALSE) -> 50
C11: Total - Receitas Operacionais Diretas | P11: =SUM(P6:P10) ->  | BP11: =SUM(BP6:BP10) -> -470777125.9 | BQ11: -403009978.7 | BR11: -460259160.3 | BS11: -437603040.1 | BT11: -432941685.1 | BU11: -399198242.9 | BV11: -430983461.3 | BW11: -418197432.1 | BX11: -476612826.4 | BY11: -469361577.5 | BZ11: -437273205.6 | CA11: -414272810 | CB11: =SUM(BP11:CA11) -> -5250490546 | CC11: =SUM(CC6:CC10) -> -442571482.7 | CD11: -399268945.4 | CE11: -433033657.1 | CF11: -429643498.6 | CG11: -439180220.8 | CH11: -405502657.6 | CI11: -428159498.6 | CJ11: -421336438.7 | CK11: -408461690.1 | CL11: -459108445.6 | CM11: -419356358.9 | CN11: -439856330.6 | CO11: -5125479225 | CP11: =SUM(CP6:CP10) -> -464408624.8 | CQ11: -427242440.5 | CR11: -437955223.7 | CS11: -429554522.6 | CT11: -443340057.2 | CU11: -430500775.2 | CV11: -446795889.5 | CW11: -427468924.6 | CX11: -496538195 | CY11: -510318207 | CZ11: -471965343.6 | DA11: -454564076.8 | DB11: -5440652281 | DC11: =SUM(DC6:DC10) -> -464676990.7 | DD11: -420734656.7 | DE11: -459160044.3 | DF11: -443013822.3 | DG11: -458510161.8 | DH11: -425454410.2 | DI11: -464114685.4 | DJ11: -480854429.1 | DK11: -476897088.3 | DL11: -544269409.4 | DM11: -453877076.1 | DN11: -471761460.5 | DO11: -5563324235 | DP11: =SUM(DP6:DP10) -> -485025903.7 | DQ11: -444232277.8 | DR11: -459185397.7 | DS11: -468722789.5 | DT11: -457380155 | DU11: -461762780.7 | DV11: -462621908.4 | DY11: =SUM(DY6:DY10) -> -5250490546 | DZ11: -5125479225 | EA11: -5440652281 | EB11: -5563324235 | EC11: -5193077812 | ED11: -5227916797 | EE11: -5496519518 | EF11: -5666590676
EF12: =SUM(DC13:DD13,CR13:DA13) -> -35665373.65 | EG12: =EF12/AVERAGE(EC13:EE13)-1 -> 0.04042236844
C13: Receitas Operacionais Indiretas | P13: ='1.Dados_cont_historicos'!AQ13*(1+VLOOKUP('1.Dados_cont_historicos'!AQ$4,'3.Índices_inflação'!$A$2:$BA$105,$EI13,FALSE)) ->  | Q13: ='1.Dados_cont_historicos'!AR13*(1+VLOOKUP('1.Dados_cont_historicos'!AR$4,'3.Índices_inflação'!$A$2:$BA$105,$EI13,FALSE)) ->  | R13: ='1.Dados_cont_historicos'!AS13*(1+VLOOKUP('1.Dados_cont_historicos'!AS$4,'3.Índices_inflação'!$A$2:$BA$105,$EI13,FALSE)) ->  | S13: ='1.Dados_cont_historicos'!AT13*(1+VLOOKUP('1.Dados_cont_historicos'!AT$4,'3.Índices_inflação'!$A$2:$BA$105,$EI13,FALSE)) ->  | T13: ='1.Dados_cont_historicos'!AU13*(1+VLOOKUP('1.Dados_cont_historicos'!AU$4,'3.Índices_inflação'!$A$2:$BA$105,$EI13,FALSE)) ->  | U13: ='1.Dados_cont_historicos'!AV13*(1+VLOOKUP('1.Dados_cont_historicos'!AV$4,'3.Índices_inflação'!$A$2:$BA$105,$EI13,FALSE)) ->  | V13: ='1.Dados_cont_historicos'!AW13*(1+VLOOKUP('1.Dados_cont_historicos'!AW$4,'3.Índices_inflação'!$A$2:$BA$105,$EI13,FALSE)) ->  | W13: ='1.Dados_cont_historicos'!AX13*(1+VLOOKUP('1.Dados_cont_historicos'!AX$4,'3.Índices_inflação'!$A$2:$BA$105,$EI13,FALSE)) ->  | X13: ='1.Dados_cont_historicos'!AY13*(1+VLOOKUP('1.Dados_cont_historicos'!AY$4,'3.Índices_inflação'!$A$2:$BA$105,$EI13,FALSE)) ->  | Y13: ='1.Dados_cont_historicos'!AZ13*(1+VLOOKUP('1.Dados_cont_historicos'!AZ$4,'3.Índices_inflação'!$A$2:$BA$105,$EI13,FALSE)) ->  | Z13: ='1.Dados_cont_historicos'!BA13*(1+VLOOKUP('1.Dados_cont_historicos'!BA$4,'3.Índices_inflação'!$A$2:$BA$105,$EI13,FALSE)) ->  | AA13: ='1.Dados_cont_historicos'!BB13*(1+VLOOKUP('1.Dados_cont_historicos'!BB$4,'3.Índices_inflação'!$A$2:$BA$105,$EI13,FALSE)) ->  | BP13: ='1.Dados_cont_historicos'!CQ13*(1+VLOOKUP('1.Dados_cont_historicos'!CQ$4,'3.Índices_inflação'!$A$2:$BA$105,$EI13,FALSE)) -> -3269166.796 | BQ13: ='1.Dados_cont_historicos'!CR13*(1+VLOOKUP('1.Dados_cont_historicos'!CR$4,'3.Índices_inflação'!$A$2:$BA$105,$EI13,FALSE)) -> -2279558.454 | BR13: ='1.Dados_cont_historicos'!CS13*(1+VLOOKUP('1.Dados_cont_historicos'!CS$4,'3.Índices_inflação'!$A$2:$BA$105,$EI13,FALSE)) -> -2590385.697 | BS13: ='1.Dados_cont_historicos'!CT13*(1+VLOOKUP('1.Dados_cont_historicos'!CT$4,'3.Índices_inflação'!$A$2:$BA$105,$EI13,FALSE)) -> -2724745.793 | BT13: ='1.Dados_cont_historicos'!CU13*(1+VLOOKUP('1.Dados_cont_historicos'!CU$4,'3.Índices_inflação'!$A$2:$BA$105,$EI13,FALSE)) -> -2522034.716 | BU13: ='1.Dados_cont_historicos'!CV13*(1+VLOOKUP('1.Dados_cont_historicos'!CV$4,'3.Índices_inflação'!$A$2:$BA$105,$EI13,FALSE)) -> -2984748.186 | BV13: ='1.Dados_cont_historicos'!CW13*(1+VLOOKUP('1.Dados_cont_historicos'!CW$4,'3.Índices_inflação'!$A$2:$BA$105,$EI13,FALSE)) -> -2935424.966 | BW13: ='1.Dados_cont_historicos'!CX13*(1+VLOOKUP('1.Dados_cont_historicos'!CX$4,'3.Índices_inflação'!$A$2:$BA$105,$EI13,FALSE)) -> -2871791.789 | BX13: ='1.Dados_cont_historicos'!CY13*(1+VLOOKUP('1.Dados_cont_historicos'!CY$4,'3.Índices_inflação'!$A$2:$BA$105,$EI13,FALSE)) -> -3063809.065 | BY13: ='1.Dados_cont_historicos'!CZ13*(1+VLOOKUP('1.Dados_cont_historicos'!CZ$4,'3.Índices_inflação'!$A$2:$BA$105,$EI13,FALSE)) -> -4501921.087 | BZ13: ='1.Dados_cont_historicos'!DA13*(1+VLOOKUP('1.Dados_cont_historicos'!DA$4,'3.Índices_inflação'!$A$2:$BA$105,$EI13,FALSE)) -> -2848127.451 | CA13: ='1.Dados_cont_historicos'!DB13*(1+VLOOKUP('1.Dados_cont_historicos'!DB$4,'3.Índices_inflação'!$A$2:$BA$105,$EI13,FALSE)) -> -2812362.323 | CB13: =SUM(BP13:CA13) -> -35404076.33 | CC13: ='1.Dados_cont_historicos'!DD13*(1+VLOOKUP('1.Dados_cont_historicos'!DD$4,'3.Índices_inflação'!$A$2:$BA$105,$EI13,FALSE)) -> -12507147.95 | CD13: ='1.Dados_cont_historicos'!DE13*(1+VLOOKUP('1.Dados_cont_historicos'!DE$4,'3.Índices_inflação'!$A$2:$BA$105,$EI13,FALSE)) -> -3291592.04 | CE13: ='1.Dados_cont_historicos'!DF13*(1+VLOOKUP('1.Dados_cont_historicos'!DF$4,'3.Índices_inflação'!$A$2:$BA$105,$EI13,FALSE)) -> -2308719.277 | CF13: ='1.Dados_cont_historicos'!DG13*(1+VLOOKUP('1.Dados_cont_historicos'!DG$4,'3.Índices_inflação'!$A$2:$BA$105,$EI13,FALSE)) -> -3233385.291 | CG13: ='1.Dados_cont_historicos'!DH13*(1+VLOOKUP('1.Dados_cont_historicos'!DH$4,'3.Índices_inflação'!$A$2:$BA$105,$EI13,FALSE)) -> -3210933.193 | CH13: ='1.Dados_cont_historicos'!DI13*(1+VLOOKUP('1.Dados_cont_historicos'!DI$4,'3.Índices_inflação'!$A$2:$BA$105,$EI13,FALSE)) -> -2759623.261 | CI13: ='1.Dados_cont_historicos'!DJ13*(1+VLOOKUP('1.Dados_cont_historicos'!DJ$4,'3.Índices_inflação'!$A$2:$BA$105,$EI13,FALSE)) -> -2778237.674 | CJ13: ='1.Dados_cont_historicos'!DK13*(1+VLOOKUP('1.Dados_cont_historicos'!DK$4,'3.Índices_inflação'!$A$2:$BA$105,$EI13,FALSE)) -> -3281746.265 | CK13: ='1.Dados_cont_historicos'!DL13*(1+VLOOKUP('1.Dados_cont_historicos'!DL$4,'3.Índices_inflação'!$A$2:$BA$105,$EI13,FALSE)) -> -3880679.979 | CL13: ='1.Dados_cont_historicos'!DM13*(1+VLOOKUP('1.Dados_cont_historicos'!DM$4,'3.Índices_inflação'!$A$2:$BA$105,$EI13,FALSE)) -> -2361504.957 | CM13: ='1.Dados_cont_historicos'!DN13*(1+VLOOKUP('1.Dados_cont_historicos'!DN$4,'3.Índices_inflação'!$A$2:$BA$105,$EI13,FALSE)) -> -2971362.906 | CN13: ='1.Dados_cont_historicos'!DO13*(1+VLOOKUP('1.Dados_cont_historicos'!DO$4,'3.Índices_inflação'!$A$2:$BA$105,$EI13,FALSE)) -> 5887575.268 | CO13: =SUM(CC13:CN13) -> -36697357.52 | CP13: ='1.Dados_cont_historicos'!DQ13*(1+VLOOKUP('1.Dados_cont_historicos'!DQ$4,'3.Índices_inflação'!$A$2:$BA$105,$EI13,FALSE)) -> -2534131.728 | CQ13: ='1.Dados_cont_historicos'!DR13*(1+VLOOKUP('1.Dados_cont_historicos'!DR$4,'3.Índices_inflação'!$A$2:$BA$105,$EI13,FALSE)) -> -2787053.265 | CR13: ='1.Dados_cont_historicos'!DS13*(1+VLOOKUP('1.Dados_cont_historicos'!DS$4,'3.Índices_inflação'!$A$2:$BA$105,$EI13,FALSE)) -> -3034085.544 | CS13: ='1.Dados_cont_historicos'!DT13*(1+VLOOKUP('1.Dados_cont_historicos'!DT$4,'3.Índices_inflação'!$A$2:$BA$105,$EI13,FALSE)) -> -2975897.527 | CT13: ='1.Dados_cont_historicos'!DU13*(1+VLOOKUP('1.Dados_cont_historicos'!DU$4,'3.Índices_inflação'!$A$2:$BA$105,$EI13,FALSE)) -> -2654031.925 | CU13: ='1.Dados_cont_historicos'!DV13*(1+VLOOKUP('1.Dados_cont_historicos'!DV$4,'3.Índices_inflação'!$A$2:$BA$105,$EI13,FALSE)) -> -3122953.897 | CV13: ='1.Dados_cont_historicos'!DW13*(1+VLOOKUP('1.Dados_cont_historicos'!DW$4,'3.Índices_inflação'!$A$2:$BA$105,$EI13,FALSE)) -> -2547368.964 | CW13: ='1.Dados_cont_historicos'!DX13*(1+VLOOKUP('1.Dados_cont_historicos'!DX$4,'3.Índices_inflação'!$A$2:$BA$105,$EI13,FALSE)) -> -3119927.932 | CX13: ='1.Dados_cont_historicos'!DY13*(1+VLOOKUP('1.Dados_cont_historicos'!DY$4,'3.Índices_inflação'!$A$2:$BA$105,$EI13,FALSE)) -> -2878687.355 | CY13: ='1.Dados_cont_historicos'!DZ13*(1+VLOOKUP('1.Dados_cont_historicos'!DZ$4,'3.Índices_inflação'!$A$2:$BA$105,$EI13,FALSE)) -> -3167614.529 | CZ13: ='1.Dados_cont_historicos'!EA13*(1+VLOOKUP('1.Dados_cont_historicos'!EA$4,'3.Índices_inflação'!$A$2:$BA$105,$EI13,FALSE)) -> -2814620.763 | DA13: ='1.Dados_cont_historicos'!EB13*(1+VLOOKUP('1.Dados_cont_historicos'!EB$4,'3.Índices_inflação'!$A$2:$BA$105,$EI13,FALSE)) -> -2789262.61 | DB13: =SUM(CP13:DA13) -> -34425636.04 | DC13: ='1.Dados_cont_historicos'!ED13*(1+VLOOKUP('1.Dados_cont_historicos'!ED$4,'3.Índices_inflação'!$A$2:$BA$105,$EI13,FALSE)) -> -3102196.839 | DD13: ='1.Dados_cont_historicos'!EE13*(1+VLOOKUP('1.Dados_cont_historicos'!EE$4,'3.Índices_inflação'!$A$2:$BA$105,$EI13,FALSE)) -> -3458725.766 | DE13: ='1.Dados_cont_historicos'!EF13*(1+VLOOKUP('1.Dados_cont_historicos'!EF$4,'3.Índices_inflação'!$A$2:$BA$105,$EI13,FALSE)) -> -2267689.815 | DF13: ='1.Dados_cont_historicos'!EG13*(1+VLOOKUP('1.Dados_cont_historicos'!EG$4,'3.Índices_inflação'!$A$2:$BA$105,$EI13,FALSE)) -> -1750672.065 | DG13: ='1.Dados_cont_historicos'!EH13*(1+VLOOKUP('1.Dados_cont_historicos'!EH$4,'3.Índices_inflação'!$A$2:$BA$105,$EI13,FALSE)) -> -1754747.129 | DH13: ='1.Dados_cont_historicos'!EI13*(1+VLOOKUP('1.Dados_cont_historicos'!EI$4,'3.Índices_inflação'!$A$2:$BA$105,$EI13,FALSE)) -> -1478418.795 | DI13: ='1.Dados_cont_historicos'!EJ13*(1+VLOOKUP('1.Dados_cont_historicos'!EJ$4,'3.Índices_inflação'!$A$2:$BA$105,$EI13,FALSE)) -> -1805664.466 | DJ13: ='1.Dados_cont_historicos'!EK13*(1+VLOOKUP('1.Dados_cont_historicos'!EK$4,'3.Índices_inflação'!$A$2:$BA$105,$EI13,FALSE)) -> -1483474.579 | DK13: ='1.Dados_cont_historicos'!EL13*(1+VLOOKUP('1.Dados_cont_historicos'!EL$4,'3.Índices_inflação'!$A$2:$BA$105,$EI13,FALSE)) -> -1586016.807 | DL13: ='1.Dados_cont_historicos'!EM13*(1+VLOOKUP('1.Dados_cont_historicos'!EM$4,'3.Índices_inflação'!$A$2:$BA$105,$EI13,FALSE)) -> -1749555.624 | DM13: ='1.Dados_cont_historicos'!EN13*(1+VLOOKUP('1.Dados_cont_historicos'!EN$4,'3.Índices_inflação'!$A$2:$BA$105,$EI13,FALSE)) -> -1233416.323 | DN13: ='1.Dados_cont_historicos'!EO13*(1+VLOOKUP('1.Dados_cont_historicos'!EO$4,'3.Índices_inflação'!$A$2:$BA$105,$EI13,FALSE)) -> -1401092.866 | DO13: -23071671.08 | DP13: ='1.Dados_cont_historicos'!EQ13*(1+VLOOKUP('1.Dados_cont_historicos'!EQ$4,'3.Índices_inflação'!$A$2:$BA$105,$EI13,FALSE)) -> -941072.0599 | DQ13: ='1.Dados_cont_historicos'!ER13*(1+VLOOKUP('1.Dados_cont_historicos'!ER$4,'3.Índices_inflação'!$A$2:$BA$105,$EI13,FALSE)) -> -1835905.097 | DR13: ='1.Dados_cont_historicos'!ES13*(1+VLOOKUP('1.Dados_cont_historicos'!ES$4,'3.Índices_inflação'!$A$2:$BA$105,$EI13,FALSE)) -> -1557318.418 | DS13: ='1.Dados_cont_historicos'!ET13*(1+VLOOKUP('1.Dados_cont_historicos'!ET$4,'3.Índices_inflação'!$A$2:$BA$105,$EI13,FALSE)) -> -2250135.563 | DT13: ='1.Dados_cont_historicos'!EU13*(1+VLOOKUP('1.Dados_cont_historicos'!EU$4,'3.Índices_inflação'!$A$2:$BA$105,$EI13,FALSE)) -> -1853842.691 | DU13: ='1.Dados_cont_historicos'!EV13*(1+VLOOKUP('1.Dados_cont_historicos'!EV$4,'3.Índices_inflação'!$A$2:$BA$105,$EI13,FALSE)) -> -1859817.741 | DV13: ='1.Dados_cont_historicos'!EW13*(1+VLOOKUP('1.Dados_cont_historicos'!EW$4,'3.Índices_inflação'!$A$2:$BA$105,$EI13,FALSE)) -> -1956530.811 | DW13: =SUM(DC13:DD13,CR13:DA13) -> -35665373.65 | DY13: -35404076.33 | DZ13: -36697357.52 | EA13: -34425636.04 | EB13: -23071671.08 | EC13: -46187650.4 | ED13: -26263241.69 | EE13: -30388228.07 | EF13: =SUM(DJ13:DN13,DP13:DV13) -> -19708178.58 | EG13: =EF13/AVERAGE(EC13:EE13)-1 -> -0.4250773863 | EH13: INPC | EI13: =HLOOKUP(EH13,'3.Índices_inflação'!$B$1:$AZ$144,144,FALSE) -> 4
C14: Receita de Resíduos Sólidos | P14: ='1.Dados_cont_historicos'!AQ14*(1+VLOOKUP('1.Dados_cont_historicos'!AQ$4,'3.Índices_inflação'!$A$2:$BA$105,$EI14,FALSE)) ->  | Q14: ='1.Dados_cont_historicos'!AR14*(1+VLOOKUP('1.Dados_cont_historicos'!AR$4,'3.Índices_inflação'!$A$2:$BA$105,$EI14,FALSE)) ->  | R14: ='1.Dados_cont_historicos'!AS14*(1+VLOOKUP('1.Dados_cont_historicos'!AS$4,'3.Índices_inflação'!$A$2:$BA$105,$EI14,FALSE)) ->  | S14: ='1.Dados_cont_historicos'!AT14*(1+VLOOKUP('1.Dados_cont_historicos'!AT$4,'3.Índices_inflação'!$A$2:$BA$105,$EI14,FALSE)) ->  | T14: ='1.Dados_cont_historicos'!AU14*(1+VLOOKUP('1.Dados_cont_historicos'!AU$4,'3.Índices_inflação'!$A$2:$BA$105,$EI14,FALSE)) ->  | U14: ='1.Dados_cont_historicos'!AV14*(1+VLOOKUP('1.Dados_cont_historicos'!AV$4,'3.Índices_inflação'!$A$2:$BA$105,$EI14,FALSE)) ->  | V14: ='1.Dados_cont_historicos'!AW14*(1+VLOOKUP('1.Dados_cont_historicos'!AW$4,'3.Índices_inflação'!$A$2:$BA$105,$EI14,FALSE)) ->  | W14: ='1.Dados_cont_historicos'!AX14*(1+VLOOKUP('1.Dados_cont_historicos'!AX$4,'3.Índices_inflação'!$A$2:$BA$105,$EI14,FALSE)) ->  | X14: ='1.Dados_cont_historicos'!AY14*(1+VLOOKUP('1.Dados_cont_historicos'!AY$4,'3.Índices_inflação'!$A$2:$BA$105,$EI14,FALSE)) ->  | Y14: ='1.Dados_cont_historicos'!AZ14*(1+VLOOKUP('1.Dados_cont_historicos'!AZ$4,'3.Índices_inflação'!$A$2:$BA$105,$EI14,FALSE)) ->  | Z14: ='1.Dados_cont_historicos'!BA14*(1+VLOOKUP('1.Dados_cont_historicos'!BA$4,'3.Índices_inflação'!$A$2:$BA$105,$EI14,FALSE)) ->  | AA14: ='1.Dados_cont_historicos'!BB14*(1+VLOOKUP('1.Dados_cont_historicos'!BB$4,'3.Índices_inflação'!$A$2:$BA$105,$EI14,FALSE)) ->  | BP14: ='1.Dados_cont_historicos'!CQ14*(1+VLOOKUP('1.Dados_cont_historicos'!CQ$4,'3.Índices_inflação'!$A$2:$BA$105,$EI14,FALSE)) -> 0 | BQ14: ='1.Dados_cont_historicos'!CR14*(1+VLOOKUP('1.Dados_cont_historicos'!CR$4,'3.Índices_inflação'!$A$2:$BA$105,$EI14,FALSE)) -> 0 | BR14: ='1.Dados_cont_historicos'!CS14*(1+VLOOKUP('1.Dados_cont_historicos'!CS$4,'3.Índices_inflação'!$A$2:$BA$105,$EI14,FALSE)) -> 0 | BS14: ='1.Dados_cont_historicos'!CT14*(1+VLOOKUP('1.Dados_cont_historicos'!CT$4,'3.Índices_inflação'!$A$2:$BA$105,$EI14,FALSE)) -> 0 | BT14: ='1.Dados_cont_historicos'!CU14*(1+VLOOKUP('1.Dados_cont_historicos'!CU$4,'3.Índices_inflação'!$A$2:$BA$105,$EI14,FALSE)) -> 0 | BU14: ='1.Dados_cont_historicos'!CV14*(1+VLOOKUP('1.Dados_cont_historicos'!CV$4,'3.Índices_inflação'!$A$2:$BA$105,$EI14,FALSE)) -> 0 | BV14: ='1.Dados_cont_historicos'!CW14*(1+VLOOKUP('1.Dados_cont_historicos'!CW$4,'3.Índices_inflação'!$A$2:$BA$105,$EI14,FALSE)) -> 0 | BW14: ='1.Dados_cont_historicos'!CX14*(1+VLOOKUP('1.Dados_cont_historicos'!CX$4,'3.Índices_inflação'!$A$2:$BA$105,$EI14,FALSE)) -> 0 | BX14: ='1.Dados_cont_historicos'!CY14*(1+VLOOKUP('1.Dados_cont_historicos'!CY$4,'3.Índices_inflação'!$A$2:$BA$105,$EI14,FALSE)) -> 0 | BY14: ='1.Dados_cont_historicos'!CZ14*(1+VLOOKUP('1.Dados_cont_historicos'!CZ$4,'3.Índices_inflação'!$A$2:$BA$105,$EI14,FALSE)) -> 0 | BZ14: ='1.Dados_cont_historicos'!DA14*(1+VLOOKUP('1.Dados_cont_historicos'!DA$4,'3.Índices_inflação'!$A$2:$BA$105,$EI14,FALSE)) -> 0 | CA14: ='1.Dados_cont_historicos'!DB14*(1+VLOOKUP('1.Dados_cont_historicos'!DB$4,'3.Índices_inflação'!$A$2:$BA$105,$EI14,FALSE)) -> -468949.6853 | CB14: -468949.6853 | CC14: ='1.Dados_cont_historicos'!DD14*(1+VLOOKUP('1.Dados_cont_historicos'!DD$4,'3.Índices_inflação'!$A$2:$BA$105,$EI14,FALSE)) -> -236716.9961 | CD14: ='1.Dados_cont_historicos'!DE14*(1+VLOOKUP('1.Dados_cont_historicos'!DE$4,'3.Índices_inflação'!$A$2:$BA$105,$EI14,FALSE)) -> -283502.7465 | CE14: ='1.Dados_cont_historicos'!DF14*(1+VLOOKUP('1.Dados_cont_historicos'!DF$4,'3.Índices_inflação'!$A$2:$BA$105,$EI14,FALSE)) -> -270569.5486 | CF14: ='1.Dados_cont_historicos'!DG14*(1+VLOOKUP('1.Dados_cont_historicos'!DG$4,'3.Índices_inflação'!$A$2:$BA$105,$EI14,FALSE)) -> -189361.5401 | CG14: ='1.Dados_cont_historicos'!DH14*(1+VLOOKUP('1.Dados_cont_historicos'!DH$4,'3.Índices_inflação'!$A$2:$BA$105,$EI14,FALSE)) -> -278928.463 | CH14: ='1.Dados_cont_historicos'!DI14*(1+VLOOKUP('1.Dados_cont_historicos'!DI$4,'3.Índices_inflação'!$A$2:$BA$105,$EI14,FALSE)) -> -251743.4393 | CI14: ='1.Dados_cont_historicos'!DJ14*(1+VLOOKUP('1.Dados_cont_historicos'!DJ$4,'3.Índices_inflação'!$A$2:$BA$105,$EI14,FALSE)) -> -261124.9782 | CJ14: ='1.Dados_cont_historicos'!DK14*(1+VLOOKUP('1.Dados_cont_historicos'!DK$4,'3.Índices_inflação'!$A$2:$BA$105,$EI14,FALSE)) -> -221496.6187 | CK14: ='1.Dados_cont_historicos'!DL14*(1+VLOOKUP('1.Dados_cont_historicos'!DL$4,'3.Índices_inflação'!$A$2:$BA$105,$EI14,FALSE)) -> -207196.0111 | CL14: ='1.Dados_cont_historicos'!DM14*(1+VLOOKUP('1.Dados_cont_historicos'!DM$4,'3.Índices_inflação'!$A$2:$BA$105,$EI14,FALSE)) -> -192040.578 | CM14: ='1.Dados_cont_historicos'!DN14*(1+VLOOKUP('1.Dados_cont_historicos'!DN$4,'3.Índices_inflação'!$A$2:$BA$105,$EI14,FALSE)) -> -206324.2855 | CN14: ='1.Dados_cont_historicos'!DO14*(1+VLOOKUP('1.Dados_cont_historicos'!DO$4,'3.Índices_inflação'!$A$2:$BA$105,$EI14,FALSE)) -> -193474.0592 | CO14: -2792479.264 | CP14: ='1.Dados_cont_historicos'!DQ14*(1+VLOOKUP('1.Dados_cont_historicos'!DQ$4,'3.Índices_inflação'!$A$2:$BA$105,$EI14,FALSE)) -> -213033.958 | CQ14: ='1.Dados_cont_historicos'!DR14*(1+VLOOKUP('1.Dados_cont_historicos'!DR$4,'3.Índices_inflação'!$A$2:$BA$105,$EI14,FALSE)) -> -205933.2557 | CR14: ='1.Dados_cont_historicos'!DS14*(1+VLOOKUP('1.Dados_cont_historicos'!DS$4,'3.Índices_inflação'!$A$2:$BA$105,$EI14,FALSE)) -> -190196.0418 | CS14: ='1.Dados_cont_historicos'!DT14*(1+VLOOKUP('1.Dados_cont_historicos'!DT$4,'3.Índices_inflação'!$A$2:$BA$105,$EI14,FALSE)) -> -194730.6923 | CT14: ='1.Dados_cont_historicos'!DU14*(1+VLOOKUP('1.Dados_cont_historicos'!DU$4,'3.Índices_inflação'!$A$2:$BA$105,$EI14,FALSE)) -> -190231.8163 | CU14: ='1.Dados_cont_historicos'!DV14*(1+VLOOKUP('1.Dados_cont_historicos'!DV$4,'3.Índices_inflação'!$A$2:$BA$105,$EI14,FALSE)) -> -214851.0946 | CV14: ='1.Dados_cont_historicos'!DW14*(1+VLOOKUP('1.Dados_cont_historicos'!DW$4,'3.Índices_inflação'!$A$2:$BA$105,$EI14,FALSE)) -> -205280.3304 | CW14: ='1.Dados_cont_historicos'!DX14*(1+VLOOKUP('1.Dados_cont_historicos'!DX$4,'3.Índices_inflação'!$A$2:$BA$105,$EI14,FALSE)) -> -182946.3092 | CX14: ='1.Dados_cont_historicos'!DY14*(1+VLOOKUP('1.Dados_cont_historicos'!DY$4,'3.Índices_inflação'!$A$2:$BA$105,$EI14,FALSE)) -> -180668.0173 | CY14: ='1.Dados_cont_historicos'!DZ14*(1+VLOOKUP('1.Dados_cont_historicos'!DZ$4,'3.Índices_inflação'!$A$2:$BA$105,$EI14,FALSE)) -> -162778.4832 | CZ14: ='1.Dados_cont_historicos'!EA14*(1+VLOOKUP('1.Dados_cont_historicos'!EA$4,'3.Índices_inflação'!$A$2:$BA$105,$EI14,FALSE)) -> -167190.7532 | DA14: ='1.Dados_cont_historicos'!EB14*(1+VLOOKUP('1.Dados_cont_historicos'!EB$4,'3.Índices_inflação'!$A$2:$BA$105,$EI14,FALSE)) -> -182228.4664 | DB14: -2290069.219 | DC14: ='1.Dados_cont_historicos'!ED14*(1+VLOOKUP('1.Dados_cont_historicos'!ED$4,'3.Índices_inflação'!$A$2:$BA$105,$EI14,FALSE)) -> -211442.0944 | DD14: ='1.Dados_cont_historicos'!EE14*(1+VLOOKUP('1.Dados_cont_historicos'!EE$4,'3.Índices_inflação'!$A$2:$BA$105,$EI14,FALSE)) -> -200800.087 | DE14: ='1.Dados_cont_historicos'!EF14*(1+VLOOKUP('1.Dados_cont_historicos'!EF$4,'3.Índices_inflação'!$A$2:$BA$105,$EI14,FALSE)) -> -150230.7509 | DF14: ='1.Dados_cont_historicos'!EG14*(1+VLOOKUP('1.Dados_cont_historicos'!EG$4,'3.Índices_inflação'!$A$2:$BA$105,$EI14,FALSE)) -> -167801.3236 | DG14: ='1.Dados_cont_historicos'!EH14*(1+VLOOKUP('1.Dados_cont_historicos'!EH$4,'3.Índices_inflação'!$A$2:$BA$105,$EI14,FALSE)) -> -198409.414 | DH14: ='1.Dados_cont_historicos'!EI14*(1+VLOOKUP('1.Dados_cont_historicos'!EI$4,'3.Índices_inflação'!$A$2:$BA$105,$EI14,FALSE)) -> -188692.0254 | DI14: ='1.Dados_cont_historicos'!EJ14*(1+VLOOKUP('1.Dados_cont_historicos'!EJ$4,'3.Índices_inflação'!$A$2:$BA$105,$EI14,FALSE)) -> -180553.7383 | DJ14: ='1.Dados_cont_historicos'!EK14*(1+VLOOKUP('1.Dados_cont_historicos'!EK$4,'3.Índices_inflação'!$A$2:$BA$105,$EI14,FALSE)) -> -178577.8038 | DK14: ='1.Dados_cont_historicos'!EL14*(1+VLOOKUP('1.Dados_cont_historicos'!EL$4,'3.Índices_inflação'!$A$2:$BA$105,$EI14,FALSE)) -> -199781.5181 | DL14: ='1.Dados_cont_historicos'!EM14*(1+VLOOKUP('1.Dados_cont_historicos'!EM$4,'3.Índices_inflação'!$A$2:$BA$105,$EI14,FALSE)) -> -195957.2156 | DM14: ='1.Dados_cont_historicos'!EN14*(1+VLOOKUP('1.Dados_cont_historicos'!EN$4,'3.Índices_inflação'!$A$2:$BA$105,$EI14,FALSE)) -> -190753.5465 | DN14: ='1.Dados_cont_historicos'!EO14*(1+VLOOKUP('1.Dados_cont_historicos'!EO$4,'3.Índices_inflação'!$A$2:$BA$105,$EI14,FALSE)) -> -184479.1272 | DO14: -2247478.645 | DP14: ='1.Dados_cont_historicos'!EQ14*(1+VLOOKUP('1.Dados_cont_historicos'!EQ$4,'3.Índices_inflação'!$A$2:$BA$105,$EI14,FALSE)) -> -214114.437 | DQ14: ='1.Dados_cont_historicos'!ER14*(1+VLOOKUP('1.Dados_cont_historicos'!ER$4,'3.Índices_inflação'!$A$2:$BA$105,$EI14,FALSE)) -> -227545.7123 | DR14: ='1.Dados_cont_historicos'!ES14*(1+VLOOKUP('1.Dados_cont_historicos'!ES$4,'3.Índices_inflação'!$A$2:$BA$105,$EI14,FALSE)) -> -186317.934 | DS14: ='1.Dados_cont_historicos'!ET14*(1+VLOOKUP('1.Dados_cont_historicos'!ET$4,'3.Índices_inflação'!$A$2:$BA$105,$EI14,FALSE)) -> -200902.0981 | DT14: ='1.Dados_cont_historicos'!EU14*(1+VLOOKUP('1.Dados_cont_historicos'!EU$4,'3.Índices_inflação'!$A$2:$BA$105,$EI14,FALSE)) -> -202121.2389 | DU14: ='1.Dados_cont_historicos'!EV14*(1+VLOOKUP('1.Dados_cont_historicos'!EV$4,'3.Índices_inflação'!$A$2:$BA$105,$EI14,FALSE)) -> -194281.1253 | DV14: ='1.Dados_cont_historicos'!EW14*(1+VLOOKUP('1.Dados_cont_historicos'!EW$4,'3.Índices_inflação'!$A$2:$BA$105,$EI14,FALSE)) -> -197253.7004 | DY14: -468949.6853 | DZ14: -2792479.264 | EA14: -2290069.219 | EB14: -2247478.645 | EC14: -2240897.397 | ED14: -2434788.742 | EE14: -2173741.463 | EF14: =SUM(DJ14:DN14,DP14:DV14) -> -2372085.457 | EH14: IPCA | EI14: =HLOOKUP(EH14,'3.Índices_inflação'!$B$1:$AZ$144,144,FALSE) -> 28
C15: Receitas Financeiras | P15: ='1.Dados_cont_historicos'!AQ15*(1+VLOOKUP('1.Dados_cont_historicos'!AQ$4,'3.Índices_inflação'!$A$2:$BA$105,$EI15,FALSE)) ->  | Q15: ='1.Dados_cont_historicos'!AR15*(1+VLOOKUP('1.Dados_cont_historicos'!AR$4,'3.Índices_inflação'!$A$2:$BA$105,$EI15,FALSE)) ->  | R15: ='1.Dados_cont_historicos'!AS15*(1+VLOOKUP('1.Dados_cont_historicos'!AS$4,'3.Índices_inflação'!$A$2:$BA$105,$EI15,FALSE)) ->  | S15: ='1.Dados_cont_historicos'!AT15*(1+VLOOKUP('1.Dados_cont_historicos'!AT$4,'3.Índices_inflação'!$A$2:$BA$105,$EI15,FALSE)) ->  | T15: ='1.Dados_cont_historicos'!AU15*(1+VLOOKUP('1.Dados_cont_historicos'!AU$4,'3.Índices_inflação'!$A$2:$BA$105,$EI15,FALSE)) ->  | U15: ='1.Dados_cont_historicos'!AV15*(1+VLOOKUP('1.Dados_cont_historicos'!AV$4,'3.Índices_inflação'!$A$2:$BA$105,$EI15,FALSE)) ->  | V15: ='1.Dados_cont_historicos'!AW15*(1+VLOOKUP('1.Dados_cont_historicos'!AW$4,'3.Índices_inflação'!$A$2:$BA$105,$EI15,FALSE)) ->  | W15: ='1.Dados_cont_historicos'!AX15*(1+VLOOKUP('1.Dados_cont_historicos'!AX$4,'3.Índices_inflação'!$A$2:$BA$105,$EI15,FALSE)) ->  | X15: ='1.Dados_cont_historicos'!AY15*(1+VLOOKUP('1.Dados_cont_historicos'!AY$4,'3.Índices_inflação'!$A$2:$BA$105,$EI15,FALSE)) ->  | Y15: ='1.Dados_cont_historicos'!AZ15*(1+VLOOKUP('1.Dados_cont_historicos'!AZ$4,'3.Índices_inflação'!$A$2:$BA$105,$EI15,FALSE)) ->  | Z15: ='1.Dados_cont_historicos'!BA15*(1+VLOOKUP('1.Dados_cont_historicos'!BA$4,'3.Índices_inflação'!$A$2:$BA$105,$EI15,FALSE)) ->  | AA15: ='1.Dados_cont_historicos'!BB15*(1+VLOOKUP('1.Dados_cont_historicos'!BB$4,'3.Índices_inflação'!$A$2:$BA$105,$EI15,FALSE)) ->  | BP15: ='1.Dados_cont_historicos'!CQ15*(1+VLOOKUP('1.Dados_cont_historicos'!CQ$4,'3.Índices_inflação'!$A$2:$BA$105,$EI15,FALSE)) -> -13915055.35 | BQ15: ='1.Dados_cont_historicos'!CR15*(1+VLOOKUP('1.Dados_cont_historicos'!CR$4,'3.Índices_inflação'!$A$2:$BA$105,$EI15,FALSE)) -> -11742512.8 | BR15: ='1.Dados_cont_historicos'!CS15*(1+VLOOKUP('1.Dados_cont_historicos'!CS$4,'3.Índices_inflação'!$A$2:$BA$105,$EI15,FALSE)) -> -12824789.1 | BS15: ='1.Dados_cont_historicos'!CT15*(1+VLOOKUP('1.Dados_cont_historicos'!CT$4,'3.Índices_inflação'!$A$2:$BA$105,$EI15,FALSE)) -> -11270532.85 | BT15: ='1.Dados_cont_historicos'!CU15*(1+VLOOKUP('1.Dados_cont_historicos'!CU$4,'3.Índices_inflação'!$A$2:$BA$105,$EI15,FALSE)) -> -11562115.7 | BU15: ='1.Dados_cont_historicos'!CV15*(1+VLOOKUP('1.Dados_cont_historicos'!CV$4,'3.Índices_inflação'!$A$2:$BA$105,$EI15,FALSE)) -> -14464614.36 | BV15: ='1.Dados_cont_historicos'!CW15*(1+VLOOKUP('1.Dados_cont_historicos'!CW$4,'3.Índices_inflação'!$A$2:$BA$105,$EI15,FALSE)) -> -11835843.95 | BW15: ='1.Dados_cont_historicos'!CX15*(1+VLOOKUP('1.Dados_cont_historicos'!CX$4,'3.Índices_inflação'!$A$2:$BA$105,$EI15,FALSE)) -> -11707693.28 | BX15: ='1.Dados_cont_historicos'!CY15*(1+VLOOKUP('1.Dados_cont_historicos'!CY$4,'3.Índices_inflação'!$A$2:$BA$105,$EI15,FALSE)) -> -10667604.51 | BY15: ='1.Dados_cont_historicos'!CZ15*(1+VLOOKUP('1.Dados_cont_historicos'!CZ$4,'3.Índices_inflação'!$A$2:$BA$105,$EI15,FALSE)) -> -9966394.411 | BZ15: ='1.Dados_cont_historicos'!DA15*(1+VLOOKUP('1.Dados_cont_historicos'!DA$4,'3.Índices_inflação'!$A$2:$BA$105,$EI15,FALSE)) -> -10533274.85 | CA15: ='1.Dados_cont_historicos'!DB15*(1+VLOOKUP('1.Dados_cont_historicos'!DB$4,'3.Índices_inflação'!$A$2:$BA$105,$EI15,FALSE)) -> -11482084.55 | CB15: -141972515.7 | CC15: ='1.Dados_cont_historicos'!DD15*(1+VLOOKUP('1.Dados_cont_historicos'!DD$4,'3.Índices_inflação'!$A$2:$BA$105,$EI15,FALSE)) -> -9364554.021 | CD15: ='1.Dados_cont_historicos'!DE15*(1+VLOOKUP('1.Dados_cont_historicos'!DE$4,'3.Índices_inflação'!$A$2:$BA$105,$EI15,FALSE)) -> -8318949.59 | CE15: ='1.Dados_cont_historicos'!DF15*(1+VLOOKUP('1.Dados_cont_historicos'!DF$4,'3.Índices_inflação'!$A$2:$BA$105,$EI15,FALSE)) -> -10650957.96 | CF15: ='1.Dados_cont_historicos'!DG15*(1+VLOOKUP('1.Dados_cont_historicos'!DG$4,'3.Índices_inflação'!$A$2:$BA$105,$EI15,FALSE)) -> -9569518.653 | CG15: ='1.Dados_cont_historicos'!DH15*(1+VLOOKUP('1.Dados_cont_historicos'!DH$4,'3.Índices_inflação'!$A$2:$BA$105,$EI15,FALSE)) -> -11400429.28 | CH15: ='1.Dados_cont_historicos'!DI15*(1+VLOOKUP('1.Dados_cont_historicos'!DI$4,'3.Índices_inflação'!$A$2:$BA$105,$EI15,FALSE)) -> -7604914.046 | CI15: ='1.Dados_cont_historicos'!DJ15*(1+VLOOKUP('1.Dados_cont_historicos'!DJ$4,'3.Índices_inflação'!$A$2:$BA$105,$EI15,FALSE)) -> -8213299.192 | CJ15: ='1.Dados_cont_historicos'!DK15*(1+VLOOKUP('1.Dados_cont_historicos'!DK$4,'3.Índices_inflação'!$A$2:$BA$105,$EI15,FALSE)) -> -13560820.64 | CK15: ='1.Dados_cont_historicos'!DL15*(1+VLOOKUP('1.Dados_cont_historicos'!DL$4,'3.Índices_inflação'!$A$2:$BA$105,$EI15,FALSE)) -> -6700464.726 | CL15: ='1.Dados_cont_historicos'!DM15*(1+VLOOKUP('1.Dados_cont_historicos'!DM$4,'3.Índices_inflação'!$A$2:$BA$105,$EI15,FALSE)) -> -6644182.947 | CM15: ='1.Dados_cont_historicos'!DN15*(1+VLOOKUP('1.Dados_cont_historicos'!DN$4,'3.Índices_inflação'!$A$2:$BA$105,$EI15,FALSE)) -> -9081851.379 | CN15: ='1.Dados_cont_historicos'!DO15*(1+VLOOKUP('1.Dados_cont_historicos'!DO$4,'3.Índices_inflação'!$A$2:$BA$105,$EI15,FALSE)) -> -12204723.08 | CO15: -113314665.5 | CP15: ='1.Dados_cont_historicos'!DQ15*(1+VLOOKUP('1.Dados_cont_historicos'!DQ$4,'3.Índices_inflação'!$A$2:$BA$105,$EI15,FALSE)) -> -8902453.244 | CQ15: ='1.Dados_cont_historicos'!DR15*(1+VLOOKUP('1.Dados_cont_historicos'!DR$4,'3.Índices_inflação'!$A$2:$BA$105,$EI15,FALSE)) -> -7271265.383 | CR15: ='1.Dados_cont_historicos'!DS15*(1+VLOOKUP('1.Dados_cont_historicos'!DS$4,'3.Índices_inflação'!$A$2:$BA$105,$EI15,FALSE)) -> -7430742.577 | CS15: ='1.Dados_cont_historicos'!DT15*(1+VLOOKUP('1.Dados_cont_historicos'!DT$4,'3.Índices_inflação'!$A$2:$BA$105,$EI15,FALSE)) -> -6789781.664 | CT15: ='1.Dados_cont_historicos'!DU15*(1+VLOOKUP('1.Dados_cont_historicos'!DU$4,'3.Índices_inflação'!$A$2:$BA$105,$EI15,FALSE)) -> -5800374.751 | CU15: ='1.Dados_cont_historicos'!DV15*(1+VLOOKUP('1.Dados_cont_historicos'!DV$4,'3.Índices_inflação'!$A$2:$BA$105,$EI15,FALSE)) -> -17221301.52 | CV15: ='1.Dados_cont_historicos'!DW15*(1+VLOOKUP('1.Dados_cont_historicos'!DW$4,'3.Índices_inflação'!$A$2:$BA$105,$EI15,FALSE)) -> -9826871.265 | CW15: ='1.Dados_cont_historicos'!DX15*(1+VLOOKUP('1.Dados_cont_historicos'!DX$4,'3.Índices_inflação'!$A$2:$BA$105,$EI15,FALSE)) -> -10005291.01 | CX15: ='1.Dados_cont_historicos'!DY15*(1+VLOOKUP('1.Dados_cont_historicos'!DY$4,'3.Índices_inflação'!$A$2:$BA$105,$EI15,FALSE)) -> -9492265.153 | CY15: ='1.Dados_cont_historicos'!DZ15*(1+VLOOKUP('1.Dados_cont_historicos'!DZ$4,'3.Índices_inflação'!$A$2:$BA$105,$EI15,FALSE)) -> -9505546.888 | CZ15: ='1.Dados_cont_historicos'!EA15*(1+VLOOKUP('1.Dados_cont_historicos'!EA$4,'3.Índices_inflação'!$A$2:$BA$105,$EI15,FALSE)) -> -10244343.45 | DA15: ='1.Dados_cont_historicos'!EB15*(1+VLOOKUP('1.Dados_cont_historicos'!EB$4,'3.Índices_inflação'!$A$2:$BA$105,$EI15,FALSE)) -> -15797228.31 | DB15: -118287465.2 | DC15: ='1.Dados_cont_historicos'!ED15*(1+VLOOKUP('1.Dados_cont_historicos'!ED$4,'3.Índices_inflação'!$A$2:$BA$105,$EI15,FALSE)) -> -9526522.208 | DD15: ='1.Dados_cont_historicos'!EE15*(1+VLOOKUP('1.Dados_cont_historicos'!EE$4,'3.Índices_inflação'!$A$2:$BA$105,$EI15,FALSE)) -> -8558760.611 | DE15: ='1.Dados_cont_historicos'!EF15*(1+VLOOKUP('1.Dados_cont_historicos'!EF$4,'3.Índices_inflação'!$A$2:$BA$105,$EI15,FALSE)) -> -10045546.45 | DF15: ='1.Dados_cont_historicos'!EG15*(1+VLOOKUP('1.Dados_cont_historicos'!EG$4,'3.Índices_inflação'!$A$2:$BA$105,$EI15,FALSE)) -> -7963346.93 | DG15: ='1.Dados_cont_historicos'!EH15*(1+VLOOKUP('1.Dados_cont_historicos'!EH$4,'3.Índices_inflação'!$A$2:$BA$105,$EI15,FALSE)) -> -8433553.956 | DH15: ='1.Dados_cont_historicos'!EI15*(1+VLOOKUP('1.Dados_cont_historicos'!EI$4,'3.Índices_inflação'!$A$2:$BA$105,$EI15,FALSE)) -> -13261105.1 | DI15: ='1.Dados_cont_historicos'!EJ15*(1+VLOOKUP('1.Dados_cont_historicos'!EJ$4,'3.Índices_inflação'!$A$2:$BA$105,$EI15,FALSE)) -> -9786254.855 | DJ15: ='1.Dados_cont_historicos'!EK15*(1+VLOOKUP('1.Dados_cont_historicos'!EK$4,'3.Índices_inflação'!$A$2:$BA$105,$EI15,FALSE)) -> -8818805.326 | DK15: ='1.Dados_cont_historicos'!EL15*(1+VLOOKUP('1.Dados_cont_historicos'!EL$4,'3.Índices_inflação'!$A$2:$BA$105,$EI15,FALSE)) -> -16276703.73 | DL15: ='1.Dados_cont_historicos'!EM15*(1+VLOOKUP('1.Dados_cont_historicos'!EM$4,'3.Índices_inflação'!$A$2:$BA$105,$EI15,FALSE)) -> -8639856.384 | DM15: ='1.Dados_cont_historicos'!EN15*(1+VLOOKUP('1.Dados_cont_historicos'!EN$4,'3.Índices_inflação'!$A$2:$BA$105,$EI15,FALSE)) -> -10341262.02 | DN15: ='1.Dados_cont_historicos'!EO15*(1+VLOOKUP('1.Dados_cont_historicos'!EO$4,'3.Índices_inflação'!$A$2:$BA$105,$EI15,FALSE)) -> -10722644.51 | DO15: -122374362.1 | DP15: ='1.Dados_cont_historicos'!EQ15*(1+VLOOKUP('1.Dados_cont_historicos'!EQ$4,'3.Índices_inflação'!$A$2:$BA$105,$EI15,FALSE)) -> -8891324.464 | DQ15: ='1.Dados_cont_historicos'!ER15*(1+VLOOKUP('1.Dados_cont_historicos'!ER$4,'3.Índices_inflação'!$A$2:$BA$105,$EI15,FALSE)) -> -8989242.698 | DR15: ='1.Dados_cont_historicos'!ES15*(1+VLOOKUP('1.Dados_cont_historicos'!ES$4,'3.Índices_inflação'!$A$2:$BA$105,$EI15,FALSE)) -> -10177607.33 | DS15: ='1.Dados_cont_historicos'!ET15*(1+VLOOKUP('1.Dados_cont_historicos'!ET$4,'3.Índices_inflação'!$A$2:$BA$105,$EI15,FALSE)) -> -15739397.5 | DT15: ='1.Dados_cont_historicos'!EU15*(1+VLOOKUP('1.Dados_cont_historicos'!EU$4,'3.Índices_inflação'!$A$2:$BA$105,$EI15,FALSE)) -> -11492756.87 | DU15: ='1.Dados_cont_historicos'!EV15*(1+VLOOKUP('1.Dados_cont_historicos'!EV$4,'3.Índices_inflação'!$A$2:$BA$105,$EI15,FALSE)) -> -12330455.9 | DV15: ='1.Dados_cont_historicos'!EW15*(1+VLOOKUP('1.Dados_cont_historicos'!EW$4,'3.Índices_inflação'!$A$2:$BA$105,$EI15,FALSE)) -> -13057691.3 | DY15: -141972515.7 | DZ15: -113314665.5 | EA15: -118287465.2 | EB15: -122374362.1 | EC15: -119479674.3 | ED15: -111434833.2 | EE15: -122619764.9 | EF15: -135477748 | EH15: IPCA | EI15: =HLOOKUP(EH15,'3.Índices_inflação'!$B$1:$AZ$144,144,FALSE) -> 28
C16: Descontos e multas por impontualidade | P16: ='1.Dados_cont_historicos'!AQ16*(1+VLOOKUP('1.Dados_cont_historicos'!AQ$4,'3.Índices_inflação'!$A$2:$BA$105,$EI16,FALSE)) ->  | Q16: ='1.Dados_cont_historicos'!AR16*(1+VLOOKUP('1.Dados_cont_historicos'!AR$4,'3.Índices_inflação'!$A$2:$BA$105,$EI16,FALSE)) ->  | R16: ='1.Dados_cont_historicos'!AS16*(1+VLOOKUP('1.Dados_cont_historicos'!AS$4,'3.Índices_inflação'!$A$2:$BA$105,$EI16,FALSE)) ->  | S16: ='1.Dados_cont_historicos'!AT16*(1+VLOOKUP('1.Dados_cont_historicos'!AT$4,'3.Índices_inflação'!$A$2:$BA$105,$EI16,FALSE)) ->  | T16: ='1.Dados_cont_historicos'!AU16*(1+VLOOKUP('1.Dados_cont_historicos'!AU$4,'3.Índices_inflação'!$A$2:$BA$105,$EI16,FALSE)) ->  | U16: ='1.Dados_cont_historicos'!AV16*(1+VLOOKUP('1.Dados_cont_historicos'!AV$4,'3.Índices_inflação'!$A$2:$BA$105,$EI16,FALSE)) ->  | V16: ='1.Dados_cont_historicos'!AW16*(1+VLOOKUP('1.Dados_cont_historicos'!AW$4,'3.Índices_inflação'!$A$2:$BA$105,$EI16,FALSE)) ->  | W16: ='1.Dados_cont_historicos'!AX16*(1+VLOOKUP('1.Dados_cont_historicos'!AX$4,'3.Índices_inflação'!$A$2:$BA$105,$EI16,FALSE)) ->  | X16: ='1.Dados_cont_historicos'!AY16*(1+VLOOKUP('1.Dados_cont_historicos'!AY$4,'3.Índices_inflação'!$A$2:$BA$105,$EI16,FALSE)) ->  | Y16: ='1.Dados_cont_historicos'!AZ16*(1+VLOOKUP('1.Dados_cont_historicos'!AZ$4,'3.Índices_inflação'!$A$2:$BA$105,$EI16,FALSE)) ->  | Z16: ='1.Dados_cont_historicos'!BA16*(1+VLOOKUP('1.Dados_cont_historicos'!BA$4,'3.Índices_inflação'!$A$2:$BA$105,$EI16,FALSE)) ->  | AA16: ='1.Dados_cont_historicos'!BB16*(1+VLOOKUP('1.Dados_cont_historicos'!BB$4,'3.Índices_inflação'!$A$2:$BA$105,$EI16,FALSE)) ->  | BP16: ='1.Dados_cont_historicos'!CQ16*(1+VLOOKUP('1.Dados_cont_historicos'!CQ$4,'3.Índices_inflação'!$A$2:$BA$105,$EI16,FALSE)) -> -4103230.525 | BQ16: ='1.Dados_cont_historicos'!CR16*(1+VLOOKUP('1.Dados_cont_historicos'!CR$4,'3.Índices_inflação'!$A$2:$BA$105,$EI16,FALSE)) -> -3954508.8 | BR16: ='1.Dados_cont_historicos'!CS16*(1+VLOOKUP('1.Dados_cont_historicos'!CS$4,'3.Índices_inflação'!$A$2:$BA$105,$EI16,FALSE)) -> -3960950.476 | BS16: ='1.Dados_cont_historicos'!CT16*(1+VLOOKUP('1.Dados_cont_historicos'!CT$4,'3.Índices_inflação'!$A$2:$BA$105,$EI16,FALSE)) -> -3975487.346 | BT16: ='1.Dados_cont_historicos'!CU16*(1+VLOOKUP('1.Dados_cont_historicos'!CU$4,'3.Índices_inflação'!$A$2:$BA$105,$EI16,FALSE)) -> -4323142.06 | BU16: ='1.Dados_cont_historicos'!CV16*(1+VLOOKUP('1.Dados_cont_historicos'!CV$4,'3.Índices_inflação'!$A$2:$BA$105,$EI16,FALSE)) -> -4188631.639 | BV16: ='1.Dados_cont_historicos'!CW16*(1+VLOOKUP('1.Dados_cont_historicos'!CW$4,'3.Índices_inflação'!$A$2:$BA$105,$EI16,FALSE)) -> -4080111.58 | BW16: ='1.Dados_cont_historicos'!CX16*(1+VLOOKUP('1.Dados_cont_historicos'!CX$4,'3.Índices_inflação'!$A$2:$BA$105,$EI16,FALSE)) -> -3925499.23 | BX16: ='1.Dados_cont_historicos'!CY16*(1+VLOOKUP('1.Dados_cont_historicos'!CY$4,'3.Índices_inflação'!$A$2:$BA$105,$EI16,FALSE)) -> -4061115.475 | BY16: ='1.Dados_cont_historicos'!CZ16*(1+VLOOKUP('1.Dados_cont_historicos'!CZ$4,'3.Índices_inflação'!$A$2:$BA$105,$EI16,FALSE)) -> -3610977.016 | BZ16: ='1.Dados_cont_historicos'!DA16*(1+VLOOKUP('1.Dados_cont_historicos'!DA$4,'3.Índices_inflação'!$A$2:$BA$105,$EI16,FALSE)) -> -4672138.509 | CA16: ='1.Dados_cont_historicos'!DB16*(1+VLOOKUP('1.Dados_cont_historicos'!DB$4,'3.Índices_inflação'!$A$2:$BA$105,$EI16,FALSE)) -> -5016231.762 | CB16: -49872024.42 | CC16: ='1.Dados_cont_historicos'!DD16*(1+VLOOKUP('1.Dados_cont_historicos'!DD$4,'3.Índices_inflação'!$A$2:$BA$105,$EI16,FALSE)) -> -4555971.761 | CD16: ='1.Dados_cont_historicos'!DE16*(1+VLOOKUP('1.Dados_cont_historicos'!DE$4,'3.Índices_inflação'!$A$2:$BA$105,$EI16,FALSE)) -> -4108768.002 | CE16: ='1.Dados_cont_historicos'!DF16*(1+VLOOKUP('1.Dados_cont_historicos'!DF$4,'3.Índices_inflação'!$A$2:$BA$105,$EI16,FALSE)) -> -5067403.684 | CF16: ='1.Dados_cont_historicos'!DG16*(1+VLOOKUP('1.Dados_cont_historicos'!DG$4,'3.Índices_inflação'!$A$2:$BA$105,$EI16,FALSE)) -> -4502854.89 | CG16: ='1.Dados_cont_historicos'!DH16*(1+VLOOKUP('1.Dados_cont_historicos'!DH$4,'3.Índices_inflação'!$A$2:$BA$105,$EI16,FALSE)) -> -4778930.124 | CH16: ='1.Dados_cont_historicos'!DI16*(1+VLOOKUP('1.Dados_cont_historicos'!DI$4,'3.Índices_inflação'!$A$2:$BA$105,$EI16,FALSE)) -> -4534300.721 | CI16: ='1.Dados_cont_historicos'!DJ16*(1+VLOOKUP('1.Dados_cont_historicos'!DJ$4,'3.Índices_inflação'!$A$2:$BA$105,$EI16,FALSE)) -> -4615402.408 | CJ16: ='1.Dados_cont_historicos'!DK16*(1+VLOOKUP('1.Dados_cont_historicos'!DK$4,'3.Índices_inflação'!$A$2:$BA$105,$EI16,FALSE)) -> -4178121.157 | CK16: ='1.Dados_cont_historicos'!DL16*(1+VLOOKUP('1.Dados_cont_historicos'!DL$4,'3.Índices_inflação'!$A$2:$BA$105,$EI16,FALSE)) -> -3490050.595 | CL16: ='1.Dados_cont_historicos'!DM16*(1+VLOOKUP('1.Dados_cont_historicos'!DM$4,'3.Índices_inflação'!$A$2:$BA$105,$EI16,FALSE)) -> -2073180.989 | CM16: ='1.Dados_cont_historicos'!DN16*(1+VLOOKUP('1.Dados_cont_historicos'!DN$4,'3.Índices_inflação'!$A$2:$BA$105,$EI16,FALSE)) -> -4675052.749 | CN16: ='1.Dados_cont_historicos'!DO16*(1+VLOOKUP('1.Dados_cont_historicos'!DO$4,'3.Índices_inflação'!$A$2:$BA$105,$EI16,FALSE)) -> -4425051.216 | CO16: -51005088.3 | CP16: ='1.Dados_cont_historicos'!DQ16*(1+VLOOKUP('1.Dados_cont_historicos'!DQ$4,'3.Índices_inflação'!$A$2:$BA$105,$EI16,FALSE)) -> -4410477.168 | CQ16: ='1.Dados_cont_historicos'!DR16*(1+VLOOKUP('1.Dados_cont_historicos'!DR$4,'3.Índices_inflação'!$A$2:$BA$105,$EI16,FALSE)) -> -3901135.551 | CR16: ='1.Dados_cont_historicos'!DS16*(1+VLOOKUP('1.Dados_cont_historicos'!DS$4,'3.Índices_inflação'!$A$2:$BA$105,$EI16,FALSE)) -> -5186358.288 | CS16: ='1.Dados_cont_historicos'!DT16*(1+VLOOKUP('1.Dados_cont_historicos'!DT$4,'3.Índices_inflação'!$A$2:$BA$105,$EI16,FALSE)) -> -3983278.95 | CT16: ='1.Dados_cont_historicos'!DU16*(1+VLOOKUP('1.Dados_cont_historicos'!DU$4,'3.Índices_inflação'!$A$2:$BA$105,$EI16,FALSE)) -> -1404429.053 | CU16: ='1.Dados_cont_historicos'!DV16*(1+VLOOKUP('1.Dados_cont_historicos'!DV$4,'3.Índices_inflação'!$A$2:$BA$105,$EI16,FALSE)) -> -7914008.852 | CV16: ='1.Dados_cont_historicos'!DW16*(1+VLOOKUP('1.Dados_cont_historicos'!DW$4,'3.Índices_inflação'!$A$2:$BA$105,$EI16,FALSE)) -> -3939507.238 | CW16: ='1.Dados_cont_historicos'!DX16*(1+VLOOKUP('1.Dados_cont_historicos'!DX$4,'3.Índices_inflação'!$A$2:$BA$105,$EI16,FALSE)) -> -3917900.487 | CX16: ='1.Dados_cont_historicos'!DY16*(1+VLOOKUP('1.Dados_cont_historicos'!DY$4,'3.Índices_inflação'!$A$2:$BA$105,$EI16,FALSE)) -> -4157854.867 | CY16: ='1.Dados_cont_historicos'!DZ16*(1+VLOOKUP('1.Dados_cont_historicos'!DZ$4,'3.Índices_inflação'!$A$2:$BA$105,$EI16,FALSE)) -> -3665592.703 | CZ16: ='1.Dados_cont_historicos'!EA16*(1+VLOOKUP('1.Dados_cont_historicos'!EA$4,'3.Índices_inflação'!$A$2:$BA$105,$EI16,FALSE)) -> -4842799.011 | DA16: ='1.Dados_cont_historicos'!EB16*(1+VLOOKUP('1.Dados_cont_historicos'!EB$4,'3.Índices_inflação'!$A$2:$BA$105,$EI16,FALSE)) -> -4437359.43 | DB16: -51760701.6 | DC16: ='1.Dados_cont_historicos'!ED16*(1+VLOOKUP('1.Dados_cont_historicos'!ED$4,'3.Índices_inflação'!$A$2:$BA$105,$EI16,FALSE)) -> -4164171.675 | DD16: ='1.Dados_cont_historicos'!EE16*(1+VLOOKUP('1.Dados_cont_historicos'!EE$4,'3.Índices_inflação'!$A$2:$BA$105,$EI16,FALSE)) -> -3477889.009 | DE16: ='1.Dados_cont_historicos'!EF16*(1+VLOOKUP('1.Dados_cont_historicos'!EF$4,'3.Índices_inflação'!$A$2:$BA$105,$EI16,FALSE)) -> -4748403.162 | DF16: ='1.Dados_cont_historicos'!EG16*(1+VLOOKUP('1.Dados_cont_historicos'!EG$4,'3.Índices_inflação'!$A$2:$BA$105,$EI16,FALSE)) -> -3518312.667 | DG16: ='1.Dados_cont_historicos'!EH16*(1+VLOOKUP('1.Dados_cont_historicos'!EH$4,'3.Índices_inflação'!$A$2:$BA$105,$EI16,FALSE)) -> -3561793.827 | DH16: ='1.Dados_cont_historicos'!EI16*(1+VLOOKUP('1.Dados_cont_historicos'!EI$4,'3.Índices_inflação'!$A$2:$BA$105,$EI16,FALSE)) -> -2188708.003 | DI16: ='1.Dados_cont_historicos'!EJ16*(1+VLOOKUP('1.Dados_cont_historicos'!EJ$4,'3.Índices_inflação'!$A$2:$BA$105,$EI16,FALSE)) -> -4859227.017 | DJ16: ='1.Dados_cont_historicos'!EK16*(1+VLOOKUP('1.Dados_cont_historicos'!EK$4,'3.Índices_inflação'!$A$2:$BA$105,$EI16,FALSE)) -> -4115253.6 | DK16: ='1.Dados_cont_historicos'!EL16*(1+VLOOKUP('1.Dados_cont_historicos'!EL$4,'3.Índices_inflação'!$A$2:$BA$105,$EI16,FALSE)) -> -4356628.992 | DL16: ='1.Dados_cont_historicos'!EM16*(1+VLOOKUP('1.Dados_cont_historicos'!EM$4,'3.Índices_inflação'!$A$2:$BA$105,$EI16,FALSE)) -> -3638540.342 | DM16: ='1.Dados_cont_historicos'!EN16*(1+VLOOKUP('1.Dados_cont_historicos'!EN$4,'3.Índices_inflação'!$A$2:$BA$105,$EI16,FALSE)) -> -4718125.97 | DN16: ='1.Dados_cont_historicos'!EO16*(1+VLOOKUP('1.Dados_cont_historicos'!EO$4,'3.Índices_inflação'!$A$2:$BA$105,$EI16,FALSE)) -> -4431941.026 | DO16: -47778995.29 | DP16: ='1.Dados_cont_historicos'!EQ16*(1+VLOOKUP('1.Dados_cont_historicos'!EQ$4,'3.Índices_inflação'!$A$2:$BA$105,$EI16,FALSE)) -> -4197224.578 | DQ16: ='1.Dados_cont_historicos'!ER16*(1+VLOOKUP('1.Dados_cont_historicos'!ER$4,'3.Índices_inflação'!$A$2:$BA$105,$EI16,FALSE)) -> -4151206.7 | DR16: ='1.Dados_cont_historicos'!ES16*(1+VLOOKUP('1.Dados_cont_historicos'!ES$4,'3.Índices_inflação'!$A$2:$BA$105,$EI16,FALSE)) -> -4781564.934 | DS16: ='1.Dados_cont_historicos'!ET16*(1+VLOOKUP('1.Dados_cont_historicos'!ET$4,'3.Índices_inflação'!$A$2:$BA$105,$EI16,FALSE)) -> -3929808.798 | DT16: ='1.Dados_cont_historicos'!EU16*(1+VLOOKUP('1.Dados_cont_historicos'!EU$4,'3.Índices_inflação'!$A$2:$BA$105,$EI16,FALSE)) -> -4230500.888 | DU16: ='1.Dados_cont_historicos'!EV16*(1+VLOOKUP('1.Dados_cont_historicos'!EV$4,'3.Índices_inflação'!$A$2:$BA$105,$EI16,FALSE)) -> -4265123.918 | DV16: ='1.Dados_cont_historicos'!EW16*(1+VLOOKUP('1.Dados_cont_historicos'!EW$4,'3.Índices_inflação'!$A$2:$BA$105,$EI16,FALSE)) -> -4104399.036 | DY16: -49872024.42 | DZ16: -51005088.3 | EA16: -51760701.6 | EB16: -47778995.29 | EC16: -53449593.58 | ED16: -49580651.81 | EE16: -47540011.86 | EF16: -50920318.78 | EH16: IPCA | EI16: =HLOOKUP(EH16,'3.Índices_inflação'!$B$1:$AZ$144,144,FALSE) -> 28
C17: Royalties | P17: ='1.Dados_cont_historicos'!AQ17*(1+VLOOKUP('1.Dados_cont_historicos'!AQ$4,'3.Índices_inflação'!$A$2:$BA$105,$EI17,FALSE)) ->  | Q17: ='1.Dados_cont_historicos'!AR17*(1+VLOOKUP('1.Dados_cont_historicos'!AR$4,'3.Índices_inflação'!$A$2:$BA$105,$EI17,FALSE)) ->  | R17: ='1.Dados_cont_historicos'!AS17*(1+VLOOKUP('1.Dados_cont_historicos'!AS$4,'3.Índices_inflação'!$A$2:$BA$105,$EI17,FALSE)) ->  | S17: ='1.Dados_cont_historicos'!AT17*(1+VLOOKUP('1.Dados_cont_historicos'!AT$4,'3.Índices_inflação'!$A$2:$BA$105,$EI17,FALSE)) ->  | T17: ='1.Dados_cont_historicos'!AU17*(1+VLOOKUP('1.Dados_cont_historicos'!AU$4,'3.Índices_inflação'!$A$2:$BA$105,$EI17,FALSE)) ->  | U17: ='1.Dados_cont_historicos'!AV17*(1+VLOOKUP('1.Dados_cont_historicos'!AV$4,'3.Índices_inflação'!$A$2:$BA$105,$EI17,FALSE)) ->  | V17: ='1.Dados_cont_historicos'!AW17*(1+VLOOKUP('1.Dados_cont_historicos'!AW$4,'3.Índices_inflação'!$A$2:$BA$105,$EI17,FALSE)) ->  | W17: ='1.Dados_cont_historicos'!AX17*(1+VLOOKUP('1.Dados_cont_historicos'!AX$4,'3.Índices_inflação'!$A$2:$BA$105,$EI17,FALSE)) ->  | X17: ='1.Dados_cont_historicos'!AY17*(1+VLOOKUP('1.Dados_cont_historicos'!AY$4,'3.Índices_inflação'!$A$2:$BA$105,$EI17,FALSE)) ->  | Y17: ='1.Dados_cont_historicos'!AZ17*(1+VLOOKUP('1.Dados_cont_historicos'!AZ$4,'3.Índices_inflação'!$A$2:$BA$105,$EI17,FALSE)) ->  | Z17: ='1.Dados_cont_historicos'!BA17*(1+VLOOKUP('1.Dados_cont_historicos'!BA$4,'3.Índices_inflação'!$A$2:$BA$105,$EI17,FALSE)) ->  | AA17: ='1.Dados_cont_historicos'!BB17*(1+VLOOKUP('1.Dados_cont_historicos'!BB$4,'3.Índices_inflação'!$A$2:$BA$105,$EI17,FALSE)) ->  | BP17: ='1.Dados_cont_historicos'!CQ17*(1+VLOOKUP('1.Dados_cont_historicos'!CQ$4,'3.Índices_inflação'!$A$2:$BA$105,$EI17,FALSE)) -> 0 | BQ17: ='1.Dados_cont_historicos'!CR17*(1+VLOOKUP('1.Dados_cont_historicos'!CR$4,'3.Índices_inflação'!$A$2:$BA$105,$EI17,FALSE)) -> 0 | BR17: ='1.Dados_cont_historicos'!CS17*(1+VLOOKUP('1.Dados_cont_historicos'!CS$4,'3.Índices_inflação'!$A$2:$BA$105,$EI17,FALSE)) -> 0 | BS17: ='1.Dados_cont_historicos'!CT17*(1+VLOOKUP('1.Dados_cont_historicos'!CT$4,'3.Índices_inflação'!$A$2:$BA$105,$EI17,FALSE)) -> 0 | BT17: ='1.Dados_cont_historicos'!CU17*(1+VLOOKUP('1.Dados_cont_historicos'!CU$4,'3.Índices_inflação'!$A$2:$BA$105,$EI17,FALSE)) -> 0 | BU17: ='1.Dados_cont_historicos'!CV17*(1+VLOOKUP('1.Dados_cont_historicos'!CV$4,'3.Índices_inflação'!$A$2:$BA$105,$EI17,FALSE)) -> 0 | BV17: ='1.Dados_cont_historicos'!CW17*(1+VLOOKUP('1.Dados_cont_historicos'!CW$4,'3.Índices_inflação'!$A$2:$BA$105,$EI17,FALSE)) -> 0 | BW17: ='1.Dados_cont_historicos'!CX17*(1+VLOOKUP('1.Dados_cont_historicos'!CX$4,'3.Índices_inflação'!$A$2:$BA$105,$EI17,FALSE)) -> 0 | BX17: ='1.Dados_cont_historicos'!CY17*(1+VLOOKUP('1.Dados_cont_historicos'!CY$4,'3.Índices_inflação'!$A$2:$BA$105,$EI17,FALSE)) -> 0 | BY17: ='1.Dados_cont_historicos'!CZ17*(1+VLOOKUP('1.Dados_cont_historicos'!CZ$4,'3.Índices_inflação'!$A$2:$BA$105,$EI17,FALSE)) -> 0 | BZ17: ='1.Dados_cont_historicos'!DA17*(1+VLOOKUP('1.Dados_cont_historicos'!DA$4,'3.Índices_inflação'!$A$2:$BA$105,$EI17,FALSE)) -> 0 | CA17: ='1.Dados_cont_historicos'!DB17*(1+VLOOKUP('1.Dados_cont_historicos'!DB$4,'3.Índices_inflação'!$A$2:$BA$105,$EI17,FALSE)) -> 0 | CB17: 0 | CC17: ='1.Dados_cont_historicos'!DD17*(1+VLOOKUP('1.Dados_cont_historicos'!DD$4,'3.Índices_inflação'!$A$2:$BA$105,$EI17,FALSE)) -> 0 | CD17: ='1.Dados_cont_historicos'!DE17*(1+VLOOKUP('1.Dados_cont_historicos'!DE$4,'3.Índices_inflação'!$A$2:$BA$105,$EI17,FALSE)) -> 0 | CE17: ='1.Dados_cont_historicos'!DF17*(1+VLOOKUP('1.Dados_cont_historicos'!DF$4,'3.Índices_inflação'!$A$2:$BA$105,$EI17,FALSE)) -> 0 | CF17: ='1.Dados_cont_historicos'!DG17*(1+VLOOKUP('1.Dados_cont_historicos'!DG$4,'3.Índices_inflação'!$A$2:$BA$105,$EI17,FALSE)) -> 0 | CG17: ='1.Dados_cont_historicos'!DH17*(1+VLOOKUP('1.Dados_cont_historicos'!DH$4,'3.Índices_inflação'!$A$2:$BA$105,$EI17,FALSE)) -> 0 | CH17: ='1.Dados_cont_historicos'!DI17*(1+VLOOKUP('1.Dados_cont_historicos'!DI$4,'3.Índices_inflação'!$A$2:$BA$105,$EI17,FALSE)) -> 0 | CI17: ='1.Dados_cont_historicos'!DJ17*(1+VLOOKUP('1.Dados_cont_historicos'!DJ$4,'3.Índices_inflação'!$A$2:$BA$105,$EI17,FALSE)) -> 0 | CJ17: ='1.Dados_cont_historicos'!DK17*(1+VLOOKUP('1.Dados_cont_historicos'!DK$4,'3.Índices_inflação'!$A$2:$BA$105,$EI17,FALSE)) -> 0 | CK17: ='1.Dados_cont_historicos'!DL17*(1+VLOOKUP('1.Dados_cont_historicos'!DL$4,'3.Índices_inflação'!$A$2:$BA$105,$EI17,FALSE)) -> 0 | CL17: ='1.Dados_cont_historicos'!DM17*(1+VLOOKUP('1.Dados_cont_historicos'!DM$4,'3.Índices_inflação'!$A$2:$BA$105,$EI17,FALSE)) -> 0 | CM17: ='1.Dados_cont_historicos'!DN17*(1+VLOOKUP('1.Dados_cont_historicos'!DN$4,'3.Índices_inflação'!$A$2:$BA$105,$EI17,FALSE)) -> 0 | CN17: ='1.Dados_cont_historicos'!DO17*(1+VLOOKUP('1.Dados_cont_historicos'!DO$4,'3.Índices_inflação'!$A$2:$BA$105,$EI17,FALSE)) -> 0 | CO17: 0 | CP17: ='1.Dados_cont_historicos'!DQ17*(1+VLOOKUP('1.Dados_cont_historicos'!DQ$4,'3.Índices_inflação'!$A$2:$BA$105,$EI17,FALSE)) -> 0 | CQ17: ='1.Dados_cont_historicos'!DR17*(1+VLOOKUP('1.Dados_cont_historicos'!DR$4,'3.Índices_inflação'!$A$2:$BA$105,$EI17,FALSE)) -> 0 | CR17: ='1.Dados_cont_historicos'!DS17*(1+VLOOKUP('1.Dados_cont_historicos'!DS$4,'3.Índices_inflação'!$A$2:$BA$105,$EI17,FALSE)) -> 0 | CS17: ='1.Dados_cont_historicos'!DT17*(1+VLOOKUP('1.Dados_cont_historicos'!DT$4,'3.Índices_inflação'!$A$2:$BA$105,$EI17,FALSE)) -> 0 | CT17: ='1.Dados_cont_historicos'!DU17*(1+VLOOKUP('1.Dados_cont_historicos'!DU$4,'3.Índices_inflação'!$A$2:$BA$105,$EI17,FALSE)) -> 0 | CU17: ='1.Dados_cont_historicos'!DV17*(1+VLOOKUP('1.Dados_cont_historicos'!DV$4,'3.Índices_inflação'!$A$2:$BA$105,$EI17,FALSE)) -> 0 | CV17: ='1.Dados_cont_historicos'!DW17*(1+VLOOKUP('1.Dados_cont_historicos'!DW$4,'3.Índices_inflação'!$A$2:$BA$105,$EI17,FALSE)) -> 0 | CW17: ='1.Dados_cont_historicos'!DX17*(1+VLOOKUP('1.Dados_cont_historicos'!DX$4,'3.Índices_inflação'!$A$2:$BA$105,$EI17,FALSE)) -> 0 | CX17: ='1.Dados_cont_historicos'!DY17*(1+VLOOKUP('1.Dados_cont_historicos'!DY$4,'3.Índices_inflação'!$A$2:$BA$105,$EI17,FALSE)) -> 0 | CY17: ='1.Dados_cont_historicos'!DZ17*(1+VLOOKUP('1.Dados_cont_historicos'!DZ$4,'3.Índices_inflação'!$A$2:$BA$105,$EI17,FALSE)) -> 0 | CZ17: ='1.Dados_cont_historicos'!EA17*(1+VLOOKUP('1.Dados_cont_historicos'!EA$4,'3.Índices_inflação'!$A$2:$BA$105,$EI17,FALSE)) -> 0 | DA17: ='1.Dados_cont_historicos'!EB17*(1+VLOOKUP('1.Dados_cont_historicos'!EB$4,'3.Índices_inflação'!$A$2:$BA$105,$EI17,FALSE)) -> 0 | DB17: 0 | DC17: ='1.Dados_cont_historicos'!ED17*(1+VLOOKUP('1.Dados_cont_historicos'!ED$4,'3.Índices_inflação'!$A$2:$BA$105,$EI17,FALSE)) -> 0 | DD17: ='1.Dados_cont_historicos'!EE17*(1+VLOOKUP('1.Dados_cont_historicos'!EE$4,'3.Índices_inflação'!$A$2:$BA$105,$EI17,FALSE)) -> 0 | DE17: ='1.Dados_cont_historicos'!EF17*(1+VLOOKUP('1.Dados_cont_historicos'!EF$4,'3.Índices_inflação'!$A$2:$BA$105,$EI17,FALSE)) -> 0 | DF17: ='1.Dados_cont_historicos'!EG17*(1+VLOOKUP('1.Dados_cont_historicos'!EG$4,'3.Índices_inflação'!$A$2:$BA$105,$EI17,FALSE)) -> 0 | DG17: ='1.Dados_cont_historicos'!EH17*(1+VLOOKUP('1.Dados_cont_historicos'!EH$4,'3.Índices_inflação'!$A$2:$BA$105,$EI17,FALSE)) -> 0 | DH17: ='1.Dados_cont_historicos'!EI17*(1+VLOOKUP('1.Dados_cont_historicos'!EI$4,'3.Índices_inflação'!$A$2:$BA$105,$EI17,FALSE)) -> 0 | DI17: ='1.Dados_cont_historicos'!EJ17*(1+VLOOKUP('1.Dados_cont_historicos'!EJ$4,'3.Índices_inflação'!$A$2:$BA$105,$EI17,FALSE)) -> 0 | DJ17: ='1.Dados_cont_historicos'!EK17*(1+VLOOKUP('1.Dados_cont_historicos'!EK$4,'3.Índices_inflação'!$A$2:$BA$105,$EI17,FALSE)) -> 0 | DK17: ='1.Dados_cont_historicos'!EL17*(1+VLOOKUP('1.Dados_cont_historicos'!EL$4,'3.Índices_inflação'!$A$2:$BA$105,$EI17,FALSE)) -> 0 | DL17: ='1.Dados_cont_historicos'!EM17*(1+VLOOKUP('1.Dados_cont_historicos'!EM$4,'3.Índices_inflação'!$A$2:$BA$105,$EI17,FALSE)) -> 0 | DM17: ='1.Dados_cont_historicos'!EN17*(1+VLOOKUP('1.Dados_cont_historicos'!EN$4,'3.Índices_inflação'!$A$2:$BA$105,$EI17,FALSE)) -> 0 | DN17: ='1.Dados_cont_historicos'!EO17*(1+VLOOKUP('1.Dados_cont_historicos'!EO$4,'3.Índices_inflação'!$A$2:$BA$105,$EI17,FALSE)) -> 0 | DO17: 0 | DP17: ='1.Dados_cont_historicos'!EQ17*(1+VLOOKUP('1.Dados_cont_historicos'!EQ$4,'3.Índices_inflação'!$A$2:$BA$105,$EI17,FALSE)) -> 0 | DQ17: ='1.Dados_cont_historicos'!ER17*(1+VLOOKUP('1.Dados_cont_historicos'!ER$4,'3.Índices_inflação'!$A$2:$BA$105,$EI17,FALSE)) -> 0 | DR17: ='1.Dados_cont_historicos'!ES17*(1+VLOOKUP('1.Dados_cont_historicos'!ES$4,'3.Índices_inflação'!$A$2:$BA$105,$EI17,FALSE)) -> 0 | DS17: ='1.Dados_cont_historicos'!ET17*(1+VLOOKUP('1.Dados_cont_historicos'!ET$4,'3.Índices_inflação'!$A$2:$BA$105,$EI17,FALSE)) -> 0 | DT17: ='1.Dados_cont_historicos'!EU17*(1+VLOOKUP('1.Dados_cont_historicos'!EU$4,'3.Índices_inflação'!$A$2:$BA$105,$EI17,FALSE)) -> 0 | DU17: ='1.Dados_cont_historicos'!EV17*(1+VLOOKUP('1.Dados_cont_historicos'!EV$4,'3.Índices_inflação'!$A$2:$BA$105,$EI17,FALSE)) -> 0 | DV17: ='1.Dados_cont_historicos'!EW17*(1+VLOOKUP('1.Dados_cont_historicos'!EW$4,'3.Índices_inflação'!$A$2:$BA$105,$EI17,FALSE)) -> 0 | DY17: =CB17 -> 0 | DZ17: =CO17 -> 0 | EA17: =DB17 -> 0 | EB17: =DO17 -> 0 | EC17: =SUM(BW17:CA17,CC17:CI17) -> 0 | ED17: =SUM(CJ17:CN17,CP17:CV17) -> 0 | EE17: =SUM(CW17:DA17,DC17:DI17) -> 0 | EF17: 0 | EH17: IPCA | EI17: =HLOOKUP(EH17,'3.Índices_inflação'!$B$1:$AZ$144,144,FALSE) -> 28
C18: Juros por impontualidade, rendimentos de aplicações e outras | P18: ='1.Dados_cont_historicos'!AQ18*(1+VLOOKUP('1.Dados_cont_historicos'!AQ$4,'3.Índices_inflação'!$A$2:$BA$105,$EI18,FALSE)) ->  | Q18: ='1.Dados_cont_historicos'!AR18*(1+VLOOKUP('1.Dados_cont_historicos'!AR$4,'3.Índices_inflação'!$A$2:$BA$105,$EI18,FALSE)) ->  | R18: ='1.Dados_cont_historicos'!AS18*(1+VLOOKUP('1.Dados_cont_historicos'!AS$4,'3.Índices_inflação'!$A$2:$BA$105,$EI18,FALSE)) ->  | S18: ='1.Dados_cont_historicos'!AT18*(1+VLOOKUP('1.Dados_cont_historicos'!AT$4,'3.Índices_inflação'!$A$2:$BA$105,$EI18,FALSE)) ->  | T18: ='1.Dados_cont_historicos'!AU18*(1+VLOOKUP('1.Dados_cont_historicos'!AU$4,'3.Índices_inflação'!$A$2:$BA$105,$EI18,FALSE)) ->  | U18: ='1.Dados_cont_historicos'!AV18*(1+VLOOKUP('1.Dados_cont_historicos'!AV$4,'3.Índices_inflação'!$A$2:$BA$105,$EI18,FALSE)) ->  | V18: ='1.Dados_cont_historicos'!AW18*(1+VLOOKUP('1.Dados_cont_historicos'!AW$4,'3.Índices_inflação'!$A$2:$BA$105,$EI18,FALSE)) ->  | W18: ='1.Dados_cont_historicos'!AX18*(1+VLOOKUP('1.Dados_cont_historicos'!AX$4,'3.Índices_inflação'!$A$2:$BA$105,$EI18,FALSE)) ->  | X18: ='1.Dados_cont_historicos'!AY18*(1+VLOOKUP('1.Dados_cont_historicos'!AY$4,'3.Índices_inflação'!$A$2:$BA$105,$EI18,FALSE)) ->  | Y18: ='1.Dados_cont_historicos'!AZ18*(1+VLOOKUP('1.Dados_cont_historicos'!AZ$4,'3.Índices_inflação'!$A$2:$BA$105,$EI18,FALSE)) ->  | Z18: ='1.Dados_cont_historicos'!BA18*(1+VLOOKUP('1.Dados_cont_historicos'!BA$4,'3.Índices_inflação'!$A$2:$BA$105,$EI18,FALSE)) ->  | AA18: ='1.Dados_cont_historicos'!BB18*(1+VLOOKUP('1.Dados_cont_historicos'!BB$4,'3.Índices_inflação'!$A$2:$BA$105,$EI18,FALSE)) ->  | BP18: ='1.Dados_cont_historicos'!CQ18*(1+VLOOKUP('1.Dados_cont_historicos'!CQ$4,'3.Índices_inflação'!$A$2:$BA$105,$EI18,FALSE)) -> -9811824.822 | BQ18: ='1.Dados_cont_historicos'!CR18*(1+VLOOKUP('1.Dados_cont_historicos'!CR$4,'3.Índices_inflação'!$A$2:$BA$105,$EI18,FALSE)) -> -7788004.001 | BR18: ='1.Dados_cont_historicos'!CS18*(1+VLOOKUP('1.Dados_cont_historicos'!CS$4,'3.Índices_inflação'!$A$2:$BA$105,$EI18,FALSE)) -> -8863838.623 | BS18: ='1.Dados_cont_historicos'!CT18*(1+VLOOKUP('1.Dados_cont_historicos'!CT$4,'3.Índices_inflação'!$A$2:$BA$105,$EI18,FALSE)) -> -7295045.507 | BT18: ='1.Dados_cont_historicos'!CU18*(1+VLOOKUP('1.Dados_cont_historicos'!CU$4,'3.Índices_inflação'!$A$2:$BA$105,$EI18,FALSE)) -> -7238973.64 | BU18: ='1.Dados_cont_historicos'!CV18*(1+VLOOKUP('1.Dados_cont_historicos'!CV$4,'3.Índices_inflação'!$A$2:$BA$105,$EI18,FALSE)) -> -10275982.72 | BV18: ='1.Dados_cont_historicos'!CW18*(1+VLOOKUP('1.Dados_cont_historicos'!CW$4,'3.Índices_inflação'!$A$2:$BA$105,$EI18,FALSE)) -> -7755732.369 | BW18: ='1.Dados_cont_historicos'!CX18*(1+VLOOKUP('1.Dados_cont_historicos'!CX$4,'3.Índices_inflação'!$A$2:$BA$105,$EI18,FALSE)) -> -7782194.051 | BX18: ='1.Dados_cont_historicos'!CY18*(1+VLOOKUP('1.Dados_cont_historicos'!CY$4,'3.Índices_inflação'!$A$2:$BA$105,$EI18,FALSE)) -> -6606489.033 | BY18: ='1.Dados_cont_historicos'!CZ18*(1+VLOOKUP('1.Dados_cont_historicos'!CZ$4,'3.Índices_inflação'!$A$2:$BA$105,$EI18,FALSE)) -> -6355417.395 | BZ18: ='1.Dados_cont_historicos'!DA18*(1+VLOOKUP('1.Dados_cont_historicos'!DA$4,'3.Índices_inflação'!$A$2:$BA$105,$EI18,FALSE)) -> -5861136.343 | CA18: ='1.Dados_cont_historicos'!DB18*(1+VLOOKUP('1.Dados_cont_historicos'!DB$4,'3.Índices_inflação'!$A$2:$BA$105,$EI18,FALSE)) -> -6465852.786 | CB18: -92100491.29 | CC18: ='1.Dados_cont_historicos'!DD18*(1+VLOOKUP('1.Dados_cont_historicos'!DD$4,'3.Índices_inflação'!$A$2:$BA$105,$EI18,FALSE)) -> -4808582.26 | CD18: ='1.Dados_cont_historicos'!DE18*(1+VLOOKUP('1.Dados_cont_historicos'!DE$4,'3.Índices_inflação'!$A$2:$BA$105,$EI18,FALSE)) -> -4210181.588 | CE18: ='1.Dados_cont_historicos'!DF18*(1+VLOOKUP('1.Dados_cont_historicos'!DF$4,'3.Índices_inflação'!$A$2:$BA$105,$EI18,FALSE)) -> -5583554.276 | CF18: ='1.Dados_cont_historicos'!DG18*(1+VLOOKUP('1.Dados_cont_historicos'!DG$4,'3.Índices_inflação'!$A$2:$BA$105,$EI18,FALSE)) -> -5066663.763 | CG18: ='1.Dados_cont_historicos'!DH18*(1+VLOOKUP('1.Dados_cont_historicos'!DH$4,'3.Índices_inflação'!$A$2:$BA$105,$EI18,FALSE)) -> -6621499.156 | CH18: ='1.Dados_cont_historicos'!DI18*(1+VLOOKUP('1.Dados_cont_historicos'!DI$4,'3.Índices_inflação'!$A$2:$BA$105,$EI18,FALSE)) -> -3070613.326 | CI18: ='1.Dados_cont_historicos'!DJ18*(1+VLOOKUP('1.Dados_cont_historicos'!DJ$4,'3.Índices_inflação'!$A$2:$BA$105,$EI18,FALSE)) -> -3597896.784 | CJ18: ='1.Dados_cont_historicos'!DK18*(1+VLOOKUP('1.Dados_cont_historicos'!DK$4,'3.Índices_inflação'!$A$2:$BA$105,$EI18,FALSE)) -> -9382699.479 | CK18: ='1.Dados_cont_historicos'!DL18*(1+VLOOKUP('1.Dados_cont_historicos'!DL$4,'3.Índices_inflação'!$A$2:$BA$105,$EI18,FALSE)) -> -3210414.132 | CL18: ='1.Dados_cont_historicos'!DM18*(1+VLOOKUP('1.Dados_cont_historicos'!DM$4,'3.Índices_inflação'!$A$2:$BA$105,$EI18,FALSE)) -> -4571001.958 | CM18: ='1.Dados_cont_historicos'!DN18*(1+VLOOKUP('1.Dados_cont_historicos'!DN$4,'3.Índices_inflação'!$A$2:$BA$105,$EI18,FALSE)) -> -4406798.63 | CN18: ='1.Dados_cont_historicos'!DO18*(1+VLOOKUP('1.Dados_cont_historicos'!DO$4,'3.Índices_inflação'!$A$2:$BA$105,$EI18,FALSE)) -> -7779671.863 | CO18: -62309577.21 | CP18: ='1.Dados_cont_historicos'!DQ18*(1+VLOOKUP('1.Dados_cont_historicos'!DQ$4,'3.Índices_inflação'!$A$2:$BA$105,$EI18,FALSE)) -> -4491976.076 | CQ18: ='1.Dados_cont_historicos'!DR18*(1+VLOOKUP('1.Dados_cont_historicos'!DR$4,'3.Índices_inflação'!$A$2:$BA$105,$EI18,FALSE)) -> -3370129.832 | CR18: ='1.Dados_cont_historicos'!DS18*(1+VLOOKUP('1.Dados_cont_historicos'!DS$4,'3.Índices_inflação'!$A$2:$BA$105,$EI18,FALSE)) -> -2244384.289 | CS18: ='1.Dados_cont_historicos'!DT18*(1+VLOOKUP('1.Dados_cont_historicos'!DT$4,'3.Índices_inflação'!$A$2:$BA$105,$EI18,FALSE)) -> -2806502.714 | CT18: ='1.Dados_cont_historicos'!DU18*(1+VLOOKUP('1.Dados_cont_historicos'!DU$4,'3.Índices_inflação'!$A$2:$BA$105,$EI18,FALSE)) -> -4395945.698 | CU18: ='1.Dados_cont_historicos'!DV18*(1+VLOOKUP('1.Dados_cont_historicos'!DV$4,'3.Índices_inflação'!$A$2:$BA$105,$EI18,FALSE)) -> -9307292.669 | CV18: ='1.Dados_cont_historicos'!DW18*(1+VLOOKUP('1.Dados_cont_historicos'!DW$4,'3.Índices_inflação'!$A$2:$BA$105,$EI18,FALSE)) -> -5887364.027 | CW18: ='1.Dados_cont_historicos'!DX18*(1+VLOOKUP('1.Dados_cont_historicos'!DX$4,'3.Índices_inflação'!$A$2:$BA$105,$EI18,FALSE)) -> -6087390.522 | CX18: ='1.Dados_cont_historicos'!DY18*(1+VLOOKUP('1.Dados_cont_historicos'!DY$4,'3.Índices_inflação'!$A$2:$BA$105,$EI18,FALSE)) -> -5334410.286 | CY18: ='1.Dados_cont_historicos'!DZ18*(1+VLOOKUP('1.Dados_cont_historicos'!DZ$4,'3.Índices_inflação'!$A$2:$BA$105,$EI18,FALSE)) -> -5839954.185 | CZ18: ='1.Dados_cont_historicos'!EA18*(1+VLOOKUP('1.Dados_cont_historicos'!EA$4,'3.Índices_inflação'!$A$2:$BA$105,$EI18,FALSE)) -> -5401544.442 | DA18: ='1.Dados_cont_historicos'!EB18*(1+VLOOKUP('1.Dados_cont_historicos'!EB$4,'3.Índices_inflação'!$A$2:$BA$105,$EI18,FALSE)) -> -11359868.88 | DB18: -66526763.62 | DC18: ='1.Dados_cont_historicos'!ED18*(1+VLOOKUP('1.Dados_cont_historicos'!ED$4,'3.Índices_inflação'!$A$2:$BA$105,$EI18,FALSE)) -> -5362350.533 | DD18: ='1.Dados_cont_historicos'!EE18*(1+VLOOKUP('1.Dados_cont_historicos'!EE$4,'3.Índices_inflação'!$A$2:$BA$105,$EI18,FALSE)) -> -5080871.602 | DE18: ='1.Dados_cont_historicos'!EF18*(1+VLOOKUP('1.Dados_cont_historicos'!EF$4,'3.Índices_inflação'!$A$2:$BA$105,$EI18,FALSE)) -> -5297143.284 | DF18: ='1.Dados_cont_historicos'!EG18*(1+VLOOKUP('1.Dados_cont_historicos'!EG$4,'3.Índices_inflação'!$A$2:$BA$105,$EI18,FALSE)) -> -4445034.263 | DG18: ='1.Dados_cont_historicos'!EH18*(1+VLOOKUP('1.Dados_cont_historicos'!EH$4,'3.Índices_inflação'!$A$2:$BA$105,$EI18,FALSE)) -> -4871760.129 | DH18: ='1.Dados_cont_historicos'!EI18*(1+VLOOKUP('1.Dados_cont_historicos'!EI$4,'3.Índices_inflação'!$A$2:$BA$105,$EI18,FALSE)) -> -11072397.1 | DI18: ='1.Dados_cont_historicos'!EJ18*(1+VLOOKUP('1.Dados_cont_historicos'!EJ$4,'3.Índices_inflação'!$A$2:$BA$105,$EI18,FALSE)) -> -4927027.838 | DJ18: ='1.Dados_cont_historicos'!EK18*(1+VLOOKUP('1.Dados_cont_historicos'!EK$4,'3.Índices_inflação'!$A$2:$BA$105,$EI18,FALSE)) -> -4703551.726 | DK18: ='1.Dados_cont_historicos'!EL18*(1+VLOOKUP('1.Dados_cont_historicos'!EL$4,'3.Índices_inflação'!$A$2:$BA$105,$EI18,FALSE)) -> -11920074.74 | DL18: ='1.Dados_cont_historicos'!EM18*(1+VLOOKUP('1.Dados_cont_historicos'!EM$4,'3.Índices_inflação'!$A$2:$BA$105,$EI18,FALSE)) -> -5001316.042 | DM18: ='1.Dados_cont_historicos'!EN18*(1+VLOOKUP('1.Dados_cont_historicos'!EN$4,'3.Índices_inflação'!$A$2:$BA$105,$EI18,FALSE)) -> -5623136.047 | DN18: ='1.Dados_cont_historicos'!EO18*(1+VLOOKUP('1.Dados_cont_historicos'!EO$4,'3.Índices_inflação'!$A$2:$BA$105,$EI18,FALSE)) -> -6290703.481 | DO18: -74595366.78 | DP18: ='1.Dados_cont_historicos'!EQ18*(1+VLOOKUP('1.Dados_cont_historicos'!EQ$4,'3.Índices_inflação'!$A$2:$BA$105,$EI18,FALSE)) -> -4694099.886 | DQ18: ='1.Dados_cont_historicos'!ER18*(1+VLOOKUP('1.Dados_cont_historicos'!ER$4,'3.Índices_inflação'!$A$2:$BA$105,$EI18,FALSE)) -> -4838035.997 | DR18: ='1.Dados_cont_historicos'!ES18*(1+VLOOKUP('1.Dados_cont_historicos'!ES$4,'3.Índices_inflação'!$A$2:$BA$105,$EI18,FALSE)) -> -5396042.399 | DS18: ='1.Dados_cont_historicos'!ET18*(1+VLOOKUP('1.Dados_cont_historicos'!ET$4,'3.Índices_inflação'!$A$2:$BA$105,$EI18,FALSE)) -> -11809588.71 | DT18: ='1.Dados_cont_historicos'!EU18*(1+VLOOKUP('1.Dados_cont_historicos'!EU$4,'3.Índices_inflação'!$A$2:$BA$105,$EI18,FALSE)) -> -7262255.984 | DU18: ='1.Dados_cont_historicos'!EV18*(1+VLOOKUP('1.Dados_cont_historicos'!EV$4,'3.Índices_inflação'!$A$2:$BA$105,$EI18,FALSE)) -> -8065331.982 | DV18: ='1.Dados_cont_historicos'!EW18*(1+VLOOKUP('1.Dados_cont_historicos'!EW$4,'3.Índices_inflação'!$A$2:$BA$105,$EI18,FALSE)) -> -8953292.263 | DY18: -92100491.29 | DZ18: -62309577.21 | EA18: -66526763.62 | EB18: -74595366.78 | EC18: -66030080.76 | ED18: -61854181.37 | EE18: -75079753.06 | EF18: -84557429.25 | EH18: IPCA | EI18: =HLOOKUP(EH18,'3.Índices_inflação'!$B$1:$AZ$144,144,FALSE) -> 28
C19: Outras Receitas Diversas | P19: ='1.Dados_cont_historicos'!AQ19*(1+VLOOKUP('1.Dados_cont_historicos'!AQ$4,'3.Índices_inflação'!$A$2:$BA$105,$EI19,FALSE)) ->  | Q19: ='1.Dados_cont_historicos'!AR19*(1+VLOOKUP('1.Dados_cont_historicos'!AR$4,'3.Índices_inflação'!$A$2:$BA$105,$EI19,FALSE)) ->  | R19: ='1.Dados_cont_historicos'!AS19*(1+VLOOKUP('1.Dados_cont_historicos'!AS$4,'3.Índices_inflação'!$A$2:$BA$105,$EI19,FALSE)) ->  | S19: ='1.Dados_cont_historicos'!AT19*(1+VLOOKUP('1.Dados_cont_historicos'!AT$4,'3.Índices_inflação'!$A$2:$BA$105,$EI19,FALSE)) ->  | T19: ='1.Dados_cont_historicos'!AU19*(1+VLOOKUP('1.Dados_cont_historicos'!AU$4,'3.Índices_inflação'!$A$2:$BA$105,$EI19,FALSE)) ->  | U19: ='1.Dados_cont_historicos'!AV19*(1+VLOOKUP('1.Dados_cont_historicos'!AV$4,'3.Índices_inflação'!$A$2:$BA$105,$EI19,FALSE)) ->  | V19: ='1.Dados_cont_historicos'!AW19*(1+VLOOKUP('1.Dados_cont_historicos'!AW$4,'3.Índices_inflação'!$A$2:$BA$105,$EI19,FALSE)) ->  | W19: ='1.Dados_cont_historicos'!AX19*(1+VLOOKUP('1.Dados_cont_historicos'!AX$4,'3.Índices_inflação'!$A$2:$BA$105,$EI19,FALSE)) ->  | X19: ='1.Dados_cont_historicos'!AY19*(1+VLOOKUP('1.Dados_cont_historicos'!AY$4,'3.Índices_inflação'!$A$2:$BA$105,$EI19,FALSE)) ->  | Y19: ='1.Dados_cont_historicos'!AZ19*(1+VLOOKUP('1.Dados_cont_historicos'!AZ$4,'3.Índices_inflação'!$A$2:$BA$105,$EI19,FALSE)) ->  | Z19: ='1.Dados_cont_historicos'!BA19*(1+VLOOKUP('1.Dados_cont_historicos'!BA$4,'3.Índices_inflação'!$A$2:$BA$105,$EI19,FALSE)) ->  | AA19: ='1.Dados_cont_historicos'!BB19*(1+VLOOKUP('1.Dados_cont_historicos'!BB$4,'3.Índices_inflação'!$A$2:$BA$105,$EI19,FALSE)) ->  | BP19: ='1.Dados_cont_historicos'!CQ19*(1+VLOOKUP('1.Dados_cont_historicos'!CQ$4,'3.Índices_inflação'!$A$2:$BA$105,$EI19,FALSE)) -> -2538498.558 | BQ19: ='1.Dados_cont_historicos'!CR19*(1+VLOOKUP('1.Dados_cont_historicos'!CR$4,'3.Índices_inflação'!$A$2:$BA$105,$EI19,FALSE)) -> -2346193.458 | BR19: ='1.Dados_cont_historicos'!CS19*(1+VLOOKUP('1.Dados_cont_historicos'!CS$4,'3.Índices_inflação'!$A$2:$BA$105,$EI19,FALSE)) -> -8945377.293 | BS19: ='1.Dados_cont_historicos'!CT19*(1+VLOOKUP('1.Dados_cont_historicos'!CT$4,'3.Índices_inflação'!$A$2:$BA$105,$EI19,FALSE)) -> -3202824.747 | BT19: ='1.Dados_cont_historicos'!CU19*(1+VLOOKUP('1.Dados_cont_historicos'!CU$4,'3.Índices_inflação'!$A$2:$BA$105,$EI19,FALSE)) -> -4654099.769 | BU19: ='1.Dados_cont_historicos'!CV19*(1+VLOOKUP('1.Dados_cont_historicos'!CV$4,'3.Índices_inflação'!$A$2:$BA$105,$EI19,FALSE)) -> -3108843.288 | BV19: ='1.Dados_cont_historicos'!CW19*(1+VLOOKUP('1.Dados_cont_historicos'!CW$4,'3.Índices_inflação'!$A$2:$BA$105,$EI19,FALSE)) -> -5866127.202 | BW19: ='1.Dados_cont_historicos'!CX19*(1+VLOOKUP('1.Dados_cont_historicos'!CX$4,'3.Índices_inflação'!$A$2:$BA$105,$EI19,FALSE)) -> -3154532.973 | BX19: ='1.Dados_cont_historicos'!CY19*(1+VLOOKUP('1.Dados_cont_historicos'!CY$4,'3.Índices_inflação'!$A$2:$BA$105,$EI19,FALSE)) -> -5071453.574 | BY19: ='1.Dados_cont_historicos'!CZ19*(1+VLOOKUP('1.Dados_cont_historicos'!CZ$4,'3.Índices_inflação'!$A$2:$BA$105,$EI19,FALSE)) -> -3761528.784 | BZ19: ='1.Dados_cont_historicos'!DA19*(1+VLOOKUP('1.Dados_cont_historicos'!DA$4,'3.Índices_inflação'!$A$2:$BA$105,$EI19,FALSE)) -> -4280278.624 | CA19: ='1.Dados_cont_historicos'!DB19*(1+VLOOKUP('1.Dados_cont_historicos'!DB$4,'3.Índices_inflação'!$A$2:$BA$105,$EI19,FALSE)) -> -5462953.329 | CB19: -52392711.6 | CC19: ='1.Dados_cont_historicos'!DD19*(1+VLOOKUP('1.Dados_cont_historicos'!DD$4,'3.Índices_inflação'!$A$2:$BA$105,$EI19,FALSE)) -> -4338369.965 | CD19: ='1.Dados_cont_historicos'!DE19*(1+VLOOKUP('1.Dados_cont_historicos'!DE$4,'3.Índices_inflação'!$A$2:$BA$105,$EI19,FALSE)) -> -4557438.988 | CE19: ='1.Dados_cont_historicos'!DF19*(1+VLOOKUP('1.Dados_cont_historicos'!DF$4,'3.Índices_inflação'!$A$2:$BA$105,$EI19,FALSE)) -> -4600079.53 | CF19: ='1.Dados_cont_historicos'!DG19*(1+VLOOKUP('1.Dados_cont_historicos'!DG$4,'3.Índices_inflação'!$A$2:$BA$105,$EI19,FALSE)) -> -4925931.499 | CG19: ='1.Dados_cont_historicos'!DH19*(1+VLOOKUP('1.Dados_cont_historicos'!DH$4,'3.Índices_inflação'!$A$2:$BA$105,$EI19,FALSE)) -> -3260373.213 | CH19: ='1.Dados_cont_historicos'!DI19*(1+VLOOKUP('1.Dados_cont_historicos'!DI$4,'3.Índices_inflação'!$A$2:$BA$105,$EI19,FALSE)) -> -3108496.301 | CI19: ='1.Dados_cont_historicos'!DJ19*(1+VLOOKUP('1.Dados_cont_historicos'!DJ$4,'3.Índices_inflação'!$A$2:$BA$105,$EI19,FALSE)) -> -4928305.53 | CJ19: ='1.Dados_cont_historicos'!DK19*(1+VLOOKUP('1.Dados_cont_historicos'!DK$4,'3.Índices_inflação'!$A$2:$BA$105,$EI19,FALSE)) -> -4758194.574 | CK19: ='1.Dados_cont_historicos'!DL19*(1+VLOOKUP('1.Dados_cont_historicos'!DL$4,'3.Índices_inflação'!$A$2:$BA$105,$EI19,FALSE)) -> -3608221.907 | CL19: ='1.Dados_cont_historicos'!DM19*(1+VLOOKUP('1.Dados_cont_historicos'!DM$4,'3.Índices_inflação'!$A$2:$BA$105,$EI19,FALSE)) -> -5241247.616 | CM19: ='1.Dados_cont_historicos'!DN19*(1+VLOOKUP('1.Dados_cont_historicos'!DN$4,'3.Índices_inflação'!$A$2:$BA$105,$EI19,FALSE)) -> -3515960.319 | CN19: ='1.Dados_cont_historicos'!DO19*(1+VLOOKUP('1.Dados_cont_historicos'!DO$4,'3.Índices_inflação'!$A$2:$BA$105,$EI19,FALSE)) -> -4142769.725 | CO19: -50985389.17 | CP19: ='1.Dados_cont_historicos'!DQ19*(1+VLOOKUP('1.Dados_cont_historicos'!DQ$4,'3.Índices_inflação'!$A$2:$BA$105,$EI19,FALSE)) -> -4833803.179 | CQ19: ='1.Dados_cont_historicos'!DR19*(1+VLOOKUP('1.Dados_cont_historicos'!DR$4,'3.Índices_inflação'!$A$2:$BA$105,$EI19,FALSE)) -> -4474843.37 | CR19: ='1.Dados_cont_historicos'!DS19*(1+VLOOKUP('1.Dados_cont_historicos'!DS$4,'3.Índices_inflação'!$A$2:$BA$105,$EI19,FALSE)) -> -6885795.323 | CS19: ='1.Dados_cont_historicos'!DT19*(1+VLOOKUP('1.Dados_cont_historicos'!DT$4,'3.Índices_inflação'!$A$2:$BA$105,$EI19,FALSE)) -> -3468745.988 | CT19: ='1.Dados_cont_historicos'!DU19*(1+VLOOKUP('1.Dados_cont_historicos'!DU$4,'3.Índices_inflação'!$A$2:$BA$105,$EI19,FALSE)) -> -4169490.569 | CU19: ='1.Dados_cont_historicos'!DV19*(1+VLOOKUP('1.Dados_cont_historicos'!DV$4,'3.Índices_inflação'!$A$2:$BA$105,$EI19,FALSE)) -> -8665927.489 | CV19: ='1.Dados_cont_historicos'!DW19*(1+VLOOKUP('1.Dados_cont_historicos'!DW$4,'3.Índices_inflação'!$A$2:$BA$105,$EI19,FALSE)) -> -3241954.861 | CW19: ='1.Dados_cont_historicos'!DX19*(1+VLOOKUP('1.Dados_cont_historicos'!DX$4,'3.Índices_inflação'!$A$2:$BA$105,$EI19,FALSE)) -> -3097080.77 | CX19: ='1.Dados_cont_historicos'!DY19*(1+VLOOKUP('1.Dados_cont_historicos'!DY$4,'3.Índices_inflação'!$A$2:$BA$105,$EI19,FALSE)) -> -13091299.38 | CY19: ='1.Dados_cont_historicos'!DZ19*(1+VLOOKUP('1.Dados_cont_historicos'!DZ$4,'3.Índices_inflação'!$A$2:$BA$105,$EI19,FALSE)) -> -3887811.326 | CZ19: ='1.Dados_cont_historicos'!EA19*(1+VLOOKUP('1.Dados_cont_historicos'!EA$4,'3.Índices_inflação'!$A$2:$BA$105,$EI19,FALSE)) -> -3247514.045 | DA19: ='1.Dados_cont_historicos'!EB19*(1+VLOOKUP('1.Dados_cont_historicos'!EB$4,'3.Índices_inflação'!$A$2:$BA$105,$EI19,FALSE)) -> -14572937.24 | DB19: -73637203.54 | DC19: ='1.Dados_cont_historicos'!ED19*(1+VLOOKUP('1.Dados_cont_historicos'!ED$4,'3.Índices_inflação'!$A$2:$BA$105,$EI19,FALSE)) -> -3449455.224 | DD19: ='1.Dados_cont_historicos'!EE19*(1+VLOOKUP('1.Dados_cont_historicos'!EE$4,'3.Índices_inflação'!$A$2:$BA$105,$EI19,FALSE)) -> -3373786.474 | DE19: ='1.Dados_cont_historicos'!EF19*(1+VLOOKUP('1.Dados_cont_historicos'!EF$4,'3.Índices_inflação'!$A$2:$BA$105,$EI19,FALSE)) -> -15704540.22 | DF19: ='1.Dados_cont_historicos'!EG19*(1+VLOOKUP('1.Dados_cont_historicos'!EG$4,'3.Índices_inflação'!$A$2:$BA$105,$EI19,FALSE)) -> -1875380.251 | DG19: ='1.Dados_cont_historicos'!EH19*(1+VLOOKUP('1.Dados_cont_historicos'!EH$4,'3.Índices_inflação'!$A$2:$BA$105,$EI19,FALSE)) -> -2534017.534 | DH19: ='1.Dados_cont_historicos'!EI19*(1+VLOOKUP('1.Dados_cont_historicos'!EI$4,'3.Índices_inflação'!$A$2:$BA$105,$EI19,FALSE)) -> -14530198.02 | DI19: ='1.Dados_cont_historicos'!EJ19*(1+VLOOKUP('1.Dados_cont_historicos'!EJ$4,'3.Índices_inflação'!$A$2:$BA$105,$EI19,FALSE)) -> -3615952.505 | DJ19: ='1.Dados_cont_historicos'!EK19*(1+VLOOKUP('1.Dados_cont_historicos'!EK$4,'3.Índices_inflação'!$A$2:$BA$105,$EI19,FALSE)) -> -2574927.798 | DK19: ='1.Dados_cont_historicos'!EL19*(1+VLOOKUP('1.Dados_cont_historicos'!EL$4,'3.Índices_inflação'!$A$2:$BA$105,$EI19,FALSE)) -> -14136403.44 | DL19: ='1.Dados_cont_historicos'!EM19*(1+VLOOKUP('1.Dados_cont_historicos'!EM$4,'3.Índices_inflação'!$A$2:$BA$105,$EI19,FALSE)) -> -2627912.691 | DM19: ='1.Dados_cont_historicos'!EN19*(1+VLOOKUP('1.Dados_cont_historicos'!EN$4,'3.Índices_inflação'!$A$2:$BA$105,$EI19,FALSE)) -> -2148255.598 | DN19: ='1.Dados_cont_historicos'!EO19*(1+VLOOKUP('1.Dados_cont_historicos'!EO$4,'3.Índices_inflação'!$A$2:$BA$105,$EI19,FALSE)) -> -18045687.47 | DO19: -84616517.22 | DP19: ='1.Dados_cont_historicos'!EQ19*(1+VLOOKUP('1.Dados_cont_historicos'!EQ$4,'3.Índices_inflação'!$A$2:$BA$105,$EI19,FALSE)) -> -1808892.049 | DQ19: ='1.Dados_cont_historicos'!ER19*(1+VLOOKUP('1.Dados_cont_historicos'!ER$4,'3.Índices_inflação'!$A$2:$BA$105,$EI19,FALSE)) -> -2260866.271 | DR19: ='1.Dados_cont_historicos'!ES19*(1+VLOOKUP('1.Dados_cont_historicos'!ES$4,'3.Índices_inflação'!$A$2:$BA$105,$EI19,FALSE)) -> -12582836.02 | DS19: ='1.Dados_cont_historicos'!ET19*(1+VLOOKUP('1.Dados_cont_historicos'!ET$4,'3.Índices_inflação'!$A$2:$BA$105,$EI19,FALSE)) -> -8783949.557 | DT19: ='1.Dados_cont_historicos'!EU19*(1+VLOOKUP('1.Dados_cont_historicos'!EU$4,'3.Índices_inflação'!$A$2:$BA$105,$EI19,FALSE)) -> -7789021.336 | DU19: ='1.Dados_cont_historicos'!EV19*(1+VLOOKUP('1.Dados_cont_historicos'!EV$4,'3.Índices_inflação'!$A$2:$BA$105,$EI19,FALSE)) -> -9601989.411 | DV19: ='1.Dados_cont_historicos'!EW19*(1+VLOOKUP('1.Dados_cont_historicos'!EW$4,'3.Índices_inflação'!$A$2:$BA$105,$EI19,FALSE)) -> -8645758.867 | DY19: =CB19 -> -52392711.6 | DZ19: =CO19 -> -50985389.17 | EA19: =DB19 -> -73637203.54 | EB19: =DO19 -> -84616517.22 | EC19: =SUM(BW19:CA19,CC19:CI19) -> -51449742.31 | ED19: =SUM(CJ19:CN19,CP19:CV19) -> -57006954.92 | EE19: =SUM(CW19:DA19,DC19:DI19) -> -82979972.99 | EF19: -91006500.5 | EH19: IPCA | EI19: =HLOOKUP(EH19,'3.Índices_inflação'!$B$1:$AZ$144,144,FALSE) -> 28
C20: Indenizações e Ressarcimentos | P20: ='1.Dados_cont_historicos'!AQ20*(1+VLOOKUP('1.Dados_cont_historicos'!AQ$4,'3.Índices_inflação'!$A$2:$BA$105,$EI20,FALSE)) ->  | Q20: ='1.Dados_cont_historicos'!AR20*(1+VLOOKUP('1.Dados_cont_historicos'!AR$4,'3.Índices_inflação'!$A$2:$BA$105,$EI20,FALSE)) ->  | R20: ='1.Dados_cont_historicos'!AS20*(1+VLOOKUP('1.Dados_cont_historicos'!AS$4,'3.Índices_inflação'!$A$2:$BA$105,$EI20,FALSE)) ->  | S20: ='1.Dados_cont_historicos'!AT20*(1+VLOOKUP('1.Dados_cont_historicos'!AT$4,'3.Índices_inflação'!$A$2:$BA$105,$EI20,FALSE)) ->  | T20: ='1.Dados_cont_historicos'!AU20*(1+VLOOKUP('1.Dados_cont_historicos'!AU$4,'3.Índices_inflação'!$A$2:$BA$105,$EI20,FALSE)) ->  | U20: ='1.Dados_cont_historicos'!AV20*(1+VLOOKUP('1.Dados_cont_historicos'!AV$4,'3.Índices_inflação'!$A$2:$BA$105,$EI20,FALSE)) ->  | V20: ='1.Dados_cont_historicos'!AW20*(1+VLOOKUP('1.Dados_cont_historicos'!AW$4,'3.Índices_inflação'!$A$2:$BA$105,$EI20,FALSE)) ->  | W20: ='1.Dados_cont_historicos'!AX20*(1+VLOOKUP('1.Dados_cont_historicos'!AX$4,'3.Índices_inflação'!$A$2:$BA$105,$EI20,FALSE)) ->  | X20: ='1.Dados_cont_historicos'!AY20*(1+VLOOKUP('1.Dados_cont_historicos'!AY$4,'3.Índices_inflação'!$A$2:$BA$105,$EI20,FALSE)) ->  | Y20: ='1.Dados_cont_historicos'!AZ20*(1+VLOOKUP('1.Dados_cont_historicos'!AZ$4,'3.Índices_inflação'!$A$2:$BA$105,$EI20,FALSE)) ->  | Z20: ='1.Dados_cont_historicos'!BA20*(1+VLOOKUP('1.Dados_cont_historicos'!BA$4,'3.Índices_inflação'!$A$2:$BA$105,$EI20,FALSE)) ->  | AA20: ='1.Dados_cont_historicos'!BB20*(1+VLOOKUP('1.Dados_cont_historicos'!BB$4,'3.Índices_inflação'!$A$2:$BA$105,$EI20,FALSE)) ->  | BP20: ='1.Dados_cont_historicos'!CQ20*(1+VLOOKUP('1.Dados_cont_historicos'!CQ$4,'3.Índices_inflação'!$A$2:$BA$105,$EI20,FALSE)) -> -7676.216968 | BQ20: ='1.Dados_cont_historicos'!CR20*(1+VLOOKUP('1.Dados_cont_historicos'!CR$4,'3.Índices_inflação'!$A$2:$BA$105,$EI20,FALSE)) -> -17107.16297 | BR20: ='1.Dados_cont_historicos'!CS20*(1+VLOOKUP('1.Dados_cont_historicos'!CS$4,'3.Índices_inflação'!$A$2:$BA$105,$EI20,FALSE)) -> -17352.75814 | BS20: ='1.Dados_cont_historicos'!CT20*(1+VLOOKUP('1.Dados_cont_historicos'!CT$4,'3.Índices_inflação'!$A$2:$BA$105,$EI20,FALSE)) -> -5122.511157 | BT20: ='1.Dados_cont_historicos'!CU20*(1+VLOOKUP('1.Dados_cont_historicos'!CU$4,'3.Índices_inflação'!$A$2:$BA$105,$EI20,FALSE)) -> -4336.25882 | BU20: ='1.Dados_cont_historicos'!CV20*(1+VLOOKUP('1.Dados_cont_historicos'!CV$4,'3.Índices_inflação'!$A$2:$BA$105,$EI20,FALSE)) -> -161081.5861 | BV20: ='1.Dados_cont_historicos'!CW20*(1+VLOOKUP('1.Dados_cont_historicos'!CW$4,'3.Índices_inflação'!$A$2:$BA$105,$EI20,FALSE)) -> -114861.1272 | BW20: ='1.Dados_cont_historicos'!CX20*(1+VLOOKUP('1.Dados_cont_historicos'!CX$4,'3.Índices_inflação'!$A$2:$BA$105,$EI20,FALSE)) -> -15242.5689 | BX20: ='1.Dados_cont_historicos'!CY20*(1+VLOOKUP('1.Dados_cont_historicos'!CY$4,'3.Índices_inflação'!$A$2:$BA$105,$EI20,FALSE)) -> -54505.54111 | BY20: ='1.Dados_cont_historicos'!CZ20*(1+VLOOKUP('1.Dados_cont_historicos'!CZ$4,'3.Índices_inflação'!$A$2:$BA$105,$EI20,FALSE)) -> -458570.6209 | BZ20: ='1.Dados_cont_historicos'!DA20*(1+VLOOKUP('1.Dados_cont_historicos'!DA$4,'3.Índices_inflação'!$A$2:$BA$105,$EI20,FALSE)) -> -677147.8083 | CA20: ='1.Dados_cont_historicos'!DB20*(1+VLOOKUP('1.Dados_cont_historicos'!DB$4,'3.Índices_inflação'!$A$2:$BA$105,$EI20,FALSE)) -> -46225.14628 | CB20: -1579229.307 | CC20: ='1.Dados_cont_historicos'!DD20*(1+VLOOKUP('1.Dados_cont_historicos'!DD$4,'3.Índices_inflação'!$A$2:$BA$105,$EI20,FALSE)) -> -32281.13671 | CD20: ='1.Dados_cont_historicos'!DE20*(1+VLOOKUP('1.Dados_cont_historicos'!DE$4,'3.Índices_inflação'!$A$2:$BA$105,$EI20,FALSE)) -> -31329.51898 | CE20: ='1.Dados_cont_historicos'!DF20*(1+VLOOKUP('1.Dados_cont_historicos'!DF$4,'3.Índices_inflação'!$A$2:$BA$105,$EI20,FALSE)) -> -15345.28354 | CF20: ='1.Dados_cont_historicos'!DG20*(1+VLOOKUP('1.Dados_cont_historicos'!DG$4,'3.Índices_inflação'!$A$2:$BA$105,$EI20,FALSE)) -> 3135.545219 | CG20: ='1.Dados_cont_historicos'!DH20*(1+VLOOKUP('1.Dados_cont_historicos'!DH$4,'3.Índices_inflação'!$A$2:$BA$105,$EI20,FALSE)) -> 7493.52228 | CH20: ='1.Dados_cont_historicos'!DI20*(1+VLOOKUP('1.Dados_cont_historicos'!DI$4,'3.Índices_inflação'!$A$2:$BA$105,$EI20,FALSE)) -> -39849.64279 | CI20: ='1.Dados_cont_historicos'!DJ20*(1+VLOOKUP('1.Dados_cont_historicos'!DJ$4,'3.Índices_inflação'!$A$2:$BA$105,$EI20,FALSE)) -> -64911.11633 | CJ20: ='1.Dados_cont_historicos'!DK20*(1+VLOOKUP('1.Dados_cont_historicos'!DK$4,'3.Índices_inflação'!$A$2:$BA$105,$EI20,FALSE)) -> -12460.08686 | CK20: ='1.Dados_cont_historicos'!DL20*(1+VLOOKUP('1.Dados_cont_historicos'!DL$4,'3.Índices_inflação'!$A$2:$BA$105,$EI20,FALSE)) -> -2965.182712 | CL20: ='1.Dados_cont_historicos'!DM20*(1+VLOOKUP('1.Dados_cont_historicos'!DM$4,'3.Índices_inflação'!$A$2:$BA$105,$EI20,FALSE)) -> -6492.411836 | CM20: ='1.Dados_cont_historicos'!DN20*(1+VLOOKUP('1.Dados_cont_historicos'!DN$4,'3.Índices_inflação'!$A$2:$BA$105,$EI20,FALSE)) -> -64101.20652 | CN20: ='1.Dados_cont_historicos'!DO20*(1+VLOOKUP('1.Dados_cont_historicos'!DO$4,'3.Índices_inflação'!$A$2:$BA$105,$EI20,FALSE)) -> -25160.89574 | CO20: -284267.4145 | CP20: ='1.Dados_cont_historicos'!DQ20*(1+VLOOKUP('1.Dados_cont_historicos'!DQ$4,'3.Índices_inflação'!$A$2:$BA$105,$EI20,FALSE)) -> -8636.552765 | CQ20: ='1.Dados_cont_historicos'!DR20*(1+VLOOKUP('1.Dados_cont_historicos'!DR$4,'3.Índices_inflação'!$A$2:$BA$105,$EI20,FALSE)) -> -102376.3486 | CR20: ='1.Dados_cont_historicos'!DS20*(1+VLOOKUP('1.Dados_cont_historicos'!DS$4,'3.Índices_inflação'!$A$2:$BA$105,$EI20,FALSE)) -> -54753.31149 | CS20: ='1.Dados_cont_historicos'!DT20*(1+VLOOKUP('1.Dados_cont_historicos'!DT$4,'3.Índices_inflação'!$A$2:$BA$105,$EI20,FALSE)) -> -103579.1693 | CT20: ='1.Dados_cont_historicos'!DU20*(1+VLOOKUP('1.Dados_cont_historicos'!DU$4,'3.Índices_inflação'!$A$2:$BA$105,$EI20,FALSE)) -> -165022.5787 | CU20: ='1.Dados_cont_historicos'!DV20*(1+VLOOKUP('1.Dados_cont_historicos'!DV$4,'3.Índices_inflação'!$A$2:$BA$105,$EI20,FALSE)) -> -154641.1179 | CV20: ='1.Dados_cont_historicos'!DW20*(1+VLOOKUP('1.Dados_cont_historicos'!DW$4,'3.Índices_inflação'!$A$2:$BA$105,$EI20,FALSE)) -> -115436.8772 | CW20: ='1.Dados_cont_historicos'!DX20*(1+VLOOKUP('1.Dados_cont_historicos'!DX$4,'3.Índices_inflação'!$A$2:$BA$105,$EI20,FALSE)) -> -206098.1453 | CX20: ='1.Dados_cont_historicos'!DY20*(1+VLOOKUP('1.Dados_cont_historicos'!DY$4,'3.Índices_inflação'!$A$2:$BA$105,$EI20,FALSE)) -> -69278.67805 | CY20: ='1.Dados_cont_historicos'!DZ20*(1+VLOOKUP('1.Dados_cont_historicos'!DZ$4,'3.Índices_inflação'!$A$2:$BA$105,$EI20,FALSE)) -> -200098.8089 | CZ20: ='1.Dados_cont_historicos'!EA20*(1+VLOOKUP('1.Dados_cont_historicos'!EA$4,'3.Índices_inflação'!$A$2:$BA$105,$EI20,FALSE)) -> 41509.39986 | DA20: ='1.Dados_cont_historicos'!EB20*(1+VLOOKUP('1.Dados_cont_historicos'!EB$4,'3.Índices_inflação'!$A$2:$BA$105,$EI20,FALSE)) -> -66218.90163 | DB20: -1204631.09 | DC20: ='1.Dados_cont_historicos'!ED20*(1+VLOOKUP('1.Dados_cont_historicos'!ED$4,'3.Índices_inflação'!$A$2:$BA$105,$EI20,FALSE)) -> -157422.7562 | DD20: ='1.Dados_cont_historicos'!EE20*(1+VLOOKUP('1.Dados_cont_historicos'!EE$4,'3.Índices_inflação'!$A$2:$BA$105,$EI20,FALSE)) -> -15083.43875 | DE20: ='1.Dados_cont_historicos'!EF20*(1+VLOOKUP('1.Dados_cont_historicos'!EF$4,'3.Índices_inflação'!$A$2:$BA$105,$EI20,FALSE)) -> -135750.4113 | DF20: ='1.Dados_cont_historicos'!EG20*(1+VLOOKUP('1.Dados_cont_historicos'!EG$4,'3.Índices_inflação'!$A$2:$BA$105,$EI20,FALSE)) -> -186760.5911 | DG20: ='1.Dados_cont_historicos'!EH20*(1+VLOOKUP('1.Dados_cont_historicos'!EH$4,'3.Índices_inflação'!$A$2:$BA$105,$EI20,FALSE)) -> -1350324.573 | DH20: ='1.Dados_cont_historicos'!EI20*(1+VLOOKUP('1.Dados_cont_historicos'!EI$4,'3.Índices_inflação'!$A$2:$BA$105,$EI20,FALSE)) -> -571053.0463 | DI20: ='1.Dados_cont_historicos'!EJ20*(1+VLOOKUP('1.Dados_cont_historicos'!EJ$4,'3.Índices_inflação'!$A$2:$BA$105,$EI20,FALSE)) -> -1168755.739 | DJ20: ='1.Dados_cont_historicos'!EK20*(1+VLOOKUP('1.Dados_cont_historicos'!EK$4,'3.Índices_inflação'!$A$2:$BA$105,$EI20,FALSE)) -> -81469.15417 | DK20: ='1.Dados_cont_historicos'!EL20*(1+VLOOKUP('1.Dados_cont_historicos'!EL$4,'3.Índices_inflação'!$A$2:$BA$105,$EI20,FALSE)) -> -398976.7226 | DL20: ='1.Dados_cont_historicos'!EM20*(1+VLOOKUP('1.Dados_cont_historicos'!EM$4,'3.Índices_inflação'!$A$2:$BA$105,$EI20,FALSE)) -> -271119.0199 | DM20: ='1.Dados_cont_historicos'!EN20*(1+VLOOKUP('1.Dados_cont_historicos'!EN$4,'3.Índices_inflação'!$A$2:$BA$105,$EI20,FALSE)) -> -109801.665 | DN20: ='1.Dados_cont_historicos'!EO20*(1+VLOOKUP('1.Dados_cont_historicos'!EO$4,'3.Índices_inflação'!$A$2:$BA$105,$EI20,FALSE)) -> -26162.51619 | DO20: -4472679.634 | DP20: ='1.Dados_cont_historicos'!EQ20*(1+VLOOKUP('1.Dados_cont_historicos'!EQ$4,'3.Índices_inflação'!$A$2:$BA$105,$EI20,FALSE)) -> -50741.8483 | DQ20: ='1.Dados_cont_historicos'!ER20*(1+VLOOKUP('1.Dados_cont_historicos'!ER$4,'3.Índices_inflação'!$A$2:$BA$105,$EI20,FALSE)) -> -23277.63952 | DR20: ='1.Dados_cont_historicos'!ES20*(1+VLOOKUP('1.Dados_cont_historicos'!ES$4,'3.Índices_inflação'!$A$2:$BA$105,$EI20,FALSE)) -> -351738.562 | DS20: ='1.Dados_cont_historicos'!ET20*(1+VLOOKUP('1.Dados_cont_historicos'!ET$4,'3.Índices_inflação'!$A$2:$BA$105,$EI20,FALSE)) -> -1548475.249 | DT20: ='1.Dados_cont_historicos'!EU20*(1+VLOOKUP('1.Dados_cont_historicos'!EU$4,'3.Índices_inflação'!$A$2:$BA$105,$EI20,FALSE)) -> -635432.1361 | DU20: ='1.Dados_cont_historicos'!EV20*(1+VLOOKUP('1.Dados_cont_historicos'!EV$4,'3.Índices_inflação'!$A$2:$BA$105,$EI20,FALSE)) -> -835714.1199 | DV20: ='1.Dados_cont_historicos'!EW20*(1+VLOOKUP('1.Dados_cont_historicos'!EW$4,'3.Índices_inflação'!$A$2:$BA$105,$EI20,FALSE)) -> -995521.3067 | DY20: -1579229.307 | DZ20: -284267.4145 | EA20: -1204631.09 | EB20: -4472679.634 | EC20: -1424779.316 | ED20: -815625.7396 | EE20: -4085335.69 | EF20: -5328429.939 | EH20: IPCA | EI20: =HLOOKUP(EH20,'3.Índices_inflação'!$B$1:$AZ$144,144,FALSE) -> 28
C21: Prodes | P21: ='1.Dados_cont_historicos'!AQ21*(1+VLOOKUP('1.Dados_cont_historicos'!AQ$4,'3.Índices_inflação'!$A$2:$BA$105,$EI21,FALSE)) ->  | Q21: ='1.Dados_cont_historicos'!AR21*(1+VLOOKUP('1.Dados_cont_historicos'!AR$4,'3.Índices_inflação'!$A$2:$BA$105,$EI21,FALSE)) ->  | R21: ='1.Dados_cont_historicos'!AS21*(1+VLOOKUP('1.Dados_cont_historicos'!AS$4,'3.Índices_inflação'!$A$2:$BA$105,$EI21,FALSE)) ->  | S21: ='1.Dados_cont_historicos'!AT21*(1+VLOOKUP('1.Dados_cont_historicos'!AT$4,'3.Índices_inflação'!$A$2:$BA$105,$EI21,FALSE)) ->  | T21: ='1.Dados_cont_historicos'!AU21*(1+VLOOKUP('1.Dados_cont_historicos'!AU$4,'3.Índices_inflação'!$A$2:$BA$105,$EI21,FALSE)) ->  | U21: ='1.Dados_cont_historicos'!AV21*(1+VLOOKUP('1.Dados_cont_historicos'!AV$4,'3.Índices_inflação'!$A$2:$BA$105,$EI21,FALSE)) ->  | V21: ='1.Dados_cont_historicos'!AW21*(1+VLOOKUP('1.Dados_cont_historicos'!AW$4,'3.Índices_inflação'!$A$2:$BA$105,$EI21,FALSE)) ->  | W21: ='1.Dados_cont_historicos'!AX21*(1+VLOOKUP('1.Dados_cont_historicos'!AX$4,'3.Índices_inflação'!$A$2:$BA$105,$EI21,FALSE)) ->  | X21: ='1.Dados_cont_historicos'!AY21*(1+VLOOKUP('1.Dados_cont_historicos'!AY$4,'3.Índices_inflação'!$A$2:$BA$105,$EI21,FALSE)) ->  | Y21: ='1.Dados_cont_historicos'!AZ21*(1+VLOOKUP('1.Dados_cont_historicos'!AZ$4,'3.Índices_inflação'!$A$2:$BA$105,$EI21,FALSE)) ->  | Z21: ='1.Dados_cont_historicos'!BA21*(1+VLOOKUP('1.Dados_cont_historicos'!BA$4,'3.Índices_inflação'!$A$2:$BA$105,$EI21,FALSE)) ->  | AA21: ='1.Dados_cont_historicos'!BB21*(1+VLOOKUP('1.Dados_cont_historicos'!BB$4,'3.Índices_inflação'!$A$2:$BA$105,$EI21,FALSE)) ->  | BP21: ='1.Dados_cont_historicos'!CQ21*(1+VLOOKUP('1.Dados_cont_historicos'!CQ$4,'3.Índices_inflação'!$A$2:$BA$105,$EI21,FALSE)) -> 0 | BQ21: ='1.Dados_cont_historicos'!CR21*(1+VLOOKUP('1.Dados_cont_historicos'!CR$4,'3.Índices_inflação'!$A$2:$BA$105,$EI21,FALSE)) -> 0 | BR21: ='1.Dados_cont_historicos'!CS21*(1+VLOOKUP('1.Dados_cont_historicos'!CS$4,'3.Índices_inflação'!$A$2:$BA$105,$EI21,FALSE)) -> -6260558.309 | BS21: ='1.Dados_cont_historicos'!CT21*(1+VLOOKUP('1.Dados_cont_historicos'!CT$4,'3.Índices_inflação'!$A$2:$BA$105,$EI21,FALSE)) -> -363919.2422 | BT21: ='1.Dados_cont_historicos'!CU21*(1+VLOOKUP('1.Dados_cont_historicos'!CU$4,'3.Índices_inflação'!$A$2:$BA$105,$EI21,FALSE)) -> -367864.8828 | BU21: ='1.Dados_cont_historicos'!CV21*(1+VLOOKUP('1.Dados_cont_historicos'!CV$4,'3.Índices_inflação'!$A$2:$BA$105,$EI21,FALSE)) -> -365296.8009 | BV21: ='1.Dados_cont_historicos'!CW21*(1+VLOOKUP('1.Dados_cont_historicos'!CW$4,'3.Índices_inflação'!$A$2:$BA$105,$EI21,FALSE)) -> -364091.6508 | BW21: ='1.Dados_cont_historicos'!CX21*(1+VLOOKUP('1.Dados_cont_historicos'!CX$4,'3.Índices_inflação'!$A$2:$BA$105,$EI21,FALSE)) -> -363216.8533 | BX21: ='1.Dados_cont_historicos'!CY21*(1+VLOOKUP('1.Dados_cont_historicos'!CY$4,'3.Índices_inflação'!$A$2:$BA$105,$EI21,FALSE)) -> -356494.5476 | BY21: ='1.Dados_cont_historicos'!CZ21*(1+VLOOKUP('1.Dados_cont_historicos'!CZ$4,'3.Índices_inflação'!$A$2:$BA$105,$EI21,FALSE)) -> -355081.2342 | BZ21: ='1.Dados_cont_historicos'!DA21*(1+VLOOKUP('1.Dados_cont_historicos'!DA$4,'3.Índices_inflação'!$A$2:$BA$105,$EI21,FALSE)) -> -350964.4114 | CA21: ='1.Dados_cont_historicos'!DB21*(1+VLOOKUP('1.Dados_cont_historicos'!DB$4,'3.Índices_inflação'!$A$2:$BA$105,$EI21,FALSE)) -> -372800.6928 | CB21: -9520288.625 | CC21: ='1.Dados_cont_historicos'!DD21*(1+VLOOKUP('1.Dados_cont_historicos'!DD$4,'3.Índices_inflação'!$A$2:$BA$105,$EI21,FALSE)) -> 0 | CD21: ='1.Dados_cont_historicos'!DE21*(1+VLOOKUP('1.Dados_cont_historicos'!DE$4,'3.Índices_inflação'!$A$2:$BA$105,$EI21,FALSE)) -> 0 | CE21: ='1.Dados_cont_historicos'!DF21*(1+VLOOKUP('1.Dados_cont_historicos'!DF$4,'3.Índices_inflação'!$A$2:$BA$105,$EI21,FALSE)) -> 0 | CF21: ='1.Dados_cont_historicos'!DG21*(1+VLOOKUP('1.Dados_cont_historicos'!DG$4,'3.Índices_inflação'!$A$2:$BA$105,$EI21,FALSE)) -> 0 | CG21: ='1.Dados_cont_historicos'!DH21*(1+VLOOKUP('1.Dados_cont_historicos'!DH$4,'3.Índices_inflação'!$A$2:$BA$105,$EI21,FALSE)) -> 0 | CH21: ='1.Dados_cont_historicos'!DI21*(1+VLOOKUP('1.Dados_cont_historicos'!DI$4,'3.Índices_inflação'!$A$2:$BA$105,$EI21,FALSE)) -> 0 | CI21: ='1.Dados_cont_historicos'!DJ21*(1+VLOOKUP('1.Dados_cont_historicos'!DJ$4,'3.Índices_inflação'!$A$2:$BA$105,$EI21,FALSE)) -> 0 | CJ21: ='1.Dados_cont_historicos'!DK21*(1+VLOOKUP('1.Dados_cont_historicos'!DK$4,'3.Índices_inflação'!$A$2:$BA$105,$EI21,FALSE)) -> 0 | CK21: ='1.Dados_cont_historicos'!DL21*(1+VLOOKUP('1.Dados_cont_historicos'!DL$4,'3.Índices_inflação'!$A$2:$BA$105,$EI21,FALSE)) -> 0 | CL21: ='1.Dados_cont_historicos'!DM21*(1+VLOOKUP('1.Dados_cont_historicos'!DM$4,'3.Índices_inflação'!$A$2:$BA$105,$EI21,FALSE)) -> 0 | CM21: ='1.Dados_cont_historicos'!DN21*(1+VLOOKUP('1.Dados_cont_historicos'!DN$4,'3.Índices_inflação'!$A$2:$BA$105,$EI21,FALSE)) -> 0 | CN21: ='1.Dados_cont_historicos'!DO21*(1+VLOOKUP('1.Dados_cont_historicos'!DO$4,'3.Índices_inflação'!$A$2:$BA$105,$EI21,FALSE)) -> 0 | CO21: 0 | CP21: ='1.Dados_cont_historicos'!DQ21*(1+VLOOKUP('1.Dados_cont_historicos'!DQ$4,'3.Índices_inflação'!$A$2:$BA$105,$EI21,FALSE)) -> 0 | CQ21: ='1.Dados_cont_historicos'!DR21*(1+VLOOKUP('1.Dados_cont_historicos'!DR$4,'3.Índices_inflação'!$A$2:$BA$105,$EI21,FALSE)) -> 0 | CR21: ='1.Dados_cont_historicos'!DS21*(1+VLOOKUP('1.Dados_cont_historicos'!DS$4,'3.Índices_inflação'!$A$2:$BA$105,$EI21,FALSE)) -> 0 | CS21: ='1.Dados_cont_historicos'!DT21*(1+VLOOKUP('1.Dados_cont_historicos'!DT$4,'3.Índices_inflação'!$A$2:$BA$105,$EI21,FALSE)) -> 0 | CT21: ='1.Dados_cont_historicos'!DU21*(1+VLOOKUP('1.Dados_cont_historicos'!DU$4,'3.Índices_inflação'!$A$2:$BA$105,$EI21,FALSE)) -> -341022.8097 | CU21: ='1.Dados_cont_historicos'!DV21*(1+VLOOKUP('1.Dados_cont_historicos'!DV$4,'3.Índices_inflação'!$A$2:$BA$105,$EI21,FALSE)) -> 0 | CV21: ='1.Dados_cont_historicos'!DW21*(1+VLOOKUP('1.Dados_cont_historicos'!DW$4,'3.Índices_inflação'!$A$2:$BA$105,$EI21,FALSE)) -> 0 | CW21: ='1.Dados_cont_historicos'!DX21*(1+VLOOKUP('1.Dados_cont_historicos'!DX$4,'3.Índices_inflação'!$A$2:$BA$105,$EI21,FALSE)) -> 0 | CX21: ='1.Dados_cont_historicos'!DY21*(1+VLOOKUP('1.Dados_cont_historicos'!DY$4,'3.Índices_inflação'!$A$2:$BA$105,$EI21,FALSE)) -> -342394.3322 | CY21: ='1.Dados_cont_historicos'!DZ21*(1+VLOOKUP('1.Dados_cont_historicos'!DZ$4,'3.Índices_inflação'!$A$2:$BA$105,$EI21,FALSE)) -> 0 | CZ21: ='1.Dados_cont_historicos'!EA21*(1+VLOOKUP('1.Dados_cont_historicos'!EA$4,'3.Índices_inflação'!$A$2:$BA$105,$EI21,FALSE)) -> 0 | DA21: ='1.Dados_cont_historicos'!EB21*(1+VLOOKUP('1.Dados_cont_historicos'!EB$4,'3.Índices_inflação'!$A$2:$BA$105,$EI21,FALSE)) -> -0.03262704366 | DB21: -683417.1745 | DC21: ='1.Dados_cont_historicos'!ED21*(1+VLOOKUP('1.Dados_cont_historicos'!ED$4,'3.Índices_inflação'!$A$2:$BA$105,$EI21,FALSE)) -> 0 | DD21: ='1.Dados_cont_historicos'!EE21*(1+VLOOKUP('1.Dados_cont_historicos'!EE$4,'3.Índices_inflação'!$A$2:$BA$105,$EI21,FALSE)) -> 0 | DE21: ='1.Dados_cont_historicos'!EF21*(1+VLOOKUP('1.Dados_cont_historicos'!EF$4,'3.Índices_inflação'!$A$2:$BA$105,$EI21,FALSE)) -> 0 | DF21: ='1.Dados_cont_historicos'!EG21*(1+VLOOKUP('1.Dados_cont_historicos'!EG$4,'3.Índices_inflação'!$A$2:$BA$105,$EI21,FALSE)) -> 0 | DG21: ='1.Dados_cont_historicos'!EH21*(1+VLOOKUP('1.Dados_cont_historicos'!EH$4,'3.Índices_inflação'!$A$2:$BA$105,$EI21,FALSE)) -> 0 | DH21: ='1.Dados_cont_historicos'!EI21*(1+VLOOKUP('1.Dados_cont_historicos'!EI$4,'3.Índices_inflação'!$A$2:$BA$105,$EI21,FALSE)) -> 0 | DI21: ='1.Dados_cont_historicos'!EJ21*(1+VLOOKUP('1.Dados_cont_historicos'!EJ$4,'3.Índices_inflação'!$A$2:$BA$105,$EI21,FALSE)) -> 0 | DJ21: ='1.Dados_cont_historicos'!EK21*(1+VLOOKUP('1.Dados_cont_historicos'!EK$4,'3.Índices_inflação'!$A$2:$BA$105,$EI21,FALSE)) -> -342433.9084 | DK21: ='1.Dados_cont_historicos'!EL21*(1+VLOOKUP('1.Dados_cont_historicos'!EL$4,'3.Índices_inflação'!$A$2:$BA$105,$EI21,FALSE)) -> 0 | DL21: ='1.Dados_cont_historicos'!EM21*(1+VLOOKUP('1.Dados_cont_historicos'!EM$4,'3.Índices_inflação'!$A$2:$BA$105,$EI21,FALSE)) -> 0 | DM21: ='1.Dados_cont_historicos'!EN21*(1+VLOOKUP('1.Dados_cont_historicos'!EN$4,'3.Índices_inflação'!$A$2:$BA$105,$EI21,FALSE)) -> 0 | DN21: ='1.Dados_cont_historicos'!EO21*(1+VLOOKUP('1.Dados_cont_historicos'!EO$4,'3.Índices_inflação'!$A$2:$BA$105,$EI21,FALSE)) -> 0 | DO21: -342433.9084 | DP21: ='1.Dados_cont_historicos'!EQ21*(1+VLOOKUP('1.Dados_cont_historicos'!EQ$4,'3.Índices_inflação'!$A$2:$BA$105,$EI21,FALSE)) -> 0 | DQ21: ='1.Dados_cont_historicos'!ER21*(1+VLOOKUP('1.Dados_cont_historicos'!ER$4,'3.Índices_inflação'!$A$2:$BA$105,$EI21,FALSE)) -> 0 | DR21: ='1.Dados_cont_historicos'!ES21*(1+VLOOKUP('1.Dados_cont_historicos'!ES$4,'3.Índices_inflação'!$A$2:$BA$105,$EI21,FALSE)) -> 0 | DS21: ='1.Dados_cont_historicos'!ET21*(1+VLOOKUP('1.Dados_cont_historicos'!ET$4,'3.Índices_inflação'!$A$2:$BA$105,$EI21,FALSE)) -> 0 | DT21: ='1.Dados_cont_historicos'!EU21*(1+VLOOKUP('1.Dados_cont_historicos'!EU$4,'3.Índices_inflação'!$A$2:$BA$105,$EI21,FALSE)) -> 0 | DU21: ='1.Dados_cont_historicos'!EV21*(1+VLOOKUP('1.Dados_cont_historicos'!EV$4,'3.Índices_inflação'!$A$2:$BA$105,$EI21,FALSE)) -> 0 | DV21: ='1.Dados_cont_historicos'!EW21*(1+VLOOKUP('1.Dados_cont_historicos'!EW$4,'3.Índices_inflação'!$A$2:$BA$105,$EI21,FALSE)) -> 0 | DY21: =CB21 -> -9520288.625 | DZ21: =CO21 -> 0 | EA21: =DB21 -> -683417.1745 | EB21: =DO21 -> -342433.9084 | EC21: =SUM(BW21:CA21,CC21:CI21) -> -1798557.739 | ED21: =SUM(CJ21:CN21,CP21:CV21) -> -341022.8097 | EE21: =SUM(CW21:DA21,DC21:DI21) -> -342394.3648 | EF21: =SUM(DJ21:DN21,DP21:DV21) -> -342433.9084 | EH21: IPCA | EI21: =HLOOKUP(EH21,'3.Índices_inflação'!$B$1:$AZ$144,144,FALSE) -> 28
C22: Outras | P22: ='1.Dados_cont_historicos'!AQ22*(1+VLOOKUP('1.Dados_cont_historicos'!AQ$4,'3.Índices_inflação'!$A$2:$BA$105,$EI22,FALSE)) ->  | Q22: ='1.Dados_cont_historicos'!AR22*(1+VLOOKUP('1.Dados_cont_historicos'!AR$4,'3.Índices_inflação'!$A$2:$BA$105,$EI22,FALSE)) ->  | R22: ='1.Dados_cont_historicos'!AS22*(1+VLOOKUP('1.Dados_cont_historicos'!AS$4,'3.Índices_inflação'!$A$2:$BA$105,$EI22,FALSE)) ->  | S22: ='1.Dados_cont_historicos'!AT22*(1+VLOOKUP('1.Dados_cont_historicos'!AT$4,'3.Índices_inflação'!$A$2:$BA$105,$EI22,FALSE)) ->  | T22: ='1.Dados_cont_historicos'!AU22*(1+VLOOKUP('1.Dados_cont_historicos'!AU$4,'3.Índices_inflação'!$A$2:$BA$105,$EI22,FALSE)) ->  | U22: ='1.Dados_cont_historicos'!AV22*(1+VLOOKUP('1.Dados_cont_historicos'!AV$4,'3.Índices_inflação'!$A$2:$BA$105,$EI22,FALSE)) ->  | V22: ='1.Dados_cont_historicos'!AW22*(1+VLOOKUP('1.Dados_cont_historicos'!AW$4,'3.Índices_inflação'!$A$2:$BA$105,$EI22,FALSE)) ->  | W22: ='1.Dados_cont_historicos'!AX22*(1+VLOOKUP('1.Dados_cont_historicos'!AX$4,'3.Índices_inflação'!$A$2:$BA$105,$EI22,FALSE)) ->  | X22: ='1.Dados_cont_historicos'!AY22*(1+VLOOKUP('1.Dados_cont_historicos'!AY$4,'3.Índices_inflação'!$A$2:$BA$105,$EI22,FALSE)) ->  | Y22: ='1.Dados_cont_historicos'!AZ22*(1+VLOOKUP('1.Dados_cont_historicos'!AZ$4,'3.Índices_inflação'!$A$2:$BA$105,$EI22,FALSE)) ->  | Z22: ='1.Dados_cont_historicos'!BA22*(1+VLOOKUP('1.Dados_cont_historicos'!BA$4,'3.Índices_inflação'!$A$2:$BA$105,$EI22,FALSE)) ->  | AA22: ='1.Dados_cont_historicos'!BB22*(1+VLOOKUP('1.Dados_cont_historicos'!BB$4,'3.Índices_inflação'!$A$2:$BA$105,$EI22,FALSE)) ->  | BP22: ='1.Dados_cont_historicos'!CQ22*(1+VLOOKUP('1.Dados_cont_historicos'!CQ$4,'3.Índices_inflação'!$A$2:$BA$105,$EI22,FALSE)) -> -2530822.341 | BQ22: ='1.Dados_cont_historicos'!CR22*(1+VLOOKUP('1.Dados_cont_historicos'!CR$4,'3.Índices_inflação'!$A$2:$BA$105,$EI22,FALSE)) -> -2329086.295 | BR22: ='1.Dados_cont_historicos'!CS22*(1+VLOOKUP('1.Dados_cont_historicos'!CS$4,'3.Índices_inflação'!$A$2:$BA$105,$EI22,FALSE)) -> -2667466.226 | BS22: ='1.Dados_cont_historicos'!CT22*(1+VLOOKUP('1.Dados_cont_historicos'!CT$4,'3.Índices_inflação'!$A$2:$BA$105,$EI22,FALSE)) -> -2833782.994 | BT22: ='1.Dados_cont_historicos'!CU22*(1+VLOOKUP('1.Dados_cont_historicos'!CU$4,'3.Índices_inflação'!$A$2:$BA$105,$EI22,FALSE)) -> -4281898.627 | BU22: ='1.Dados_cont_historicos'!CV22*(1+VLOOKUP('1.Dados_cont_historicos'!CV$4,'3.Índices_inflação'!$A$2:$BA$105,$EI22,FALSE)) -> -2582464.901 | BV22: ='1.Dados_cont_historicos'!CW22*(1+VLOOKUP('1.Dados_cont_historicos'!CW$4,'3.Índices_inflação'!$A$2:$BA$105,$EI22,FALSE)) -> -5387174.424 | BW22: ='1.Dados_cont_historicos'!CX22*(1+VLOOKUP('1.Dados_cont_historicos'!CX$4,'3.Índices_inflação'!$A$2:$BA$105,$EI22,FALSE)) -> -2776073.55 | BX22: ='1.Dados_cont_historicos'!CY22*(1+VLOOKUP('1.Dados_cont_historicos'!CY$4,'3.Índices_inflação'!$A$2:$BA$105,$EI22,FALSE)) -> -4660453.485 | BY22: ='1.Dados_cont_historicos'!CZ22*(1+VLOOKUP('1.Dados_cont_historicos'!CZ$4,'3.Índices_inflação'!$A$2:$BA$105,$EI22,FALSE)) -> -2947876.929 | BZ22: ='1.Dados_cont_historicos'!DA22*(1+VLOOKUP('1.Dados_cont_historicos'!DA$4,'3.Índices_inflação'!$A$2:$BA$105,$EI22,FALSE)) -> -3252166.404 | CA22: ='1.Dados_cont_historicos'!DB22*(1+VLOOKUP('1.Dados_cont_historicos'!DB$4,'3.Índices_inflação'!$A$2:$BA$105,$EI22,FALSE)) -> -5043927.49 | CB22: -41293193.67 | CC22: ='1.Dados_cont_historicos'!DD22*(1+VLOOKUP('1.Dados_cont_historicos'!DD$4,'3.Índices_inflação'!$A$2:$BA$105,$EI22,FALSE)) -> -4306088.828 | CD22: ='1.Dados_cont_historicos'!DE22*(1+VLOOKUP('1.Dados_cont_historicos'!DE$4,'3.Índices_inflação'!$A$2:$BA$105,$EI22,FALSE)) -> -4526109.469 | CE22: ='1.Dados_cont_historicos'!DF22*(1+VLOOKUP('1.Dados_cont_historicos'!DF$4,'3.Índices_inflação'!$A$2:$BA$105,$EI22,FALSE)) -> -4584734.246 | CF22: ='1.Dados_cont_historicos'!DG22*(1+VLOOKUP('1.Dados_cont_historicos'!DG$4,'3.Índices_inflação'!$A$2:$BA$105,$EI22,FALSE)) -> -4929067.044 | CG22: ='1.Dados_cont_historicos'!DH22*(1+VLOOKUP('1.Dados_cont_historicos'!DH$4,'3.Índices_inflação'!$A$2:$BA$105,$EI22,FALSE)) -> -3267866.736 | CH22: ='1.Dados_cont_historicos'!DI22*(1+VLOOKUP('1.Dados_cont_historicos'!DI$4,'3.Índices_inflação'!$A$2:$BA$105,$EI22,FALSE)) -> -3068646.658 | CI22: ='1.Dados_cont_historicos'!DJ22*(1+VLOOKUP('1.Dados_cont_historicos'!DJ$4,'3.Índices_inflação'!$A$2:$BA$105,$EI22,FALSE)) -> -4863394.413 | CJ22: ='1.Dados_cont_historicos'!DK22*(1+VLOOKUP('1.Dados_cont_historicos'!DK$4,'3.Índices_inflação'!$A$2:$BA$105,$EI22,FALSE)) -> -4745734.487 | CK22: ='1.Dados_cont_historicos'!DL22*(1+VLOOKUP('1.Dados_cont_historicos'!DL$4,'3.Índices_inflação'!$A$2:$BA$105,$EI22,FALSE)) -> -3605256.724 | CL22: ='1.Dados_cont_historicos'!DM22*(1+VLOOKUP('1.Dados_cont_historicos'!DM$4,'3.Índices_inflação'!$A$2:$BA$105,$EI22,FALSE)) -> -5234755.204 | CM22: ='1.Dados_cont_historicos'!DN22*(1+VLOOKUP('1.Dados_cont_historicos'!DN$4,'3.Índices_inflação'!$A$2:$BA$105,$EI22,FALSE)) -> -3451859.113 | CN22: ='1.Dados_cont_historicos'!DO22*(1+VLOOKUP('1.Dados_cont_historicos'!DO$4,'3.Índices_inflação'!$A$2:$BA$105,$EI22,FALSE)) -> -4117608.83 | CO22: -50701121.75 | CP22: ='1.Dados_cont_historicos'!DQ22*(1+VLOOKUP('1.Dados_cont_historicos'!DQ$4,'3.Índices_inflação'!$A$2:$BA$105,$EI22,FALSE)) -> -4825166.626 | CQ22: ='1.Dados_cont_historicos'!DR22*(1+VLOOKUP('1.Dados_cont_historicos'!DR$4,'3.Índices_inflação'!$A$2:$BA$105,$EI22,FALSE)) -> -4372467.022 | CR22: ='1.Dados_cont_historicos'!DS22*(1+VLOOKUP('1.Dados_cont_historicos'!DS$4,'3.Índices_inflação'!$A$2:$BA$105,$EI22,FALSE)) -> -6831042.011 | CS22: ='1.Dados_cont_historicos'!DT22*(1+VLOOKUP('1.Dados_cont_historicos'!DT$4,'3.Índices_inflação'!$A$2:$BA$105,$EI22,FALSE)) -> -3365166.819 | CT22: ='1.Dados_cont_historicos'!DU22*(1+VLOOKUP('1.Dados_cont_historicos'!DU$4,'3.Índices_inflação'!$A$2:$BA$105,$EI22,FALSE)) -> -3663445.18 | CU22: ='1.Dados_cont_historicos'!DV22*(1+VLOOKUP('1.Dados_cont_historicos'!DV$4,'3.Índices_inflação'!$A$2:$BA$105,$EI22,FALSE)) -> -8511286.371 | CV22: ='1.Dados_cont_historicos'!DW22*(1+VLOOKUP('1.Dados_cont_historicos'!DW$4,'3.Índices_inflação'!$A$2:$BA$105,$EI22,FALSE)) -> -3126517.983 | CW22: ='1.Dados_cont_historicos'!DX22*(1+VLOOKUP('1.Dados_cont_historicos'!DX$4,'3.Índices_inflação'!$A$2:$BA$105,$EI22,FALSE)) -> -2890982.624 | CX22: ='1.Dados_cont_historicos'!DY22*(1+VLOOKUP('1.Dados_cont_historicos'!DY$4,'3.Índices_inflação'!$A$2:$BA$105,$EI22,FALSE)) -> -12679626.37 | CY22: ='1.Dados_cont_historicos'!DZ22*(1+VLOOKUP('1.Dados_cont_historicos'!DZ$4,'3.Índices_inflação'!$A$2:$BA$105,$EI22,FALSE)) -> -3687712.517 | CZ22: ='1.Dados_cont_historicos'!EA22*(1+VLOOKUP('1.Dados_cont_historicos'!EA$4,'3.Índices_inflação'!$A$2:$BA$105,$EI22,FALSE)) -> -3289023.445 | DA22: ='1.Dados_cont_historicos'!EB22*(1+VLOOKUP('1.Dados_cont_historicos'!EB$4,'3.Índices_inflação'!$A$2:$BA$105,$EI22,FALSE)) -> -14506718.31 | DB22: -71749155.28 | DC22: ='1.Dados_cont_historicos'!ED22*(1+VLOOKUP('1.Dados_cont_historicos'!ED$4,'3.Índices_inflação'!$A$2:$BA$105,$EI22,FALSE)) -> -3292032.468 | DD22: ='1.Dados_cont_historicos'!EE22*(1+VLOOKUP('1.Dados_cont_historicos'!EE$4,'3.Índices_inflação'!$A$2:$BA$105,$EI22,FALSE)) -> -3358703.035 | DE22: ='1.Dados_cont_historicos'!EF22*(1+VLOOKUP('1.Dados_cont_historicos'!EF$4,'3.Índices_inflação'!$A$2:$BA$105,$EI22,FALSE)) -> -15568789.81 | DF22: ='1.Dados_cont_historicos'!EG22*(1+VLOOKUP('1.Dados_cont_historicos'!EG$4,'3.Índices_inflação'!$A$2:$BA$105,$EI22,FALSE)) -> -1688619.66 | DG22: ='1.Dados_cont_historicos'!EH22*(1+VLOOKUP('1.Dados_cont_historicos'!EH$4,'3.Índices_inflação'!$A$2:$BA$105,$EI22,FALSE)) -> -1183692.961 | DH22: ='1.Dados_cont_historicos'!EI22*(1+VLOOKUP('1.Dados_cont_historicos'!EI$4,'3.Índices_inflação'!$A$2:$BA$105,$EI22,FALSE)) -> -13959144.97 | DI22: ='1.Dados_cont_historicos'!EJ22*(1+VLOOKUP('1.Dados_cont_historicos'!EJ$4,'3.Índices_inflação'!$A$2:$BA$105,$EI22,FALSE)) -> -2447196.765 | DJ22: ='1.Dados_cont_historicos'!EK22*(1+VLOOKUP('1.Dados_cont_historicos'!EK$4,'3.Índices_inflação'!$A$2:$BA$105,$EI22,FALSE)) -> -2151024.736 | DK22: ='1.Dados_cont_historicos'!EL22*(1+VLOOKUP('1.Dados_cont_historicos'!EL$4,'3.Índices_inflação'!$A$2:$BA$105,$EI22,FALSE)) -> -13737426.72 | DL22: ='1.Dados_cont_historicos'!EM22*(1+VLOOKUP('1.Dados_cont_historicos'!EM$4,'3.Índices_inflação'!$A$2:$BA$105,$EI22,FALSE)) -> -2356793.671 | DM22: ='1.Dados_cont_historicos'!EN22*(1+VLOOKUP('1.Dados_cont_historicos'!EN$4,'3.Índices_inflação'!$A$2:$BA$105,$EI22,FALSE)) -> -2038453.933 | DN22: ='1.Dados_cont_historicos'!EO22*(1+VLOOKUP('1.Dados_cont_historicos'!EO$4,'3.Índices_inflação'!$A$2:$BA$105,$EI22,FALSE)) -> -18019524.95 | DO22: -79801403.68 | DP22: ='1.Dados_cont_historicos'!EQ22*(1+VLOOKUP('1.Dados_cont_historicos'!EQ$4,'3.Índices_inflação'!$A$2:$BA$105,$EI22,FALSE)) -> -1758150.201 | DQ22: ='1.Dados_cont_historicos'!ER22*(1+VLOOKUP('1.Dados_cont_historicos'!ER$4,'3.Índices_inflação'!$A$2:$BA$105,$EI22,FALSE)) -> -2237588.631 | DR22: ='1.Dados_cont_historicos'!ES22*(1+VLOOKUP('1.Dados_cont_historicos'!ES$4,'3.Índices_inflação'!$A$2:$BA$105,$EI22,FALSE)) -> -12231097.45 | DS22: ='1.Dados_cont_historicos'!ET22*(1+VLOOKUP('1.Dados_cont_historicos'!ET$4,'3.Índices_inflação'!$A$2:$BA$105,$EI22,FALSE)) -> -7235474.308 | DT22: ='1.Dados_cont_historicos'!EU22*(1+VLOOKUP('1.Dados_cont_historicos'!EU$4,'3.Índices_inflação'!$A$2:$BA$105,$EI22,FALSE)) -> -7153589.2 | DU22: ='1.Dados_cont_historicos'!EV22*(1+VLOOKUP('1.Dados_cont_historicos'!EV$4,'3.Índices_inflação'!$A$2:$BA$105,$EI22,FALSE)) -> -8766275.291 | DV22: ='1.Dados_cont_historicos'!EW22*(1+VLOOKUP('1.Dados_cont_historicos'!EW$4,'3.Índices_inflação'!$A$2:$BA$105,$EI22,FALSE)) -> -7650237.56 | DY22: =CB22 -> -41293193.67 | DZ22: =CO22 -> -50701121.75 | EA22: =DB22 -> -71749155.28 | EB22: =DO22 -> -79801403.68 | EC22: =SUM(BW22:CA22,CC22:CI22) -> -48226405.25 | ED22: =SUM(CJ22:CN22,CP22:CV22) -> -55850306.37 | EE22: =SUM(CW22:DA22,DC22:DI22) -> -78552242.94 | EF22: -85335636.65 | EH22: IPCA | EI22: =HLOOKUP(EH22,'3.Índices_inflação'!$B$1:$AZ$144,144,FALSE) -> 28
C23: Total - Outras Receitas | P23: =P13+P14+P15+P19 ->  | Q23: =Q13+Q14+Q15+Q19 ->  | BP23: -19722720.7 | BQ23: -16368264.71 | BR23: -24360552.09 | BS23: -17198103.39 | BT23: -18738250.18 | BU23: -20558205.83 | BV23: -20637396.12 | BW23: -17734018.04 | BX23: -18802867.15 | BY23: -18229844.28 | BZ23: -17661680.93 | CA23: -20226349.89 | CB23: -230238253.3 | CC23: =CC13+CC14+CC15+CC19 -> -26446788.93 | CD23: -16451483.36 | CE23: -17830326.32 | CF23: -17918196.98 | CG23: -18150664.15 | CH23: -13724777.05 | CI23: -16180967.37 | CJ23: -21822258.09 | CK23: -14396562.62 | CL23: -14438976.1 | CM23: -15775498.89 | CN23: -10653391.6 | CO23: -203789891.5 | CP23: -16483422.11 | CQ23: -14739095.27 | CR23: -17540819.49 | CS23: -13429155.87 | CT23: -12814129.06 | CU23: -29225034 | CV23: -15821475.42 | CW23: -16405246.02 | CX23: -25642919.91 | CY23: -16723751.23 | CZ23: -16473669.01 | DA23: -33341656.63 | DB23: -228640374 | DC23: -16289616.37 | DD23: -15592072.94 | DE23: -28168007.23 | DF23: -11757200.57 | DG23: -12920728.03 | DH23: -29458413.94 | DI23: -15388425.56 | DJ23: -13055785.51 | DK23: -32198905.5 | DL23: -13213281.91 | DM23: -13913687.48 | DN23: -30353903.97 | DO23: -232310029 | DP23: =DP13+DP14+DP15+DP19 -> -11855403.01 | DQ23: -13313559.78 | DR23: -24504079.7 | DS23: -26974384.72 | DT23: -21337742.14 | DU23: -23986544.18 | DV23: -23857234.68 | DY23: =DY13+DY14+DY15+DY19 -> -230238253.3 | DZ23: =DZ13+DZ14+DZ15+DZ19 -> -203789891.5 | EA23: -228640374 | EB23: -232310029 | EC23: -219357964.4 | ED23: -197139818.5 | EE23: -238161707.4 | EF23: -248564512.6
C25: Aluguel | P25: ='1.Dados_cont_historicos'!AQ25*(1+VLOOKUP('1.Dados_cont_historicos'!AQ$4,'3.Índices_inflação'!$A$2:$AU$105,$EI25,FALSE)) ->  | Q25: ='1.Dados_cont_historicos'!AR25*(1+VLOOKUP('1.Dados_cont_historicos'!AR$4,'3.Índices_inflação'!$A$2:$AU$105,$EI25,FALSE)) ->  | R25: ='1.Dados_cont_historicos'!AS25*(1+VLOOKUP('1.Dados_cont_historicos'!AS$4,'3.Índices_inflação'!$A$2:$AU$105,$EI25,FALSE)) ->  | S25: ='1.Dados_cont_historicos'!AT25*(1+VLOOKUP('1.Dados_cont_historicos'!AT$4,'3.Índices_inflação'!$A$2:$AU$105,$EI25,FALSE)) ->  | T25: ='1.Dados_cont_historicos'!AU25*(1+VLOOKUP('1.Dados_cont_historicos'!AU$4,'3.Índices_inflação'!$A$2:$AU$105,$EI25,FALSE)) ->  | U25: ='1.Dados_cont_historicos'!AV25*(1+VLOOKUP('1.Dados_cont_historicos'!AV$4,'3.Índices_inflação'!$A$2:$AU$105,$EI25,FALSE)) ->  | V25: ='1.Dados_cont_historicos'!AW25*(1+VLOOKUP('1.Dados_cont_historicos'!AW$4,'3.Índices_inflação'!$A$2:$AU$105,$EI25,FALSE)) ->  | W25: ='1.Dados_cont_historicos'!AX25*(1+VLOOKUP('1.Dados_cont_historicos'!AX$4,'3.Índices_inflação'!$A$2:$AU$105,$EI25,FALSE)) ->  | X25: ='1.Dados_cont_historicos'!AY25*(1+VLOOKUP('1.Dados_cont_historicos'!AY$4,'3.Índices_inflação'!$A$2:$AU$105,$EI25,FALSE)) ->  | Y25: ='1.Dados_cont_historicos'!AZ25*(1+VLOOKUP('1.Dados_cont_historicos'!AZ$4,'3.Índices_inflação'!$A$2:$AU$105,$EI25,FALSE)) ->  | Z25: ='1.Dados_cont_historicos'!BA25*(1+VLOOKUP('1.Dados_cont_historicos'!BA$4,'3.Índices_inflação'!$A$2:$AU$105,$EI25,FALSE)) ->  | AA25: ='1.Dados_cont_historicos'!BB25*(1+VLOOKUP('1.Dados_cont_historicos'!BB$4,'3.Índices_inflação'!$A$2:$AU$105,$EI25,FALSE)) ->  | BP25: ='1.Dados_cont_historicos'!CQ25*(1+VLOOKUP('1.Dados_cont_historicos'!CQ$4,'3.Índices_inflação'!$A$2:$AU$105,$EI25,FALSE)) -> 3585227.308 | BQ25: ='1.Dados_cont_historicos'!CR25*(1+VLOOKUP('1.Dados_cont_historicos'!CR$4,'3.Índices_inflação'!$A$2:$AU$105,$EI25,FALSE)) -> 6442539.125 | BR25: ='1.Dados_cont_historicos'!CS25*(1+VLOOKUP('1.Dados_cont_historicos'!CS$4,'3.Índices_inflação'!$A$2:$AU$105,$EI25,FALSE)) -> 3712666.889 | BS25: ='1.Dados_cont_historicos'!CT25*(1+VLOOKUP('1.Dados_cont_historicos'!CT$4,'3.Índices_inflação'!$A$2:$AU$105,$EI25,FALSE)) -> 3801123.96 | BT25: ='1.Dados_cont_historicos'!CU25*(1+VLOOKUP('1.Dados_cont_historicos'!CU$4,'3.Índices_inflação'!$A$2:$AU$105,$EI25,FALSE)) -> 3843595.67 | BU25: ='1.Dados_cont_historicos'!CV25*(1+VLOOKUP('1.Dados_cont_historicos'!CV$4,'3.Índices_inflação'!$A$2:$AU$105,$EI25,FALSE)) -> 4434999.588 | BV25: ='1.Dados_cont_historicos'!CW25*(1+VLOOKUP('1.Dados_cont_historicos'!CW$4,'3.Índices_inflação'!$A$2:$AU$105,$EI25,FALSE)) -> 4781215.419 | BW25: ='1.Dados_cont_historicos'!CX25*(1+VLOOKUP('1.Dados_cont_historicos'!CX$4,'3.Índices_inflação'!$A$2:$AU$105,$EI25,FALSE)) -> 5251510.459 | BX25: ='1.Dados_cont_historicos'!CY25*(1+VLOOKUP('1.Dados_cont_historicos'!CY$4,'3.Índices_inflação'!$A$2:$AU$105,$EI25,FALSE)) -> 5210065.92 | BY25: ='1.Dados_cont_historicos'!CZ25*(1+VLOOKUP('1.Dados_cont_historicos'!CZ$4,'3.Índices_inflação'!$A$2:$AU$105,$EI25,FALSE)) -> 5316887.737 | BZ25: ='1.Dados_cont_historicos'!DA25*(1+VLOOKUP('1.Dados_cont_historicos'!DA$4,'3.Índices_inflação'!$A$2:$AU$105,$EI25,FALSE)) -> 5491413.855 | CA25: ='1.Dados_cont_historicos'!DB25*(1+VLOOKUP('1.Dados_cont_historicos'!DB$4,'3.Índices_inflação'!$A$2:$AU$105,$EI25,FALSE)) -> 5956131.704 | CB25: =SUM(BP25:CA25) -> 57827377.63 | CC25: ='1.Dados_cont_historicos'!DD25*(1+VLOOKUP('1.Dados_cont_historicos'!DD$4,'3.Índices_inflação'!$A$2:$AU$105,$EI25,FALSE)) -> 6037859.542 | CD25: ='1.Dados_cont_historicos'!DE25*(1+VLOOKUP('1.Dados_cont_historicos'!DE$4,'3.Índices_inflação'!$A$2:$AU$105,$EI25,FALSE)) -> 6429941.267 | CE25: ='1.Dados_cont_historicos'!DF25*(1+VLOOKUP('1.Dados_cont_historicos'!DF$4,'3.Índices_inflação'!$A$2:$AU$105,$EI25,FALSE)) -> 7056110.098 | CF25: ='1.Dados_cont_historicos'!DG25*(1+VLOOKUP('1.Dados_cont_historicos'!DG$4,'3.Índices_inflação'!$A$2:$AU$105,$EI25,FALSE)) -> 6808747.631 | CG25: ='1.Dados_cont_historicos'!DH25*(1+VLOOKUP('1.Dados_cont_historicos'!DH$4,'3.Índices_inflação'!$A$2:$AU$105,$EI25,FALSE)) -> 7149228.509 | CH25: ='1.Dados_cont_historicos'!DI25*(1+VLOOKUP('1.Dados_cont_historicos'!DI$4,'3.Índices_inflação'!$A$2:$AU$105,$EI25,FALSE)) -> 6852907.385 | CI25: ='1.Dados_cont_historicos'!DJ25*(1+VLOOKUP('1.Dados_cont_historicos'!DJ$4,'3.Índices_inflação'!$A$2:$AU$105,$EI25,FALSE)) -> 5131264.662 | CJ25: ='1.Dados_cont_historicos'!DK25*(1+VLOOKUP('1.Dados_cont_historicos'!DK$4,'3.Índices_inflação'!$A$2:$AU$105,$EI25,FALSE)) -> 7738312.494 | CK25: ='1.Dados_cont_historicos'!DL25*(1+VLOOKUP('1.Dados_cont_historicos'!DL$4,'3.Índices_inflação'!$A$2:$AU$105,$EI25,FALSE)) -> 6814766.994 | CL25: ='1.Dados_cont_historicos'!DM25*(1+VLOOKUP('1.Dados_cont_historicos'!DM$4,'3.Índices_inflação'!$A$2:$AU$105,$EI25,FALSE)) -> 6401579.509 | CM25: ='1.Dados_cont_historicos'!DN25*(1+VLOOKUP('1.Dados_cont_historicos'!DN$4,'3.Índices_inflação'!$A$2:$AU$105,$EI25,FALSE)) -> 6486814.98 | CN25: ='1.Dados_cont_historicos'!DO25*(1+VLOOKUP('1.Dados_cont_historicos'!DO$4,'3.Índices_inflação'!$A$2:$AU$105,$EI25,FALSE)) -> 6589861.877 | CO25: =SUM(CC25:CN25) -> 79497394.95 | CP25: ='1.Dados_cont_historicos'!DQ25*(1+VLOOKUP('1.Dados_cont_historicos'!DQ$4,'3.Índices_inflação'!$A$2:$AU$105,$EI25,FALSE)) -> 5127520.315 | CQ25: ='1.Dados_cont_historicos'!DR25*(1+VLOOKUP('1.Dados_cont_historicos'!DR$4,'3.Índices_inflação'!$A$2:$AU$105,$EI25,FALSE)) -> 7797568.162 | CR25: ='1.Dados_cont_historicos'!DS25*(1+VLOOKUP('1.Dados_cont_historicos'!DS$4,'3.Índices_inflação'!$A$2:$AU$105,$EI25,FALSE)) -> 3883620.062 | CS25: ='1.Dados_cont_historicos'!DT25*(1+VLOOKUP('1.Dados_cont_historicos'!DT$4,'3.Índices_inflação'!$A$2:$AU$105,$EI25,FALSE)) -> 9168094.397 | CT25: ='1.Dados_cont_historicos'!DU25*(1+VLOOKUP('1.Dados_cont_historicos'!DU$4,'3.Índices_inflação'!$A$2:$AU$105,$EI25,FALSE)) -> 6306842.543 | CU25: ='1.Dados_cont_historicos'!DV25*(1+VLOOKUP('1.Dados_cont_historicos'!DV$4,'3.Índices_inflação'!$A$2:$AU$105,$EI25,FALSE)) -> 6196506.015 | CV25: ='1.Dados_cont_historicos'!DW25*(1+VLOOKUP('1.Dados_cont_historicos'!DW$4,'3.Índices_inflação'!$A$2:$AU$105,$EI25,FALSE)) -> 6479820.116 | CW25: ='1.Dados_cont_historicos'!DX25*(1+VLOOKUP('1.Dados_cont_historicos'!DX$4,'3.Índices_inflação'!$A$2:$AU$105,$EI25,FALSE)) -> 6354168.613 | CX25: ='1.Dados_cont_historicos'!DY25*(1+VLOOKUP('1.Dados_cont_historicos'!DY$4,'3.Índices_inflação'!$A$2:$AU$105,$EI25,FALSE)) -> 6367965.042 | CY25: ='1.Dados_cont_historicos'!DZ25*(1+VLOOKUP('1.Dados_cont_historicos'!DZ$4,'3.Índices_inflação'!$A$2:$AU$105,$EI25,FALSE)) -> 6470707.373 | CZ25: ='1.Dados_cont_historicos'!EA25*(1+VLOOKUP('1.Dados_cont_historicos'!EA$4,'3.Índices_inflação'!$A$2:$AU$105,$EI25,FALSE)) -> 6579261.162 | DA25: ='1.Dados_cont_historicos'!EB25*(1+VLOOKUP('1.Dados_cont_historicos'!EB$4,'3.Índices_inflação'!$A$2:$AU$105,$EI25,FALSE)) -> 6939784.179 | DB25: =SUM(CP25:DA25) -> 77671857.98 | DC25: ='1.Dados_cont_historicos'!ED25*(1+VLOOKUP('1.Dados_cont_historicos'!ED$4,'3.Índices_inflação'!$A$2:$AU$105,$EI25,FALSE)) -> 6105307.388 | DD25: ='1.Dados_cont_historicos'!EE25*(1+VLOOKUP('1.Dados_cont_historicos'!EE$4,'3.Índices_inflação'!$A$2:$AU$105,$EI25,FALSE)) -> 6186627.277 | DE25: ='1.Dados_cont_historicos'!EF25*(1+VLOOKUP('1.Dados_cont_historicos'!EF$4,'3.Índices_inflação'!$A$2:$AU$105,$EI25,FALSE)) -> 6341773.949 | DF25: ='1.Dados_cont_historicos'!EG25*(1+VLOOKUP('1.Dados_cont_historicos'!EG$4,'3.Índices_inflação'!$A$2:$AU$105,$EI25,FALSE)) -> 6289206.52 | DG25: ='1.Dados_cont_historicos'!EH25*(1+VLOOKUP('1.Dados_cont_historicos'!EH$4,'3.Índices_inflação'!$A$2:$AU$105,$EI25,FALSE)) -> 6117373.774 | DH25: ='1.Dados_cont_historicos'!EI25*(1+VLOOKUP('1.Dados_cont_historicos'!EI$4,'3.Índices_inflação'!$A$2:$AU$105,$EI25,FALSE)) -> 6131275.274 | DI25: ='1.Dados_cont_historicos'!EJ25*(1+VLOOKUP('1.Dados_cont_historicos'!EJ$4,'3.Índices_inflação'!$A$2:$AU$105,$EI25,FALSE)) -> 5589008.978 | DJ25: ='1.Dados_cont_historicos'!EK25*(1+VLOOKUP('1.Dados_cont_historicos'!EK$4,'3.Índices_inflação'!$A$2:$AU$105,$EI25,FALSE)) -> 5397189.077 | DK25: ='1.Dados_cont_historicos'!EL25*(1+VLOOKUP('1.Dados_cont_historicos'!EL$4,'3.Índices_inflação'!$A$2:$AU$105,$EI25,FALSE)) -> 4225792.061 | DL25: ='1.Dados_cont_historicos'!EM25*(1+VLOOKUP('1.Dados_cont_historicos'!EM$4,'3.Índices_inflação'!$A$2:$AU$105,$EI25,FALSE)) -> 6237046.548 | DM25: ='1.Dados_cont_historicos'!EN25*(1+VLOOKUP('1.Dados_cont_historicos'!EN$4,'3.Índices_inflação'!$A$2:$AU$105,$EI25,FALSE)) -> 4916906.624 | DN25: ='1.Dados_cont_historicos'!EO25*(1+VLOOKUP('1.Dados_cont_historicos'!EO$4,'3.Índices_inflação'!$A$2:$AU$105,$EI25,FALSE)) -> 5479376.278 | DO25: =SUM(DC25:DN25) -> 69016883.75 | DP25: ='1.Dados_cont_historicos'!EQ25*(1+VLOOKUP('1.Dados_cont_historicos'!EQ$4,'3.Índices_inflação'!$A$2:$AU$105,$EI25,FALSE)) -> 4699404.313 | DQ25: ='1.Dados_cont_historicos'!ER25*(1+VLOOKUP('1.Dados_cont_historicos'!ER$4,'3.Índices_inflação'!$A$2:$AU$105,$EI25,FALSE)) -> 2261696.032 | DR25: ='1.Dados_cont_historicos'!ES25*(1+VLOOKUP('1.Dados_cont_historicos'!ES$4,'3.Índices_inflação'!$A$2:$AU$105,$EI25,FALSE)) -> 7240855.096 | DS25: ='1.Dados_cont_historicos'!ET25*(1+VLOOKUP('1.Dados_cont_historicos'!ET$4,'3.Índices_inflação'!$A$2:$AU$105,$EI25,FALSE)) -> 4548505.369 | DT25: ='1.Dados_cont_historicos'!EU25*(1+VLOOKUP('1.Dados_cont_historicos'!EU$4,'3.Índices_inflação'!$A$2:$AU$105,$EI25,FALSE)) -> 6117373.774 | DU25: ='1.Dados_cont_historicos'!EV25*(1+VLOOKUP('1.Dados_cont_historicos'!EV$4,'3.Índices_inflação'!$A$2:$AU$105,$EI25,FALSE)) -> 6131275.274 | DV25: ='1.Dados_cont_historicos'!EW25*(1+VLOOKUP('1.Dados_cont_historicos'!EW$4,'3.Índices_inflação'!$A$2:$AU$105,$EI25,FALSE)) -> 5589008.978 | DY25: 57827377.63 | DZ25: 79497394.95 | EA25: 77671857.98 | EB25: 69016883.75 | EC25: 72692068.77 | ED25: 78991307.46 | EE25: 75472459.53 | EF25: =SUM(DJ25:DN25,DP25:DV25) -> 62844429.42 | EG25: =EF25/EE25-1 -> -0.1673197109 | EH25: IGP-M | EI25: =HLOOKUP(EH25,'3.Índices_inflação'!$B$1:$AZ$144,144,FALSE) -> 7
C26: Atendimento Telefônico | P26: ='1.Dados_cont_historicos'!AQ26*(1+VLOOKUP('1.Dados_cont_historicos'!AQ$4,'3.Índices_inflação'!$A$2:$AU$105,$EI26,FALSE)) ->  | Q26: ='1.Dados_cont_historicos'!AR26*(1+VLOOKUP('1.Dados_cont_historicos'!AR$4,'3.Índices_inflação'!$A$2:$AU$105,$EI26,FALSE)) ->  | R26: ='1.Dados_cont_historicos'!AS26*(1+VLOOKUP('1.Dados_cont_historicos'!AS$4,'3.Índices_inflação'!$A$2:$AU$105,$EI26,FALSE)) ->  | S26: ='1.Dados_cont_historicos'!AT26*(1+VLOOKUP('1.Dados_cont_historicos'!AT$4,'3.Índices_inflação'!$A$2:$AU$105,$EI26,FALSE)) ->  | T26: ='1.Dados_cont_historicos'!AU26*(1+VLOOKUP('1.Dados_cont_historicos'!AU$4,'3.Índices_inflação'!$A$2:$AU$105,$EI26,FALSE)) ->  | U26: ='1.Dados_cont_historicos'!AV26*(1+VLOOKUP('1.Dados_cont_historicos'!AV$4,'3.Índices_inflação'!$A$2:$AU$105,$EI26,FALSE)) ->  | V26: ='1.Dados_cont_historicos'!AW26*(1+VLOOKUP('1.Dados_cont_historicos'!AW$4,'3.Índices_inflação'!$A$2:$AU$105,$EI26,FALSE)) ->  | W26: ='1.Dados_cont_historicos'!AX26*(1+VLOOKUP('1.Dados_cont_historicos'!AX$4,'3.Índices_inflação'!$A$2:$AU$105,$EI26,FALSE)) ->  | X26: ='1.Dados_cont_historicos'!AY26*(1+VLOOKUP('1.Dados_cont_historicos'!AY$4,'3.Índices_inflação'!$A$2:$AU$105,$EI26,FALSE)) ->  | Y26: ='1.Dados_cont_historicos'!AZ26*(1+VLOOKUP('1.Dados_cont_historicos'!AZ$4,'3.Índices_inflação'!$A$2:$AU$105,$EI26,FALSE)) ->  | Z26: ='1.Dados_cont_historicos'!BA26*(1+VLOOKUP('1.Dados_cont_historicos'!BA$4,'3.Índices_inflação'!$A$2:$AU$105,$EI26,FALSE)) ->  | AA26: ='1.Dados_cont_historicos'!BB26*(1+VLOOKUP('1.Dados_cont_historicos'!BB$4,'3.Índices_inflação'!$A$2:$AU$105,$EI26,FALSE)) ->  | BP26: ='1.Dados_cont_historicos'!CQ26*(1+VLOOKUP('1.Dados_cont_historicos'!CQ$4,'3.Índices_inflação'!$A$2:$AU$105,$EI26,FALSE)) -> 1085804.059 | BQ26: ='1.Dados_cont_historicos'!CR26*(1+VLOOKUP('1.Dados_cont_historicos'!CR$4,'3.Índices_inflação'!$A$2:$AU$105,$EI26,FALSE)) -> 894741.3995 | BR26: ='1.Dados_cont_historicos'!CS26*(1+VLOOKUP('1.Dados_cont_historicos'!CS$4,'3.Índices_inflação'!$A$2:$AU$105,$EI26,FALSE)) -> 1418154.942 | BS26: ='1.Dados_cont_historicos'!CT26*(1+VLOOKUP('1.Dados_cont_historicos'!CT$4,'3.Índices_inflação'!$A$2:$AU$105,$EI26,FALSE)) -> 1087296.484 | BT26: ='1.Dados_cont_historicos'!CU26*(1+VLOOKUP('1.Dados_cont_historicos'!CU$4,'3.Índices_inflação'!$A$2:$AU$105,$EI26,FALSE)) -> 1665805.166 | BU26: ='1.Dados_cont_historicos'!CV26*(1+VLOOKUP('1.Dados_cont_historicos'!CV$4,'3.Índices_inflação'!$A$2:$AU$105,$EI26,FALSE)) -> 551984.9243 | BV26: ='1.Dados_cont_historicos'!CW26*(1+VLOOKUP('1.Dados_cont_historicos'!CW$4,'3.Índices_inflação'!$A$2:$AU$105,$EI26,FALSE)) -> 1137090.62 | BW26: ='1.Dados_cont_historicos'!CX26*(1+VLOOKUP('1.Dados_cont_historicos'!CX$4,'3.Índices_inflação'!$A$2:$AU$105,$EI26,FALSE)) -> 1131935.988 | BX26: ='1.Dados_cont_historicos'!CY26*(1+VLOOKUP('1.Dados_cont_historicos'!CY$4,'3.Índices_inflação'!$A$2:$AU$105,$EI26,FALSE)) -> 1114151.451 | BY26: ='1.Dados_cont_historicos'!CZ26*(1+VLOOKUP('1.Dados_cont_historicos'!CZ$4,'3.Índices_inflação'!$A$2:$AU$105,$EI26,FALSE)) -> 1124997.68 | BZ26: ='1.Dados_cont_historicos'!DA26*(1+VLOOKUP('1.Dados_cont_historicos'!DA$4,'3.Índices_inflação'!$A$2:$AU$105,$EI26,FALSE)) -> 1068396.53 | CA26: ='1.Dados_cont_historicos'!DB26*(1+VLOOKUP('1.Dados_cont_historicos'!DB$4,'3.Índices_inflação'!$A$2:$AU$105,$EI26,FALSE)) -> 1048573.844 | CB26: 13328933.09 | CC26: ='1.Dados_cont_historicos'!DD26*(1+VLOOKUP('1.Dados_cont_historicos'!DD$4,'3.Índices_inflação'!$A$2:$AU$105,$EI26,FALSE)) -> 986368.6698 | CD26: ='1.Dados_cont_historicos'!DE26*(1+VLOOKUP('1.Dados_cont_historicos'!DE$4,'3.Índices_inflação'!$A$2:$AU$105,$EI26,FALSE)) -> 730433.7998 | CE26: ='1.Dados_cont_historicos'!DF26*(1+VLOOKUP('1.Dados_cont_historicos'!DF$4,'3.Índices_inflação'!$A$2:$AU$105,$EI26,FALSE)) -> 1237917.427 | CF26: ='1.Dados_cont_historicos'!DG26*(1+VLOOKUP('1.Dados_cont_historicos'!DG$4,'3.Índices_inflação'!$A$2:$AU$105,$EI26,FALSE)) -> 722427.3866 | CG26: ='1.Dados_cont_historicos'!DH26*(1+VLOOKUP('1.Dados_cont_historicos'!DH$4,'3.Índices_inflação'!$A$2:$AU$105,$EI26,FALSE)) -> 1282131.765 | CH26: ='1.Dados_cont_historicos'!DI26*(1+VLOOKUP('1.Dados_cont_historicos'!DI$4,'3.Índices_inflação'!$A$2:$AU$105,$EI26,FALSE)) -> 936480.6623 | CI26: ='1.Dados_cont_historicos'!DJ26*(1+VLOOKUP('1.Dados_cont_historicos'!DJ$4,'3.Índices_inflação'!$A$2:$AU$105,$EI26,FALSE)) -> 944526.924 | CJ26: ='1.Dados_cont_historicos'!DK26*(1+VLOOKUP('1.Dados_cont_historicos'!DK$4,'3.Índices_inflação'!$A$2:$AU$105,$EI26,FALSE)) -> 932564.8947 | CK26: ='1.Dados_cont_historicos'!DL26*(1+VLOOKUP('1.Dados_cont_historicos'!DL$4,'3.Índices_inflação'!$A$2:$AU$105,$EI26,FALSE)) -> 1005597.188 | CL26: ='1.Dados_cont_historicos'!DM26*(1+VLOOKUP('1.Dados_cont_historicos'!DM$4,'3.Índices_inflação'!$A$2:$AU$105,$EI26,FALSE)) -> 824258.8151 | CM26: ='1.Dados_cont_historicos'!DN26*(1+VLOOKUP('1.Dados_cont_historicos'!DN$4,'3.Índices_inflação'!$A$2:$AU$105,$EI26,FALSE)) -> 734583.7729 | CN26: ='1.Dados_cont_historicos'!DO26*(1+VLOOKUP('1.Dados_cont_historicos'!DO$4,'3.Índices_inflação'!$A$2:$AU$105,$EI26,FALSE)) -> 804905.4258 | CO26: 11142196.73 | CP26: ='1.Dados_cont_historicos'!DQ26*(1+VLOOKUP('1.Dados_cont_historicos'!DQ$4,'3.Índices_inflação'!$A$2:$AU$105,$EI26,FALSE)) -> 727697.4257 | CQ26: ='1.Dados_cont_historicos'!DR26*(1+VLOOKUP('1.Dados_cont_historicos'!DR$4,'3.Índices_inflação'!$A$2:$AU$105,$EI26,FALSE)) -> 949384.3812 | CR26: ='1.Dados_cont_historicos'!DS26*(1+VLOOKUP('1.Dados_cont_historicos'!DS$4,'3.Índices_inflação'!$A$2:$AU$105,$EI26,FALSE)) -> 818050.3068 | CS26: ='1.Dados_cont_historicos'!DT26*(1+VLOOKUP('1.Dados_cont_historicos'!DT$4,'3.Índices_inflação'!$A$2:$AU$105,$EI26,FALSE)) -> 814764.3178 | CT26: ='1.Dados_cont_historicos'!DU26*(1+VLOOKUP('1.Dados_cont_historicos'!DU$4,'3.Índices_inflação'!$A$2:$AU$105,$EI26,FALSE)) -> 825801.9452 | CU26: ='1.Dados_cont_historicos'!DV26*(1+VLOOKUP('1.Dados_cont_historicos'!DV$4,'3.Índices_inflação'!$A$2:$AU$105,$EI26,FALSE)) -> 812599.6355 | CV26: ='1.Dados_cont_historicos'!DW26*(1+VLOOKUP('1.Dados_cont_historicos'!DW$4,'3.Índices_inflação'!$A$2:$AU$105,$EI26,FALSE)) -> 786376.4717 | CW26: ='1.Dados_cont_historicos'!DX26*(1+VLOOKUP('1.Dados_cont_historicos'!DX$4,'3.Índices_inflação'!$A$2:$AU$105,$EI26,FALSE)) -> 778027.3187 | CX26: ='1.Dados_cont_historicos'!DY26*(1+VLOOKUP('1.Dados_cont_historicos'!DY$4,'3.Índices_inflação'!$A$2:$AU$105,$EI26,FALSE)) -> 726920.1997 | CY26: ='1.Dados_cont_historicos'!DZ26*(1+VLOOKUP('1.Dados_cont_historicos'!DZ$4,'3.Índices_inflação'!$A$2:$AU$105,$EI26,FALSE)) -> 717720.8057 | CZ26: ='1.Dados_cont_historicos'!EA26*(1+VLOOKUP('1.Dados_cont_historicos'!EA$4,'3.Índices_inflação'!$A$2:$AU$105,$EI26,FALSE)) -> 896985.6387 | DA26: ='1.Dados_cont_historicos'!EB26*(1+VLOOKUP('1.Dados_cont_historicos'!EB$4,'3.Índices_inflação'!$A$2:$AU$105,$EI26,FALSE)) -> 760925.4109 | DB26: 9615253.858 | DC26: ='1.Dados_cont_historicos'!ED26*(1+VLOOKUP('1.Dados_cont_historicos'!ED$4,'3.Índices_inflação'!$A$2:$AU$105,$EI26,FALSE)) -> 781120.6196 | DD26: ='1.Dados_cont_historicos'!EE26*(1+VLOOKUP('1.Dados_cont_historicos'!EE$4,'3.Índices_inflação'!$A$2:$AU$105,$EI26,FALSE)) -> 783818.5909 | DE26: ='1.Dados_cont_historicos'!EF26*(1+VLOOKUP('1.Dados_cont_historicos'!EF$4,'3.Índices_inflação'!$A$2:$AU$105,$EI26,FALSE)) -> 775778.4452 | DF26: ='1.Dados_cont_historicos'!EG26*(1+VLOOKUP('1.Dados_cont_historicos'!EG$4,'3.Índices_inflação'!$A$2:$AU$105,$EI26,FALSE)) -> 58727.93096 | DG26: ='1.Dados_cont_historicos'!EH26*(1+VLOOKUP('1.Dados_cont_historicos'!EH$4,'3.Índices_inflação'!$A$2:$AU$105,$EI26,FALSE)) -> 46881.3136 | DH26: ='1.Dados_cont_historicos'!EI26*(1+VLOOKUP('1.Dados_cont_historicos'!EI$4,'3.Índices_inflação'!$A$2:$AU$105,$EI26,FALSE)) -> 1998110.695 | DI26: ='1.Dados_cont_historicos'!EJ26*(1+VLOOKUP('1.Dados_cont_historicos'!EJ$4,'3.Índices_inflação'!$A$2:$AU$105,$EI26,FALSE)) -> 755391.2462 | DJ26: ='1.Dados_cont_historicos'!EK26*(1+VLOOKUP('1.Dados_cont_historicos'!EK$4,'3.Índices_inflação'!$A$2:$AU$105,$EI26,FALSE)) -> 856577.9596 | DK26: ='1.Dados_cont_historicos'!EL26*(1+VLOOKUP('1.Dados_cont_historicos'!EL$4,'3.Índices_inflação'!$A$2:$AU$105,$EI26,FALSE)) -> 848226.1558 | DL26: ='1.Dados_cont_historicos'!EM26*(1+VLOOKUP('1.Dados_cont_historicos'!EM$4,'3.Índices_inflação'!$A$2:$AU$105,$EI26,FALSE)) -> 866112.0663 | DM26: ='1.Dados_cont_historicos'!EN26*(1+VLOOKUP('1.Dados_cont_historicos'!EN$4,'3.Índices_inflação'!$A$2:$AU$105,$EI26,FALSE)) -> 958605.7028 | DN26: ='1.Dados_cont_historicos'!EO26*(1+VLOOKUP('1.Dados_cont_historicos'!EO$4,'3.Índices_inflação'!$A$2:$AU$105,$EI26,FALSE)) -> 952310.3055 | DO26: 9681661.032 | DP26: ='1.Dados_cont_historicos'!EQ26*(1+VLOOKUP('1.Dados_cont_historicos'!EQ$4,'3.Índices_inflação'!$A$2:$AU$105,$EI26,FALSE)) -> 837022.0464 | DQ26: ='1.Dados_cont_historicos'!ER26*(1+VLOOKUP('1.Dados_cont_historicos'!ER$4,'3.Índices_inflação'!$A$2:$AU$105,$EI26,FALSE)) -> 839783.0519 | DR26: ='1.Dados_cont_historicos'!ES26*(1+VLOOKUP('1.Dados_cont_historicos'!ES$4,'3.Índices_inflação'!$A$2:$AU$105,$EI26,FALSE)) -> 828656.9306 | DS26: ='1.Dados_cont_historicos'!ET26*(1+VLOOKUP('1.Dados_cont_historicos'!ET$4,'3.Índices_inflação'!$A$2:$AU$105,$EI26,FALSE)) -> 1357502.668 | DT26: ='1.Dados_cont_historicos'!EU26*(1+VLOOKUP('1.Dados_cont_historicos'!EU$4,'3.Índices_inflação'!$A$2:$AU$105,$EI26,FALSE)) -> 46881.3136 | DU26: ='1.Dados_cont_historicos'!EV26*(1+VLOOKUP('1.Dados_cont_historicos'!EV$4,'3.Índices_inflação'!$A$2:$AU$105,$EI26,FALSE)) -> 1998110.695 | DV26: ='1.Dados_cont_historicos'!EW26*(1+VLOOKUP('1.Dados_cont_historicos'!EW$4,'3.Índices_inflação'!$A$2:$AU$105,$EI26,FALSE)) -> 755391.2462 | DY26: 13328933.09 | DZ26: 11142196.73 | EA26: 9615253.858 | EB26: 9681661.032 | EC26: 12328342.13 | ED26: 10036584.58 | EE26: 9080408.215 | EF26: 11145180.14 | EG26: 0.2273875665 | EH26: IPCA | EI26: =HLOOKUP(EH26,'3.Índices_inflação'!$B$1:$AZ$144,144,FALSE) -> 28
